Workbook

Sheet Init (hidden)
D11: Vous devez activer les macros pour utiliser ce classeur
G18: Num | H18: Action
G19: =IF(Action02[[#This Row],[Action]]="","",OFFSET(ListeActions[[#Headers],[N]],MATCH(Action02[[#This Row],[Action]],ListeActions[Actions],0),0,1,1)) -> 3 | H19: Admin
G20: =IF(Action02[[#This Row],[Action]]="","",OFFSET(ListeActions[[#Headers],[N]],MATCH(Action02[[#This Row],[Action]],ListeActions[Actions],0),0,1,1)) -> 19 | H20: Change mot de passe

Sheet Accueil
C1: Accueil
C7: Titre : | D7: =QTitre -> Calcul global chargements
C8: Ref : | D8: =Qref -> F_00626
C9: Version : | D9: =Qversion -> 7
C10: Date : | D10: =QDate -> 44154
C11: Auteur : | D11: =QAuteur -> C Richert
B15: Num | C15: Action
B16: =IF(Action01[[#This Row],[Action]]="","",OFFSET(ListeActions[[#Headers],[N]],MATCH(Action01[[#This Row],[Action]],ListeActions[Actions],0),0,1,1)) -> 3 | C16: Admin
B17: =IF(Action01[[#This Row],[Action]]="","",OFFSET(ListeActions[[#Headers],[N]],MATCH(Action01[[#This Row],[Action]],ListeActions[Actions],0),0,1,1)) -> 1 | C17: Page suivante | G17: Historique des versions
B18: =IF(Action01[[#This Row],[Action]]="","",OFFSET(ListeActions[[#Headers],[N]],MATCH(Action01[[#This Row],[Action]],ListeActions[Actions],0),0,1,1)) -> 8 | C18: MAJ TCD
B19: =IF(Action01[[#This Row],[Action]]="","",OFFSET(ListeActions[[#Headers],[N]],MATCH(Action01[[#This Row],[Action]],ListeActions[Actions],0),0,1,1)) -> 10 | C19: Valider | G19: Date | H19: Version | I19: Description des modifications
B20: =IF(Action01[[#This Row],[Action]]="","",OFFSET(ListeActions[[#Headers],[N]],MATCH(Action01[[#This Row],[Action]],ListeActions[Actions],0),0,1,1)) -> 13 | C20: Aide | G20: 43098 | H20: 0 | I20: Ajout export carte de contrôle
B21: =IF(Action01[[#This Row],[Action]]="","",OFFSET(ListeActions[[#Headers],[N]],MATCH(Action01[[#This Row],[Action]],ListeActions[Actions],0),0,1,1)) -> 14 | C21: Autofit | G21: 43108 | H21: 0 | I21: Modele avec Hum 2018
B22: =IF(Action01[[#This Row],[Action]]="","",OFFSET(ListeActions[[#Headers],[N]],MATCH(Action01[[#This Row],[Action]],ListeActions[Actions],0),0,1,1)) -> 4 | C22: Verrouiller | G22: 43111 | H22: 0 | I22: Integration de l'import auto Hum & PF
G23: 43171 | H23: 0 | I23: Correction Bilan Fe
G24: 43174 | H24: 0 | I24: Modif Import PF
G25: 43175 | H25: 0 | I25: Import pesées et validations
G26: 43187 | H26: 1 | I26: Mise en service
G27: 43271 | H27: 2 | I27: Ajout de l'information "Casse humidité" et préparation de la table Copie
G28: 43424 | H28: 3 | I28: Ajout date ICP pour les cartes de contrôle Afficher la perte au feu en % (pas d'impact) dans l'onglet PF Corriger la formule des cases d'alerte sur le nombre de pots d'humidité (Onglet Alerte, pas d'impact)
G29: 43797 | H29: 4 | I29: Ajout Attestation tarifaire suite aux modifications de la facturation, ajout Info Fer Si SMT, pas d'impact
G30: 43950 | H30: 5 | I30: Corrections texte sur bulletin dont les tonnages sont non conformes / Aucun impact
G31: 44034 | H31: 6 | I31: Ajout liste déroulante choix signataire

Sheet Alertes (hidden)
A3: Ref Labo | B3: Ligne | D3: Ref
D4: =IF(B4="",""," "&B4) ->  | N4: Ref Labo | O4: Ligne | Q4: Ref
Q5: =IF(O5="",""," " &O5) -> 
F16: Alerte T | G16: =IF(SUM(ImportTDE[Alerte T])=0,"",ConcatPlage(TabAlerteT[Ref],", ")) -> 
F17: Alerte Hum | G17: =IF(SUM(ImportTDE[Alerte NbHum])=0,"",ConcatPlage(Tableau55[Ref],", ")) -> 
D23: =IF(B23="",""," "&B23) -> 
F24: =IF(SUM(ImportTDE[Alerte T])=1," Le tonnage du lot n° " &AlertT & " est supérieur à 2 000 T, ce qui est contraire à la réglementation (cf arrêté n°2010-1007/GNC du 23/02/2010)",IF(SUM(ImportTDE[Alerte T])>1," Le tonnage des lots n° " &AlertT & " est supérieur à 2 000 T, ce qui est contraire à la réglementation (cf arrêté n°2010-1007/GNC du 23/02/2010)","")) -> 
F25: =IF(SUM(ImportTDE[Alerte NbHum])=1,"Il n'y avait qu'un seul pot d'humidité pour le lot n° " &AlertHum & ", ce qui est contraire à la réglementation (cf arrêté n°2010-1007/GNC du 23/02/2010)",IF(SUM(ImportTDE[Alerte NbHum])>1,"Il n'y avait qu'un seul pot d'humidité pour les lots n° " &AlertHum & " , ce qui est contraire à la réglementation (cf arrêté n°2010-1007/GNC du 23/02/2010)","")) -> 
Q27: =IF(O27="",""," " &O27) -> 
D55: =IF(B55="",""," "&B55) -> 
Q59: =IF(O59="",""," " &O59) -> 
D87: =IF(B87="",""," "&B87) -> 
Q91: =IF(O91="",""," " &O91) -> 
D119: =IF(B119="",""," "&B119) -> 
Q123: =IF(O123="",""," " &O123) -> 

Sheet Aide
C1: Aide
H13: N | I13: Action
H14: =IF(Action03[[#This Row],[Action]]="","",OFFSET(ListeActions[[#Headers],[N]],MATCH(Action03[[#This Row],[Action]],ListeActions[Actions],0),0,1,1)) -> 1 | I14: Page suivante
H15: =IF(Action03[[#This Row],[Action]]="","",OFFSET(ListeActions[[#Headers],[N]],MATCH(Action03[[#This Row],[Action]],ListeActions[Actions],0),0,1,1)) -> 2 | I15: Page précédente

Sheet TDE
O1: <----------------------------------------->
G2: si <>2
B4: Ligne | C4: Ref Labo | D4: Ref Client0 | E4: Mine0 | F4: Tonnage0 | G4: NbHum | H4: Ref Client | I4: Mine | J4: Tonnage | K4: Alerte T | L4: Alerte NbHum
B5: =IF(ROW(ImportTDE[[#This Row],[Ref Labo]])-ROW(ImportTDE[[#Headers],[Ref Labo]])>NbEch,"",ROW(ImportTDE[[#This Row],[Ref Labo]])-ROW(ImportTDE[[#Headers],[Ref Labo]])) -> 1 | C5: =IF(ImportTDE[[#This Row],[Ligne]]="","",TDE&"-"&REPT("0",LEN(NbEch)-LEN(ImportTDE[[#This Row],[Ligne]]))&ImportTDE[[#This Row],[Ligne]]) ->  | H5: =IF(ImportTDE[[#This Row],[Ligne]]="","",IF(ImportTDE[[#This Row],[Ref Client0]]="",Prefixe &ImportTDE[[#This Row],[Ligne]]&Suffixe,ImportTDE[[#This Row],[Ref Client0]])) -> Lot 1 | I5: =IF(ImportTDE[[#This Row],[Ligne]]="","",IF(ImportTDE[[#This Row],[Ligne]]=1,ImportTDE[[#This Row],[Mine0]],IF(ImportTDE[[#This Row],[Mine0]]="",OFFSET(ImportTDE[[#Headers],[Mine]],ImportTDE[[#This Row],[Ligne]]-1,0,1,1),ImportTDE[[#This Row],[Mine0]]))) -> 0 | J5: =IF(ImportTDE[[#This Row],[Ligne]]="","",IF(ImportTDE[[#This Row],[Ligne]]=1,ImportTDE[[#This Row],[Tonnage0]],IF(ImportTDE[[#This Row],[Tonnage0]]="",OFFSET(ImportTDE[[#Headers],[Tonnage]],ImportTDE[[#This Row],[Ligne]]-1,0,1,1),ImportTDE[[#This Row],[Tonnage0]]))) -> 0 | K5: =IF(ImportTDE[[#This Row],[Ref Labo]]="","",IF(ImportTDE[[#This Row],[Tonnage]]>2000,1,"")) ->  | L5: =IF(ImportTDE[[#This Row],[Ref Labo]]="","",IF(AND(ImportTDE[[#This Row],[NbHum]]<>"",ImportTDE[[#This Row],[NbHum]]<2),1,"")) ->  | N5: Ref TDE Qlic | O5: ${Key}
B6: =IF(ROW(ImportTDE[[#This Row],[Ref Labo]])-ROW(ImportTDE[[#Headers],[Ref Labo]])>NbEch,"",ROW(ImportTDE[[#This Row],[Ref Labo]])-ROW(ImportTDE[[#Headers],[Ref Labo]])) -> 2 | C6: =IF(ImportTDE[[#This Row],[Ligne]]="","",TDE&"-"&REPT("0",LEN(NbEch)-LEN(ImportTDE[[#This Row],[Ligne]]))&ImportTDE[[#This Row],[Ligne]]) ->  | H6: =IF(ImportTDE[[#This Row],[Ligne]]="","",IF(ImportTDE[[#This Row],[Ref Client0]]="",Prefixe &ImportTDE[[#This Row],[Ligne]]&Suffixe,ImportTDE[[#This Row],[Ref Client0]])) -> Lot 2 | I6: =IF(ImportTDE[[#This Row],[Ligne]]="","",IF(ImportTDE[[#This Row],[Ligne]]=1,ImportTDE[[#This Row],[Mine0]],IF(ImportTDE[[#This Row],[Mine0]]="",OFFSET(ImportTDE[[#Headers],[Mine]],ImportTDE[[#This Row],[Ligne]]-1,0,1,1),ImportTDE[[#This Row],[Mine0]]))) -> 0 | J6: =IF(ImportTDE[[#This Row],[Ligne]]="","",IF(ImportTDE[[#This Row],[Ligne]]=1,ImportTDE[[#This Row],[Tonnage0]],IF(ImportTDE[[#This Row],[Tonnage0]]="",OFFSET(ImportTDE[[#Headers],[Tonnage]],ImportTDE[[#This Row],[Ligne]]-1,0,1,1),ImportTDE[[#This Row],[Tonnage0]]))) -> 0 | K6: =IF(ImportTDE[[#This Row],[Ref Labo]]="","",IF(ImportTDE[[#This Row],[Tonnage]]>2000,1,"")) ->  | L6: =IF(ImportTDE[[#This Row],[Ref Labo]]="","",IF(AND(ImportTDE[[#This Row],[NbHum]]<>"",ImportTDE[[#This Row],[NbHum]]<2),1,"")) ->  | N6: TDE | O6: =IF(Ref_TDE="","",1*RIGHT(Ref_TDE,4)) ->  | S6: Num | T6: Action
B7: =IF(ROW(ImportTDE[[#This Row],[Ref Labo]])-ROW(ImportTDE[[#Headers],[Ref Labo]])>NbEch,"",ROW(ImportTDE[[#This Row],[Ref Labo]])-ROW(ImportTDE[[#Headers],[Ref Labo]])) -> 3 | C7: =IF(ImportTDE[[#This Row],[Ligne]]="","",TDE&"-"&REPT("0",LEN(NbEch)-LEN(ImportTDE[[#This Row],[Ligne]]))&ImportTDE[[#This Row],[Ligne]]) ->  | H7: =IF(ImportTDE[[#This Row],[Ligne]]="","",IF(ImportTDE[[#This Row],[Ref Client0]]="",Prefixe &ImportTDE[[#This Row],[Ligne]]&Suffixe,ImportTDE[[#This Row],[Ref Client0]])) -> Lot 3 | I7: =IF(ImportTDE[[#This Row],[Ligne]]="","",IF(ImportTDE[[#This Row],[Ligne]]=1,ImportTDE[[#This Row],[Mine0]],IF(ImportTDE[[#This Row],[Mine0]]="",OFFSET(ImportTDE[[#Headers],[Mine]],ImportTDE[[#This Row],[Ligne]]-1,0,1,1),ImportTDE[[#This Row],[Mine0]]))) -> 0 | J7: =IF(ImportTDE[[#This Row],[Ligne]]="","",IF(ImportTDE[[#This Row],[Ligne]]=1,ImportTDE[[#This Row],[Tonnage0]],IF(ImportTDE[[#This Row],[Tonnage0]]="",OFFSET(ImportTDE[[#Headers],[Tonnage]],ImportTDE[[#This Row],[Ligne]]-1,0,1,1),ImportTDE[[#This Row],[Tonnage0]]))) -> 0 | K7: =IF(ImportTDE[[#This Row],[Ref Labo]]="","",IF(ImportTDE[[#This Row],[Tonnage]]>2000,1,"")) ->  | L7: =IF(ImportTDE[[#This Row],[Ref Labo]]="","",IF(AND(ImportTDE[[#This Row],[NbHum]]<>"",ImportTDE[[#This Row],[NbHum]]<2),1,"")) ->  | N7: Navire | O7: ${Nom navire[37133]} | S7: =IF(Action0153[[#This Row],[Action]]="","",OFFSET(ListeActions[[#Headers],[N]],MATCH(Action0153[[#This Row],[Action]],ListeActions[Actions],0),0,1,1)) -> 8 | T7: MAJ TCD
B8: =IF(ROW(ImportTDE[[#This Row],[Ref Labo]])-ROW(ImportTDE[[#Headers],[Ref Labo]])>NbEch,"",ROW(ImportTDE[[#This Row],[Ref Labo]])-ROW(ImportTDE[[#Headers],[Ref Labo]])) -> 4 | C8: =IF(ImportTDE[[#This Row],[Ligne]]="","",TDE&"-"&REPT("0",LEN(NbEch)-LEN(ImportTDE[[#This Row],[Ligne]]))&ImportTDE[[#This Row],[Ligne]]) ->  | H8: =IF(ImportTDE[[#This Row],[Ligne]]="","",IF(ImportTDE[[#This Row],[Ref Client0]]="",Prefixe &ImportTDE[[#This Row],[Ligne]]&Suffixe,ImportTDE[[#This Row],[Ref Client0]])) -> Lot 4 | I8: =IF(ImportTDE[[#This Row],[Ligne]]="","",IF(ImportTDE[[#This Row],[Ligne]]=1,ImportTDE[[#This Row],[Mine0]],IF(ImportTDE[[#This Row],[Mine0]]="",OFFSET(ImportTDE[[#Headers],[Mine]],ImportTDE[[#This Row],[Ligne]]-1,0,1,1),ImportTDE[[#This Row],[Mine0]]))) -> 0 | J8: =IF(ImportTDE[[#This Row],[Ligne]]="","",IF(ImportTDE[[#This Row],[Ligne]]=1,ImportTDE[[#This Row],[Tonnage0]],IF(ImportTDE[[#This Row],[Tonnage0]]="",OFFSET(ImportTDE[[#Headers],[Tonnage]],ImportTDE[[#This Row],[Ligne]]-1,0,1,1),ImportTDE[[#This Row],[Tonnage0]]))) -> 0 | K8: =IF(ImportTDE[[#This Row],[Ref Labo]]="","",IF(ImportTDE[[#This Row],[Tonnage]]>2000,1,"")) ->  | L8: =IF(ImportTDE[[#This Row],[Ref Labo]]="","",IF(AND(ImportTDE[[#This Row],[NbHum]]<>"",ImportTDE[[#This Row],[NbHum]]<2),1,"")) ->  | N8: Lieu Chargement | O8: ${Port embarquement[37134]} | S8: =IF(Action0153[[#This Row],[Action]]="","",OFFSET(ListeActions[[#Headers],[N]],MATCH(Action0153[[#This Row],[Action]],ListeActions[Actions],0),0,1,1)) -> 14 | T8: Autofit
B9: =IF(ROW(ImportTDE[[#This Row],[Ref Labo]])-ROW(ImportTDE[[#Headers],[Ref Labo]])>NbEch,"",ROW(ImportTDE[[#This Row],[Ref Labo]])-ROW(ImportTDE[[#Headers],[Ref Labo]])) -> 5 | C9: =IF(ImportTDE[[#This Row],[Ligne]]="","",TDE&"-"&REPT("0",LEN(NbEch)-LEN(ImportTDE[[#This Row],[Ligne]]))&ImportTDE[[#This Row],[Ligne]]) ->  | H9: =IF(ImportTDE[[#This Row],[Ligne]]="","",IF(ImportTDE[[#This Row],[Ref Client0]]="",Prefixe &ImportTDE[[#This Row],[Ligne]]&Suffixe,ImportTDE[[#This Row],[Ref Client0]])) -> Lot 5 | I9: =IF(ImportTDE[[#This Row],[Ligne]]="","",IF(ImportTDE[[#This Row],[Ligne]]=1,ImportTDE[[#This Row],[Mine0]],IF(ImportTDE[[#This Row],[Mine0]]="",OFFSET(ImportTDE[[#Headers],[Mine]],ImportTDE[[#This Row],[Ligne]]-1,0,1,1),ImportTDE[[#This Row],[Mine0]]))) -> 0 | J9: =IF(ImportTDE[[#This Row],[Ligne]]="","",IF(ImportTDE[[#This Row],[Ligne]]=1,ImportTDE[[#This Row],[Tonnage0]],IF(ImportTDE[[#This Row],[Tonnage0]]="",OFFSET(ImportTDE[[#Headers],[Tonnage]],ImportTDE[[#This Row],[Ligne]]-1,0,1,1),ImportTDE[[#This Row],[Tonnage0]]))) -> 0 | K9: =IF(ImportTDE[[#This Row],[Ref Labo]]="","",IF(ImportTDE[[#This Row],[Tonnage]]>2000,1,"")) ->  | L9: =IF(ImportTDE[[#This Row],[Ref Labo]]="","",IF(AND(ImportTDE[[#This Row],[NbHum]]<>"",ImportTDE[[#This Row],[NbHum]]<2),1,"")) ->  | N9: Exportateur | O9: ${Nom du demandeur.[37191]} | S9: =IF(Action0153[[#This Row],[Action]]="","",OFFSET(ListeActions[[#Headers],[N]],MATCH(Action0153[[#This Row],[Action]],ListeActions[Actions],0),0,1,1)) -> 4 | T9: Verrouiller
B10: =IF(ROW(ImportTDE[[#This Row],[Ref Labo]])-ROW(ImportTDE[[#Headers],[Ref Labo]])>NbEch,"",ROW(ImportTDE[[#This Row],[Ref Labo]])-ROW(ImportTDE[[#Headers],[Ref Labo]])) -> 6 | C10: =IF(ImportTDE[[#This Row],[Ligne]]="","",TDE&"-"&REPT("0",LEN(NbEch)-LEN(ImportTDE[[#This Row],[Ligne]]))&ImportTDE[[#This Row],[Ligne]]) ->  | H10: =IF(ImportTDE[[#This Row],[Ligne]]="","",IF(ImportTDE[[#This Row],[Ref Client0]]="",Prefixe &ImportTDE[[#This Row],[Ligne]]&Suffixe,ImportTDE[[#This Row],[Ref Client0]])) -> Lot 6 | I10: =IF(ImportTDE[[#This Row],[Ligne]]="","",IF(ImportTDE[[#This Row],[Ligne]]=1,ImportTDE[[#This Row],[Mine0]],IF(ImportTDE[[#This Row],[Mine0]]="",OFFSET(ImportTDE[[#Headers],[Mine]],ImportTDE[[#This Row],[Ligne]]-1,0,1,1),ImportTDE[[#This Row],[Mine0]]))) -> 0 | J10: =IF(ImportTDE[[#This Row],[Ligne]]="","",IF(ImportTDE[[#This Row],[Ligne]]=1,ImportTDE[[#This Row],[Tonnage0]],IF(ImportTDE[[#This Row],[Tonnage0]]="",OFFSET(ImportTDE[[#Headers],[Tonnage]],ImportTDE[[#This Row],[Ligne]]-1,0,1,1),ImportTDE[[#This Row],[Tonnage0]]))) -> 0 | K10: =IF(ImportTDE[[#This Row],[Ref Labo]]="","",IF(ImportTDE[[#This Row],[Tonnage]]>2000,1,"")) ->  | L10: =IF(ImportTDE[[#This Row],[Ref Labo]]="","",IF(AND(ImportTDE[[#This Row],[NbHum]]<>"",ImportTDE[[#This Row],[NbHum]]<2),1,"")) ->  | N10: Adresse Export 1 | O10: =IF(Exportateur="","",OFFSET(AdressesClients[[#Headers],[Adresse 1]],MATCH(Exportateur,AdressesClients[Client],0),0,1,1)) -> 
B11: =IF(ROW(ImportTDE[[#This Row],[Ref Labo]])-ROW(ImportTDE[[#Headers],[Ref Labo]])>NbEch,"",ROW(ImportTDE[[#This Row],[Ref Labo]])-ROW(ImportTDE[[#Headers],[Ref Labo]])) -> 7 | C11: =IF(ImportTDE[[#This Row],[Ligne]]="","",TDE&"-"&REPT("0",LEN(NbEch)-LEN(ImportTDE[[#This Row],[Ligne]]))&ImportTDE[[#This Row],[Ligne]]) ->  | H11: =IF(ImportTDE[[#This Row],[Ligne]]="","",IF(ImportTDE[[#This Row],[Ref Client0]]="",Prefixe &ImportTDE[[#This Row],[Ligne]]&Suffixe,ImportTDE[[#This Row],[Ref Client0]])) -> Lot 7 | I11: =IF(ImportTDE[[#This Row],[Ligne]]="","",IF(ImportTDE[[#This Row],[Ligne]]=1,ImportTDE[[#This Row],[Mine0]],IF(ImportTDE[[#This Row],[Mine0]]="",OFFSET(ImportTDE[[#Headers],[Mine]],ImportTDE[[#This Row],[Ligne]]-1,0,1,1),ImportTDE[[#This Row],[Mine0]]))) -> 0 | J11: =IF(ImportTDE[[#This Row],[Ligne]]="","",IF(ImportTDE[[#This Row],[Ligne]]=1,ImportTDE[[#This Row],[Tonnage0]],IF(ImportTDE[[#This Row],[Tonnage0]]="",OFFSET(ImportTDE[[#Headers],[Tonnage]],ImportTDE[[#This Row],[Ligne]]-1,0,1,1),ImportTDE[[#This Row],[Tonnage0]]))) -> 0 | K11: =IF(ImportTDE[[#This Row],[Ref Labo]]="","",IF(ImportTDE[[#This Row],[Tonnage]]>2000,1,"")) ->  | L11: =IF(ImportTDE[[#This Row],[Ref Labo]]="","",IF(AND(ImportTDE[[#This Row],[NbHum]]<>"",ImportTDE[[#This Row],[NbHum]]<2),1,"")) ->  | N11: Adresse Export 2 | O11: =IF(Exportateur="","",OFFSET(AdressesClients[[#Headers],[Adresse 2]],MATCH(Exportateur,AdressesClients[Client],0),0,1,1)) -> 
B12: =IF(ROW(ImportTDE[[#This Row],[Ref Labo]])-ROW(ImportTDE[[#Headers],[Ref Labo]])>NbEch,"",ROW(ImportTDE[[#This Row],[Ref Labo]])-ROW(ImportTDE[[#Headers],[Ref Labo]])) -> 8 | C12: =IF(ImportTDE[[#This Row],[Ligne]]="","",TDE&"-"&REPT("0",LEN(NbEch)-LEN(ImportTDE[[#This Row],[Ligne]]))&ImportTDE[[#This Row],[Ligne]]) ->  | H12: =IF(ImportTDE[[#This Row],[Ligne]]="","",IF(ImportTDE[[#This Row],[Ref Client0]]="",Prefixe &ImportTDE[[#This Row],[Ligne]]&Suffixe,ImportTDE[[#This Row],[Ref Client0]])) -> Lot 8 | I12: =IF(ImportTDE[[#This Row],[Ligne]]="","",IF(ImportTDE[[#This Row],[Ligne]]=1,ImportTDE[[#This Row],[Mine0]],IF(ImportTDE[[#This Row],[Mine0]]="",OFFSET(ImportTDE[[#Headers],[Mine]],ImportTDE[[#This Row],[Ligne]]-1,0,1,1),ImportTDE[[#This Row],[Mine0]]))) -> 0 | J12: =IF(ImportTDE[[#This Row],[Ligne]]="","",IF(ImportTDE[[#This Row],[Ligne]]=1,ImportTDE[[#This Row],[Tonnage0]],IF(ImportTDE[[#This Row],[Tonnage0]]="",OFFSET(ImportTDE[[#Headers],[Tonnage]],ImportTDE[[#This Row],[Ligne]]-1,0,1,1),ImportTDE[[#This Row],[Tonnage0]]))) -> 0 | K12: =IF(ImportTDE[[#This Row],[Ref Labo]]="","",IF(ImportTDE[[#This Row],[Tonnage]]>2000,1,"")) ->  | L12: =IF(ImportTDE[[#This Row],[Ref Labo]]="","",IF(AND(ImportTDE[[#This Row],[NbHum]]<>"",ImportTDE[[#This Row],[NbHum]]<2),1,"")) ->  | N12: Date depart | O12: ${dateformat("dd/MM/yyyy"):Date chargement[37145]}
B13: =IF(ROW(ImportTDE[[#This Row],[Ref Labo]])-ROW(ImportTDE[[#Headers],[Ref Labo]])>NbEch,"",ROW(ImportTDE[[#This Row],[Ref Labo]])-ROW(ImportTDE[[#Headers],[Ref Labo]])) -> 9 | C13: =IF(ImportTDE[[#This Row],[Ligne]]="","",TDE&"-"&REPT("0",LEN(NbEch)-LEN(ImportTDE[[#This Row],[Ligne]]))&ImportTDE[[#This Row],[Ligne]]) ->  | H13: =IF(ImportTDE[[#This Row],[Ligne]]="","",IF(ImportTDE[[#This Row],[Ref Client0]]="",Prefixe &ImportTDE[[#This Row],[Ligne]]&Suffixe,ImportTDE[[#This Row],[Ref Client0]])) -> Lot 9 | I13: =IF(ImportTDE[[#This Row],[Ligne]]="","",IF(ImportTDE[[#This Row],[Ligne]]=1,ImportTDE[[#This Row],[Mine0]],IF(ImportTDE[[#This Row],[Mine0]]="",OFFSET(ImportTDE[[#Headers],[Mine]],ImportTDE[[#This Row],[Ligne]]-1,0,1,1),ImportTDE[[#This Row],[Mine0]]))) -> 0 | J13: =IF(ImportTDE[[#This Row],[Ligne]]="","",IF(ImportTDE[[#This Row],[Ligne]]=1,ImportTDE[[#This Row],[Tonnage0]],IF(ImportTDE[[#This Row],[Tonnage0]]="",OFFSET(ImportTDE[[#Headers],[Tonnage]],ImportTDE[[#This Row],[Ligne]]-1,0,1,1),ImportTDE[[#This Row],[Tonnage0]]))) -> 0 | K13: =IF(ImportTDE[[#This Row],[Ref Labo]]="","",IF(ImportTDE[[#This Row],[Tonnage]]>2000,1,"")) ->  | L13: =IF(ImportTDE[[#This Row],[Ref Labo]]="","",IF(AND(ImportTDE[[#This Row],[NbHum]]<>"",ImportTDE[[#This Row],[NbHum]]<2),1,"")) ->  | N13: Acheteur | O13: ${Acheteur[37135]}
B14: =IF(ROW(ImportTDE[[#This Row],[Ref Labo]])-ROW(ImportTDE[[#Headers],[Ref Labo]])>NbEch,"",ROW(ImportTDE[[#This Row],[Ref Labo]])-ROW(ImportTDE[[#Headers],[Ref Labo]])) -> 10 | C14: =IF(ImportTDE[[#This Row],[Ligne]]="","",TDE&"-"&REPT("0",LEN(NbEch)-LEN(ImportTDE[[#This Row],[Ligne]]))&ImportTDE[[#This Row],[Ligne]]) ->  | H14: =IF(ImportTDE[[#This Row],[Ligne]]="","",IF(ImportTDE[[#This Row],[Ref Client0]]="",Prefixe &ImportTDE[[#This Row],[Ligne]]&Suffixe,ImportTDE[[#This Row],[Ref Client0]])) -> Lot 10 | I14: =IF(ImportTDE[[#This Row],[Ligne]]="","",IF(ImportTDE[[#This Row],[Ligne]]=1,ImportTDE[[#This Row],[Mine0]],IF(ImportTDE[[#This Row],[Mine0]]="",OFFSET(ImportTDE[[#Headers],[Mine]],ImportTDE[[#This Row],[Ligne]]-1,0,1,1),ImportTDE[[#This Row],[Mine0]]))) -> 0 | J14: =IF(ImportTDE[[#This Row],[Ligne]]="","",IF(ImportTDE[[#This Row],[Ligne]]=1,ImportTDE[[#This Row],[Tonnage0]],IF(ImportTDE[[#This Row],[Tonnage0]]="",OFFSET(ImportTDE[[#Headers],[Tonnage]],ImportTDE[[#This Row],[Ligne]]-1,0,1,1),ImportTDE[[#This Row],[Tonnage0]]))) -> 0 | K14: =IF(ImportTDE[[#This Row],[Ref Labo]]="","",IF(ImportTDE[[#This Row],[Tonnage]]>2000,1,"")) ->  | L14: =IF(ImportTDE[[#This Row],[Ref Labo]]="","",IF(AND(ImportTDE[[#This Row],[NbHum]]<>"",ImportTDE[[#This Row],[NbHum]]<2),1,"")) ->  | N14: Consommateur | O14: ${Consommateur[37147]}
B15: =IF(ROW(ImportTDE[[#This Row],[Ref Labo]])-ROW(ImportTDE[[#Headers],[Ref Labo]])>NbEch,"",ROW(ImportTDE[[#This Row],[Ref Labo]])-ROW(ImportTDE[[#Headers],[Ref Labo]])) -> 11 | C15: =IF(ImportTDE[[#This Row],[Ligne]]="","",TDE&"-"&REPT("0",LEN(NbEch)-LEN(ImportTDE[[#This Row],[Ligne]]))&ImportTDE[[#This Row],[Ligne]]) ->  | H15: =IF(ImportTDE[[#This Row],[Ligne]]="","",IF(ImportTDE[[#This Row],[Ref Client0]]="",Prefixe &ImportTDE[[#This Row],[Ligne]]&Suffixe,ImportTDE[[#This Row],[Ref Client0]])) -> Lot 11 | I15: =IF(ImportTDE[[#This Row],[Ligne]]="","",IF(ImportTDE[[#This Row],[Ligne]]=1,ImportTDE[[#This Row],[Mine0]],IF(ImportTDE[[#This Row],[Mine0]]="",OFFSET(ImportTDE[[#Headers],[Mine]],ImportTDE[[#This Row],[Ligne]]-1,0,1,1),ImportTDE[[#This Row],[Mine0]]))) -> 0 | J15: =IF(ImportTDE[[#This Row],[Ligne]]="","",IF(ImportTDE[[#This Row],[Ligne]]=1,ImportTDE[[#This Row],[Tonnage0]],IF(ImportTDE[[#This Row],[Tonnage0]]="",OFFSET(ImportTDE[[#Headers],[Tonnage]],ImportTDE[[#This Row],[Ligne]]-1,0,1,1),ImportTDE[[#This Row],[Tonnage0]]))) -> 0 | K15: =IF(ImportTDE[[#This Row],[Ref Labo]]="","",IF(ImportTDE[[#This Row],[Tonnage]]>2000,1,"")) ->  | L15: =IF(ImportTDE[[#This Row],[Ref Labo]]="","",IF(AND(ImportTDE[[#This Row],[NbHum]]<>"",ImportTDE[[#This Row],[NbHum]]<2),1,"")) ->  | N15: Port debarquement | O15: ${Port débarquement[37136]}
B16: =IF(ROW(ImportTDE[[#This Row],[Ref Labo]])-ROW(ImportTDE[[#Headers],[Ref Labo]])>NbEch,"",ROW(ImportTDE[[#This Row],[Ref Labo]])-ROW(ImportTDE[[#Headers],[Ref Labo]])) -> 12 | C16: =IF(ImportTDE[[#This Row],[Ligne]]="","",TDE&"-"&REPT("0",LEN(NbEch)-LEN(ImportTDE[[#This Row],[Ligne]]))&ImportTDE[[#This Row],[Ligne]]) ->  | H16: =IF(ImportTDE[[#This Row],[Ligne]]="","",IF(ImportTDE[[#This Row],[Ref Client0]]="",Prefixe &ImportTDE[[#This Row],[Ligne]]&Suffixe,ImportTDE[[#This Row],[Ref Client0]])) -> Lot 12 | I16: =IF(ImportTDE[[#This Row],[Ligne]]="","",IF(ImportTDE[[#This Row],[Ligne]]=1,ImportTDE[[#This Row],[Mine0]],IF(ImportTDE[[#This Row],[Mine0]]="",OFFSET(ImportTDE[[#Headers],[Mine]],ImportTDE[[#This Row],[Ligne]]-1,0,1,1),ImportTDE[[#This Row],[Mine0]]))) -> 0 | J16: =IF(ImportTDE[[#This Row],[Ligne]]="","",IF(ImportTDE[[#This Row],[Ligne]]=1,ImportTDE[[#This Row],[Tonnage0]],IF(ImportTDE[[#This Row],[Tonnage0]]="",OFFSET(ImportTDE[[#Headers],[Tonnage]],ImportTDE[[#This Row],[Ligne]]-1,0,1,1),ImportTDE[[#This Row],[Tonnage0]]))) -> 0 | K16: =IF(ImportTDE[[#This Row],[Ref Labo]]="","",IF(ImportTDE[[#This Row],[Tonnage]]>2000,1,"")) ->  | L16: =IF(ImportTDE[[#This Row],[Ref Labo]]="","",IF(AND(ImportTDE[[#This Row],[NbHum]]<>"",ImportTDE[[#This Row],[NbHum]]<2),1,"")) ->  | N16: Nombre d'échantillons | O16: ${Qté échantillon[37130]}
B17: =IF(ROW(ImportTDE[[#This Row],[Ref Labo]])-ROW(ImportTDE[[#Headers],[Ref Labo]])>NbEch,"",ROW(ImportTDE[[#This Row],[Ref Labo]])-ROW(ImportTDE[[#Headers],[Ref Labo]])) -> 13 | C17: =IF(ImportTDE[[#This Row],[Ligne]]="","",TDE&"-"&REPT("0",LEN(NbEch)-LEN(ImportTDE[[#This Row],[Ligne]]))&ImportTDE[[#This Row],[Ligne]]) ->  | H17: =IF(ImportTDE[[#This Row],[Ligne]]="","",IF(ImportTDE[[#This Row],[Ref Client0]]="",Prefixe &ImportTDE[[#This Row],[Ligne]]&Suffixe,ImportTDE[[#This Row],[Ref Client0]])) -> Lot 13 | I17: =IF(ImportTDE[[#This Row],[Ligne]]="","",IF(ImportTDE[[#This Row],[Ligne]]=1,ImportTDE[[#This Row],[Mine0]],IF(ImportTDE[[#This Row],[Mine0]]="",OFFSET(ImportTDE[[#Headers],[Mine]],ImportTDE[[#This Row],[Ligne]]-1,0,1,1),ImportTDE[[#This Row],[Mine0]]))) -> 0 | J17: =IF(ImportTDE[[#This Row],[Ligne]]="","",IF(ImportTDE[[#This Row],[Ligne]]=1,ImportTDE[[#This Row],[Tonnage0]],IF(ImportTDE[[#This Row],[Tonnage0]]="",OFFSET(ImportTDE[[#Headers],[Tonnage]],ImportTDE[[#This Row],[Ligne]]-1,0,1,1),ImportTDE[[#This Row],[Tonnage0]]))) -> 0 | K17: =IF(ImportTDE[[#This Row],[Ref Labo]]="","",IF(ImportTDE[[#This Row],[Tonnage]]>2000,1,"")) ->  | L17: =IF(ImportTDE[[#This Row],[Ref Labo]]="","",IF(AND(ImportTDE[[#This Row],[NbHum]]<>"",ImportTDE[[#This Row],[NbHum]]<2),1,"")) ->  | N17: Tonnage annoncé | O17: ${Tonnage total[37146]}
B18: =IF(ROW(ImportTDE[[#This Row],[Ref Labo]])-ROW(ImportTDE[[#Headers],[Ref Labo]])>NbEch,"",ROW(ImportTDE[[#This Row],[Ref Labo]])-ROW(ImportTDE[[#Headers],[Ref Labo]])) -> 14 | C18: =IF(ImportTDE[[#This Row],[Ligne]]="","",TDE&"-"&REPT("0",LEN(NbEch)-LEN(ImportTDE[[#This Row],[Ligne]]))&ImportTDE[[#This Row],[Ligne]]) ->  | H18: =IF(ImportTDE[[#This Row],[Ligne]]="","",IF(ImportTDE[[#This Row],[Ref Client0]]="",Prefixe &ImportTDE[[#This Row],[Ligne]]&Suffixe,ImportTDE[[#This Row],[Ref Client0]])) -> Lot 14 | I18: =IF(ImportTDE[[#This Row],[Ligne]]="","",IF(ImportTDE[[#This Row],[Ligne]]=1,ImportTDE[[#This Row],[Mine0]],IF(ImportTDE[[#This Row],[Mine0]]="",OFFSET(ImportTDE[[#Headers],[Mine]],ImportTDE[[#This Row],[Ligne]]-1,0,1,1),ImportTDE[[#This Row],[Mine0]]))) -> 0 | J18: =IF(ImportTDE[[#This Row],[Ligne]]="","",IF(ImportTDE[[#This Row],[Ligne]]=1,ImportTDE[[#This Row],[Tonnage0]],IF(ImportTDE[[#This Row],[Tonnage0]]="",OFFSET(ImportTDE[[#Headers],[Tonnage]],ImportTDE[[#This Row],[Ligne]]-1,0,1,1),ImportTDE[[#This Row],[Tonnage0]]))) -> 0 | K18: =IF(ImportTDE[[#This Row],[Ref Labo]]="","",IF(ImportTDE[[#This Row],[Tonnage]]>2000,1,"")) ->  | L18: =IF(ImportTDE[[#This Row],[Ref Labo]]="","",IF(AND(ImportTDE[[#This Row],[NbHum]]<>"",ImportTDE[[#This Row],[NbHum]]<2),1,"")) -> 
B19: =IF(ROW(ImportTDE[[#This Row],[Ref Labo]])-ROW(ImportTDE[[#Headers],[Ref Labo]])>NbEch,"",ROW(ImportTDE[[#This Row],[Ref Labo]])-ROW(ImportTDE[[#Headers],[Ref Labo]])) -> 15 | C19: =IF(ImportTDE[[#This Row],[Ligne]]="","",TDE&"-"&REPT("0",LEN(NbEch)-LEN(ImportTDE[[#This Row],[Ligne]]))&ImportTDE[[#This Row],[Ligne]]) ->  | H19: =IF(ImportTDE[[#This Row],[Ligne]]="","",IF(ImportTDE[[#This Row],[Ref Client0]]="",Prefixe &ImportTDE[[#This Row],[Ligne]]&Suffixe,ImportTDE[[#This Row],[Ref Client0]])) -> Lot 15 | I19: =IF(ImportTDE[[#This Row],[Ligne]]="","",IF(ImportTDE[[#This Row],[Ligne]]=1,ImportTDE[[#This Row],[Mine0]],IF(ImportTDE[[#This Row],[Mine0]]="",OFFSET(ImportTDE[[#Headers],[Mine]],ImportTDE[[#This Row],[Ligne]]-1,0,1,1),ImportTDE[[#This Row],[Mine0]]))) -> 0 | J19: =IF(ImportTDE[[#This Row],[Ligne]]="","",IF(ImportTDE[[#This Row],[Ligne]]=1,ImportTDE[[#This Row],[Tonnage0]],IF(ImportTDE[[#This Row],[Tonnage0]]="",OFFSET(ImportTDE[[#Headers],[Tonnage]],ImportTDE[[#This Row],[Ligne]]-1,0,1,1),ImportTDE[[#This Row],[Tonnage0]]))) -> 0 | K19: =IF(ImportTDE[[#This Row],[Ref Labo]]="","",IF(ImportTDE[[#This Row],[Tonnage]]>2000,1,"")) ->  | L19: =IF(ImportTDE[[#This Row],[Ref Labo]]="","",IF(AND(ImportTDE[[#This Row],[NbHum]]<>"",ImportTDE[[#This Row],[NbHum]]<2),1,"")) ->  | N19: Tonnage calculé | O19: =SUM(ImportTDE[Tonnage]) -> 0
B20: =IF(ROW(ImportTDE[[#This Row],[Ref Labo]])-ROW(ImportTDE[[#Headers],[Ref Labo]])>NbEch,"",ROW(ImportTDE[[#This Row],[Ref Labo]])-ROW(ImportTDE[[#Headers],[Ref Labo]])) -> 16 | C20: =IF(ImportTDE[[#This Row],[Ligne]]="","",TDE&"-"&REPT("0",LEN(NbEch)-LEN(ImportTDE[[#This Row],[Ligne]]))&ImportTDE[[#This Row],[Ligne]]) ->  | H20: =IF(ImportTDE[[#This Row],[Ligne]]="","",IF(ImportTDE[[#This Row],[Ref Client0]]="",Prefixe &ImportTDE[[#This Row],[Ligne]]&Suffixe,ImportTDE[[#This Row],[Ref Client0]])) -> Lot 16 | I20: =IF(ImportTDE[[#This Row],[Ligne]]="","",IF(ImportTDE[[#This Row],[Ligne]]=1,ImportTDE[[#This Row],[Mine0]],IF(ImportTDE[[#This Row],[Mine0]]="",OFFSET(ImportTDE[[#Headers],[Mine]],ImportTDE[[#This Row],[Ligne]]-1,0,1,1),ImportTDE[[#This Row],[Mine0]]))) -> 0 | J20: =IF(ImportTDE[[#This Row],[Ligne]]="","",IF(ImportTDE[[#This Row],[Ligne]]=1,ImportTDE[[#This Row],[Tonnage0]],IF(ImportTDE[[#This Row],[Tonnage0]]="",OFFSET(ImportTDE[[#Headers],[Tonnage]],ImportTDE[[#This Row],[Ligne]]-1,0,1,1),ImportTDE[[#This Row],[Tonnage0]]))) -> 0 | K20: =IF(ImportTDE[[#This Row],[Ref Labo]]="","",IF(ImportTDE[[#This Row],[Tonnage]]>2000,1,"")) ->  | L20: =IF(ImportTDE[[#This Row],[Ref Labo]]="","",IF(AND(ImportTDE[[#This Row],[NbHum]]<>"",ImportTDE[[#This Row],[NbHum]]<2),1,"")) -> 
B21: =IF(ROW(ImportTDE[[#This Row],[Ref Labo]])-ROW(ImportTDE[[#Headers],[Ref Labo]])>NbEch,"",ROW(ImportTDE[[#This Row],[Ref Labo]])-ROW(ImportTDE[[#Headers],[Ref Labo]])) -> 17 | C21: =IF(ImportTDE[[#This Row],[Ligne]]="","",TDE&"-"&REPT("0",LEN(NbEch)-LEN(ImportTDE[[#This Row],[Ligne]]))&ImportTDE[[#This Row],[Ligne]]) ->  | H21: =IF(ImportTDE[[#This Row],[Ligne]]="","",IF(ImportTDE[[#This Row],[Ref Client0]]="",Prefixe &ImportTDE[[#This Row],[Ligne]]&Suffixe,ImportTDE[[#This Row],[Ref Client0]])) -> Lot 17 | I21: =IF(ImportTDE[[#This Row],[Ligne]]="","",IF(ImportTDE[[#This Row],[Ligne]]=1,ImportTDE[[#This Row],[Mine0]],IF(ImportTDE[[#This Row],[Mine0]]="",OFFSET(ImportTDE[[#Headers],[Mine]],ImportTDE[[#This Row],[Ligne]]-1,0,1,1),ImportTDE[[#This Row],[Mine0]]))) -> 0 | J21: =IF(ImportTDE[[#This Row],[Ligne]]="","",IF(ImportTDE[[#This Row],[Ligne]]=1,ImportTDE[[#This Row],[Tonnage0]],IF(ImportTDE[[#This Row],[Tonnage0]]="",OFFSET(ImportTDE[[#Headers],[Tonnage]],ImportTDE[[#This Row],[Ligne]]-1,0,1,1),ImportTDE[[#This Row],[Tonnage0]]))) -> 0 | K21: =IF(ImportTDE[[#This Row],[Ref Labo]]="","",IF(ImportTDE[[#This Row],[Tonnage]]>2000,1,"")) ->  | L21: =IF(ImportTDE[[#This Row],[Ref Labo]]="","",IF(AND(ImportTDE[[#This Row],[NbHum]]<>"",ImportTDE[[#This Row],[NbHum]]<2),1,"")) -> 
B22: =IF(ROW(ImportTDE[[#This Row],[Ref Labo]])-ROW(ImportTDE[[#Headers],[Ref Labo]])>NbEch,"",ROW(ImportTDE[[#This Row],[Ref Labo]])-ROW(ImportTDE[[#Headers],[Ref Labo]])) -> 18 | C22: =IF(ImportTDE[[#This Row],[Ligne]]="","",TDE&"-"&REPT("0",LEN(NbEch)-LEN(ImportTDE[[#This Row],[Ligne]]))&ImportTDE[[#This Row],[Ligne]]) ->  | H22: =IF(ImportTDE[[#This Row],[Ligne]]="","",IF(ImportTDE[[#This Row],[Ref Client0]]="",Prefixe &ImportTDE[[#This Row],[Ligne]]&Suffixe,ImportTDE[[#This Row],[Ref Client0]])) -> Lot 18 | I22: =IF(ImportTDE[[#This Row],[Ligne]]="","",IF(ImportTDE[[#This Row],[Ligne]]=1,ImportTDE[[#This Row],[Mine0]],IF(ImportTDE[[#This Row],[Mine0]]="",OFFSET(ImportTDE[[#Headers],[Mine]],ImportTDE[[#This Row],[Ligne]]-1,0,1,1),ImportTDE[[#This Row],[Mine0]]))) -> 0 | J22: =IF(ImportTDE[[#This Row],[Ligne]]="","",IF(ImportTDE[[#This Row],[Ligne]]=1,ImportTDE[[#This Row],[Tonnage0]],IF(ImportTDE[[#This Row],[Tonnage0]]="",OFFSET(ImportTDE[[#Headers],[Tonnage]],ImportTDE[[#This Row],[Ligne]]-1,0,1,1),ImportTDE[[#This Row],[Tonnage0]]))) -> 0 | K22: =IF(ImportTDE[[#This Row],[Ref Labo]]="","",IF(ImportTDE[[#This Row],[Tonnage]]>2000,1,"")) ->  | L22: =IF(ImportTDE[[#This Row],[Ref Labo]]="","",IF(AND(ImportTDE[[#This Row],[NbHum]]<>"",ImportTDE[[#This Row],[NbHum]]<2),1,"")) -> 
B23: =IF(ROW(ImportTDE[[#This Row],[Ref Labo]])-ROW(ImportTDE[[#Headers],[Ref Labo]])>NbEch,"",ROW(ImportTDE[[#This Row],[Ref Labo]])-ROW(ImportTDE[[#Headers],[Ref Labo]])) -> 19 | C23: =IF(ImportTDE[[#This Row],[Ligne]]="","",TDE&"-"&REPT("0",LEN(NbEch)-LEN(ImportTDE[[#This Row],[Ligne]]))&ImportTDE[[#This Row],[Ligne]]) ->  | H23: =IF(ImportTDE[[#This Row],[Ligne]]="","",IF(ImportTDE[[#This Row],[Ref Client0]]="",Prefixe &ImportTDE[[#This Row],[Ligne]]&Suffixe,ImportTDE[[#This Row],[Ref Client0]])) -> Lot 19 | I23: =IF(ImportTDE[[#This Row],[Ligne]]="","",IF(ImportTDE[[#This Row],[Ligne]]=1,ImportTDE[[#This Row],[Mine0]],IF(ImportTDE[[#This Row],[Mine0]]="",OFFSET(ImportTDE[[#Headers],[Mine]],ImportTDE[[#This Row],[Ligne]]-1,0,1,1),ImportTDE[[#This Row],[Mine0]]))) -> 0 | J23: =IF(ImportTDE[[#This Row],[Ligne]]="","",IF(ImportTDE[[#This Row],[Ligne]]=1,ImportTDE[[#This Row],[Tonnage0]],IF(ImportTDE[[#This Row],[Tonnage0]]="",OFFSET(ImportTDE[[#Headers],[Tonnage]],ImportTDE[[#This Row],[Ligne]]-1,0,1,1),ImportTDE[[#This Row],[Tonnage0]]))) -> 0 | K23: =IF(ImportTDE[[#This Row],[Ref Labo]]="","",IF(ImportTDE[[#This Row],[Tonnage]]>2000,1,"")) ->  | L23: =IF(ImportTDE[[#This Row],[Ref Labo]]="","",IF(AND(ImportTDE[[#This Row],[NbHum]]<>"",ImportTDE[[#This Row],[NbHum]]<2),1,"")) ->  | N23: Prefixe Ref Client | O23: Lot
B24: =IF(ROW(ImportTDE[[#This Row],[Ref Labo]])-ROW(ImportTDE[[#Headers],[Ref Labo]])>NbEch,"",ROW(ImportTDE[[#This Row],[Ref Labo]])-ROW(ImportTDE[[#Headers],[Ref Labo]])) -> 20 | C24: =IF(ImportTDE[[#This Row],[Ligne]]="","",TDE&"-"&REPT("0",LEN(NbEch)-LEN(ImportTDE[[#This Row],[Ligne]]))&ImportTDE[[#This Row],[Ligne]]) ->  | H24: =IF(ImportTDE[[#This Row],[Ligne]]="","",IF(ImportTDE[[#This Row],[Ref Client0]]="",Prefixe &ImportTDE[[#This Row],[Ligne]]&Suffixe,ImportTDE[[#This Row],[Ref Client0]])) -> Lot 20 | I24: =IF(ImportTDE[[#This Row],[Ligne]]="","",IF(ImportTDE[[#This Row],[Ligne]]=1,ImportTDE[[#This Row],[Mine0]],IF(ImportTDE[[#This Row],[Mine0]]="",OFFSET(ImportTDE[[#Headers],[Mine]],ImportTDE[[#This Row],[Ligne]]-1,0,1,1),ImportTDE[[#This Row],[Mine0]]))) -> 0 | J24: =IF(ImportTDE[[#This Row],[Ligne]]="","",IF(ImportTDE[[#This Row],[Ligne]]=1,ImportTDE[[#This Row],[Tonnage0]],IF(ImportTDE[[#This Row],[Tonnage0]]="",OFFSET(ImportTDE[[#Headers],[Tonnage]],ImportTDE[[#This Row],[Ligne]]-1,0,1,1),ImportTDE[[#This Row],[Tonnage0]]))) -> 0 | K24: =IF(ImportTDE[[#This Row],[Ref Labo]]="","",IF(ImportTDE[[#This Row],[Tonnage]]>2000,1,"")) ->  | L24: =IF(ImportTDE[[#This Row],[Ref Labo]]="","",IF(AND(ImportTDE[[#This Row],[NbHum]]<>"",ImportTDE[[#This Row],[NbHum]]<2),1,"")) ->  | N24: Suffixe Ref Client
B25: =IF(ROW(ImportTDE[[#This Row],[Ref Labo]])-ROW(ImportTDE[[#Headers],[Ref Labo]])>NbEch,"",ROW(ImportTDE[[#This Row],[Ref Labo]])-ROW(ImportTDE[[#Headers],[Ref Labo]])) -> 21 | C25: =IF(ImportTDE[[#This Row],[Ligne]]="","",TDE&"-"&REPT("0",LEN(NbEch)-LEN(ImportTDE[[#This Row],[Ligne]]))&ImportTDE[[#This Row],[Ligne]]) ->  | H25: =IF(ImportTDE[[#This Row],[Ligne]]="","",IF(ImportTDE[[#This Row],[Ref Client0]]="",Prefixe &ImportTDE[[#This Row],[Ligne]]&Suffixe,ImportTDE[[#This Row],[Ref Client0]])) -> Lot 21 | I25: =IF(ImportTDE[[#This Row],[Ligne]]="","",IF(ImportTDE[[#This Row],[Ligne]]=1,ImportTDE[[#This Row],[Mine0]],IF(ImportTDE[[#This Row],[Mine0]]="",OFFSET(ImportTDE[[#Headers],[Mine]],ImportTDE[[#This Row],[Ligne]]-1,0,1,1),ImportTDE[[#This Row],[Mine0]]))) -> 0 | J25: =IF(ImportTDE[[#This Row],[Ligne]]="","",IF(ImportTDE[[#This Row],[Ligne]]=1,ImportTDE[[#This Row],[Tonnage0]],IF(ImportTDE[[#This Row],[Tonnage0]]="",OFFSET(ImportTDE[[#Headers],[Tonnage]],ImportTDE[[#This Row],[Ligne]]-1,0,1,1),ImportTDE[[#This Row],[Tonnage0]]))) -> 0 | K25: =IF(ImportTDE[[#This Row],[Ref Labo]]="","",IF(ImportTDE[[#This Row],[Tonnage]]>2000,1,"")) ->  | L25: =IF(ImportTDE[[#This Row],[Ref Labo]]="","",IF(AND(ImportTDE[[#This Row],[NbHum]]<>"",ImportTDE[[#This Row],[NbHum]]<2),1,"")) -> 
B26: =IF(ROW(ImportTDE[[#This Row],[Ref Labo]])-ROW(ImportTDE[[#Headers],[Ref Labo]])>NbEch,"",ROW(ImportTDE[[#This Row],[Ref Labo]])-ROW(ImportTDE[[#Headers],[Ref Labo]])) -> 22 | C26: =IF(ImportTDE[[#This Row],[Ligne]]="","",TDE&"-"&REPT("0",LEN(NbEch)-LEN(ImportTDE[[#This Row],[Ligne]]))&ImportTDE[[#This Row],[Ligne]]) ->  | H26: =IF(ImportTDE[[#This Row],[Ligne]]="","",IF(ImportTDE[[#This Row],[Ref Client0]]="",Prefixe &ImportTDE[[#This Row],[Ligne]]&Suffixe,ImportTDE[[#This Row],[Ref Client0]])) -> Lot 22 | I26: =IF(ImportTDE[[#This Row],[Ligne]]="","",IF(ImportTDE[[#This Row],[Ligne]]=1,ImportTDE[[#This Row],[Mine0]],IF(ImportTDE[[#This Row],[Mine0]]="",OFFSET(ImportTDE[[#Headers],[Mine]],ImportTDE[[#This Row],[Ligne]]-1,0,1,1),ImportTDE[[#This Row],[Mine0]]))) -> 0 | J26: =IF(ImportTDE[[#This Row],[Ligne]]="","",IF(ImportTDE[[#This Row],[Ligne]]=1,ImportTDE[[#This Row],[Tonnage0]],IF(ImportTDE[[#This Row],[Tonnage0]]="",OFFSET(ImportTDE[[#Headers],[Tonnage]],ImportTDE[[#This Row],[Ligne]]-1,0,1,1),ImportTDE[[#This Row],[Tonnage0]]))) -> 0 | K26: =IF(ImportTDE[[#This Row],[Ref Labo]]="","",IF(ImportTDE[[#This Row],[Tonnage]]>2000,1,"")) ->  | L26: =IF(ImportTDE[[#This Row],[Ref Labo]]="","",IF(AND(ImportTDE[[#This Row],[NbHum]]<>"",ImportTDE[[#This Row],[NbHum]]<2),1,"")) -> 
B27: =IF(ROW(ImportTDE[[#This Row],[Ref Labo]])-ROW(ImportTDE[[#Headers],[Ref Labo]])>NbEch,"",ROW(ImportTDE[[#This Row],[Ref Labo]])-ROW(ImportTDE[[#Headers],[Ref Labo]])) -> 23 | C27: =IF(ImportTDE[[#This Row],[Ligne]]="","",TDE&"-"&REPT("0",LEN(NbEch)-LEN(ImportTDE[[#This Row],[Ligne]]))&ImportTDE[[#This Row],[Ligne]]) ->  | H27: =IF(ImportTDE[[#This Row],[Ligne]]="","",IF(ImportTDE[[#This Row],[Ref Client0]]="",Prefixe &ImportTDE[[#This Row],[Ligne]]&Suffixe,ImportTDE[[#This Row],[Ref Client0]])) -> Lot 23 | I27: =IF(ImportTDE[[#This Row],[Ligne]]="","",IF(ImportTDE[[#This Row],[Ligne]]=1,ImportTDE[[#This Row],[Mine0]],IF(ImportTDE[[#This Row],[Mine0]]="",OFFSET(ImportTDE[[#Headers],[Mine]],ImportTDE[[#This Row],[Ligne]]-1,0,1,1),ImportTDE[[#This Row],[Mine0]]))) -> 0 | J27: =IF(ImportTDE[[#This Row],[Ligne]]="","",IF(ImportTDE[[#This Row],[Ligne]]=1,ImportTDE[[#This Row],[Tonnage0]],IF(ImportTDE[[#This Row],[Tonnage0]]="",OFFSET(ImportTDE[[#Headers],[Tonnage]],ImportTDE[[#This Row],[Ligne]]-1,0,1,1),ImportTDE[[#This Row],[Tonnage0]]))) -> 0 | K27: =IF(ImportTDE[[#This Row],[Ref Labo]]="","",IF(ImportTDE[[#This Row],[Tonnage]]>2000,1,"")) ->  | L27: =IF(ImportTDE[[#This Row],[Ref Labo]]="","",IF(AND(ImportTDE[[#This Row],[NbHum]]<>"",ImportTDE[[#This Row],[NbHum]]<2),1,"")) -> 
B28: =IF(ROW(ImportTDE[[#This Row],[Ref Labo]])-ROW(ImportTDE[[#Headers],[Ref Labo]])>NbEch,"",ROW(ImportTDE[[#This Row],[Ref Labo]])-ROW(ImportTDE[[#Headers],[Ref Labo]])) -> 24 | C28: =IF(ImportTDE[[#This Row],[Ligne]]="","",TDE&"-"&REPT("0",LEN(NbEch)-LEN(ImportTDE[[#This Row],[Ligne]]))&ImportTDE[[#This Row],[Ligne]]) ->  | H28: =IF(ImportTDE[[#This Row],[Ligne]]="","",IF(ImportTDE[[#This Row],[Ref Client0]]="",Prefixe &ImportTDE[[#This Row],[Ligne]]&Suffixe,ImportTDE[[#This Row],[Ref Client0]])) -> Lot 24 | I28: =IF(ImportTDE[[#This Row],[Ligne]]="","",IF(ImportTDE[[#This Row],[Ligne]]=1,ImportTDE[[#This Row],[Mine0]],IF(ImportTDE[[#This Row],[Mine0]]="",OFFSET(ImportTDE[[#Headers],[Mine]],ImportTDE[[#This Row],[Ligne]]-1,0,1,1),ImportTDE[[#This Row],[Mine0]]))) -> 0 | J28: =IF(ImportTDE[[#This Row],[Ligne]]="","",IF(ImportTDE[[#This Row],[Ligne]]=1,ImportTDE[[#This Row],[Tonnage0]],IF(ImportTDE[[#This Row],[Tonnage0]]="",OFFSET(ImportTDE[[#Headers],[Tonnage]],ImportTDE[[#This Row],[Ligne]]-1,0,1,1),ImportTDE[[#This Row],[Tonnage0]]))) -> 0 | K28: =IF(ImportTDE[[#This Row],[Ref Labo]]="","",IF(ImportTDE[[#This Row],[Tonnage]]>2000,1,"")) ->  | L28: =IF(ImportTDE[[#This Row],[Ref Labo]]="","",IF(AND(ImportTDE[[#This Row],[NbHum]]<>"",ImportTDE[[#This Row],[NbHum]]<2),1,"")) -> 
B29: =IF(ROW(ImportTDE[[#This Row],[Ref Labo]])-ROW(ImportTDE[[#Headers],[Ref Labo]])>NbEch,"",ROW(ImportTDE[[#This Row],[Ref Labo]])-ROW(ImportTDE[[#Headers],[Ref Labo]])) -> 25 | C29: =IF(ImportTDE[[#This Row],[Ligne]]="","",TDE&"-"&REPT("0",LEN(NbEch)-LEN(ImportTDE[[#This Row],[Ligne]]))&ImportTDE[[#This Row],[Ligne]]) ->  | H29: =IF(ImportTDE[[#This Row],[Ligne]]="","",IF(ImportTDE[[#This Row],[Ref Client0]]="",Prefixe &ImportTDE[[#This Row],[Ligne]]&Suffixe,ImportTDE[[#This Row],[Ref Client0]])) -> Lot 25 | I29: =IF(ImportTDE[[#This Row],[Ligne]]="","",IF(ImportTDE[[#This Row],[Ligne]]=1,ImportTDE[[#This Row],[Mine0]],IF(ImportTDE[[#This Row],[Mine0]]="",OFFSET(ImportTDE[[#Headers],[Mine]],ImportTDE[[#This Row],[Ligne]]-1,0,1,1),ImportTDE[[#This Row],[Mine0]]))) -> 0 | J29: =IF(ImportTDE[[#This Row],[Ligne]]="","",IF(ImportTDE[[#This Row],[Ligne]]=1,ImportTDE[[#This Row],[Tonnage0]],IF(ImportTDE[[#This Row],[Tonnage0]]="",OFFSET(ImportTDE[[#Headers],[Tonnage]],ImportTDE[[#This Row],[Ligne]]-1,0,1,1),ImportTDE[[#This Row],[Tonnage0]]))) -> 0 | K29: =IF(ImportTDE[[#This Row],[Ref Labo]]="","",IF(ImportTDE[[#This Row],[Tonnage]]>2000,1,"")) ->  | L29: =IF(ImportTDE[[#This Row],[Ref Labo]]="","",IF(AND(ImportTDE[[#This Row],[NbHum]]<>"",ImportTDE[[#This Row],[NbHum]]<2),1,"")) -> 
B30: =IF(ROW(ImportTDE[[#This Row],[Ref Labo]])-ROW(ImportTDE[[#Headers],[Ref Labo]])>NbEch,"",ROW(ImportTDE[[#This Row],[Ref Labo]])-ROW(ImportTDE[[#Headers],[Ref Labo]])) -> 26 | C30: =IF(ImportTDE[[#This Row],[Ligne]]="","",TDE&"-"&REPT("0",LEN(NbEch)-LEN(ImportTDE[[#This Row],[Ligne]]))&ImportTDE[[#This Row],[Ligne]]) ->  | H30: =IF(ImportTDE[[#This Row],[Ligne]]="","",IF(ImportTDE[[#This Row],[Ref Client0]]="",Prefixe &ImportTDE[[#This Row],[Ligne]]&Suffixe,ImportTDE[[#This Row],[Ref Client0]])) -> Lot 26 | I30: =IF(ImportTDE[[#This Row],[Ligne]]="","",IF(ImportTDE[[#This Row],[Ligne]]=1,ImportTDE[[#This Row],[Mine0]],IF(ImportTDE[[#This Row],[Mine0]]="",OFFSET(ImportTDE[[#Headers],[Mine]],ImportTDE[[#This Row],[Ligne]]-1,0,1,1),ImportTDE[[#This Row],[Mine0]]))) -> 0 | J30: =IF(ImportTDE[[#This Row],[Ligne]]="","",IF(ImportTDE[[#This Row],[Ligne]]=1,ImportTDE[[#This Row],[Tonnage0]],IF(ImportTDE[[#This Row],[Tonnage0]]="",OFFSET(ImportTDE[[#Headers],[Tonnage]],ImportTDE[[#This Row],[Ligne]]-1,0,1,1),ImportTDE[[#This Row],[Tonnage0]]))) -> 0 | K30: =IF(ImportTDE[[#This Row],[Ref Labo]]="","",IF(ImportTDE[[#This Row],[Tonnage]]>2000,1,"")) ->  | L30: =IF(ImportTDE[[#This Row],[Ref Labo]]="","",IF(AND(ImportTDE[[#This Row],[NbHum]]<>"",ImportTDE[[#This Row],[NbHum]]<2),1,"")) ->  | N30: Commentaire
B31: =IF(ROW(ImportTDE[[#This Row],[Ref Labo]])-ROW(ImportTDE[[#Headers],[Ref Labo]])>NbEch,"",ROW(ImportTDE[[#This Row],[Ref Labo]])-ROW(ImportTDE[[#Headers],[Ref Labo]])) -> 27 | C31: =IF(ImportTDE[[#This Row],[Ligne]]="","",TDE&"-"&REPT("0",LEN(NbEch)-LEN(ImportTDE[[#This Row],[Ligne]]))&ImportTDE[[#This Row],[Ligne]]) ->  | H31: =IF(ImportTDE[[#This Row],[Ligne]]="","",IF(ImportTDE[[#This Row],[Ref Client0]]="",Prefixe &ImportTDE[[#This Row],[Ligne]]&Suffixe,ImportTDE[[#This Row],[Ref Client0]])) -> Lot 27 | I31: =IF(ImportTDE[[#This Row],[Ligne]]="","",IF(ImportTDE[[#This Row],[Ligne]]=1,ImportTDE[[#This Row],[Mine0]],IF(ImportTDE[[#This Row],[Mine0]]="",OFFSET(ImportTDE[[#Headers],[Mine]],ImportTDE[[#This Row],[Ligne]]-1,0,1,1),ImportTDE[[#This Row],[Mine0]]))) -> 0 | J31: =IF(ImportTDE[[#This Row],[Ligne]]="","",IF(ImportTDE[[#This Row],[Ligne]]=1,ImportTDE[[#This Row],[Tonnage0]],IF(ImportTDE[[#This Row],[Tonnage0]]="",OFFSET(ImportTDE[[#Headers],[Tonnage]],ImportTDE[[#This Row],[Ligne]]-1,0,1,1),ImportTDE[[#This Row],[Tonnage0]]))) -> 0 | K31: =IF(ImportTDE[[#This Row],[Ref Labo]]="","",IF(ImportTDE[[#This Row],[Tonnage]]>2000,1,"")) ->  | L31: =IF(ImportTDE[[#This Row],[Ref Labo]]="","",IF(AND(ImportTDE[[#This Row],[NbHum]]<>"",ImportTDE[[#This Row],[NbHum]]<2),1,"")) -> 
B32: =IF(ROW(ImportTDE[[#This Row],[Ref Labo]])-ROW(ImportTDE[[#Headers],[Ref Labo]])>NbEch,"",ROW(ImportTDE[[#This Row],[Ref Labo]])-ROW(ImportTDE[[#Headers],[Ref Labo]])) -> 28 | C32: =IF(ImportTDE[[#This Row],[Ligne]]="","",TDE&"-"&REPT("0",LEN(NbEch)-LEN(ImportTDE[[#This Row],[Ligne]]))&ImportTDE[[#This Row],[Ligne]]) ->  | H32: =IF(ImportTDE[[#This Row],[Ligne]]="","",IF(ImportTDE[[#This Row],[Ref Client0]]="",Prefixe &ImportTDE[[#This Row],[Ligne]]&Suffixe,ImportTDE[[#This Row],[Ref Client0]])) -> Lot 28 | I32: =IF(ImportTDE[[#This Row],[Ligne]]="","",IF(ImportTDE[[#This Row],[Ligne]]=1,ImportTDE[[#This Row],[Mine0]],IF(ImportTDE[[#This Row],[Mine0]]="",OFFSET(ImportTDE[[#Headers],[Mine]],ImportTDE[[#This Row],[Ligne]]-1,0,1,1),ImportTDE[[#This Row],[Mine0]]))) -> 0 | J32: =IF(ImportTDE[[#This Row],[Ligne]]="","",IF(ImportTDE[[#This Row],[Ligne]]=1,ImportTDE[[#This Row],[Tonnage0]],IF(ImportTDE[[#This Row],[Tonnage0]]="",OFFSET(ImportTDE[[#Headers],[Tonnage]],ImportTDE[[#This Row],[Ligne]]-1,0,1,1),ImportTDE[[#This Row],[Tonnage0]]))) -> 0 | K32: =IF(ImportTDE[[#This Row],[Ref Labo]]="","",IF(ImportTDE[[#This Row],[Tonnage]]>2000,1,"")) ->  | L32: =IF(ImportTDE[[#This Row],[Ref Labo]]="","",IF(AND(ImportTDE[[#This Row],[NbHum]]<>"",ImportTDE[[#This Row],[NbHum]]<2),1,"")) -> 
B33: =IF(ROW(ImportTDE[[#This Row],[Ref Labo]])-ROW(ImportTDE[[#Headers],[Ref Labo]])>NbEch,"",ROW(ImportTDE[[#This Row],[Ref Labo]])-ROW(ImportTDE[[#Headers],[Ref Labo]])) -> 29 | C33: =IF(ImportTDE[[#This Row],[Ligne]]="","",TDE&"-"&REPT("0",LEN(NbEch)-LEN(ImportTDE[[#This Row],[Ligne]]))&ImportTDE[[#This Row],[Ligne]]) ->  | H33: =IF(ImportTDE[[#This Row],[Ligne]]="","",IF(ImportTDE[[#This Row],[Ref Client0]]="",Prefixe &ImportTDE[[#This Row],[Ligne]]&Suffixe,ImportTDE[[#This Row],[Ref Client0]])) -> Lot 29 | I33: =IF(ImportTDE[[#This Row],[Ligne]]="","",IF(ImportTDE[[#This Row],[Ligne]]=1,ImportTDE[[#This Row],[Mine0]],IF(ImportTDE[[#This Row],[Mine0]]="",OFFSET(ImportTDE[[#Headers],[Mine]],ImportTDE[[#This Row],[Ligne]]-1,0,1,1),ImportTDE[[#This Row],[Mine0]]))) -> 0 | J33: =IF(ImportTDE[[#This Row],[Ligne]]="","",IF(ImportTDE[[#This Row],[Ligne]]=1,ImportTDE[[#This Row],[Tonnage0]],IF(ImportTDE[[#This Row],[Tonnage0]]="",OFFSET(ImportTDE[[#Headers],[Tonnage]],ImportTDE[[#This Row],[Ligne]]-1,0,1,1),ImportTDE[[#This Row],[Tonnage0]]))) -> 0 | K33: =IF(ImportTDE[[#This Row],[Ref Labo]]="","",IF(ImportTDE[[#This Row],[Tonnage]]>2000,1,"")) ->  | L33: =IF(ImportTDE[[#This Row],[Ref Labo]]="","",IF(AND(ImportTDE[[#This Row],[NbHum]]<>"",ImportTDE[[#This Row],[NbHum]]<2),1,"")) -> 
B34: =IF(ROW(ImportTDE[[#This Row],[Ref Labo]])-ROW(ImportTDE[[#Headers],[Ref Labo]])>NbEch,"",ROW(ImportTDE[[#This Row],[Ref Labo]])-ROW(ImportTDE[[#Headers],[Ref Labo]])) -> 30 | C34: =IF(ImportTDE[[#This Row],[Ligne]]="","",TDE&"-"&REPT("0",LEN(NbEch)-LEN(ImportTDE[[#This Row],[Ligne]]))&ImportTDE[[#This Row],[Ligne]]) ->  | H34: =IF(ImportTDE[[#This Row],[Ligne]]="","",IF(ImportTDE[[#This Row],[Ref Client0]]="",Prefixe &ImportTDE[[#This Row],[Ligne]]&Suffixe,ImportTDE[[#This Row],[Ref Client0]])) -> Lot 30 | I34: =IF(ImportTDE[[#This Row],[Ligne]]="","",IF(ImportTDE[[#This Row],[Ligne]]=1,ImportTDE[[#This Row],[Mine0]],IF(ImportTDE[[#This Row],[Mine0]]="",OFFSET(ImportTDE[[#Headers],[Mine]],ImportTDE[[#This Row],[Ligne]]-1,0,1,1),ImportTDE[[#This Row],[Mine0]]))) -> 0 | J34: =IF(ImportTDE[[#This Row],[Ligne]]="","",IF(ImportTDE[[#This Row],[Ligne]]=1,ImportTDE[[#This Row],[Tonnage0]],IF(ImportTDE[[#This Row],[Tonnage0]]="",OFFSET(ImportTDE[[#Headers],[Tonnage]],ImportTDE[[#This Row],[Ligne]]-1,0,1,1),ImportTDE[[#This Row],[Tonnage0]]))) -> 0 | K34: =IF(ImportTDE[[#This Row],[Ref Labo]]="","",IF(ImportTDE[[#This Row],[Tonnage]]>2000,1,"")) ->  | L34: =IF(ImportTDE[[#This Row],[Ref Labo]]="","",IF(AND(ImportTDE[[#This Row],[NbHum]]<>"",ImportTDE[[#This Row],[NbHum]]<2),1,"")) -> 
B35: =IF(ROW(ImportTDE[[#This Row],[Ref Labo]])-ROW(ImportTDE[[#Headers],[Ref Labo]])>NbEch,"",ROW(ImportTDE[[#This Row],[Ref Labo]])-ROW(ImportTDE[[#Headers],[Ref Labo]])) -> 31 | C35: =IF(ImportTDE[[#This Row],[Ligne]]="","",TDE&"-"&REPT("0",LEN(NbEch)-LEN(ImportTDE[[#This Row],[Ligne]]))&ImportTDE[[#This Row],[Ligne]]) ->  | H35: =IF(ImportTDE[[#This Row],[Ligne]]="","",IF(ImportTDE[[#This Row],[Ref Client0]]="",Prefixe &ImportTDE[[#This Row],[Ligne]]&Suffixe,ImportTDE[[#This Row],[Ref Client0]])) -> Lot 31 | I35: =IF(ImportTDE[[#This Row],[Ligne]]="","",IF(ImportTDE[[#This Row],[Ligne]]=1,ImportTDE[[#This Row],[Mine0]],IF(ImportTDE[[#This Row],[Mine0]]="",OFFSET(ImportTDE[[#Headers],[Mine]],ImportTDE[[#This Row],[Ligne]]-1,0,1,1),ImportTDE[[#This Row],[Mine0]]))) -> 0 | J35: =IF(ImportTDE[[#This Row],[Ligne]]="","",IF(ImportTDE[[#This Row],[Ligne]]=1,ImportTDE[[#This Row],[Tonnage0]],IF(ImportTDE[[#This Row],[Tonnage0]]="",OFFSET(ImportTDE[[#Headers],[Tonnage]],ImportTDE[[#This Row],[Ligne]]-1,0,1,1),ImportTDE[[#This Row],[Tonnage0]]))) -> 0 | K35: =IF(ImportTDE[[#This Row],[Ref Labo]]="","",IF(ImportTDE[[#This Row],[Tonnage]]>2000,1,"")) ->  | L35: =IF(ImportTDE[[#This Row],[Ref Labo]]="","",IF(AND(ImportTDE[[#This Row],[NbHum]]<>"",ImportTDE[[#This Row],[NbHum]]<2),1,"")) -> 
B36: =IF(ROW(ImportTDE[[#This Row],[Ref Labo]])-ROW(ImportTDE[[#Headers],[Ref Labo]])>NbEch,"",ROW(ImportTDE[[#This Row],[Ref Labo]])-ROW(ImportTDE[[#Headers],[Ref Labo]])) -> 32 | C36: =IF(ImportTDE[[#This Row],[Ligne]]="","",TDE&"-"&REPT("0",LEN(NbEch)-LEN(ImportTDE[[#This Row],[Ligne]]))&ImportTDE[[#This Row],[Ligne]]) ->  | H36: =IF(ImportTDE[[#This Row],[Ligne]]="","",IF(ImportTDE[[#This Row],[Ref Client0]]="",Prefixe &ImportTDE[[#This Row],[Ligne]]&Suffixe,ImportTDE[[#This Row],[Ref Client0]])) -> Lot 32 | I36: =IF(ImportTDE[[#This Row],[Ligne]]="","",IF(ImportTDE[[#This Row],[Ligne]]=1,ImportTDE[[#This Row],[Mine0]],IF(ImportTDE[[#This Row],[Mine0]]="",OFFSET(ImportTDE[[#Headers],[Mine]],ImportTDE[[#This Row],[Ligne]]-1,0,1,1),ImportTDE[[#This Row],[Mine0]]))) -> 0 | J36: =IF(ImportTDE[[#This Row],[Ligne]]="","",IF(ImportTDE[[#This Row],[Ligne]]=1,ImportTDE[[#This Row],[Tonnage0]],IF(ImportTDE[[#This Row],[Tonnage0]]="",OFFSET(ImportTDE[[#Headers],[Tonnage]],ImportTDE[[#This Row],[Ligne]]-1,0,1,1),ImportTDE[[#This Row],[Tonnage0]]))) -> 0 | K36: =IF(ImportTDE[[#This Row],[Ref Labo]]="","",IF(ImportTDE[[#This Row],[Tonnage]]>2000,1,"")) ->  | L36: =IF(ImportTDE[[#This Row],[Ref Labo]]="","",IF(AND(ImportTDE[[#This Row],[NbHum]]<>"",ImportTDE[[#This Row],[NbHum]]<2),1,"")) -> 
B37: =IF(ROW(ImportTDE[[#This Row],[Ref Labo]])-ROW(ImportTDE[[#Headers],[Ref Labo]])>NbEch,"",ROW(ImportTDE[[#This Row],[Ref Labo]])-ROW(ImportTDE[[#Headers],[Ref Labo]])) -> 33 | C37: =IF(ImportTDE[[#This Row],[Ligne]]="","",TDE&"-"&REPT("0",LEN(NbEch)-LEN(ImportTDE[[#This Row],[Ligne]]))&ImportTDE[[#This Row],[Ligne]]) ->  | H37: =IF(ImportTDE[[#This Row],[Ligne]]="","",IF(ImportTDE[[#This Row],[Ref Client0]]="",Prefixe &ImportTDE[[#This Row],[Ligne]]&Suffixe,ImportTDE[[#This Row],[Ref Client0]])) -> Lot 33 | I37: =IF(ImportTDE[[#This Row],[Ligne]]="","",IF(ImportTDE[[#This Row],[Ligne]]=1,ImportTDE[[#This Row],[Mine0]],IF(ImportTDE[[#This Row],[Mine0]]="",OFFSET(ImportTDE[[#Headers],[Mine]],ImportTDE[[#This Row],[Ligne]]-1,0,1,1),ImportTDE[[#This Row],[Mine0]]))) -> 0 | J37: =IF(ImportTDE[[#This Row],[Ligne]]="","",IF(ImportTDE[[#This Row],[Ligne]]=1,ImportTDE[[#This Row],[Tonnage0]],IF(ImportTDE[[#This Row],[Tonnage0]]="",OFFSET(ImportTDE[[#Headers],[Tonnage]],ImportTDE[[#This Row],[Ligne]]-1,0,1,1),ImportTDE[[#This Row],[Tonnage0]]))) -> 0 | K37: =IF(ImportTDE[[#This Row],[Ref Labo]]="","",IF(ImportTDE[[#This Row],[Tonnage]]>2000,1,"")) ->  | L37: =IF(ImportTDE[[#This Row],[Ref Labo]]="","",IF(AND(ImportTDE[[#This Row],[NbHum]]<>"",ImportTDE[[#This Row],[NbHum]]<2),1,"")) -> 
B38: =IF(ROW(ImportTDE[[#This Row],[Ref Labo]])-ROW(ImportTDE[[#Headers],[Ref Labo]])>NbEch,"",ROW(ImportTDE[[#This Row],[Ref Labo]])-ROW(ImportTDE[[#Headers],[Ref Labo]])) -> 34 | C38: =IF(ImportTDE[[#This Row],[Ligne]]="","",TDE&"-"&REPT("0",LEN(NbEch)-LEN(ImportTDE[[#This Row],[Ligne]]))&ImportTDE[[#This Row],[Ligne]]) ->  | H38: =IF(ImportTDE[[#This Row],[Ligne]]="","",IF(ImportTDE[[#This Row],[Ref Client0]]="",Prefixe &ImportTDE[[#This Row],[Ligne]]&Suffixe,ImportTDE[[#This Row],[Ref Client0]])) -> Lot 34 | I38: =IF(ImportTDE[[#This Row],[Ligne]]="","",IF(ImportTDE[[#This Row],[Ligne]]=1,ImportTDE[[#This Row],[Mine0]],IF(ImportTDE[[#This Row],[Mine0]]="",OFFSET(ImportTDE[[#Headers],[Mine]],ImportTDE[[#This Row],[Ligne]]-1,0,1,1),ImportTDE[[#This Row],[Mine0]]))) -> 0 | J38: =IF(ImportTDE[[#This Row],[Ligne]]="","",IF(ImportTDE[[#This Row],[Ligne]]=1,ImportTDE[[#This Row],[Tonnage0]],IF(ImportTDE[[#This Row],[Tonnage0]]="",OFFSET(ImportTDE[[#Headers],[Tonnage]],ImportTDE[[#This Row],[Ligne]]-1,0,1,1),ImportTDE[[#This Row],[Tonnage0]]))) -> 0 | K38: =IF(ImportTDE[[#This Row],[Ref Labo]]="","",IF(ImportTDE[[#This Row],[Tonnage]]>2000,1,"")) ->  | L38: =IF(ImportTDE[[#This Row],[Ref Labo]]="","",IF(AND(ImportTDE[[#This Row],[NbHum]]<>"",ImportTDE[[#This Row],[NbHum]]<2),1,"")) -> 
B39: =IF(ROW(ImportTDE[[#This Row],[Ref Labo]])-ROW(ImportTDE[[#Headers],[Ref Labo]])>NbEch,"",ROW(ImportTDE[[#This Row],[Ref Labo]])-ROW(ImportTDE[[#Headers],[Ref Labo]])) -> 35 | C39: =IF(ImportTDE[[#This Row],[Ligne]]="","",TDE&"-"&REPT("0",LEN(NbEch)-LEN(ImportTDE[[#This Row],[Ligne]]))&ImportTDE[[#This Row],[Ligne]]) ->  | H39: =IF(ImportTDE[[#This Row],[Ligne]]="","",IF(ImportTDE[[#This Row],[Ref Client0]]="",Prefixe &ImportTDE[[#This Row],[Ligne]]&Suffixe,ImportTDE[[#This Row],[Ref Client0]])) -> Lot 35 | I39: =IF(ImportTDE[[#This Row],[Ligne]]="","",IF(ImportTDE[[#This Row],[Ligne]]=1,ImportTDE[[#This Row],[Mine0]],IF(ImportTDE[[#This Row],[Mine0]]="",OFFSET(ImportTDE[[#Headers],[Mine]],ImportTDE[[#This Row],[Ligne]]-1,0,1,1),ImportTDE[[#This Row],[Mine0]]))) -> 0 | J39: =IF(ImportTDE[[#This Row],[Ligne]]="","",IF(ImportTDE[[#This Row],[Ligne]]=1,ImportTDE[[#This Row],[Tonnage0]],IF(ImportTDE[[#This Row],[Tonnage0]]="",OFFSET(ImportTDE[[#Headers],[Tonnage]],ImportTDE[[#This Row],[Ligne]]-1,0,1,1),ImportTDE[[#This Row],[Tonnage0]]))) -> 0 | K39: =IF(ImportTDE[[#This Row],[Ref Labo]]="","",IF(ImportTDE[[#This Row],[Tonnage]]>2000,1,"")) ->  | L39: =IF(ImportTDE[[#This Row],[Ref Labo]]="","",IF(AND(ImportTDE[[#This Row],[NbHum]]<>"",ImportTDE[[#This Row],[NbHum]]<2),1,"")) -> 
B40: =IF(ROW(ImportTDE[[#This Row],[Ref Labo]])-ROW(ImportTDE[[#Headers],[Ref Labo]])>NbEch,"",ROW(ImportTDE[[#This Row],[Ref Labo]])-ROW(ImportTDE[[#Headers],[Ref Labo]])) -> 36 | C40: =IF(ImportTDE[[#This Row],[Ligne]]="","",TDE&"-"&REPT("0",LEN(NbEch)-LEN(ImportTDE[[#This Row],[Ligne]]))&ImportTDE[[#This Row],[Ligne]]) ->  | H40: =IF(ImportTDE[[#This Row],[Ligne]]="","",IF(ImportTDE[[#This Row],[Ref Client0]]="",Prefixe &ImportTDE[[#This Row],[Ligne]]&Suffixe,ImportTDE[[#This Row],[Ref Client0]])) -> Lot 36 | I40: =IF(ImportTDE[[#This Row],[Ligne]]="","",IF(ImportTDE[[#This Row],[Ligne]]=1,ImportTDE[[#This Row],[Mine0]],IF(ImportTDE[[#This Row],[Mine0]]="",OFFSET(ImportTDE[[#Headers],[Mine]],ImportTDE[[#This Row],[Ligne]]-1,0,1,1),ImportTDE[[#This Row],[Mine0]]))) -> 0 | J40: =IF(ImportTDE[[#This Row],[Ligne]]="","",IF(ImportTDE[[#This Row],[Ligne]]=1,ImportTDE[[#This Row],[Tonnage0]],IF(ImportTDE[[#This Row],[Tonnage0]]="",OFFSET(ImportTDE[[#Headers],[Tonnage]],ImportTDE[[#This Row],[Ligne]]-1,0,1,1),ImportTDE[[#This Row],[Tonnage0]]))) -> 0 | K40: =IF(ImportTDE[[#This Row],[Ref Labo]]="","",IF(ImportTDE[[#This Row],[Tonnage]]>2000,1,"")) ->  | L40: =IF(ImportTDE[[#This Row],[Ref Labo]]="","",IF(AND(ImportTDE[[#This Row],[NbHum]]<>"",ImportTDE[[#This Row],[NbHum]]<2),1,"")) -> 
B41: =IF(ROW(ImportTDE[[#This Row],[Ref Labo]])-ROW(ImportTDE[[#Headers],[Ref Labo]])>NbEch,"",ROW(ImportTDE[[#This Row],[Ref Labo]])-ROW(ImportTDE[[#Headers],[Ref Labo]])) -> 37 | C41: =IF(ImportTDE[[#This Row],[Ligne]]="","",TDE&"-"&REPT("0",LEN(NbEch)-LEN(ImportTDE[[#This Row],[Ligne]]))&ImportTDE[[#This Row],[Ligne]]) ->  | H41: =IF(ImportTDE[[#This Row],[Ligne]]="","",IF(ImportTDE[[#This Row],[Ref Client0]]="",Prefixe &ImportTDE[[#This Row],[Ligne]]&Suffixe,ImportTDE[[#This Row],[Ref Client0]])) -> Lot 37 | I41: =IF(ImportTDE[[#This Row],[Ligne]]="","",IF(ImportTDE[[#This Row],[Ligne]]=1,ImportTDE[[#This Row],[Mine0]],IF(ImportTDE[[#This Row],[Mine0]]="",OFFSET(ImportTDE[[#Headers],[Mine]],ImportTDE[[#This Row],[Ligne]]-1,0,1,1),ImportTDE[[#This Row],[Mine0]]))) -> 0 | J41: =IF(ImportTDE[[#This Row],[Ligne]]="","",IF(ImportTDE[[#This Row],[Ligne]]=1,ImportTDE[[#This Row],[Tonnage0]],IF(ImportTDE[[#This Row],[Tonnage0]]="",OFFSET(ImportTDE[[#Headers],[Tonnage]],ImportTDE[[#This Row],[Ligne]]-1,0,1,1),ImportTDE[[#This Row],[Tonnage0]]))) -> 0 | K41: =IF(ImportTDE[[#This Row],[Ref Labo]]="","",IF(ImportTDE[[#This Row],[Tonnage]]>2000,1,"")) ->  | L41: =IF(ImportTDE[[#This Row],[Ref Labo]]="","",IF(AND(ImportTDE[[#This Row],[NbHum]]<>"",ImportTDE[[#This Row],[NbHum]]<2),1,"")) -> 
B42: =IF(ROW(ImportTDE[[#This Row],[Ref Labo]])-ROW(ImportTDE[[#Headers],[Ref Labo]])>NbEch,"",ROW(ImportTDE[[#This Row],[Ref Labo]])-ROW(ImportTDE[[#Headers],[Ref Labo]])) -> 38 | C42: =IF(ImportTDE[[#This Row],[Ligne]]="","",TDE&"-"&REPT("0",LEN(NbEch)-LEN(ImportTDE[[#This Row],[Ligne]]))&ImportTDE[[#This Row],[Ligne]]) ->  | H42: =IF(ImportTDE[[#This Row],[Ligne]]="","",IF(ImportTDE[[#This Row],[Ref Client0]]="",Prefixe &ImportTDE[[#This Row],[Ligne]]&Suffixe,ImportTDE[[#This Row],[Ref Client0]])) -> Lot 38 | I42: =IF(ImportTDE[[#This Row],[Ligne]]="","",IF(ImportTDE[[#This Row],[Ligne]]=1,ImportTDE[[#This Row],[Mine0]],IF(ImportTDE[[#This Row],[Mine0]]="",OFFSET(ImportTDE[[#Headers],[Mine]],ImportTDE[[#This Row],[Ligne]]-1,0,1,1),ImportTDE[[#This Row],[Mine0]]))) -> 0 | J42: =IF(ImportTDE[[#This Row],[Ligne]]="","",IF(ImportTDE[[#This Row],[Ligne]]=1,ImportTDE[[#This Row],[Tonnage0]],IF(ImportTDE[[#This Row],[Tonnage0]]="",OFFSET(ImportTDE[[#Headers],[Tonnage]],ImportTDE[[#This Row],[Ligne]]-1,0,1,1),ImportTDE[[#This Row],[Tonnage0]]))) -> 0 | K42: =IF(ImportTDE[[#This Row],[Ref Labo]]="","",IF(ImportTDE[[#This Row],[Tonnage]]>2000,1,"")) ->  | L42: =IF(ImportTDE[[#This Row],[Ref Labo]]="","",IF(AND(ImportTDE[[#This Row],[NbHum]]<>"",ImportTDE[[#This Row],[NbHum]]<2),1,"")) -> 
B43: =IF(ROW(ImportTDE[[#This Row],[Ref Labo]])-ROW(ImportTDE[[#Headers],[Ref Labo]])>NbEch,"",ROW(ImportTDE[[#This Row],[Ref Labo]])-ROW(ImportTDE[[#Headers],[Ref Labo]])) -> 39 | C43: =IF(ImportTDE[[#This Row],[Ligne]]="","",TDE&"-"&REPT("0",LEN(NbEch)-LEN(ImportTDE[[#This Row],[Ligne]]))&ImportTDE[[#This Row],[Ligne]]) ->  | H43: =IF(ImportTDE[[#This Row],[Ligne]]="","",IF(ImportTDE[[#This Row],[Ref Client0]]="",Prefixe &ImportTDE[[#This Row],[Ligne]]&Suffixe,ImportTDE[[#This Row],[Ref Client0]])) -> Lot 39 | I43: =IF(ImportTDE[[#This Row],[Ligne]]="","",IF(ImportTDE[[#This Row],[Ligne]]=1,ImportTDE[[#This Row],[Mine0]],IF(ImportTDE[[#This Row],[Mine0]]="",OFFSET(ImportTDE[[#Headers],[Mine]],ImportTDE[[#This Row],[Ligne]]-1,0,1,1),ImportTDE[[#This Row],[Mine0]]))) -> 0 | J43: =IF(ImportTDE[[#This Row],[Ligne]]="","",IF(ImportTDE[[#This Row],[Ligne]]=1,ImportTDE[[#This Row],[Tonnage0]],IF(ImportTDE[[#This Row],[Tonnage0]]="",OFFSET(ImportTDE[[#Headers],[Tonnage]],ImportTDE[[#This Row],[Ligne]]-1,0,1,1),ImportTDE[[#This Row],[Tonnage0]]))) -> 0 | K43: =IF(ImportTDE[[#This Row],[Ref Labo]]="","",IF(ImportTDE[[#This Row],[Tonnage]]>2000,1,"")) ->  | L43: =IF(ImportTDE[[#This Row],[Ref Labo]]="","",IF(AND(ImportTDE[[#This Row],[NbHum]]<>"",ImportTDE[[#This Row],[NbHum]]<2),1,"")) -> 
B44: =IF(ROW(ImportTDE[[#This Row],[Ref Labo]])-ROW(ImportTDE[[#Headers],[Ref Labo]])>NbEch,"",ROW(ImportTDE[[#This Row],[Ref Labo]])-ROW(ImportTDE[[#Headers],[Ref Labo]])) -> 40 | C44: =IF(ImportTDE[[#This Row],[Ligne]]="","",TDE&"-"&REPT("0",LEN(NbEch)-LEN(ImportTDE[[#This Row],[Ligne]]))&ImportTDE[[#This Row],[Ligne]]) ->  | H44: =IF(ImportTDE[[#This Row],[Ligne]]="","",IF(ImportTDE[[#This Row],[Ref Client0]]="",Prefixe &ImportTDE[[#This Row],[Ligne]]&Suffixe,ImportTDE[[#This Row],[Ref Client0]])) -> Lot 40 | I44: =IF(ImportTDE[[#This Row],[Ligne]]="","",IF(ImportTDE[[#This Row],[Ligne]]=1,ImportTDE[[#This Row],[Mine0]],IF(ImportTDE[[#This Row],[Mine0]]="",OFFSET(ImportTDE[[#Headers],[Mine]],ImportTDE[[#This Row],[Ligne]]-1,0,1,1),ImportTDE[[#This Row],[Mine0]]))) -> 0 | J44: =IF(ImportTDE[[#This Row],[Ligne]]="","",IF(ImportTDE[[#This Row],[Ligne]]=1,ImportTDE[[#This Row],[Tonnage0]],IF(ImportTDE[[#This Row],[Tonnage0]]="",OFFSET(ImportTDE[[#Headers],[Tonnage]],ImportTDE[[#This Row],[Ligne]]-1,0,1,1),ImportTDE[[#This Row],[Tonnage0]]))) -> 0 | K44: =IF(ImportTDE[[#This Row],[Ref Labo]]="","",IF(ImportTDE[[#This Row],[Tonnage]]>2000,1,"")) ->  | L44: =IF(ImportTDE[[#This Row],[Ref Labo]]="","",IF(AND(ImportTDE[[#This Row],[NbHum]]<>"",ImportTDE[[#This Row],[NbHum]]<2),1,"")) -> 
B45: =IF(ROW(ImportTDE[[#This Row],[Ref Labo]])-ROW(ImportTDE[[#Headers],[Ref Labo]])>NbEch,"",ROW(ImportTDE[[#This Row],[Ref Labo]])-ROW(ImportTDE[[#Headers],[Ref Labo]])) -> 41 | C45: =IF(ImportTDE[[#This Row],[Ligne]]="","",TDE&"-"&REPT("0",LEN(NbEch)-LEN(ImportTDE[[#This Row],[Ligne]]))&ImportTDE[[#This Row],[Ligne]]) ->  | H45: =IF(ImportTDE[[#This Row],[Ligne]]="","",IF(ImportTDE[[#This Row],[Ref Client0]]="",Prefixe &ImportTDE[[#This Row],[Ligne]]&Suffixe,ImportTDE[[#This Row],[Ref Client0]])) -> Lot 41 | I45: =IF(ImportTDE[[#This Row],[Ligne]]="","",IF(ImportTDE[[#This Row],[Ligne]]=1,ImportTDE[[#This Row],[Mine0]],IF(ImportTDE[[#This Row],[Mine0]]="",OFFSET(ImportTDE[[#Headers],[Mine]],ImportTDE[[#This Row],[Ligne]]-1,0,1,1),ImportTDE[[#This Row],[Mine0]]))) -> 0 | J45: =IF(ImportTDE[[#This Row],[Ligne]]="","",IF(ImportTDE[[#This Row],[Ligne]]=1,ImportTDE[[#This Row],[Tonnage0]],IF(ImportTDE[[#This Row],[Tonnage0]]="",OFFSET(ImportTDE[[#Headers],[Tonnage]],ImportTDE[[#This Row],[Ligne]]-1,0,1,1),ImportTDE[[#This Row],[Tonnage0]]))) -> 0 | K45: =IF(ImportTDE[[#This Row],[Ref Labo]]="","",IF(ImportTDE[[#This Row],[Tonnage]]>2000,1,"")) ->  | L45: =IF(ImportTDE[[#This Row],[Ref Labo]]="","",IF(AND(ImportTDE[[#This Row],[NbHum]]<>"",ImportTDE[[#This Row],[NbHum]]<2),1,"")) -> 
B46: =IF(ROW(ImportTDE[[#This Row],[Ref Labo]])-ROW(ImportTDE[[#Headers],[Ref Labo]])>NbEch,"",ROW(ImportTDE[[#This Row],[Ref Labo]])-ROW(ImportTDE[[#Headers],[Ref Labo]])) -> 42 | C46: =IF(ImportTDE[[#This Row],[Ligne]]="","",TDE&"-"&REPT("0",LEN(NbEch)-LEN(ImportTDE[[#This Row],[Ligne]]))&ImportTDE[[#This Row],[Ligne]]) ->  | H46: =IF(ImportTDE[[#This Row],[Ligne]]="","",IF(ImportTDE[[#This Row],[Ref Client0]]="",Prefixe &ImportTDE[[#This Row],[Ligne]]&Suffixe,ImportTDE[[#This Row],[Ref Client0]])) -> Lot 42 | I46: =IF(ImportTDE[[#This Row],[Ligne]]="","",IF(ImportTDE[[#This Row],[Ligne]]=1,ImportTDE[[#This Row],[Mine0]],IF(ImportTDE[[#This Row],[Mine0]]="",OFFSET(ImportTDE[[#Headers],[Mine]],ImportTDE[[#This Row],[Ligne]]-1,0,1,1),ImportTDE[[#This Row],[Mine0]]))) -> 0 | J46: =IF(ImportTDE[[#This Row],[Ligne]]="","",IF(ImportTDE[[#This Row],[Ligne]]=1,ImportTDE[[#This Row],[Tonnage0]],IF(ImportTDE[[#This Row],[Tonnage0]]="",OFFSET(ImportTDE[[#Headers],[Tonnage]],ImportTDE[[#This Row],[Ligne]]-1,0,1,1),ImportTDE[[#This Row],[Tonnage0]]))) -> 0 | K46: =IF(ImportTDE[[#This Row],[Ref Labo]]="","",IF(ImportTDE[[#This Row],[Tonnage]]>2000,1,"")) ->  | L46: =IF(ImportTDE[[#This Row],[Ref Labo]]="","",IF(AND(ImportTDE[[#This Row],[NbHum]]<>"",ImportTDE[[#This Row],[NbHum]]<2),1,"")) -> 
B47: =IF(ROW(ImportTDE[[#This Row],[Ref Labo]])-ROW(ImportTDE[[#Headers],[Ref Labo]])>NbEch,"",ROW(ImportTDE[[#This Row],[Ref Labo]])-ROW(ImportTDE[[#Headers],[Ref Labo]])) -> 43 | C47: =IF(ImportTDE[[#This Row],[Ligne]]="","",TDE&"-"&REPT("0",LEN(NbEch)-LEN(ImportTDE[[#This Row],[Ligne]]))&ImportTDE[[#This Row],[Ligne]]) ->  | H47: =IF(ImportTDE[[#This Row],[Ligne]]="","",IF(ImportTDE[[#This Row],[Ref Client0]]="",Prefixe &ImportTDE[[#This Row],[Ligne]]&Suffixe,ImportTDE[[#This Row],[Ref Client0]])) -> Lot 43 | I47: =IF(ImportTDE[[#This Row],[Ligne]]="","",IF(ImportTDE[[#This Row],[Ligne]]=1,ImportTDE[[#This Row],[Mine0]],IF(ImportTDE[[#This Row],[Mine0]]="",OFFSET(ImportTDE[[#Headers],[Mine]],ImportTDE[[#This Row],[Ligne]]-1,0,1,1),ImportTDE[[#This Row],[Mine0]]))) -> 0 | J47: =IF(ImportTDE[[#This Row],[Ligne]]="","",IF(ImportTDE[[#This Row],[Ligne]]=1,ImportTDE[[#This Row],[Tonnage0]],IF(ImportTDE[[#This Row],[Tonnage0]]="",OFFSET(ImportTDE[[#Headers],[Tonnage]],ImportTDE[[#This Row],[Ligne]]-1,0,1,1),ImportTDE[[#This Row],[Tonnage0]]))) -> 0 | K47: =IF(ImportTDE[[#This Row],[Ref Labo]]="","",IF(ImportTDE[[#This Row],[Tonnage]]>2000,1,"")) ->  | L47: =IF(ImportTDE[[#This Row],[Ref Labo]]="","",IF(AND(ImportTDE[[#This Row],[NbHum]]<>"",ImportTDE[[#This Row],[NbHum]]<2),1,"")) -> 
B48: =IF(ROW(ImportTDE[[#This Row],[Ref Labo]])-ROW(ImportTDE[[#Headers],[Ref Labo]])>NbEch,"",ROW(ImportTDE[[#This Row],[Ref Labo]])-ROW(ImportTDE[[#Headers],[Ref Labo]])) -> 44 | C48: =IF(ImportTDE[[#This Row],[Ligne]]="","",TDE&"-"&REPT("0",LEN(NbEch)-LEN(ImportTDE[[#This Row],[Ligne]]))&ImportTDE[[#This Row],[Ligne]]) ->  | H48: =IF(ImportTDE[[#This Row],[Ligne]]="","",IF(ImportTDE[[#This Row],[Ref Client0]]="",Prefixe &ImportTDE[[#This Row],[Ligne]]&Suffixe,ImportTDE[[#This Row],[Ref Client0]])) -> Lot 44 | I48: =IF(ImportTDE[[#This Row],[Ligne]]="","",IF(ImportTDE[[#This Row],[Ligne]]=1,ImportTDE[[#This Row],[Mine0]],IF(ImportTDE[[#This Row],[Mine0]]="",OFFSET(ImportTDE[[#Headers],[Mine]],ImportTDE[[#This Row],[Ligne]]-1,0,1,1),ImportTDE[[#This Row],[Mine0]]))) -> 0 | J48: =IF(ImportTDE[[#This Row],[Ligne]]="","",IF(ImportTDE[[#This Row],[Ligne]]=1,ImportTDE[[#This Row],[Tonnage0]],IF(ImportTDE[[#This Row],[Tonnage0]]="",OFFSET(ImportTDE[[#Headers],[Tonnage]],ImportTDE[[#This Row],[Ligne]]-1,0,1,1),ImportTDE[[#This Row],[Tonnage0]]))) -> 0 | K48: =IF(ImportTDE[[#This Row],[Ref Labo]]="","",IF(ImportTDE[[#This Row],[Tonnage]]>2000,1,"")) ->  | L48: =IF(ImportTDE[[#This Row],[Ref Labo]]="","",IF(AND(ImportTDE[[#This Row],[NbHum]]<>"",ImportTDE[[#This Row],[NbHum]]<2),1,"")) -> 
B49: =IF(ROW(ImportTDE[[#This Row],[Ref Labo]])-ROW(ImportTDE[[#Headers],[Ref Labo]])>NbEch,"",ROW(ImportTDE[[#This Row],[Ref Labo]])-ROW(ImportTDE[[#Headers],[Ref Labo]])) -> 45 | C49: =IF(ImportTDE[[#This Row],[Ligne]]="","",TDE&"-"&REPT("0",LEN(NbEch)-LEN(ImportTDE[[#This Row],[Ligne]]))&ImportTDE[[#This Row],[Ligne]]) ->  | H49: =IF(ImportTDE[[#This Row],[Ligne]]="","",IF(ImportTDE[[#This Row],[Ref Client0]]="",Prefixe &ImportTDE[[#This Row],[Ligne]]&Suffixe,ImportTDE[[#This Row],[Ref Client0]])) -> Lot 45 | I49: =IF(ImportTDE[[#This Row],[Ligne]]="","",IF(ImportTDE[[#This Row],[Ligne]]=1,ImportTDE[[#This Row],[Mine0]],IF(ImportTDE[[#This Row],[Mine0]]="",OFFSET(ImportTDE[[#Headers],[Mine]],ImportTDE[[#This Row],[Ligne]]-1,0,1,1),ImportTDE[[#This Row],[Mine0]]))) -> 0 | J49: =IF(ImportTDE[[#This Row],[Ligne]]="","",IF(ImportTDE[[#This Row],[Ligne]]=1,ImportTDE[[#This Row],[Tonnage0]],IF(ImportTDE[[#This Row],[Tonnage0]]="",OFFSET(ImportTDE[[#Headers],[Tonnage]],ImportTDE[[#This Row],[Ligne]]-1,0,1,1),ImportTDE[[#This Row],[Tonnage0]]))) -> 0 | K49: =IF(ImportTDE[[#This Row],[Ref Labo]]="","",IF(ImportTDE[[#This Row],[Tonnage]]>2000,1,"")) ->  | L49: =IF(ImportTDE[[#This Row],[Ref Labo]]="","",IF(AND(ImportTDE[[#This Row],[NbHum]]<>"",ImportTDE[[#This Row],[NbHum]]<2),1,"")) -> 
B50: =IF(ROW(ImportTDE[[#This Row],[Ref Labo]])-ROW(ImportTDE[[#Headers],[Ref Labo]])>NbEch,"",ROW(ImportTDE[[#This Row],[Ref Labo]])-ROW(ImportTDE[[#Headers],[Ref Labo]])) -> 46 | C50: =IF(ImportTDE[[#This Row],[Ligne]]="","",TDE&"-"&REPT("0",LEN(NbEch)-LEN(ImportTDE[[#This Row],[Ligne]]))&ImportTDE[[#This Row],[Ligne]]) ->  | H50: =IF(ImportTDE[[#This Row],[Ligne]]="","",IF(ImportTDE[[#This Row],[Ref Client0]]="",Prefixe &ImportTDE[[#This Row],[Ligne]]&Suffixe,ImportTDE[[#This Row],[Ref Client0]])) -> Lot 46 | I50: =IF(ImportTDE[[#This Row],[Ligne]]="","",IF(ImportTDE[[#This Row],[Ligne]]=1,ImportTDE[[#This Row],[Mine0]],IF(ImportTDE[[#This Row],[Mine0]]="",OFFSET(ImportTDE[[#Headers],[Mine]],ImportTDE[[#This Row],[Ligne]]-1,0,1,1),ImportTDE[[#This Row],[Mine0]]))) -> 0 | J50: =IF(ImportTDE[[#This Row],[Ligne]]="","",IF(ImportTDE[[#This Row],[Ligne]]=1,ImportTDE[[#This Row],[Tonnage0]],IF(ImportTDE[[#This Row],[Tonnage0]]="",OFFSET(ImportTDE[[#Headers],[Tonnage]],ImportTDE[[#This Row],[Ligne]]-1,0,1,1),ImportTDE[[#This Row],[Tonnage0]]))) -> 0 | K50: =IF(ImportTDE[[#This Row],[Ref Labo]]="","",IF(ImportTDE[[#This Row],[Tonnage]]>2000,1,"")) ->  | L50: =IF(ImportTDE[[#This Row],[Ref Labo]]="","",IF(AND(ImportTDE[[#This Row],[NbHum]]<>"",ImportTDE[[#This Row],[NbHum]]<2),1,"")) -> 
B51: =IF(ROW(ImportTDE[[#This Row],[Ref Labo]])-ROW(ImportTDE[[#Headers],[Ref Labo]])>NbEch,"",ROW(ImportTDE[[#This Row],[Ref Labo]])-ROW(ImportTDE[[#Headers],[Ref Labo]])) -> 47 | C51: =IF(ImportTDE[[#This Row],[Ligne]]="","",TDE&"-"&REPT("0",LEN(NbEch)-LEN(ImportTDE[[#This Row],[Ligne]]))&ImportTDE[[#This Row],[Ligne]]) ->  | H51: =IF(ImportTDE[[#This Row],[Ligne]]="","",IF(ImportTDE[[#This Row],[Ref Client0]]="",Prefixe &ImportTDE[[#This Row],[Ligne]]&Suffixe,ImportTDE[[#This Row],[Ref Client0]])) -> Lot 47 | I51: =IF(ImportTDE[[#This Row],[Ligne]]="","",IF(ImportTDE[[#This Row],[Ligne]]=1,ImportTDE[[#This Row],[Mine0]],IF(ImportTDE[[#This Row],[Mine0]]="",OFFSET(ImportTDE[[#Headers],[Mine]],ImportTDE[[#This Row],[Ligne]]-1,0,1,1),ImportTDE[[#This Row],[Mine0]]))) -> 0 | J51: =IF(ImportTDE[[#This Row],[Ligne]]="","",IF(ImportTDE[[#This Row],[Ligne]]=1,ImportTDE[[#This Row],[Tonnage0]],IF(ImportTDE[[#This Row],[Tonnage0]]="",OFFSET(ImportTDE[[#Headers],[Tonnage]],ImportTDE[[#This Row],[Ligne]]-1,0,1,1),ImportTDE[[#This Row],[Tonnage0]]))) -> 0 | K51: =IF(ImportTDE[[#This Row],[Ref Labo]]="","",IF(ImportTDE[[#This Row],[Tonnage]]>2000,1,"")) ->  | L51: =IF(ImportTDE[[#This Row],[Ref Labo]]="","",IF(AND(ImportTDE[[#This Row],[NbHum]]<>"",ImportTDE[[#This Row],[NbHum]]<2),1,"")) -> 
B52: =IF(ROW(ImportTDE[[#This Row],[Ref Labo]])-ROW(ImportTDE[[#Headers],[Ref Labo]])>NbEch,"",ROW(ImportTDE[[#This Row],[Ref Labo]])-ROW(ImportTDE[[#Headers],[Ref Labo]])) -> 48 | C52: =IF(ImportTDE[[#This Row],[Ligne]]="","",TDE&"-"&REPT("0",LEN(NbEch)-LEN(ImportTDE[[#This Row],[Ligne]]))&ImportTDE[[#This Row],[Ligne]]) ->  | H52: =IF(ImportTDE[[#This Row],[Ligne]]="","",IF(ImportTDE[[#This Row],[Ref Client0]]="",Prefixe &ImportTDE[[#This Row],[Ligne]]&Suffixe,ImportTDE[[#This Row],[Ref Client0]])) -> Lot 48 | I52: =IF(ImportTDE[[#This Row],[Ligne]]="","",IF(ImportTDE[[#This Row],[Ligne]]=1,ImportTDE[[#This Row],[Mine0]],IF(ImportTDE[[#This Row],[Mine0]]="",OFFSET(ImportTDE[[#Headers],[Mine]],ImportTDE[[#This Row],[Ligne]]-1,0,1,1),ImportTDE[[#This Row],[Mine0]]))) -> 0 | J52: =IF(ImportTDE[[#This Row],[Ligne]]="","",IF(ImportTDE[[#This Row],[Ligne]]=1,ImportTDE[[#This Row],[Tonnage0]],IF(ImportTDE[[#This Row],[Tonnage0]]="",OFFSET(ImportTDE[[#Headers],[Tonnage]],ImportTDE[[#This Row],[Ligne]]-1,0,1,1),ImportTDE[[#This Row],[Tonnage0]]))) -> 0 | K52: =IF(ImportTDE[[#This Row],[Ref Labo]]="","",IF(ImportTDE[[#This Row],[Tonnage]]>2000,1,"")) ->  | L52: =IF(ImportTDE[[#This Row],[Ref Labo]]="","",IF(AND(ImportTDE[[#This Row],[NbHum]]<>"",ImportTDE[[#This Row],[NbHum]]<2),1,"")) -> 
B53: =IF(ROW(ImportTDE[[#This Row],[Ref Labo]])-ROW(ImportTDE[[#Headers],[Ref Labo]])>NbEch,"",ROW(ImportTDE[[#This Row],[Ref Labo]])-ROW(ImportTDE[[#Headers],[Ref Labo]])) -> 49 | C53: =IF(ImportTDE[[#This Row],[Ligne]]="","",TDE&"-"&REPT("0",LEN(NbEch)-LEN(ImportTDE[[#This Row],[Ligne]]))&ImportTDE[[#This Row],[Ligne]]) ->  | H53: =IF(ImportTDE[[#This Row],[Ligne]]="","",IF(ImportTDE[[#This Row],[Ref Client0]]="",Prefixe &ImportTDE[[#This Row],[Ligne]]&Suffixe,ImportTDE[[#This Row],[Ref Client0]])) -> Lot 49 | I53: =IF(ImportTDE[[#This Row],[Ligne]]="","",IF(ImportTDE[[#This Row],[Ligne]]=1,ImportTDE[[#This Row],[Mine0]],IF(ImportTDE[[#This Row],[Mine0]]="",OFFSET(ImportTDE[[#Headers],[Mine]],ImportTDE[[#This Row],[Ligne]]-1,0,1,1),ImportTDE[[#This Row],[Mine0]]))) -> 0 | J53: =IF(ImportTDE[[#This Row],[Ligne]]="","",IF(ImportTDE[[#This Row],[Ligne]]=1,ImportTDE[[#This Row],[Tonnage0]],IF(ImportTDE[[#This Row],[Tonnage0]]="",OFFSET(ImportTDE[[#Headers],[Tonnage]],ImportTDE[[#This Row],[Ligne]]-1,0,1,1),ImportTDE[[#This Row],[Tonnage0]]))) -> 0 | K53: =IF(ImportTDE[[#This Row],[Ref Labo]]="","",IF(ImportTDE[[#This Row],[Tonnage]]>2000,1,"")) ->  | L53: =IF(ImportTDE[[#This Row],[Ref Labo]]="","",IF(AND(ImportTDE[[#This Row],[NbHum]]<>"",ImportTDE[[#This Row],[NbHum]]<2),1,"")) -> 
B54: =IF(ROW(ImportTDE[[#This Row],[Ref Labo]])-ROW(ImportTDE[[#Headers],[Ref Labo]])>NbEch,"",ROW(ImportTDE[[#This Row],[Ref Labo]])-ROW(ImportTDE[[#Headers],[Ref Labo]])) -> 50 | C54: =IF(ImportTDE[[#This Row],[Ligne]]="","",TDE&"-"&REPT("0",LEN(NbEch)-LEN(ImportTDE[[#This Row],[Ligne]]))&ImportTDE[[#This Row],[Ligne]]) ->  | H54: =IF(ImportTDE[[#This Row],[Ligne]]="","",IF(ImportTDE[[#This Row],[Ref Client0]]="",Prefixe &ImportTDE[[#This Row],[Ligne]]&Suffixe,ImportTDE[[#This Row],[Ref Client0]])) -> Lot 50 | I54: =IF(ImportTDE[[#This Row],[Ligne]]="","",IF(ImportTDE[[#This Row],[Ligne]]=1,ImportTDE[[#This Row],[Mine0]],IF(ImportTDE[[#This Row],[Mine0]]="",OFFSET(ImportTDE[[#Headers],[Mine]],ImportTDE[[#This Row],[Ligne]]-1,0,1,1),ImportTDE[[#This Row],[Mine0]]))) -> 0 | J54: =IF(ImportTDE[[#This Row],[Ligne]]="","",IF(ImportTDE[[#This Row],[Ligne]]=1,ImportTDE[[#This Row],[Tonnage0]],IF(ImportTDE[[#This Row],[Tonnage0]]="",OFFSET(ImportTDE[[#Headers],[Tonnage]],ImportTDE[[#This Row],[Ligne]]-1,0,1,1),ImportTDE[[#This Row],[Tonnage0]]))) -> 0 | K54: =IF(ImportTDE[[#This Row],[Ref Labo]]="","",IF(ImportTDE[[#This Row],[Tonnage]]>2000,1,"")) ->  | L54: =IF(ImportTDE[[#This Row],[Ref Labo]]="","",IF(AND(ImportTDE[[#This Row],[NbHum]]<>"",ImportTDE[[#This Row],[NbHum]]<2),1,"")) -> 
B55: =IF(ROW(ImportTDE[[#This Row],[Ref Labo]])-ROW(ImportTDE[[#Headers],[Ref Labo]])>NbEch,"",ROW(ImportTDE[[#This Row],[Ref Labo]])-ROW(ImportTDE[[#Headers],[Ref Labo]])) -> 51 | C55: =IF(ImportTDE[[#This Row],[Ligne]]="","",TDE&"-"&REPT("0",LEN(NbEch)-LEN(ImportTDE[[#This Row],[Ligne]]))&ImportTDE[[#This Row],[Ligne]]) ->  | H55: =IF(ImportTDE[[#This Row],[Ligne]]="","",IF(ImportTDE[[#This Row],[Ref Client0]]="",Prefixe &ImportTDE[[#This Row],[Ligne]]&Suffixe,ImportTDE[[#This Row],[Ref Client0]])) -> Lot 51 | I55: =IF(ImportTDE[[#This Row],[Ligne]]="","",IF(ImportTDE[[#This Row],[Ligne]]=1,ImportTDE[[#This Row],[Mine0]],IF(ImportTDE[[#This Row],[Mine0]]="",OFFSET(ImportTDE[[#Headers],[Mine]],ImportTDE[[#This Row],[Ligne]]-1,0,1,1),ImportTDE[[#This Row],[Mine0]]))) -> 0 | J55: =IF(ImportTDE[[#This Row],[Ligne]]="","",IF(ImportTDE[[#This Row],[Ligne]]=1,ImportTDE[[#This Row],[Tonnage0]],IF(ImportTDE[[#This Row],[Tonnage0]]="",OFFSET(ImportTDE[[#Headers],[Tonnage]],ImportTDE[[#This Row],[Ligne]]-1,0,1,1),ImportTDE[[#This Row],[Tonnage0]]))) -> 0 | K55: =IF(ImportTDE[[#This Row],[Ref Labo]]="","",IF(ImportTDE[[#This Row],[Tonnage]]>2000,1,"")) ->  | L55: =IF(ImportTDE[[#This Row],[Ref Labo]]="","",IF(AND(ImportTDE[[#This Row],[NbHum]]<>"",ImportTDE[[#This Row],[NbHum]]<2),1,"")) -> 
B56: =IF(ROW(ImportTDE[[#This Row],[Ref Labo]])-ROW(ImportTDE[[#Headers],[Ref Labo]])>NbEch,"",ROW(ImportTDE[[#This Row],[Ref Labo]])-ROW(ImportTDE[[#Headers],[Ref Labo]])) -> 52 | C56: =IF(ImportTDE[[#This Row],[Ligne]]="","",TDE&"-"&REPT("0",LEN(NbEch)-LEN(ImportTDE[[#This Row],[Ligne]]))&ImportTDE[[#This Row],[Ligne]]) ->  | H56: =IF(ImportTDE[[#This Row],[Ligne]]="","",IF(ImportTDE[[#This Row],[Ref Client0]]="",Prefixe &ImportTDE[[#This Row],[Ligne]]&Suffixe,ImportTDE[[#This Row],[Ref Client0]])) -> Lot 52 | I56: =IF(ImportTDE[[#This Row],[Ligne]]="","",IF(ImportTDE[[#This Row],[Ligne]]=1,ImportTDE[[#This Row],[Mine0]],IF(ImportTDE[[#This Row],[Mine0]]="",OFFSET(ImportTDE[[#Headers],[Mine]],ImportTDE[[#This Row],[Ligne]]-1,0,1,1),ImportTDE[[#This Row],[Mine0]]))) -> 0 | J56: =IF(ImportTDE[[#This Row],[Ligne]]="","",IF(ImportTDE[[#This Row],[Ligne]]=1,ImportTDE[[#This Row],[Tonnage0]],IF(ImportTDE[[#This Row],[Tonnage0]]="",OFFSET(ImportTDE[[#Headers],[Tonnage]],ImportTDE[[#This Row],[Ligne]]-1,0,1,1),ImportTDE[[#This Row],[Tonnage0]]))) -> 0 | K56: =IF(ImportTDE[[#This Row],[Ref Labo]]="","",IF(ImportTDE[[#This Row],[Tonnage]]>2000,1,"")) ->  | L56: =IF(ImportTDE[[#This Row],[Ref Labo]]="","",IF(AND(ImportTDE[[#This Row],[NbHum]]<>"",ImportTDE[[#This Row],[NbHum]]<2),1,"")) -> 
B57: =IF(ROW(ImportTDE[[#This Row],[Ref Labo]])-ROW(ImportTDE[[#Headers],[Ref Labo]])>NbEch,"",ROW(ImportTDE[[#This Row],[Ref Labo]])-ROW(ImportTDE[[#Headers],[Ref Labo]])) -> 53 | C57: =IF(ImportTDE[[#This Row],[Ligne]]="","",TDE&"-"&REPT("0",LEN(NbEch)-LEN(ImportTDE[[#This Row],[Ligne]]))&ImportTDE[[#This Row],[Ligne]]) ->  | H57: =IF(ImportTDE[[#This Row],[Ligne]]="","",IF(ImportTDE[[#This Row],[Ref Client0]]="",Prefixe &ImportTDE[[#This Row],[Ligne]]&Suffixe,ImportTDE[[#This Row],[Ref Client0]])) -> Lot 53 | I57: =IF(ImportTDE[[#This Row],[Ligne]]="","",IF(ImportTDE[[#This Row],[Ligne]]=1,ImportTDE[[#This Row],[Mine0]],IF(ImportTDE[[#This Row],[Mine0]]="",OFFSET(ImportTDE[[#Headers],[Mine]],ImportTDE[[#This Row],[Ligne]]-1,0,1,1),ImportTDE[[#This Row],[Mine0]]))) -> 0 | J57: =IF(ImportTDE[[#This Row],[Ligne]]="","",IF(ImportTDE[[#This Row],[Ligne]]=1,ImportTDE[[#This Row],[Tonnage0]],IF(ImportTDE[[#This Row],[Tonnage0]]="",OFFSET(ImportTDE[[#Headers],[Tonnage]],ImportTDE[[#This Row],[Ligne]]-1,0,1,1),ImportTDE[[#This Row],[Tonnage0]]))) -> 0 | K57: =IF(ImportTDE[[#This Row],[Ref Labo]]="","",IF(ImportTDE[[#This Row],[Tonnage]]>2000,1,"")) ->  | L57: =IF(ImportTDE[[#This Row],[Ref Labo]]="","",IF(AND(ImportTDE[[#This Row],[NbHum]]<>"",ImportTDE[[#This Row],[NbHum]]<2),1,"")) -> 
B58: =IF(ROW(ImportTDE[[#This Row],[Ref Labo]])-ROW(ImportTDE[[#Headers],[Ref Labo]])>NbEch,"",ROW(ImportTDE[[#This Row],[Ref Labo]])-ROW(ImportTDE[[#Headers],[Ref Labo]])) -> 54 | C58: =IF(ImportTDE[[#This Row],[Ligne]]="","",TDE&"-"&REPT("0",LEN(NbEch)-LEN(ImportTDE[[#This Row],[Ligne]]))&ImportTDE[[#This Row],[Ligne]]) ->  | H58: =IF(ImportTDE[[#This Row],[Ligne]]="","",IF(ImportTDE[[#This Row],[Ref Client0]]="",Prefixe &ImportTDE[[#This Row],[Ligne]]&Suffixe,ImportTDE[[#This Row],[Ref Client0]])) -> Lot 54 | I58: =IF(ImportTDE[[#This Row],[Ligne]]="","",IF(ImportTDE[[#This Row],[Ligne]]=1,ImportTDE[[#This Row],[Mine0]],IF(ImportTDE[[#This Row],[Mine0]]="",OFFSET(ImportTDE[[#Headers],[Mine]],ImportTDE[[#This Row],[Ligne]]-1,0,1,1),ImportTDE[[#This Row],[Mine0]]))) -> 0 | J58: =IF(ImportTDE[[#This Row],[Ligne]]="","",IF(ImportTDE[[#This Row],[Ligne]]=1,ImportTDE[[#This Row],[Tonnage0]],IF(ImportTDE[[#This Row],[Tonnage0]]="",OFFSET(ImportTDE[[#Headers],[Tonnage]],ImportTDE[[#This Row],[Ligne]]-1,0,1,1),ImportTDE[[#This Row],[Tonnage0]]))) -> 0 | K58: =IF(ImportTDE[[#This Row],[Ref Labo]]="","",IF(ImportTDE[[#This Row],[Tonnage]]>2000,1,"")) ->  | L58: =IF(ImportTDE[[#This Row],[Ref Labo]]="","",IF(AND(ImportTDE[[#This Row],[NbHum]]<>"",ImportTDE[[#This Row],[NbHum]]<2),1,"")) -> 
B59: =IF(ROW(ImportTDE[[#This Row],[Ref Labo]])-ROW(ImportTDE[[#Headers],[Ref Labo]])>NbEch,"",ROW(ImportTDE[[#This Row],[Ref Labo]])-ROW(ImportTDE[[#Headers],[Ref Labo]])) -> 55 | C59: =IF(ImportTDE[[#This Row],[Ligne]]="","",TDE&"-"&REPT("0",LEN(NbEch)-LEN(ImportTDE[[#This Row],[Ligne]]))&ImportTDE[[#This Row],[Ligne]]) ->  | H59: =IF(ImportTDE[[#This Row],[Ligne]]="","",IF(ImportTDE[[#This Row],[Ref Client0]]="",Prefixe &ImportTDE[[#This Row],[Ligne]]&Suffixe,ImportTDE[[#This Row],[Ref Client0]])) -> Lot 55 | I59: =IF(ImportTDE[[#This Row],[Ligne]]="","",IF(ImportTDE[[#This Row],[Ligne]]=1,ImportTDE[[#This Row],[Mine0]],IF(ImportTDE[[#This Row],[Mine0]]="",OFFSET(ImportTDE[[#Headers],[Mine]],ImportTDE[[#This Row],[Ligne]]-1,0,1,1),ImportTDE[[#This Row],[Mine0]]))) -> 0 | J59: =IF(ImportTDE[[#This Row],[Ligne]]="","",IF(ImportTDE[[#This Row],[Ligne]]=1,ImportTDE[[#This Row],[Tonnage0]],IF(ImportTDE[[#This Row],[Tonnage0]]="",OFFSET(ImportTDE[[#Headers],[Tonnage]],ImportTDE[[#This Row],[Ligne]]-1,0,1,1),ImportTDE[[#This Row],[Tonnage0]]))) -> 0 | K59: =IF(ImportTDE[[#This Row],[Ref Labo]]="","",IF(ImportTDE[[#This Row],[Tonnage]]>2000,1,"")) ->  | L59: =IF(ImportTDE[[#This Row],[Ref Labo]]="","",IF(AND(ImportTDE[[#This Row],[NbHum]]<>"",ImportTDE[[#This Row],[NbHum]]<2),1,"")) -> 
B60: =IF(ROW(ImportTDE[[#This Row],[Ref Labo]])-ROW(ImportTDE[[#Headers],[Ref Labo]])>NbEch,"",ROW(ImportTDE[[#This Row],[Ref Labo]])-ROW(ImportTDE[[#Headers],[Ref Labo]])) -> 56 | C60: =IF(ImportTDE[[#This Row],[Ligne]]="","",TDE&"-"&REPT("0",LEN(NbEch)-LEN(ImportTDE[[#This Row],[Ligne]]))&ImportTDE[[#This Row],[Ligne]]) ->  | H60: =IF(ImportTDE[[#This Row],[Ligne]]="","",IF(ImportTDE[[#This Row],[Ref Client0]]="",Prefixe &ImportTDE[[#This Row],[Ligne]]&Suffixe,ImportTDE[[#This Row],[Ref Client0]])) -> Lot 56 | I60: =IF(ImportTDE[[#This Row],[Ligne]]="","",IF(ImportTDE[[#This Row],[Ligne]]=1,ImportTDE[[#This Row],[Mine0]],IF(ImportTDE[[#This Row],[Mine0]]="",OFFSET(ImportTDE[[#Headers],[Mine]],ImportTDE[[#This Row],[Ligne]]-1,0,1,1),ImportTDE[[#This Row],[Mine0]]))) -> 0 | J60: =IF(ImportTDE[[#This Row],[Ligne]]="","",IF(ImportTDE[[#This Row],[Ligne]]=1,ImportTDE[[#This Row],[Tonnage0]],IF(ImportTDE[[#This Row],[Tonnage0]]="",OFFSET(ImportTDE[[#Headers],[Tonnage]],ImportTDE[[#This Row],[Ligne]]-1,0,1,1),ImportTDE[[#This Row],[Tonnage0]]))) -> 0 | K60: =IF(ImportTDE[[#This Row],[Ref Labo]]="","",IF(ImportTDE[[#This Row],[Tonnage]]>2000,1,"")) ->  | L60: =IF(ImportTDE[[#This Row],[Ref Labo]]="","",IF(AND(ImportTDE[[#This Row],[NbHum]]<>"",ImportTDE[[#This Row],[NbHum]]<2),1,"")) -> 
B61: =IF(ROW(ImportTDE[[#This Row],[Ref Labo]])-ROW(ImportTDE[[#Headers],[Ref Labo]])>NbEch,"",ROW(ImportTDE[[#This Row],[Ref Labo]])-ROW(ImportTDE[[#Headers],[Ref Labo]])) -> 57 | C61: =IF(ImportTDE[[#This Row],[Ligne]]="","",TDE&"-"&REPT("0",LEN(NbEch)-LEN(ImportTDE[[#This Row],[Ligne]]))&ImportTDE[[#This Row],[Ligne]]) ->  | H61: =IF(ImportTDE[[#This Row],[Ligne]]="","",IF(ImportTDE[[#This Row],[Ref Client0]]="",Prefixe &ImportTDE[[#This Row],[Ligne]]&Suffixe,ImportTDE[[#This Row],[Ref Client0]])) -> Lot 57 | I61: =IF(ImportTDE[[#This Row],[Ligne]]="","",IF(ImportTDE[[#This Row],[Ligne]]=1,ImportTDE[[#This Row],[Mine0]],IF(ImportTDE[[#This Row],[Mine0]]="",OFFSET(ImportTDE[[#Headers],[Mine]],ImportTDE[[#This Row],[Ligne]]-1,0,1,1),ImportTDE[[#This Row],[Mine0]]))) -> 0 | J61: =IF(ImportTDE[[#This Row],[Ligne]]="","",IF(ImportTDE[[#This Row],[Ligne]]=1,ImportTDE[[#This Row],[Tonnage0]],IF(ImportTDE[[#This Row],[Tonnage0]]="",OFFSET(ImportTDE[[#Headers],[Tonnage]],ImportTDE[[#This Row],[Ligne]]-1,0,1,1),ImportTDE[[#This Row],[Tonnage0]]))) -> 0 | K61: =IF(ImportTDE[[#This Row],[Ref Labo]]="","",IF(ImportTDE[[#This Row],[Tonnage]]>2000,1,"")) ->  | L61: =IF(ImportTDE[[#This Row],[Ref Labo]]="","",IF(AND(ImportTDE[[#This Row],[NbHum]]<>"",ImportTDE[[#This Row],[NbHum]]<2),1,"")) -> 
B62: =IF(ROW(ImportTDE[[#This Row],[Ref Labo]])-ROW(ImportTDE[[#Headers],[Ref Labo]])>NbEch,"",ROW(ImportTDE[[#This Row],[Ref Labo]])-ROW(ImportTDE[[#Headers],[Ref Labo]])) -> 58 | C62: =IF(ImportTDE[[#This Row],[Ligne]]="","",TDE&"-"&REPT("0",LEN(NbEch)-LEN(ImportTDE[[#This Row],[Ligne]]))&ImportTDE[[#This Row],[Ligne]]) ->  | H62: =IF(ImportTDE[[#This Row],[Ligne]]="","",IF(ImportTDE[[#This Row],[Ref Client0]]="",Prefixe &ImportTDE[[#This Row],[Ligne]]&Suffixe,ImportTDE[[#This Row],[Ref Client0]])) -> Lot 58 | I62: =IF(ImportTDE[[#This Row],[Ligne]]="","",IF(ImportTDE[[#This Row],[Ligne]]=1,ImportTDE[[#This Row],[Mine0]],IF(ImportTDE[[#This Row],[Mine0]]="",OFFSET(ImportTDE[[#Headers],[Mine]],ImportTDE[[#This Row],[Ligne]]-1,0,1,1),ImportTDE[[#This Row],[Mine0]]))) -> 0 | J62: =IF(ImportTDE[[#This Row],[Ligne]]="","",IF(ImportTDE[[#This Row],[Ligne]]=1,ImportTDE[[#This Row],[Tonnage0]],IF(ImportTDE[[#This Row],[Tonnage0]]="",OFFSET(ImportTDE[[#Headers],[Tonnage]],ImportTDE[[#This Row],[Ligne]]-1,0,1,1),ImportTDE[[#This Row],[Tonnage0]]))) -> 0 | K62: =IF(ImportTDE[[#This Row],[Ref Labo]]="","",IF(ImportTDE[[#This Row],[Tonnage]]>2000,1,"")) ->  | L62: =IF(ImportTDE[[#This Row],[Ref Labo]]="","",IF(AND(ImportTDE[[#This Row],[NbHum]]<>"",ImportTDE[[#This Row],[NbHum]]<2),1,"")) -> 
B63: =IF(ROW(ImportTDE[[#This Row],[Ref Labo]])-ROW(ImportTDE[[#Headers],[Ref Labo]])>NbEch,"",ROW(ImportTDE[[#This Row],[Ref Labo]])-ROW(ImportTDE[[#Headers],[Ref Labo]])) -> 59 | C63: =IF(ImportTDE[[#This Row],[Ligne]]="","",TDE&"-"&REPT("0",LEN(NbEch)-LEN(ImportTDE[[#This Row],[Ligne]]))&ImportTDE[[#This Row],[Ligne]]) ->  | H63: =IF(ImportTDE[[#This Row],[Ligne]]="","",IF(ImportTDE[[#This Row],[Ref Client0]]="",Prefixe &ImportTDE[[#This Row],[Ligne]]&Suffixe,ImportTDE[[#This Row],[Ref Client0]])) -> Lot 59 | I63: =IF(ImportTDE[[#This Row],[Ligne]]="","",IF(ImportTDE[[#This Row],[Ligne]]=1,ImportTDE[[#This Row],[Mine0]],IF(ImportTDE[[#This Row],[Mine0]]="",OFFSET(ImportTDE[[#Headers],[Mine]],ImportTDE[[#This Row],[Ligne]]-1,0,1,1),ImportTDE[[#This Row],[Mine0]]))) -> 0 | J63: =IF(ImportTDE[[#This Row],[Ligne]]="","",IF(ImportTDE[[#This Row],[Ligne]]=1,ImportTDE[[#This Row],[Tonnage0]],IF(ImportTDE[[#This Row],[Tonnage0]]="",OFFSET(ImportTDE[[#Headers],[Tonnage]],ImportTDE[[#This Row],[Ligne]]-1,0,1,1),ImportTDE[[#This Row],[Tonnage0]]))) -> 0 | K63: =IF(ImportTDE[[#This Row],[Ref Labo]]="","",IF(ImportTDE[[#This Row],[Tonnage]]>2000,1,"")) ->  | L63: =IF(ImportTDE[[#This Row],[Ref Labo]]="","",IF(AND(ImportTDE[[#This Row],[NbHum]]<>"",ImportTDE[[#This Row],[NbHum]]<2),1,"")) -> 
B64: =IF(ROW(ImportTDE[[#This Row],[Ref Labo]])-ROW(ImportTDE[[#Headers],[Ref Labo]])>NbEch,"",ROW(ImportTDE[[#This Row],[Ref Labo]])-ROW(ImportTDE[[#Headers],[Ref Labo]])) -> 60 | C64: =IF(ImportTDE[[#This Row],[Ligne]]="","",TDE&"-"&REPT("0",LEN(NbEch)-LEN(ImportTDE[[#This Row],[Ligne]]))&ImportTDE[[#This Row],[Ligne]]) ->  | H64: =IF(ImportTDE[[#This Row],[Ligne]]="","",IF(ImportTDE[[#This Row],[Ref Client0]]="",Prefixe &ImportTDE[[#This Row],[Ligne]]&Suffixe,ImportTDE[[#This Row],[Ref Client0]])) -> Lot 60 | I64: =IF(ImportTDE[[#This Row],[Ligne]]="","",IF(ImportTDE[[#This Row],[Ligne]]=1,ImportTDE[[#This Row],[Mine0]],IF(ImportTDE[[#This Row],[Mine0]]="",OFFSET(ImportTDE[[#Headers],[Mine]],ImportTDE[[#This Row],[Ligne]]-1,0,1,1),ImportTDE[[#This Row],[Mine0]]))) -> 0 | J64: =IF(ImportTDE[[#This Row],[Ligne]]="","",IF(ImportTDE[[#This Row],[Ligne]]=1,ImportTDE[[#This Row],[Tonnage0]],IF(ImportTDE[[#This Row],[Tonnage0]]="",OFFSET(ImportTDE[[#Headers],[Tonnage]],ImportTDE[[#This Row],[Ligne]]-1,0,1,1),ImportTDE[[#This Row],[Tonnage0]]))) -> 0 | K64: =IF(ImportTDE[[#This Row],[Ref Labo]]="","",IF(ImportTDE[[#This Row],[Tonnage]]>2000,1,"")) ->  | L64: =IF(ImportTDE[[#This Row],[Ref Labo]]="","",IF(AND(ImportTDE[[#This Row],[NbHum]]<>"",ImportTDE[[#This Row],[NbHum]]<2),1,"")) -> 
B65: =IF(ROW(ImportTDE[[#This Row],[Ref Labo]])-ROW(ImportTDE[[#Headers],[Ref Labo]])>NbEch,"",ROW(ImportTDE[[#This Row],[Ref Labo]])-ROW(ImportTDE[[#Headers],[Ref Labo]])) -> 61 | C65: =IF(ImportTDE[[#This Row],[Ligne]]="","",TDE&"-"&REPT("0",LEN(NbEch)-LEN(ImportTDE[[#This Row],[Ligne]]))&ImportTDE[[#This Row],[Ligne]]) ->  | H65: =IF(ImportTDE[[#This Row],[Ligne]]="","",IF(ImportTDE[[#This Row],[Ref Client0]]="",Prefixe &ImportTDE[[#This Row],[Ligne]]&Suffixe,ImportTDE[[#This Row],[Ref Client0]])) -> Lot 61 | I65: =IF(ImportTDE[[#This Row],[Ligne]]="","",IF(ImportTDE[[#This Row],[Ligne]]=1,ImportTDE[[#This Row],[Mine0]],IF(ImportTDE[[#This Row],[Mine0]]="",OFFSET(ImportTDE[[#Headers],[Mine]],ImportTDE[[#This Row],[Ligne]]-1,0,1,1),ImportTDE[[#This Row],[Mine0]]))) -> 0 | J65: =IF(ImportTDE[[#This Row],[Ligne]]="","",IF(ImportTDE[[#This Row],[Ligne]]=1,ImportTDE[[#This Row],[Tonnage0]],IF(ImportTDE[[#This Row],[Tonnage0]]="",OFFSET(ImportTDE[[#Headers],[Tonnage]],ImportTDE[[#This Row],[Ligne]]-1,0,1,1),ImportTDE[[#This Row],[Tonnage0]]))) -> 0 | K65: =IF(ImportTDE[[#This Row],[Ref Labo]]="","",IF(ImportTDE[[#This Row],[Tonnage]]>2000,1,"")) ->  | L65: =IF(ImportTDE[[#This Row],[Ref Labo]]="","",IF(AND(ImportTDE[[#This Row],[NbHum]]<>"",ImportTDE[[#This Row],[NbHum]]<2),1,"")) -> 
B66: =IF(ROW(ImportTDE[[#This Row],[Ref Labo]])-ROW(ImportTDE[[#Headers],[Ref Labo]])>NbEch,"",ROW(ImportTDE[[#This Row],[Ref Labo]])-ROW(ImportTDE[[#Headers],[Ref Labo]])) -> 62 | C66: =IF(ImportTDE[[#This Row],[Ligne]]="","",TDE&"-"&REPT("0",LEN(NbEch)-LEN(ImportTDE[[#This Row],[Ligne]]))&ImportTDE[[#This Row],[Ligne]]) ->  | H66: =IF(ImportTDE[[#This Row],[Ligne]]="","",IF(ImportTDE[[#This Row],[Ref Client0]]="",Prefixe &ImportTDE[[#This Row],[Ligne]]&Suffixe,ImportTDE[[#This Row],[Ref Client0]])) -> Lot 62 | I66: =IF(ImportTDE[[#This Row],[Ligne]]="","",IF(ImportTDE[[#This Row],[Ligne]]=1,ImportTDE[[#This Row],[Mine0]],IF(ImportTDE[[#This Row],[Mine0]]="",OFFSET(ImportTDE[[#Headers],[Mine]],ImportTDE[[#This Row],[Ligne]]-1,0,1,1),ImportTDE[[#This Row],[Mine0]]))) -> 0 | J66: =IF(ImportTDE[[#This Row],[Ligne]]="","",IF(ImportTDE[[#This Row],[Ligne]]=1,ImportTDE[[#This Row],[Tonnage0]],IF(ImportTDE[[#This Row],[Tonnage0]]="",OFFSET(ImportTDE[[#Headers],[Tonnage]],ImportTDE[[#This Row],[Ligne]]-1,0,1,1),ImportTDE[[#This Row],[Tonnage0]]))) -> 0 | K66: =IF(ImportTDE[[#This Row],[Ref Labo]]="","",IF(ImportTDE[[#This Row],[Tonnage]]>2000,1,"")) ->  | L66: =IF(ImportTDE[[#This Row],[Ref Labo]]="","",IF(AND(ImportTDE[[#This Row],[NbHum]]<>"",ImportTDE[[#This Row],[NbHum]]<2),1,"")) -> 
B67: =IF(ROW(ImportTDE[[#This Row],[Ref Labo]])-ROW(ImportTDE[[#Headers],[Ref Labo]])>NbEch,"",ROW(ImportTDE[[#This Row],[Ref Labo]])-ROW(ImportTDE[[#Headers],[Ref Labo]])) -> 63 | C67: =IF(ImportTDE[[#This Row],[Ligne]]="","",TDE&"-"&REPT("0",LEN(NbEch)-LEN(ImportTDE[[#This Row],[Ligne]]))&ImportTDE[[#This Row],[Ligne]]) ->  | H67: =IF(ImportTDE[[#This Row],[Ligne]]="","",IF(ImportTDE[[#This Row],[Ref Client0]]="",Prefixe &ImportTDE[[#This Row],[Ligne]]&Suffixe,ImportTDE[[#This Row],[Ref Client0]])) -> Lot 63 | I67: =IF(ImportTDE[[#This Row],[Ligne]]="","",IF(ImportTDE[[#This Row],[Ligne]]=1,ImportTDE[[#This Row],[Mine0]],IF(ImportTDE[[#This Row],[Mine0]]="",OFFSET(ImportTDE[[#Headers],[Mine]],ImportTDE[[#This Row],[Ligne]]-1,0,1,1),ImportTDE[[#This Row],[Mine0]]))) -> 0 | J67: =IF(ImportTDE[[#This Row],[Ligne]]="","",IF(ImportTDE[[#This Row],[Ligne]]=1,ImportTDE[[#This Row],[Tonnage0]],IF(ImportTDE[[#This Row],[Tonnage0]]="",OFFSET(ImportTDE[[#Headers],[Tonnage]],ImportTDE[[#This Row],[Ligne]]-1,0,1,1),ImportTDE[[#This Row],[Tonnage0]]))) -> 0 | K67: =IF(ImportTDE[[#This Row],[Ref Labo]]="","",IF(ImportTDE[[#This Row],[Tonnage]]>2000,1,"")) ->  | L67: =IF(ImportTDE[[#This Row],[Ref Labo]]="","",IF(AND(ImportTDE[[#This Row],[NbHum]]<>"",ImportTDE[[#This Row],[NbHum]]<2),1,"")) -> 
B68: =IF(ROW(ImportTDE[[#This Row],[Ref Labo]])-ROW(ImportTDE[[#Headers],[Ref Labo]])>NbEch,"",ROW(ImportTDE[[#This Row],[Ref Labo]])-ROW(ImportTDE[[#Headers],[Ref Labo]])) -> 64 | C68: =IF(ImportTDE[[#This Row],[Ligne]]="","",TDE&"-"&REPT("0",LEN(NbEch)-LEN(ImportTDE[[#This Row],[Ligne]]))&ImportTDE[[#This Row],[Ligne]]) ->  | H68: =IF(ImportTDE[[#This Row],[Ligne]]="","",IF(ImportTDE[[#This Row],[Ref Client0]]="",Prefixe &ImportTDE[[#This Row],[Ligne]]&Suffixe,ImportTDE[[#This Row],[Ref Client0]])) -> Lot 64 | I68: =IF(ImportTDE[[#This Row],[Ligne]]="","",IF(ImportTDE[[#This Row],[Ligne]]=1,ImportTDE[[#This Row],[Mine0]],IF(ImportTDE[[#This Row],[Mine0]]="",OFFSET(ImportTDE[[#Headers],[Mine]],ImportTDE[[#This Row],[Ligne]]-1,0,1,1),ImportTDE[[#This Row],[Mine0]]))) -> 0 | J68: =IF(ImportTDE[[#This Row],[Ligne]]="","",IF(ImportTDE[[#This Row],[Ligne]]=1,ImportTDE[[#This Row],[Tonnage0]],IF(ImportTDE[[#This Row],[Tonnage0]]="",OFFSET(ImportTDE[[#Headers],[Tonnage]],ImportTDE[[#This Row],[Ligne]]-1,0,1,1),ImportTDE[[#This Row],[Tonnage0]]))) -> 0 | K68: =IF(ImportTDE[[#This Row],[Ref Labo]]="","",IF(ImportTDE[[#This Row],[Tonnage]]>2000,1,"")) ->  | L68: =IF(ImportTDE[[#This Row],[Ref Labo]]="","",IF(AND(ImportTDE[[#This Row],[NbHum]]<>"",ImportTDE[[#This Row],[NbHum]]<2),1,"")) -> 
B69: =IF(ROW(ImportTDE[[#This Row],[Ref Labo]])-ROW(ImportTDE[[#Headers],[Ref Labo]])>NbEch,"",ROW(ImportTDE[[#This Row],[Ref Labo]])-ROW(ImportTDE[[#Headers],[Ref Labo]])) -> 65 | C69: =IF(ImportTDE[[#This Row],[Ligne]]="","",TDE&"-"&REPT("0",LEN(NbEch)-LEN(ImportTDE[[#This Row],[Ligne]]))&ImportTDE[[#This Row],[Ligne]]) ->  | H69: =IF(ImportTDE[[#This Row],[Ligne]]="","",IF(ImportTDE[[#This Row],[Ref Client0]]="",Prefixe &ImportTDE[[#This Row],[Ligne]]&Suffixe,ImportTDE[[#This Row],[Ref Client0]])) -> Lot 65 | I69: =IF(ImportTDE[[#This Row],[Ligne]]="","",IF(ImportTDE[[#This Row],[Ligne]]=1,ImportTDE[[#This Row],[Mine0]],IF(ImportTDE[[#This Row],[Mine0]]="",OFFSET(ImportTDE[[#Headers],[Mine]],ImportTDE[[#This Row],[Ligne]]-1,0,1,1),ImportTDE[[#This Row],[Mine0]]))) -> 0 | J69: =IF(ImportTDE[[#This Row],[Ligne]]="","",IF(ImportTDE[[#This Row],[Ligne]]=1,ImportTDE[[#This Row],[Tonnage0]],IF(ImportTDE[[#This Row],[Tonnage0]]="",OFFSET(ImportTDE[[#Headers],[Tonnage]],ImportTDE[[#This Row],[Ligne]]-1,0,1,1),ImportTDE[[#This Row],[Tonnage0]]))) -> 0 | K69: =IF(ImportTDE[[#This Row],[Ref Labo]]="","",IF(ImportTDE[[#This Row],[Tonnage]]>2000,1,"")) ->  | L69: =IF(ImportTDE[[#This Row],[Ref Labo]]="","",IF(AND(ImportTDE[[#This Row],[NbHum]]<>"",ImportTDE[[#This Row],[NbHum]]<2),1,"")) -> 
B70: =IF(ROW(ImportTDE[[#This Row],[Ref Labo]])-ROW(ImportTDE[[#Headers],[Ref Labo]])>NbEch,"",ROW(ImportTDE[[#This Row],[Ref Labo]])-ROW(ImportTDE[[#Headers],[Ref Labo]])) -> 66 | C70: =IF(ImportTDE[[#This Row],[Ligne]]="","",TDE&"-"&REPT("0",LEN(NbEch)-LEN(ImportTDE[[#This Row],[Ligne]]))&ImportTDE[[#This Row],[Ligne]]) ->  | H70: =IF(ImportTDE[[#This Row],[Ligne]]="","",IF(ImportTDE[[#This Row],[Ref Client0]]="",Prefixe &ImportTDE[[#This Row],[Ligne]]&Suffixe,ImportTDE[[#This Row],[Ref Client0]])) -> Lot 66 | I70: =IF(ImportTDE[[#This Row],[Ligne]]="","",IF(ImportTDE[[#This Row],[Ligne]]=1,ImportTDE[[#This Row],[Mine0]],IF(ImportTDE[[#This Row],[Mine0]]="",OFFSET(ImportTDE[[#Headers],[Mine]],ImportTDE[[#This Row],[Ligne]]-1,0,1,1),ImportTDE[[#This Row],[Mine0]]))) -> 0 | J70: =IF(ImportTDE[[#This Row],[Ligne]]="","",IF(ImportTDE[[#This Row],[Ligne]]=1,ImportTDE[[#This Row],[Tonnage0]],IF(ImportTDE[[#This Row],[Tonnage0]]="",OFFSET(ImportTDE[[#Headers],[Tonnage]],ImportTDE[[#This Row],[Ligne]]-1,0,1,1),ImportTDE[[#This Row],[Tonnage0]]))) -> 0 | K70: =IF(ImportTDE[[#This Row],[Ref Labo]]="","",IF(ImportTDE[[#This Row],[Tonnage]]>2000,1,"")) ->  | L70: =IF(ImportTDE[[#This Row],[Ref Labo]]="","",IF(AND(ImportTDE[[#This Row],[NbHum]]<>"",ImportTDE[[#This Row],[NbHum]]<2),1,"")) -> 
B71: =IF(ROW(ImportTDE[[#This Row],[Ref Labo]])-ROW(ImportTDE[[#Headers],[Ref Labo]])>NbEch,"",ROW(ImportTDE[[#This Row],[Ref Labo]])-ROW(ImportTDE[[#Headers],[Ref Labo]])) -> 67 | C71: =IF(ImportTDE[[#This Row],[Ligne]]="","",TDE&"-"&REPT("0",LEN(NbEch)-LEN(ImportTDE[[#This Row],[Ligne]]))&ImportTDE[[#This Row],[Ligne]]) ->  | H71: =IF(ImportTDE[[#This Row],[Ligne]]="","",IF(ImportTDE[[#This Row],[Ref Client0]]="",Prefixe &ImportTDE[[#This Row],[Ligne]]&Suffixe,ImportTDE[[#This Row],[Ref Client0]])) -> Lot 67 | I71: =IF(ImportTDE[[#This Row],[Ligne]]="","",IF(ImportTDE[[#This Row],[Ligne]]=1,ImportTDE[[#This Row],[Mine0]],IF(ImportTDE[[#This Row],[Mine0]]="",OFFSET(ImportTDE[[#Headers],[Mine]],ImportTDE[[#This Row],[Ligne]]-1,0,1,1),ImportTDE[[#This Row],[Mine0]]))) -> 0 | J71: =IF(ImportTDE[[#This Row],[Ligne]]="","",IF(ImportTDE[[#This Row],[Ligne]]=1,ImportTDE[[#This Row],[Tonnage0]],IF(ImportTDE[[#This Row],[Tonnage0]]="",OFFSET(ImportTDE[[#Headers],[Tonnage]],ImportTDE[[#This Row],[Ligne]]-1,0,1,1),ImportTDE[[#This Row],[Tonnage0]]))) -> 0 | K71: =IF(ImportTDE[[#This Row],[Ref Labo]]="","",IF(ImportTDE[[#This Row],[Tonnage]]>2000,1,"")) ->  | L71: =IF(ImportTDE[[#This Row],[Ref Labo]]="","",IF(AND(ImportTDE[[#This Row],[NbHum]]<>"",ImportTDE[[#This Row],[NbHum]]<2),1,"")) -> 
B72: =IF(ROW(ImportTDE[[#This Row],[Ref Labo]])-ROW(ImportTDE[[#Headers],[Ref Labo]])>NbEch,"",ROW(ImportTDE[[#This Row],[Ref Labo]])-ROW(ImportTDE[[#Headers],[Ref Labo]])) -> 68 | C72: =IF(ImportTDE[[#This Row],[Ligne]]="","",TDE&"-"&REPT("0",LEN(NbEch)-LEN(ImportTDE[[#This Row],[Ligne]]))&ImportTDE[[#This Row],[Ligne]]) ->  | H72: =IF(ImportTDE[[#This Row],[Ligne]]="","",IF(ImportTDE[[#This Row],[Ref Client0]]="",Prefixe &ImportTDE[[#This Row],[Ligne]]&Suffixe,ImportTDE[[#This Row],[Ref Client0]])) -> Lot 68 | I72: =IF(ImportTDE[[#This Row],[Ligne]]="","",IF(ImportTDE[[#This Row],[Ligne]]=1,ImportTDE[[#This Row],[Mine0]],IF(ImportTDE[[#This Row],[Mine0]]="",OFFSET(ImportTDE[[#Headers],[Mine]],ImportTDE[[#This Row],[Ligne]]-1,0,1,1),ImportTDE[[#This Row],[Mine0]]))) -> 0 | J72: =IF(ImportTDE[[#This Row],[Ligne]]="","",IF(ImportTDE[[#This Row],[Ligne]]=1,ImportTDE[[#This Row],[Tonnage0]],IF(ImportTDE[[#This Row],[Tonnage0]]="",OFFSET(ImportTDE[[#Headers],[Tonnage]],ImportTDE[[#This Row],[Ligne]]-1,0,1,1),ImportTDE[[#This Row],[Tonnage0]]))) -> 0 | K72: =IF(ImportTDE[[#This Row],[Ref Labo]]="","",IF(ImportTDE[[#This Row],[Tonnage]]>2000,1,"")) ->  | L72: =IF(ImportTDE[[#This Row],[Ref Labo]]="","",IF(AND(ImportTDE[[#This Row],[NbHum]]<>"",ImportTDE[[#This Row],[NbHum]]<2),1,"")) -> 
B73: =IF(ROW(ImportTDE[[#This Row],[Ref Labo]])-ROW(ImportTDE[[#Headers],[Ref Labo]])>NbEch,"",ROW(ImportTDE[[#This Row],[Ref Labo]])-ROW(ImportTDE[[#Headers],[Ref Labo]])) -> 69 | C73: =IF(ImportTDE[[#This Row],[Ligne]]="","",TDE&"-"&REPT("0",LEN(NbEch)-LEN(ImportTDE[[#This Row],[Ligne]]))&ImportTDE[[#This Row],[Ligne]]) ->  | H73: =IF(ImportTDE[[#This Row],[Ligne]]="","",IF(ImportTDE[[#This Row],[Ref Client0]]="",Prefixe &ImportTDE[[#This Row],[Ligne]]&Suffixe,ImportTDE[[#This Row],[Ref Client0]])) -> Lot 69 | I73: =IF(ImportTDE[[#This Row],[Ligne]]="","",IF(ImportTDE[[#This Row],[Ligne]]=1,ImportTDE[[#This Row],[Mine0]],IF(ImportTDE[[#This Row],[Mine0]]="",OFFSET(ImportTDE[[#Headers],[Mine]],ImportTDE[[#This Row],[Ligne]]-1,0,1,1),ImportTDE[[#This Row],[Mine0]]))) -> 0 | J73: =IF(ImportTDE[[#This Row],[Ligne]]="","",IF(ImportTDE[[#This Row],[Ligne]]=1,ImportTDE[[#This Row],[Tonnage0]],IF(ImportTDE[[#This Row],[Tonnage0]]="",OFFSET(ImportTDE[[#Headers],[Tonnage]],ImportTDE[[#This Row],[Ligne]]-1,0,1,1),ImportTDE[[#This Row],[Tonnage0]]))) -> 0 | K73: =IF(ImportTDE[[#This Row],[Ref Labo]]="","",IF(ImportTDE[[#This Row],[Tonnage]]>2000,1,"")) ->  | L73: =IF(ImportTDE[[#This Row],[Ref Labo]]="","",IF(AND(ImportTDE[[#This Row],[NbHum]]<>"",ImportTDE[[#This Row],[NbHum]]<2),1,"")) -> 
B74: =IF(ROW(ImportTDE[[#This Row],[Ref Labo]])-ROW(ImportTDE[[#Headers],[Ref Labo]])>NbEch,"",ROW(ImportTDE[[#This Row],[Ref Labo]])-ROW(ImportTDE[[#Headers],[Ref Labo]])) -> 70 | C74: =IF(ImportTDE[[#This Row],[Ligne]]="","",TDE&"-"&REPT("0",LEN(NbEch)-LEN(ImportTDE[[#This Row],[Ligne]]))&ImportTDE[[#This Row],[Ligne]]) ->  | H74: =IF(ImportTDE[[#This Row],[Ligne]]="","",IF(ImportTDE[[#This Row],[Ref Client0]]="",Prefixe &ImportTDE[[#This Row],[Ligne]]&Suffixe,ImportTDE[[#This Row],[Ref Client0]])) -> Lot 70 | I74: =IF(ImportTDE[[#This Row],[Ligne]]="","",IF(ImportTDE[[#This Row],[Ligne]]=1,ImportTDE[[#This Row],[Mine0]],IF(ImportTDE[[#This Row],[Mine0]]="",OFFSET(ImportTDE[[#Headers],[Mine]],ImportTDE[[#This Row],[Ligne]]-1,0,1,1),ImportTDE[[#This Row],[Mine0]]))) -> 0 | J74: =IF(ImportTDE[[#This Row],[Ligne]]="","",IF(ImportTDE[[#This Row],[Ligne]]=1,ImportTDE[[#This Row],[Tonnage0]],IF(ImportTDE[[#This Row],[Tonnage0]]="",OFFSET(ImportTDE[[#Headers],[Tonnage]],ImportTDE[[#This Row],[Ligne]]-1,0,1,1),ImportTDE[[#This Row],[Tonnage0]]))) -> 0 | K74: =IF(ImportTDE[[#This Row],[Ref Labo]]="","",IF(ImportTDE[[#This Row],[Tonnage]]>2000,1,"")) ->  | L74: =IF(ImportTDE[[#This Row],[Ref Labo]]="","",IF(AND(ImportTDE[[#This Row],[NbHum]]<>"",ImportTDE[[#This Row],[NbHum]]<2),1,"")) -> 
B75: =IF(ROW(ImportTDE[[#This Row],[Ref Labo]])-ROW(ImportTDE[[#Headers],[Ref Labo]])>NbEch,"",ROW(ImportTDE[[#This Row],[Ref Labo]])-ROW(ImportTDE[[#Headers],[Ref Labo]])) -> 71 | C75: =IF(ImportTDE[[#This Row],[Ligne]]="","",TDE&"-"&REPT("0",LEN(NbEch)-LEN(ImportTDE[[#This Row],[Ligne]]))&ImportTDE[[#This Row],[Ligne]]) ->  | H75: =IF(ImportTDE[[#This Row],[Ligne]]="","",IF(ImportTDE[[#This Row],[Ref Client0]]="",Prefixe &ImportTDE[[#This Row],[Ligne]]&Suffixe,ImportTDE[[#This Row],[Ref Client0]])) -> Lot 71 | I75: =IF(ImportTDE[[#This Row],[Ligne]]="","",IF(ImportTDE[[#This Row],[Ligne]]=1,ImportTDE[[#This Row],[Mine0]],IF(ImportTDE[[#This Row],[Mine0]]="",OFFSET(ImportTDE[[#Headers],[Mine]],ImportTDE[[#This Row],[Ligne]]-1,0,1,1),ImportTDE[[#This Row],[Mine0]]))) -> 0 | J75: =IF(ImportTDE[[#This Row],[Ligne]]="","",IF(ImportTDE[[#This Row],[Ligne]]=1,ImportTDE[[#This Row],[Tonnage0]],IF(ImportTDE[[#This Row],[Tonnage0]]="",OFFSET(ImportTDE[[#Headers],[Tonnage]],ImportTDE[[#This Row],[Ligne]]-1,0,1,1),ImportTDE[[#This Row],[Tonnage0]]))) -> 0 | K75: =IF(ImportTDE[[#This Row],[Ref Labo]]="","",IF(ImportTDE[[#This Row],[Tonnage]]>2000,1,"")) ->  | L75: =IF(ImportTDE[[#This Row],[Ref Labo]]="","",IF(AND(ImportTDE[[#This Row],[NbHum]]<>"",ImportTDE[[#This Row],[NbHum]]<2),1,"")) -> 
B76: =IF(ROW(ImportTDE[[#This Row],[Ref Labo]])-ROW(ImportTDE[[#Headers],[Ref Labo]])>NbEch,"",ROW(ImportTDE[[#This Row],[Ref Labo]])-ROW(ImportTDE[[#Headers],[Ref Labo]])) -> 72 | C76: =IF(ImportTDE[[#This Row],[Ligne]]="","",TDE&"-"&REPT("0",LEN(NbEch)-LEN(ImportTDE[[#This Row],[Ligne]]))&ImportTDE[[#This Row],[Ligne]]) ->  | H76: =IF(ImportTDE[[#This Row],[Ligne]]="","",IF(ImportTDE[[#This Row],[Ref Client0]]="",Prefixe &ImportTDE[[#This Row],[Ligne]]&Suffixe,ImportTDE[[#This Row],[Ref Client0]])) -> Lot 72 | I76: =IF(ImportTDE[[#This Row],[Ligne]]="","",IF(ImportTDE[[#This Row],[Ligne]]=1,ImportTDE[[#This Row],[Mine0]],IF(ImportTDE[[#This Row],[Mine0]]="",OFFSET(ImportTDE[[#Headers],[Mine]],ImportTDE[[#This Row],[Ligne]]-1,0,1,1),ImportTDE[[#This Row],[Mine0]]))) -> 0 | J76: =IF(ImportTDE[[#This Row],[Ligne]]="","",IF(ImportTDE[[#This Row],[Ligne]]=1,ImportTDE[[#This Row],[Tonnage0]],IF(ImportTDE[[#This Row],[Tonnage0]]="",OFFSET(ImportTDE[[#Headers],[Tonnage]],ImportTDE[[#This Row],[Ligne]]-1,0,1,1),ImportTDE[[#This Row],[Tonnage0]]))) -> 0 | K76: =IF(ImportTDE[[#This Row],[Ref Labo]]="","",IF(ImportTDE[[#This Row],[Tonnage]]>2000,1,"")) ->  | L76: =IF(ImportTDE[[#This Row],[Ref Labo]]="","",IF(AND(ImportTDE[[#This Row],[NbHum]]<>"",ImportTDE[[#This Row],[NbHum]]<2),1,"")) -> 
B77: =IF(ROW(ImportTDE[[#This Row],[Ref Labo]])-ROW(ImportTDE[[#Headers],[Ref Labo]])>NbEch,"",ROW(ImportTDE[[#This Row],[Ref Labo]])-ROW(ImportTDE[[#Headers],[Ref Labo]])) -> 73 | C77: =IF(ImportTDE[[#This Row],[Ligne]]="","",TDE&"-"&REPT("0",LEN(NbEch)-LEN(ImportTDE[[#This Row],[Ligne]]))&ImportTDE[[#This Row],[Ligne]]) ->  | H77: =IF(ImportTDE[[#This Row],[Ligne]]="","",IF(ImportTDE[[#This Row],[Ref Client0]]="",Prefixe &ImportTDE[[#This Row],[Ligne]]&Suffixe,ImportTDE[[#This Row],[Ref Client0]])) -> Lot 73 | I77: =IF(ImportTDE[[#This Row],[Ligne]]="","",IF(ImportTDE[[#This Row],[Ligne]]=1,ImportTDE[[#This Row],[Mine0]],IF(ImportTDE[[#This Row],[Mine0]]="",OFFSET(ImportTDE[[#Headers],[Mine]],ImportTDE[[#This Row],[Ligne]]-1,0,1,1),ImportTDE[[#This Row],[Mine0]]))) -> 0 | J77: =IF(ImportTDE[[#This Row],[Ligne]]="","",IF(ImportTDE[[#This Row],[Ligne]]=1,ImportTDE[[#This Row],[Tonnage0]],IF(ImportTDE[[#This Row],[Tonnage0]]="",OFFSET(ImportTDE[[#Headers],[Tonnage]],ImportTDE[[#This Row],[Ligne]]-1,0,1,1),ImportTDE[[#This Row],[Tonnage0]]))) -> 0 | K77: =IF(ImportTDE[[#This Row],[Ref Labo]]="","",IF(ImportTDE[[#This Row],[Tonnage]]>2000,1,"")) ->  | L77: =IF(ImportTDE[[#This Row],[Ref Labo]]="","",IF(AND(ImportTDE[[#This Row],[NbHum]]<>"",ImportTDE[[#This Row],[NbHum]]<2),1,"")) -> 
B78: =IF(ROW(ImportTDE[[#This Row],[Ref Labo]])-ROW(ImportTDE[[#Headers],[Ref Labo]])>NbEch,"",ROW(ImportTDE[[#This Row],[Ref Labo]])-ROW(ImportTDE[[#Headers],[Ref Labo]])) -> 74 | C78: =IF(ImportTDE[[#This Row],[Ligne]]="","",TDE&"-"&REPT("0",LEN(NbEch)-LEN(ImportTDE[[#This Row],[Ligne]]))&ImportTDE[[#This Row],[Ligne]]) ->  | H78: =IF(ImportTDE[[#This Row],[Ligne]]="","",IF(ImportTDE[[#This Row],[Ref Client0]]="",Prefixe &ImportTDE[[#This Row],[Ligne]]&Suffixe,ImportTDE[[#This Row],[Ref Client0]])) -> Lot 74 | I78: =IF(ImportTDE[[#This Row],[Ligne]]="","",IF(ImportTDE[[#This Row],[Ligne]]=1,ImportTDE[[#This Row],[Mine0]],IF(ImportTDE[[#This Row],[Mine0]]="",OFFSET(ImportTDE[[#Headers],[Mine]],ImportTDE[[#This Row],[Ligne]]-1,0,1,1),ImportTDE[[#This Row],[Mine0]]))) -> 0 | J78: =IF(ImportTDE[[#This Row],[Ligne]]="","",IF(ImportTDE[[#This Row],[Ligne]]=1,ImportTDE[[#This Row],[Tonnage0]],IF(ImportTDE[[#This Row],[Tonnage0]]="",OFFSET(ImportTDE[[#Headers],[Tonnage]],ImportTDE[[#This Row],[Ligne]]-1,0,1,1),ImportTDE[[#This Row],[Tonnage0]]))) -> 0 | K78: =IF(ImportTDE[[#This Row],[Ref Labo]]="","",IF(ImportTDE[[#This Row],[Tonnage]]>2000,1,"")) ->  | L78: =IF(ImportTDE[[#This Row],[Ref Labo]]="","",IF(AND(ImportTDE[[#This Row],[NbHum]]<>"",ImportTDE[[#This Row],[NbHum]]<2),1,"")) -> 
B79: =IF(ROW(ImportTDE[[#This Row],[Ref Labo]])-ROW(ImportTDE[[#Headers],[Ref Labo]])>NbEch,"",ROW(ImportTDE[[#This Row],[Ref Labo]])-ROW(ImportTDE[[#Headers],[Ref Labo]])) -> 75 | C79: =IF(ImportTDE[[#This Row],[Ligne]]="","",TDE&"-"&REPT("0",LEN(NbEch)-LEN(ImportTDE[[#This Row],[Ligne]]))&ImportTDE[[#This Row],[Ligne]]) ->  | H79: =IF(ImportTDE[[#This Row],[Ligne]]="","",IF(ImportTDE[[#This Row],[Ref Client0]]="",Prefixe &ImportTDE[[#This Row],[Ligne]]&Suffixe,ImportTDE[[#This Row],[Ref Client0]])) -> Lot 75 | I79: =IF(ImportTDE[[#This Row],[Ligne]]="","",IF(ImportTDE[[#This Row],[Ligne]]=1,ImportTDE[[#This Row],[Mine0]],IF(ImportTDE[[#This Row],[Mine0]]="",OFFSET(ImportTDE[[#Headers],[Mine]],ImportTDE[[#This Row],[Ligne]]-1,0,1,1),ImportTDE[[#This Row],[Mine0]]))) -> 0 | J79: =IF(ImportTDE[[#This Row],[Ligne]]="","",IF(ImportTDE[[#This Row],[Ligne]]=1,ImportTDE[[#This Row],[Tonnage0]],IF(ImportTDE[[#This Row],[Tonnage0]]="",OFFSET(ImportTDE[[#Headers],[Tonnage]],ImportTDE[[#This Row],[Ligne]]-1,0,1,1),ImportTDE[[#This Row],[Tonnage0]]))) -> 0 | K79: =IF(ImportTDE[[#This Row],[Ref Labo]]="","",IF(ImportTDE[[#This Row],[Tonnage]]>2000,1,"")) ->  | L79: =IF(ImportTDE[[#This Row],[Ref Labo]]="","",IF(AND(ImportTDE[[#This Row],[NbHum]]<>"",ImportTDE[[#This Row],[NbHum]]<2),1,"")) -> 
B80: =IF(ROW(ImportTDE[[#This Row],[Ref Labo]])-ROW(ImportTDE[[#Headers],[Ref Labo]])>NbEch,"",ROW(ImportTDE[[#This Row],[Ref Labo]])-ROW(ImportTDE[[#Headers],[Ref Labo]])) -> 76 | C80: =IF(ImportTDE[[#This Row],[Ligne]]="","",TDE&"-"&REPT("0",LEN(NbEch)-LEN(ImportTDE[[#This Row],[Ligne]]))&ImportTDE[[#This Row],[Ligne]]) ->  | H80: =IF(ImportTDE[[#This Row],[Ligne]]="","",IF(ImportTDE[[#This Row],[Ref Client0]]="",Prefixe &ImportTDE[[#This Row],[Ligne]]&Suffixe,ImportTDE[[#This Row],[Ref Client0]])) -> Lot 76 | I80: =IF(ImportTDE[[#This Row],[Ligne]]="","",IF(ImportTDE[[#This Row],[Ligne]]=1,ImportTDE[[#This Row],[Mine0]],IF(ImportTDE[[#This Row],[Mine0]]="",OFFSET(ImportTDE[[#Headers],[Mine]],ImportTDE[[#This Row],[Ligne]]-1,0,1,1),ImportTDE[[#This Row],[Mine0]]))) -> 0 | J80: =IF(ImportTDE[[#This Row],[Ligne]]="","",IF(ImportTDE[[#This Row],[Ligne]]=1,ImportTDE[[#This Row],[Tonnage0]],IF(ImportTDE[[#This Row],[Tonnage0]]="",OFFSET(ImportTDE[[#Headers],[Tonnage]],ImportTDE[[#This Row],[Ligne]]-1,0,1,1),ImportTDE[[#This Row],[Tonnage0]]))) -> 0 | K80: =IF(ImportTDE[[#This Row],[Ref Labo]]="","",IF(ImportTDE[[#This Row],[Tonnage]]>2000,1,"")) ->  | L80: =IF(ImportTDE[[#This Row],[Ref Labo]]="","",IF(AND(ImportTDE[[#This Row],[NbHum]]<>"",ImportTDE[[#This Row],[NbHum]]<2),1,"")) -> 
B81: =IF(ROW(ImportTDE[[#This Row],[Ref Labo]])-ROW(ImportTDE[[#Headers],[Ref Labo]])>NbEch,"",ROW(ImportTDE[[#This Row],[Ref Labo]])-ROW(ImportTDE[[#Headers],[Ref Labo]])) -> 77 | C81: =IF(ImportTDE[[#This Row],[Ligne]]="","",TDE&"-"&REPT("0",LEN(NbEch)-LEN(ImportTDE[[#This Row],[Ligne]]))&ImportTDE[[#This Row],[Ligne]]) ->  | H81: =IF(ImportTDE[[#This Row],[Ligne]]="","",IF(ImportTDE[[#This Row],[Ref Client0]]="",Prefixe &ImportTDE[[#This Row],[Ligne]]&Suffixe,ImportTDE[[#This Row],[Ref Client0]])) -> Lot 77 | I81: =IF(ImportTDE[[#This Row],[Ligne]]="","",IF(ImportTDE[[#This Row],[Ligne]]=1,ImportTDE[[#This Row],[Mine0]],IF(ImportTDE[[#This Row],[Mine0]]="",OFFSET(ImportTDE[[#Headers],[Mine]],ImportTDE[[#This Row],[Ligne]]-1,0,1,1),ImportTDE[[#This Row],[Mine0]]))) -> 0 | J81: =IF(ImportTDE[[#This Row],[Ligne]]="","",IF(ImportTDE[[#This Row],[Ligne]]=1,ImportTDE[[#This Row],[Tonnage0]],IF(ImportTDE[[#This Row],[Tonnage0]]="",OFFSET(ImportTDE[[#Headers],[Tonnage]],ImportTDE[[#This Row],[Ligne]]-1,0,1,1),ImportTDE[[#This Row],[Tonnage0]]))) -> 0 | K81: =IF(ImportTDE[[#This Row],[Ref Labo]]="","",IF(ImportTDE[[#This Row],[Tonnage]]>2000,1,"")) ->  | L81: =IF(ImportTDE[[#This Row],[Ref Labo]]="","",IF(AND(ImportTDE[[#This Row],[NbHum]]<>"",ImportTDE[[#This Row],[NbHum]]<2),1,"")) -> 
B82: =IF(ROW(ImportTDE[[#This Row],[Ref Labo]])-ROW(ImportTDE[[#Headers],[Ref Labo]])>NbEch,"",ROW(ImportTDE[[#This Row],[Ref Labo]])-ROW(ImportTDE[[#Headers],[Ref Labo]])) -> 78 | C82: =IF(ImportTDE[[#This Row],[Ligne]]="","",TDE&"-"&REPT("0",LEN(NbEch)-LEN(ImportTDE[[#This Row],[Ligne]]))&ImportTDE[[#This Row],[Ligne]]) ->  | H82: =IF(ImportTDE[[#This Row],[Ligne]]="","",IF(ImportTDE[[#This Row],[Ref Client0]]="",Prefixe &ImportTDE[[#This Row],[Ligne]]&Suffixe,ImportTDE[[#This Row],[Ref Client0]])) -> Lot 78 | I82: =IF(ImportTDE[[#This Row],[Ligne]]="","",IF(ImportTDE[[#This Row],[Ligne]]=1,ImportTDE[[#This Row],[Mine0]],IF(ImportTDE[[#This Row],[Mine0]]="",OFFSET(ImportTDE[[#Headers],[Mine]],ImportTDE[[#This Row],[Ligne]]-1,0,1,1),ImportTDE[[#This Row],[Mine0]]))) -> 0 | J82: =IF(ImportTDE[[#This Row],[Ligne]]="","",IF(ImportTDE[[#This Row],[Ligne]]=1,ImportTDE[[#This Row],[Tonnage0]],IF(ImportTDE[[#This Row],[Tonnage0]]="",OFFSET(ImportTDE[[#Headers],[Tonnage]],ImportTDE[[#This Row],[Ligne]]-1,0,1,1),ImportTDE[[#This Row],[Tonnage0]]))) -> 0 | K82: =IF(ImportTDE[[#This Row],[Ref Labo]]="","",IF(ImportTDE[[#This Row],[Tonnage]]>2000,1,"")) ->  | L82: =IF(ImportTDE[[#This Row],[Ref Labo]]="","",IF(AND(ImportTDE[[#This Row],[NbHum]]<>"",ImportTDE[[#This Row],[NbHum]]<2),1,"")) -> 
B83: =IF(ROW(ImportTDE[[#This Row],[Ref Labo]])-ROW(ImportTDE[[#Headers],[Ref Labo]])>NbEch,"",ROW(ImportTDE[[#This Row],[Ref Labo]])-ROW(ImportTDE[[#Headers],[Ref Labo]])) -> 79 | C83: =IF(ImportTDE[[#This Row],[Ligne]]="","",TDE&"-"&REPT("0",LEN(NbEch)-LEN(ImportTDE[[#This Row],[Ligne]]))&ImportTDE[[#This Row],[Ligne]]) ->  | H83: =IF(ImportTDE[[#This Row],[Ligne]]="","",IF(ImportTDE[[#This Row],[Ref Client0]]="",Prefixe &ImportTDE[[#This Row],[Ligne]]&Suffixe,ImportTDE[[#This Row],[Ref Client0]])) -> Lot 79 | I83: =IF(ImportTDE[[#This Row],[Ligne]]="","",IF(ImportTDE[[#This Row],[Ligne]]=1,ImportTDE[[#This Row],[Mine0]],IF(ImportTDE[[#This Row],[Mine0]]="",OFFSET(ImportTDE[[#Headers],[Mine]],ImportTDE[[#This Row],[Ligne]]-1,0,1,1),ImportTDE[[#This Row],[Mine0]]))) -> 0 | J83: =IF(ImportTDE[[#This Row],[Ligne]]="","",IF(ImportTDE[[#This Row],[Ligne]]=1,ImportTDE[[#This Row],[Tonnage0]],IF(ImportTDE[[#This Row],[Tonnage0]]="",OFFSET(ImportTDE[[#Headers],[Tonnage]],ImportTDE[[#This Row],[Ligne]]-1,0,1,1),ImportTDE[[#This Row],[Tonnage0]]))) -> 0 | K83: =IF(ImportTDE[[#This Row],[Ref Labo]]="","",IF(ImportTDE[[#This Row],[Tonnage]]>2000,1,"")) ->  | L83: =IF(ImportTDE[[#This Row],[Ref Labo]]="","",IF(AND(ImportTDE[[#This Row],[NbHum]]<>"",ImportTDE[[#This Row],[NbHum]]<2),1,"")) -> 
B84: =IF(ROW(ImportTDE[[#This Row],[Ref Labo]])-ROW(ImportTDE[[#Headers],[Ref Labo]])>NbEch,"",ROW(ImportTDE[[#This Row],[Ref Labo]])-ROW(ImportTDE[[#Headers],[Ref Labo]])) -> 80 | C84: =IF(ImportTDE[[#This Row],[Ligne]]="","",TDE&"-"&REPT("0",LEN(NbEch)-LEN(ImportTDE[[#This Row],[Ligne]]))&ImportTDE[[#This Row],[Ligne]]) ->  | H84: =IF(ImportTDE[[#This Row],[Ligne]]="","",IF(ImportTDE[[#This Row],[Ref Client0]]="",Prefixe &ImportTDE[[#This Row],[Ligne]]&Suffixe,ImportTDE[[#This Row],[Ref Client0]])) -> Lot 80 | I84: =IF(ImportTDE[[#This Row],[Ligne]]="","",IF(ImportTDE[[#This Row],[Ligne]]=1,ImportTDE[[#This Row],[Mine0]],IF(ImportTDE[[#This Row],[Mine0]]="",OFFSET(ImportTDE[[#Headers],[Mine]],ImportTDE[[#This Row],[Ligne]]-1,0,1,1),ImportTDE[[#This Row],[Mine0]]))) -> 0 | J84: =IF(ImportTDE[[#This Row],[Ligne]]="","",IF(ImportTDE[[#This Row],[Ligne]]=1,ImportTDE[[#This Row],[Tonnage0]],IF(ImportTDE[[#This Row],[Tonnage0]]="",OFFSET(ImportTDE[[#Headers],[Tonnage]],ImportTDE[[#This Row],[Ligne]]-1,0,1,1),ImportTDE[[#This Row],[Tonnage0]]))) -> 0 | K84: =IF(ImportTDE[[#This Row],[Ref Labo]]="","",IF(ImportTDE[[#This Row],[Tonnage]]>2000,1,"")) ->  | L84: =IF(ImportTDE[[#This Row],[Ref Labo]]="","",IF(AND(ImportTDE[[#This Row],[NbHum]]<>"",ImportTDE[[#This Row],[NbHum]]<2),1,"")) -> 
B85: =IF(ROW(ImportTDE[[#This Row],[Ref Labo]])-ROW(ImportTDE[[#Headers],[Ref Labo]])>NbEch,"",ROW(ImportTDE[[#This Row],[Ref Labo]])-ROW(ImportTDE[[#Headers],[Ref Labo]])) -> 81 | C85: =IF(ImportTDE[[#This Row],[Ligne]]="","",TDE&"-"&REPT("0",LEN(NbEch)-LEN(ImportTDE[[#This Row],[Ligne]]))&ImportTDE[[#This Row],[Ligne]]) ->  | H85: =IF(ImportTDE[[#This Row],[Ligne]]="","",IF(ImportTDE[[#This Row],[Ref Client0]]="",Prefixe &ImportTDE[[#This Row],[Ligne]]&Suffixe,ImportTDE[[#This Row],[Ref Client0]])) -> Lot 81 | I85: =IF(ImportTDE[[#This Row],[Ligne]]="","",IF(ImportTDE[[#This Row],[Ligne]]=1,ImportTDE[[#This Row],[Mine0]],IF(ImportTDE[[#This Row],[Mine0]]="",OFFSET(ImportTDE[[#Headers],[Mine]],ImportTDE[[#This Row],[Ligne]]-1,0,1,1),ImportTDE[[#This Row],[Mine0]]))) -> 0 | J85: =IF(ImportTDE[[#This Row],[Ligne]]="","",IF(ImportTDE[[#This Row],[Ligne]]=1,ImportTDE[[#This Row],[Tonnage0]],IF(ImportTDE[[#This Row],[Tonnage0]]="",OFFSET(ImportTDE[[#Headers],[Tonnage]],ImportTDE[[#This Row],[Ligne]]-1,0,1,1),ImportTDE[[#This Row],[Tonnage0]]))) -> 0 | K85: =IF(ImportTDE[[#This Row],[Ref Labo]]="","",IF(ImportTDE[[#This Row],[Tonnage]]>2000,1,"")) ->  | L85: =IF(ImportTDE[[#This Row],[Ref Labo]]="","",IF(AND(ImportTDE[[#This Row],[NbHum]]<>"",ImportTDE[[#This Row],[NbHum]]<2),1,"")) -> 
B86: =IF(ROW(ImportTDE[[#This Row],[Ref Labo]])-ROW(ImportTDE[[#Headers],[Ref Labo]])>NbEch,"",ROW(ImportTDE[[#This Row],[Ref Labo]])-ROW(ImportTDE[[#Headers],[Ref Labo]])) -> 82 | C86: =IF(ImportTDE[[#This Row],[Ligne]]="","",TDE&"-"&REPT("0",LEN(NbEch)-LEN(ImportTDE[[#This Row],[Ligne]]))&ImportTDE[[#This Row],[Ligne]]) ->  | H86: =IF(ImportTDE[[#This Row],[Ligne]]="","",IF(ImportTDE[[#This Row],[Ref Client0]]="",Prefixe &ImportTDE[[#This Row],[Ligne]]&Suffixe,ImportTDE[[#This Row],[Ref Client0]])) -> Lot 82 | I86: =IF(ImportTDE[[#This Row],[Ligne]]="","",IF(ImportTDE[[#This Row],[Ligne]]=1,ImportTDE[[#This Row],[Mine0]],IF(ImportTDE[[#This Row],[Mine0]]="",OFFSET(ImportTDE[[#Headers],[Mine]],ImportTDE[[#This Row],[Ligne]]-1,0,1,1),ImportTDE[[#This Row],[Mine0]]))) -> 0 | J86: =IF(ImportTDE[[#This Row],[Ligne]]="","",IF(ImportTDE[[#This Row],[Ligne]]=1,ImportTDE[[#This Row],[Tonnage0]],IF(ImportTDE[[#This Row],[Tonnage0]]="",OFFSET(ImportTDE[[#Headers],[Tonnage]],ImportTDE[[#This Row],[Ligne]]-1,0,1,1),ImportTDE[[#This Row],[Tonnage0]]))) -> 0 | K86: =IF(ImportTDE[[#This Row],[Ref Labo]]="","",IF(ImportTDE[[#This Row],[Tonnage]]>2000,1,"")) ->  | L86: =IF(ImportTDE[[#This Row],[Ref Labo]]="","",IF(AND(ImportTDE[[#This Row],[NbHum]]<>"",ImportTDE[[#This Row],[NbHum]]<2),1,"")) -> 
B87: =IF(ROW(ImportTDE[[#This Row],[Ref Labo]])-ROW(ImportTDE[[#Headers],[Ref Labo]])>NbEch,"",ROW(ImportTDE[[#This Row],[Ref Labo]])-ROW(ImportTDE[[#Headers],[Ref Labo]])) -> 83 | C87: =IF(ImportTDE[[#This Row],[Ligne]]="","",TDE&"-"&REPT("0",LEN(NbEch)-LEN(ImportTDE[[#This Row],[Ligne]]))&ImportTDE[[#This Row],[Ligne]]) ->  | H87: =IF(ImportTDE[[#This Row],[Ligne]]="","",IF(ImportTDE[[#This Row],[Ref Client0]]="",Prefixe &ImportTDE[[#This Row],[Ligne]]&Suffixe,ImportTDE[[#This Row],[Ref Client0]])) -> Lot 83 | I87: =IF(ImportTDE[[#This Row],[Ligne]]="","",IF(ImportTDE[[#This Row],[Ligne]]=1,ImportTDE[[#This Row],[Mine0]],IF(ImportTDE[[#This Row],[Mine0]]="",OFFSET(ImportTDE[[#Headers],[Mine]],ImportTDE[[#This Row],[Ligne]]-1,0,1,1),ImportTDE[[#This Row],[Mine0]]))) -> 0 | J87: =IF(ImportTDE[[#This Row],[Ligne]]="","",IF(ImportTDE[[#This Row],[Ligne]]=1,ImportTDE[[#This Row],[Tonnage0]],IF(ImportTDE[[#This Row],[Tonnage0]]="",OFFSET(ImportTDE[[#Headers],[Tonnage]],ImportTDE[[#This Row],[Ligne]]-1,0,1,1),ImportTDE[[#This Row],[Tonnage0]]))) -> 0 | K87: =IF(ImportTDE[[#This Row],[Ref Labo]]="","",IF(ImportTDE[[#This Row],[Tonnage]]>2000,1,"")) ->  | L87: =IF(ImportTDE[[#This Row],[Ref Labo]]="","",IF(AND(ImportTDE[[#This Row],[NbHum]]<>"",ImportTDE[[#This Row],[NbHum]]<2),1,"")) -> 
B88: =IF(ROW(ImportTDE[[#This Row],[Ref Labo]])-ROW(ImportTDE[[#Headers],[Ref Labo]])>NbEch,"",ROW(ImportTDE[[#This Row],[Ref Labo]])-ROW(ImportTDE[[#Headers],[Ref Labo]])) -> 84 | C88: =IF(ImportTDE[[#This Row],[Ligne]]="","",TDE&"-"&REPT("0",LEN(NbEch)-LEN(ImportTDE[[#This Row],[Ligne]]))&ImportTDE[[#This Row],[Ligne]]) ->  | H88: =IF(ImportTDE[[#This Row],[Ligne]]="","",IF(ImportTDE[[#This Row],[Ref Client0]]="",Prefixe &ImportTDE[[#This Row],[Ligne]]&Suffixe,ImportTDE[[#This Row],[Ref Client0]])) -> Lot 84 | I88: =IF(ImportTDE[[#This Row],[Ligne]]="","",IF(ImportTDE[[#This Row],[Ligne]]=1,ImportTDE[[#This Row],[Mine0]],IF(ImportTDE[[#This Row],[Mine0]]="",OFFSET(ImportTDE[[#Headers],[Mine]],ImportTDE[[#This Row],[Ligne]]-1,0,1,1),ImportTDE[[#This Row],[Mine0]]))) -> 0 | J88: =IF(ImportTDE[[#This Row],[Ligne]]="","",IF(ImportTDE[[#This Row],[Ligne]]=1,ImportTDE[[#This Row],[Tonnage0]],IF(ImportTDE[[#This Row],[Tonnage0]]="",OFFSET(ImportTDE[[#Headers],[Tonnage]],ImportTDE[[#This Row],[Ligne]]-1,0,1,1),ImportTDE[[#This Row],[Tonnage0]]))) -> 0 | K88: =IF(ImportTDE[[#This Row],[Ref Labo]]="","",IF(ImportTDE[[#This Row],[Tonnage]]>2000,1,"")) ->  | L88: =IF(ImportTDE[[#This Row],[Ref Labo]]="","",IF(AND(ImportTDE[[#This Row],[NbHum]]<>"",ImportTDE[[#This Row],[NbHum]]<2),1,"")) -> 
B89: =IF(ROW(ImportTDE[[#This Row],[Ref Labo]])-ROW(ImportTDE[[#Headers],[Ref Labo]])>NbEch,"",ROW(ImportTDE[[#This Row],[Ref Labo]])-ROW(ImportTDE[[#Headers],[Ref Labo]])) -> 85 | C89: =IF(ImportTDE[[#This Row],[Ligne]]="","",TDE&"-"&REPT("0",LEN(NbEch)-LEN(ImportTDE[[#This Row],[Ligne]]))&ImportTDE[[#This Row],[Ligne]]) ->  | H89: =IF(ImportTDE[[#This Row],[Ligne]]="","",IF(ImportTDE[[#This Row],[Ref Client0]]="",Prefixe &ImportTDE[[#This Row],[Ligne]]&Suffixe,ImportTDE[[#This Row],[Ref Client0]])) -> Lot 85 | I89: =IF(ImportTDE[[#This Row],[Ligne]]="","",IF(ImportTDE[[#This Row],[Ligne]]=1,ImportTDE[[#This Row],[Mine0]],IF(ImportTDE[[#This Row],[Mine0]]="",OFFSET(ImportTDE[[#Headers],[Mine]],ImportTDE[[#This Row],[Ligne]]-1,0,1,1),ImportTDE[[#This Row],[Mine0]]))) -> 0 | J89: =IF(ImportTDE[[#This Row],[Ligne]]="","",IF(ImportTDE[[#This Row],[Ligne]]=1,ImportTDE[[#This Row],[Tonnage0]],IF(ImportTDE[[#This Row],[Tonnage0]]="",OFFSET(ImportTDE[[#Headers],[Tonnage]],ImportTDE[[#This Row],[Ligne]]-1,0,1,1),ImportTDE[[#This Row],[Tonnage0]]))) -> 0 | K89: =IF(ImportTDE[[#This Row],[Ref Labo]]="","",IF(ImportTDE[[#This Row],[Tonnage]]>2000,1,"")) ->  | L89: =IF(ImportTDE[[#This Row],[Ref Labo]]="","",IF(AND(ImportTDE[[#This Row],[NbHum]]<>"",ImportTDE[[#This Row],[NbHum]]<2),1,"")) -> 
B90: =IF(ROW(ImportTDE[[#This Row],[Ref Labo]])-ROW(ImportTDE[[#Headers],[Ref Labo]])>NbEch,"",ROW(ImportTDE[[#This Row],[Ref Labo]])-ROW(ImportTDE[[#Headers],[Ref Labo]])) -> 86 | C90: =IF(ImportTDE[[#This Row],[Ligne]]="","",TDE&"-"&REPT("0",LEN(NbEch)-LEN(ImportTDE[[#This Row],[Ligne]]))&ImportTDE[[#This Row],[Ligne]]) ->  | H90: =IF(ImportTDE[[#This Row],[Ligne]]="","",IF(ImportTDE[[#This Row],[Ref Client0]]="",Prefixe &ImportTDE[[#This Row],[Ligne]]&Suffixe,ImportTDE[[#This Row],[Ref Client0]])) -> Lot 86 | I90: =IF(ImportTDE[[#This Row],[Ligne]]="","",IF(ImportTDE[[#This Row],[Ligne]]=1,ImportTDE[[#This Row],[Mine0]],IF(ImportTDE[[#This Row],[Mine0]]="",OFFSET(ImportTDE[[#Headers],[Mine]],ImportTDE[[#This Row],[Ligne]]-1,0,1,1),ImportTDE[[#This Row],[Mine0]]))) -> 0 | J90: =IF(ImportTDE[[#This Row],[Ligne]]="","",IF(ImportTDE[[#This Row],[Ligne]]=1,ImportTDE[[#This Row],[Tonnage0]],IF(ImportTDE[[#This Row],[Tonnage0]]="",OFFSET(ImportTDE[[#Headers],[Tonnage]],ImportTDE[[#This Row],[Ligne]]-1,0,1,1),ImportTDE[[#This Row],[Tonnage0]]))) -> 0 | K90: =IF(ImportTDE[[#This Row],[Ref Labo]]="","",IF(ImportTDE[[#This Row],[Tonnage]]>2000,1,"")) ->  | L90: =IF(ImportTDE[[#This Row],[Ref Labo]]="","",IF(AND(ImportTDE[[#This Row],[NbHum]]<>"",ImportTDE[[#This Row],[NbHum]]<2),1,"")) -> 
B91: =IF(ROW(ImportTDE[[#This Row],[Ref Labo]])-ROW(ImportTDE[[#Headers],[Ref Labo]])>NbEch,"",ROW(ImportTDE[[#This Row],[Ref Labo]])-ROW(ImportTDE[[#Headers],[Ref Labo]])) -> 87 | C91: =IF(ImportTDE[[#This Row],[Ligne]]="","",TDE&"-"&REPT("0",LEN(NbEch)-LEN(ImportTDE[[#This Row],[Ligne]]))&ImportTDE[[#This Row],[Ligne]]) ->  | H91: =IF(ImportTDE[[#This Row],[Ligne]]="","",IF(ImportTDE[[#This Row],[Ref Client0]]="",Prefixe &ImportTDE[[#This Row],[Ligne]]&Suffixe,ImportTDE[[#This Row],[Ref Client0]])) -> Lot 87 | I91: =IF(ImportTDE[[#This Row],[Ligne]]="","",IF(ImportTDE[[#This Row],[Ligne]]=1,ImportTDE[[#This Row],[Mine0]],IF(ImportTDE[[#This Row],[Mine0]]="",OFFSET(ImportTDE[[#Headers],[Mine]],ImportTDE[[#This Row],[Ligne]]-1,0,1,1),ImportTDE[[#This Row],[Mine0]]))) -> 0 | J91: =IF(ImportTDE[[#This Row],[Ligne]]="","",IF(ImportTDE[[#This Row],[Ligne]]=1,ImportTDE[[#This Row],[Tonnage0]],IF(ImportTDE[[#This Row],[Tonnage0]]="",OFFSET(ImportTDE[[#Headers],[Tonnage]],ImportTDE[[#This Row],[Ligne]]-1,0,1,1),ImportTDE[[#This Row],[Tonnage0]]))) -> 0 | K91: =IF(ImportTDE[[#This Row],[Ref Labo]]="","",IF(ImportTDE[[#This Row],[Tonnage]]>2000,1,"")) ->  | L91: =IF(ImportTDE[[#This Row],[Ref Labo]]="","",IF(AND(ImportTDE[[#This Row],[NbHum]]<>"",ImportTDE[[#This Row],[NbHum]]<2),1,"")) -> 
B92: =IF(ROW(ImportTDE[[#This Row],[Ref Labo]])-ROW(ImportTDE[[#Headers],[Ref Labo]])>NbEch,"",ROW(ImportTDE[[#This Row],[Ref Labo]])-ROW(ImportTDE[[#Headers],[Ref Labo]])) -> 88 | C92: =IF(ImportTDE[[#This Row],[Ligne]]="","",TDE&"-"&REPT("0",LEN(NbEch)-LEN(ImportTDE[[#This Row],[Ligne]]))&ImportTDE[[#This Row],[Ligne]]) ->  | H92: =IF(ImportTDE[[#This Row],[Ligne]]="","",IF(ImportTDE[[#This Row],[Ref Client0]]="",Prefixe &ImportTDE[[#This Row],[Ligne]]&Suffixe,ImportTDE[[#This Row],[Ref Client0]])) -> Lot 88 | I92: =IF(ImportTDE[[#This Row],[Ligne]]="","",IF(ImportTDE[[#This Row],[Ligne]]=1,ImportTDE[[#This Row],[Mine0]],IF(ImportTDE[[#This Row],[Mine0]]="",OFFSET(ImportTDE[[#Headers],[Mine]],ImportTDE[[#This Row],[Ligne]]-1,0,1,1),ImportTDE[[#This Row],[Mine0]]))) -> 0 | J92: =IF(ImportTDE[[#This Row],[Ligne]]="","",IF(ImportTDE[[#This Row],[Ligne]]=1,ImportTDE[[#This Row],[Tonnage0]],IF(ImportTDE[[#This Row],[Tonnage0]]="",OFFSET(ImportTDE[[#Headers],[Tonnage]],ImportTDE[[#This Row],[Ligne]]-1,0,1,1),ImportTDE[[#This Row],[Tonnage0]]))) -> 0 | K92: =IF(ImportTDE[[#This Row],[Ref Labo]]="","",IF(ImportTDE[[#This Row],[Tonnage]]>2000,1,"")) ->  | L92: =IF(ImportTDE[[#This Row],[Ref Labo]]="","",IF(AND(ImportTDE[[#This Row],[NbHum]]<>"",ImportTDE[[#This Row],[NbHum]]<2),1,"")) -> 
B93: =IF(ROW(ImportTDE[[#This Row],[Ref Labo]])-ROW(ImportTDE[[#Headers],[Ref Labo]])>NbEch,"",ROW(ImportTDE[[#This Row],[Ref Labo]])-ROW(ImportTDE[[#Headers],[Ref Labo]])) -> 89 | C93: =IF(ImportTDE[[#This Row],[Ligne]]="","",TDE&"-"&REPT("0",LEN(NbEch)-LEN(ImportTDE[[#This Row],[Ligne]]))&ImportTDE[[#This Row],[Ligne]]) ->  | H93: =IF(ImportTDE[[#This Row],[Ligne]]="","",IF(ImportTDE[[#This Row],[Ref Client0]]="",Prefixe &ImportTDE[[#This Row],[Ligne]]&Suffixe,ImportTDE[[#This Row],[Ref Client0]])) -> Lot 89 | I93: =IF(ImportTDE[[#This Row],[Ligne]]="","",IF(ImportTDE[[#This Row],[Ligne]]=1,ImportTDE[[#This Row],[Mine0]],IF(ImportTDE[[#This Row],[Mine0]]="",OFFSET(ImportTDE[[#Headers],[Mine]],ImportTDE[[#This Row],[Ligne]]-1,0,1,1),ImportTDE[[#This Row],[Mine0]]))) -> 0 | J93: =IF(ImportTDE[[#This Row],[Ligne]]="","",IF(ImportTDE[[#This Row],[Ligne]]=1,ImportTDE[[#This Row],[Tonnage0]],IF(ImportTDE[[#This Row],[Tonnage0]]="",OFFSET(ImportTDE[[#Headers],[Tonnage]],ImportTDE[[#This Row],[Ligne]]-1,0,1,1),ImportTDE[[#This Row],[Tonnage0]]))) -> 0 | K93: =IF(ImportTDE[[#This Row],[Ref Labo]]="","",IF(ImportTDE[[#This Row],[Tonnage]]>2000,1,"")) ->  | L93: =IF(ImportTDE[[#This Row],[Ref Labo]]="","",IF(AND(ImportTDE[[#This Row],[NbHum]]<>"",ImportTDE[[#This Row],[NbHum]]<2),1,"")) -> 
B94: =IF(ROW(ImportTDE[[#This Row],[Ref Labo]])-ROW(ImportTDE[[#Headers],[Ref Labo]])>NbEch,"",ROW(ImportTDE[[#This Row],[Ref Labo]])-ROW(ImportTDE[[#Headers],[Ref Labo]])) -> 90 | C94: =IF(ImportTDE[[#This Row],[Ligne]]="","",TDE&"-"&REPT("0",LEN(NbEch)-LEN(ImportTDE[[#This Row],[Ligne]]))&ImportTDE[[#This Row],[Ligne]]) ->  | H94: =IF(ImportTDE[[#This Row],[Ligne]]="","",IF(ImportTDE[[#This Row],[Ref Client0]]="",Prefixe &ImportTDE[[#This Row],[Ligne]]&Suffixe,ImportTDE[[#This Row],[Ref Client0]])) -> Lot 90 | I94: =IF(ImportTDE[[#This Row],[Ligne]]="","",IF(ImportTDE[[#This Row],[Ligne]]=1,ImportTDE[[#This Row],[Mine0]],IF(ImportTDE[[#This Row],[Mine0]]="",OFFSET(ImportTDE[[#Headers],[Mine]],ImportTDE[[#This Row],[Ligne]]-1,0,1,1),ImportTDE[[#This Row],[Mine0]]))) -> 0 | J94: =IF(ImportTDE[[#This Row],[Ligne]]="","",IF(ImportTDE[[#This Row],[Ligne]]=1,ImportTDE[[#This Row],[Tonnage0]],IF(ImportTDE[[#This Row],[Tonnage0]]="",OFFSET(ImportTDE[[#Headers],[Tonnage]],ImportTDE[[#This Row],[Ligne]]-1,0,1,1),ImportTDE[[#This Row],[Tonnage0]]))) -> 0 | K94: =IF(ImportTDE[[#This Row],[Ref Labo]]="","",IF(ImportTDE[[#This Row],[Tonnage]]>2000,1,"")) ->  | L94: =IF(ImportTDE[[#This Row],[Ref Labo]]="","",IF(AND(ImportTDE[[#This Row],[NbHum]]<>"",ImportTDE[[#This Row],[NbHum]]<2),1,"")) -> 
B95: =IF(ROW(ImportTDE[[#This Row],[Ref Labo]])-ROW(ImportTDE[[#Headers],[Ref Labo]])>NbEch,"",ROW(ImportTDE[[#This Row],[Ref Labo]])-ROW(ImportTDE[[#Headers],[Ref Labo]])) -> 91 | C95: =IF(ImportTDE[[#This Row],[Ligne]]="","",TDE&"-"&REPT("0",LEN(NbEch)-LEN(ImportTDE[[#This Row],[Ligne]]))&ImportTDE[[#This Row],[Ligne]]) ->  | H95: =IF(ImportTDE[[#This Row],[Ligne]]="","",IF(ImportTDE[[#This Row],[Ref Client0]]="",Prefixe &ImportTDE[[#This Row],[Ligne]]&Suffixe,ImportTDE[[#This Row],[Ref Client0]])) -> Lot 91 | I95: =IF(ImportTDE[[#This Row],[Ligne]]="","",IF(ImportTDE[[#This Row],[Ligne]]=1,ImportTDE[[#This Row],[Mine0]],IF(ImportTDE[[#This Row],[Mine0]]="",OFFSET(ImportTDE[[#Headers],[Mine]],ImportTDE[[#This Row],[Ligne]]-1,0,1,1),ImportTDE[[#This Row],[Mine0]]))) -> 0 | J95: =IF(ImportTDE[[#This Row],[Ligne]]="","",IF(ImportTDE[[#This Row],[Ligne]]=1,ImportTDE[[#This Row],[Tonnage0]],IF(ImportTDE[[#This Row],[Tonnage0]]="",OFFSET(ImportTDE[[#Headers],[Tonnage]],ImportTDE[[#This Row],[Ligne]]-1,0,1,1),ImportTDE[[#This Row],[Tonnage0]]))) -> 0 | K95: =IF(ImportTDE[[#This Row],[Ref Labo]]="","",IF(ImportTDE[[#This Row],[Tonnage]]>2000,1,"")) ->  | L95: =IF(ImportTDE[[#This Row],[Ref Labo]]="","",IF(AND(ImportTDE[[#This Row],[NbHum]]<>"",ImportTDE[[#This Row],[NbHum]]<2),1,"")) -> 
B96: =IF(ROW(ImportTDE[[#This Row],[Ref Labo]])-ROW(ImportTDE[[#Headers],[Ref Labo]])>NbEch,"",ROW(ImportTDE[[#This Row],[Ref Labo]])-ROW(ImportTDE[[#Headers],[Ref Labo]])) -> 92 | C96: =IF(ImportTDE[[#This Row],[Ligne]]="","",TDE&"-"&REPT("0",LEN(NbEch)-LEN(ImportTDE[[#This Row],[Ligne]]))&ImportTDE[[#This Row],[Ligne]]) ->  | H96: =IF(ImportTDE[[#This Row],[Ligne]]="","",IF(ImportTDE[[#This Row],[Ref Client0]]="",Prefixe &ImportTDE[[#This Row],[Ligne]]&Suffixe,ImportTDE[[#This Row],[Ref Client0]])) -> Lot 92 | I96: =IF(ImportTDE[[#This Row],[Ligne]]="","",IF(ImportTDE[[#This Row],[Ligne]]=1,ImportTDE[[#This Row],[Mine0]],IF(ImportTDE[[#This Row],[Mine0]]="",OFFSET(ImportTDE[[#Headers],[Mine]],ImportTDE[[#This Row],[Ligne]]-1,0,1,1),ImportTDE[[#This Row],[Mine0]]))) -> 0 | J96: =IF(ImportTDE[[#This Row],[Ligne]]="","",IF(ImportTDE[[#This Row],[Ligne]]=1,ImportTDE[[#This Row],[Tonnage0]],IF(ImportTDE[[#This Row],[Tonnage0]]="",OFFSET(ImportTDE[[#Headers],[Tonnage]],ImportTDE[[#This Row],[Ligne]]-1,0,1,1),ImportTDE[[#This Row],[Tonnage0]]))) -> 0 | K96: =IF(ImportTDE[[#This Row],[Ref Labo]]="","",IF(ImportTDE[[#This Row],[Tonnage]]>2000,1,"")) ->  | L96: =IF(ImportTDE[[#This Row],[Ref Labo]]="","",IF(AND(ImportTDE[[#This Row],[NbHum]]<>"",ImportTDE[[#This Row],[NbHum]]<2),1,"")) -> 
B97: =IF(ROW(ImportTDE[[#This Row],[Ref Labo]])-ROW(ImportTDE[[#Headers],[Ref Labo]])>NbEch,"",ROW(ImportTDE[[#This Row],[Ref Labo]])-ROW(ImportTDE[[#Headers],[Ref Labo]])) -> 93 | C97: =IF(ImportTDE[[#This Row],[Ligne]]="","",TDE&"-"&REPT("0",LEN(NbEch)-LEN(ImportTDE[[#This Row],[Ligne]]))&ImportTDE[[#This Row],[Ligne]]) ->  | H97: =IF(ImportTDE[[#This Row],[Ligne]]="","",IF(ImportTDE[[#This Row],[Ref Client0]]="",Prefixe &ImportTDE[[#This Row],[Ligne]]&Suffixe,ImportTDE[[#This Row],[Ref Client0]])) -> Lot 93 | I97: =IF(ImportTDE[[#This Row],[Ligne]]="","",IF(ImportTDE[[#This Row],[Ligne]]=1,ImportTDE[[#This Row],[Mine0]],IF(ImportTDE[[#This Row],[Mine0]]="",OFFSET(ImportTDE[[#Headers],[Mine]],ImportTDE[[#This Row],[Ligne]]-1,0,1,1),ImportTDE[[#This Row],[Mine0]]))) -> 0 | J97: =IF(ImportTDE[[#This Row],[Ligne]]="","",IF(ImportTDE[[#This Row],[Ligne]]=1,ImportTDE[[#This Row],[Tonnage0]],IF(ImportTDE[[#This Row],[Tonnage0]]="",OFFSET(ImportTDE[[#Headers],[Tonnage]],ImportTDE[[#This Row],[Ligne]]-1,0,1,1),ImportTDE[[#This Row],[Tonnage0]]))) -> 0 | K97: =IF(ImportTDE[[#This Row],[Ref Labo]]="","",IF(ImportTDE[[#This Row],[Tonnage]]>2000,1,"")) ->  | L97: =IF(ImportTDE[[#This Row],[Ref Labo]]="","",IF(AND(ImportTDE[[#This Row],[NbHum]]<>"",ImportTDE[[#This Row],[NbHum]]<2),1,"")) -> 
B98: =IF(ROW(ImportTDE[[#This Row],[Ref Labo]])-ROW(ImportTDE[[#Headers],[Ref Labo]])>NbEch,"",ROW(ImportTDE[[#This Row],[Ref Labo]])-ROW(ImportTDE[[#Headers],[Ref Labo]])) -> 94 | C98: =IF(ImportTDE[[#This Row],[Ligne]]="","",TDE&"-"&REPT("0",LEN(NbEch)-LEN(ImportTDE[[#This Row],[Ligne]]))&ImportTDE[[#This Row],[Ligne]]) ->  | H98: =IF(ImportTDE[[#This Row],[Ligne]]="","",IF(ImportTDE[[#This Row],[Ref Client0]]="",Prefixe &ImportTDE[[#This Row],[Ligne]]&Suffixe,ImportTDE[[#This Row],[Ref Client0]])) -> Lot 94 | I98: =IF(ImportTDE[[#This Row],[Ligne]]="","",IF(ImportTDE[[#This Row],[Ligne]]=1,ImportTDE[[#This Row],[Mine0]],IF(ImportTDE[[#This Row],[Mine0]]="",OFFSET(ImportTDE[[#Headers],[Mine]],ImportTDE[[#This Row],[Ligne]]-1,0,1,1),ImportTDE[[#This Row],[Mine0]]))) -> 0 | J98: =IF(ImportTDE[[#This Row],[Ligne]]="","",IF(ImportTDE[[#This Row],[Ligne]]=1,ImportTDE[[#This Row],[Tonnage0]],IF(ImportTDE[[#This Row],[Tonnage0]]="",OFFSET(ImportTDE[[#Headers],[Tonnage]],ImportTDE[[#This Row],[Ligne]]-1,0,1,1),ImportTDE[[#This Row],[Tonnage0]]))) -> 0 | K98: =IF(ImportTDE[[#This Row],[Ref Labo]]="","",IF(ImportTDE[[#This Row],[Tonnage]]>2000,1,"")) ->  | L98: =IF(ImportTDE[[#This Row],[Ref Labo]]="","",IF(AND(ImportTDE[[#This Row],[NbHum]]<>"",ImportTDE[[#This Row],[NbHum]]<2),1,"")) -> 
B99: =IF(ROW(ImportTDE[[#This Row],[Ref Labo]])-ROW(ImportTDE[[#Headers],[Ref Labo]])>NbEch,"",ROW(ImportTDE[[#This Row],[Ref Labo]])-ROW(ImportTDE[[#Headers],[Ref Labo]])) -> 95 | C99: =IF(ImportTDE[[#This Row],[Ligne]]="","",TDE&"-"&REPT("0",LEN(NbEch)-LEN(ImportTDE[[#This Row],[Ligne]]))&ImportTDE[[#This Row],[Ligne]]) ->  | H99: =IF(ImportTDE[[#This Row],[Ligne]]="","",IF(ImportTDE[[#This Row],[Ref Client0]]="",Prefixe &ImportTDE[[#This Row],[Ligne]]&Suffixe,ImportTDE[[#This Row],[Ref Client0]])) -> Lot 95 | I99: =IF(ImportTDE[[#This Row],[Ligne]]="","",IF(ImportTDE[[#This Row],[Ligne]]=1,ImportTDE[[#This Row],[Mine0]],IF(ImportTDE[[#This Row],[Mine0]]="",OFFSET(ImportTDE[[#Headers],[Mine]],ImportTDE[[#This Row],[Ligne]]-1,0,1,1),ImportTDE[[#This Row],[Mine0]]))) -> 0 | J99: =IF(ImportTDE[[#This Row],[Ligne]]="","",IF(ImportTDE[[#This Row],[Ligne]]=1,ImportTDE[[#This Row],[Tonnage0]],IF(ImportTDE[[#This Row],[Tonnage0]]="",OFFSET(ImportTDE[[#Headers],[Tonnage]],ImportTDE[[#This Row],[Ligne]]-1,0,1,1),ImportTDE[[#This Row],[Tonnage0]]))) -> 0 | K99: =IF(ImportTDE[[#This Row],[Ref Labo]]="","",IF(ImportTDE[[#This Row],[Tonnage]]>2000,1,"")) ->  | L99: =IF(ImportTDE[[#This Row],[Ref Labo]]="","",IF(AND(ImportTDE[[#This Row],[NbHum]]<>"",ImportTDE[[#This Row],[NbHum]]<2),1,"")) -> 
B100: =IF(ROW(ImportTDE[[#This Row],[Ref Labo]])-ROW(ImportTDE[[#Headers],[Ref Labo]])>NbEch,"",ROW(ImportTDE[[#This Row],[Ref Labo]])-ROW(ImportTDE[[#Headers],[Ref Labo]])) -> 96 | C100: =IF(ImportTDE[[#This Row],[Ligne]]="","",TDE&"-"&REPT("0",LEN(NbEch)-LEN(ImportTDE[[#This Row],[Ligne]]))&ImportTDE[[#This Row],[Ligne]]) ->  | H100: =IF(ImportTDE[[#This Row],[Ligne]]="","",IF(ImportTDE[[#This Row],[Ref Client0]]="",Prefixe &ImportTDE[[#This Row],[Ligne]]&Suffixe,ImportTDE[[#This Row],[Ref Client0]])) -> Lot 96 | I100: =IF(ImportTDE[[#This Row],[Ligne]]="","",IF(ImportTDE[[#This Row],[Ligne]]=1,ImportTDE[[#This Row],[Mine0]],IF(ImportTDE[[#This Row],[Mine0]]="",OFFSET(ImportTDE[[#Headers],[Mine]],ImportTDE[[#This Row],[Ligne]]-1,0,1,1),ImportTDE[[#This Row],[Mine0]]))) -> 0 | J100: =IF(ImportTDE[[#This Row],[Ligne]]="","",IF(ImportTDE[[#This Row],[Ligne]]=1,ImportTDE[[#This Row],[Tonnage0]],IF(ImportTDE[[#This Row],[Tonnage0]]="",OFFSET(ImportTDE[[#Headers],[Tonnage]],ImportTDE[[#This Row],[Ligne]]-1,0,1,1),ImportTDE[[#This Row],[Tonnage0]]))) -> 0 | K100: =IF(ImportTDE[[#This Row],[Ref Labo]]="","",IF(ImportTDE[[#This Row],[Tonnage]]>2000,1,"")) ->  | L100: =IF(ImportTDE[[#This Row],[Ref Labo]]="","",IF(AND(ImportTDE[[#This Row],[NbHum]]<>"",ImportTDE[[#This Row],[NbHum]]<2),1,"")) -> 
B101: =IF(ROW(ImportTDE[[#This Row],[Ref Labo]])-ROW(ImportTDE[[#Headers],[Ref Labo]])>NbEch,"",ROW(ImportTDE[[#This Row],[Ref Labo]])-ROW(ImportTDE[[#Headers],[Ref Labo]])) -> 97 | C101: =IF(ImportTDE[[#This Row],[Ligne]]="","",TDE&"-"&REPT("0",LEN(NbEch)-LEN(ImportTDE[[#This Row],[Ligne]]))&ImportTDE[[#This Row],[Ligne]]) ->  | H101: =IF(ImportTDE[[#This Row],[Ligne]]="","",IF(ImportTDE[[#This Row],[Ref Client0]]="",Prefixe &ImportTDE[[#This Row],[Ligne]]&Suffixe,ImportTDE[[#This Row],[Ref Client0]])) -> Lot 97 | I101: =IF(ImportTDE[[#This Row],[Ligne]]="","",IF(ImportTDE[[#This Row],[Ligne]]=1,ImportTDE[[#This Row],[Mine0]],IF(ImportTDE[[#This Row],[Mine0]]="",OFFSET(ImportTDE[[#Headers],[Mine]],ImportTDE[[#This Row],[Ligne]]-1,0,1,1),ImportTDE[[#This Row],[Mine0]]))) -> 0 | J101: =IF(ImportTDE[[#This Row],[Ligne]]="","",IF(ImportTDE[[#This Row],[Ligne]]=1,ImportTDE[[#This Row],[Tonnage0]],IF(ImportTDE[[#This Row],[Tonnage0]]="",OFFSET(ImportTDE[[#Headers],[Tonnage]],ImportTDE[[#This Row],[Ligne]]-1,0,1,1),ImportTDE[[#This Row],[Tonnage0]]))) -> 0 | K101: =IF(ImportTDE[[#This Row],[Ref Labo]]="","",IF(ImportTDE[[#This Row],[Tonnage]]>2000,1,"")) ->  | L101: =IF(ImportTDE[[#This Row],[Ref Labo]]="","",IF(AND(ImportTDE[[#This Row],[NbHum]]<>"",ImportTDE[[#This Row],[NbHum]]<2),1,"")) -> 
B102: =IF(ROW(ImportTDE[[#This Row],[Ref Labo]])-ROW(ImportTDE[[#Headers],[Ref Labo]])>NbEch,"",ROW(ImportTDE[[#This Row],[Ref Labo]])-ROW(ImportTDE[[#Headers],[Ref Labo]])) -> 98 | C102: =IF(ImportTDE[[#This Row],[Ligne]]="","",TDE&"-"&REPT("0",LEN(NbEch)-LEN(ImportTDE[[#This Row],[Ligne]]))&ImportTDE[[#This Row],[Ligne]]) ->  | H102: =IF(ImportTDE[[#This Row],[Ligne]]="","",IF(ImportTDE[[#This Row],[Ref Client0]]="",Prefixe &ImportTDE[[#This Row],[Ligne]]&Suffixe,ImportTDE[[#This Row],[Ref Client0]])) -> Lot 98 | I102: =IF(ImportTDE[[#This Row],[Ligne]]="","",IF(ImportTDE[[#This Row],[Ligne]]=1,ImportTDE[[#This Row],[Mine0]],IF(ImportTDE[[#This Row],[Mine0]]="",OFFSET(ImportTDE[[#Headers],[Mine]],ImportTDE[[#This Row],[Ligne]]-1,0,1,1),ImportTDE[[#This Row],[Mine0]]))) -> 0 | J102: =IF(ImportTDE[[#This Row],[Ligne]]="","",IF(ImportTDE[[#This Row],[Ligne]]=1,ImportTDE[[#This Row],[Tonnage0]],IF(ImportTDE[[#This Row],[Tonnage0]]="",OFFSET(ImportTDE[[#Headers],[Tonnage]],ImportTDE[[#This Row],[Ligne]]-1,0,1,1),ImportTDE[[#This Row],[Tonnage0]]))) -> 0 | K102: =IF(ImportTDE[[#This Row],[Ref Labo]]="","",IF(ImportTDE[[#This Row],[Tonnage]]>2000,1,"")) ->  | L102: =IF(ImportTDE[[#This Row],[Ref Labo]]="","",IF(AND(ImportTDE[[#This Row],[NbHum]]<>"",ImportTDE[[#This Row],[NbHum]]<2),1,"")) -> 
B103: =IF(ROW(ImportTDE[[#This Row],[Ref Labo]])-ROW(ImportTDE[[#Headers],[Ref Labo]])>NbEch,"",ROW(ImportTDE[[#This Row],[Ref Labo]])-ROW(ImportTDE[[#Headers],[Ref Labo]])) -> 99 | C103: =IF(ImportTDE[[#This Row],[Ligne]]="","",TDE&"-"&REPT("0",LEN(NbEch)-LEN(ImportTDE[[#This Row],[Ligne]]))&ImportTDE[[#This Row],[Ligne]]) ->  | H103: =IF(ImportTDE[[#This Row],[Ligne]]="","",IF(ImportTDE[[#This Row],[Ref Client0]]="",Prefixe &ImportTDE[[#This Row],[Ligne]]&Suffixe,ImportTDE[[#This Row],[Ref Client0]])) -> Lot 99 | I103: =IF(ImportTDE[[#This Row],[Ligne]]="","",IF(ImportTDE[[#This Row],[Ligne]]=1,ImportTDE[[#This Row],[Mine0]],IF(ImportTDE[[#This Row],[Mine0]]="",OFFSET(ImportTDE[[#Headers],[Mine]],ImportTDE[[#This Row],[Ligne]]-1,0,1,1),ImportTDE[[#This Row],[Mine0]]))) -> 0 | J103: =IF(ImportTDE[[#This Row],[Ligne]]="","",IF(ImportTDE[[#This Row],[Ligne]]=1,ImportTDE[[#This Row],[Tonnage0]],IF(ImportTDE[[#This Row],[Tonnage0]]="",OFFSET(ImportTDE[[#Headers],[Tonnage]],ImportTDE[[#This Row],[Ligne]]-1,0,1,1),ImportTDE[[#This Row],[Tonnage0]]))) -> 0 | K103: =IF(ImportTDE[[#This Row],[Ref Labo]]="","",IF(ImportTDE[[#This Row],[Tonnage]]>2000,1,"")) ->  | L103: =IF(ImportTDE[[#This Row],[Ref Labo]]="","",IF(AND(ImportTDE[[#This Row],[NbHum]]<>"",ImportTDE[[#This Row],[NbHum]]<2),1,"")) -> 
B104: =IF(ROW(ImportTDE[[#This Row],[Ref Labo]])-ROW(ImportTDE[[#Headers],[Ref Labo]])>NbEch,"",ROW(ImportTDE[[#This Row],[Ref Labo]])-ROW(ImportTDE[[#Headers],[Ref Labo]])) -> 100 | C104: =IF(ImportTDE[[#This Row],[Ligne]]="","",TDE&"-"&REPT("0",LEN(NbEch)-LEN(ImportTDE[[#This Row],[Ligne]]))&ImportTDE[[#This Row],[Ligne]]) ->  | H104: =IF(ImportTDE[[#This Row],[Ligne]]="","",IF(ImportTDE[[#This Row],[Ref Client0]]="",Prefixe &ImportTDE[[#This Row],[Ligne]]&Suffixe,ImportTDE[[#This Row],[Ref Client0]])) -> Lot 100 | I104: =IF(ImportTDE[[#This Row],[Ligne]]="","",IF(ImportTDE[[#This Row],[Ligne]]=1,ImportTDE[[#This Row],[Mine0]],IF(ImportTDE[[#This Row],[Mine0]]="",OFFSET(ImportTDE[[#Headers],[Mine]],ImportTDE[[#This Row],[Ligne]]-1,0,1,1),ImportTDE[[#This Row],[Mine0]]))) -> 0 | J104: =IF(ImportTDE[[#This Row],[Ligne]]="","",IF(ImportTDE[[#This Row],[Ligne]]=1,ImportTDE[[#This Row],[Tonnage0]],IF(ImportTDE[[#This Row],[Tonnage0]]="",OFFSET(ImportTDE[[#Headers],[Tonnage]],ImportTDE[[#This Row],[Ligne]]-1,0,1,1),ImportTDE[[#This Row],[Tonnage0]]))) -> 0 | K104: =IF(ImportTDE[[#This Row],[Ref Labo]]="","",IF(ImportTDE[[#This Row],[Tonnage]]>2000,1,"")) ->  | L104: =IF(ImportTDE[[#This Row],[Ref Labo]]="","",IF(AND(ImportTDE[[#This Row],[NbHum]]<>"",ImportTDE[[#This Row],[NbHum]]<2),1,"")) -> 
B105: =IF(ROW(ImportTDE[[#This Row],[Ref Labo]])-ROW(ImportTDE[[#Headers],[Ref Labo]])>NbEch,"",ROW(ImportTDE[[#This Row],[Ref Labo]])-ROW(ImportTDE[[#Headers],[Ref Labo]])) -> 101 | C105: =IF(ImportTDE[[#This Row],[Ligne]]="","",TDE&"-"&REPT("0",LEN(NbEch)-LEN(ImportTDE[[#This Row],[Ligne]]))&ImportTDE[[#This Row],[Ligne]]) ->  | H105: =IF(ImportTDE[[#This Row],[Ligne]]="","",IF(ImportTDE[[#This Row],[Ref Client0]]="",Prefixe &ImportTDE[[#This Row],[Ligne]]&Suffixe,ImportTDE[[#This Row],[Ref Client0]])) -> Lot 101 | I105: =IF(ImportTDE[[#This Row],[Ligne]]="","",IF(ImportTDE[[#This Row],[Ligne]]=1,ImportTDE[[#This Row],[Mine0]],IF(ImportTDE[[#This Row],[Mine0]]="",OFFSET(ImportTDE[[#Headers],[Mine]],ImportTDE[[#This Row],[Ligne]]-1,0,1,1),ImportTDE[[#This Row],[Mine0]]))) -> 0 | J105: =IF(ImportTDE[[#This Row],[Ligne]]="","",IF(ImportTDE[[#This Row],[Ligne]]=1,ImportTDE[[#This Row],[Tonnage0]],IF(ImportTDE[[#This Row],[Tonnage0]]="",OFFSET(ImportTDE[[#Headers],[Tonnage]],ImportTDE[[#This Row],[Ligne]]-1,0,1,1),ImportTDE[[#This Row],[Tonnage0]]))) -> 0 | K105: =IF(ImportTDE[[#This Row],[Ref Labo]]="","",IF(ImportTDE[[#This Row],[Tonnage]]>2000,1,"")) ->  | L105: =IF(ImportTDE[[#This Row],[Ref Labo]]="","",IF(AND(ImportTDE[[#This Row],[NbHum]]<>"",ImportTDE[[#This Row],[NbHum]]<2),1,"")) -> 
B106: =IF(ROW(ImportTDE[[#This Row],[Ref Labo]])-ROW(ImportTDE[[#Headers],[Ref Labo]])>NbEch,"",ROW(ImportTDE[[#This Row],[Ref Labo]])-ROW(ImportTDE[[#Headers],[Ref Labo]])) -> 102 | C106: =IF(ImportTDE[[#This Row],[Ligne]]="","",TDE&"-"&REPT("0",LEN(NbEch)-LEN(ImportTDE[[#This Row],[Ligne]]))&ImportTDE[[#This Row],[Ligne]]) ->  | H106: =IF(ImportTDE[[#This Row],[Ligne]]="","",IF(ImportTDE[[#This Row],[Ref Client0]]="",Prefixe &ImportTDE[[#This Row],[Ligne]]&Suffixe,ImportTDE[[#This Row],[Ref Client0]])) -> Lot 102 | I106: =IF(ImportTDE[[#This Row],[Ligne]]="","",IF(ImportTDE[[#This Row],[Ligne]]=1,ImportTDE[[#This Row],[Mine0]],IF(ImportTDE[[#This Row],[Mine0]]="",OFFSET(ImportTDE[[#Headers],[Mine]],ImportTDE[[#This Row],[Ligne]]-1,0,1,1),ImportTDE[[#This Row],[Mine0]]))) -> 0 | J106: =IF(ImportTDE[[#This Row],[Ligne]]="","",IF(ImportTDE[[#This Row],[Ligne]]=1,ImportTDE[[#This Row],[Tonnage0]],IF(ImportTDE[[#This Row],[Tonnage0]]="",OFFSET(ImportTDE[[#Headers],[Tonnage]],ImportTDE[[#This Row],[Ligne]]-1,0,1,1),ImportTDE[[#This Row],[Tonnage0]]))) -> 0 | K106: =IF(ImportTDE[[#This Row],[Ref Labo]]="","",IF(ImportTDE[[#This Row],[Tonnage]]>2000,1,"")) ->  | L106: =IF(ImportTDE[[#This Row],[Ref Labo]]="","",IF(AND(ImportTDE[[#This Row],[NbHum]]<>"",ImportTDE[[#This Row],[NbHum]]<2),1,"")) -> 
B107: =IF(ROW(ImportTDE[[#This Row],[Ref Labo]])-ROW(ImportTDE[[#Headers],[Ref Labo]])>NbEch,"",ROW(ImportTDE[[#This Row],[Ref Labo]])-ROW(ImportTDE[[#Headers],[Ref Labo]])) -> 103 | C107: =IF(ImportTDE[[#This Row],[Ligne]]="","",TDE&"-"&REPT("0",LEN(NbEch)-LEN(ImportTDE[[#This Row],[Ligne]]))&ImportTDE[[#This Row],[Ligne]]) ->  | H107: =IF(ImportTDE[[#This Row],[Ligne]]="","",IF(ImportTDE[[#This Row],[Ref Client0]]="",Prefixe &ImportTDE[[#This Row],[Ligne]]&Suffixe,ImportTDE[[#This Row],[Ref Client0]])) -> Lot 103 | I107: =IF(ImportTDE[[#This Row],[Ligne]]="","",IF(ImportTDE[[#This Row],[Ligne]]=1,ImportTDE[[#This Row],[Mine0]],IF(ImportTDE[[#This Row],[Mine0]]="",OFFSET(ImportTDE[[#Headers],[Mine]],ImportTDE[[#This Row],[Ligne]]-1,0,1,1),ImportTDE[[#This Row],[Mine0]]))) -> 0 | J107: =IF(ImportTDE[[#This Row],[Ligne]]="","",IF(ImportTDE[[#This Row],[Ligne]]=1,ImportTDE[[#This Row],[Tonnage0]],IF(ImportTDE[[#This Row],[Tonnage0]]="",OFFSET(ImportTDE[[#Headers],[Tonnage]],ImportTDE[[#This Row],[Ligne]]-1,0,1,1),ImportTDE[[#This Row],[Tonnage0]]))) -> 0 | K107: =IF(ImportTDE[[#This Row],[Ref Labo]]="","",IF(ImportTDE[[#This Row],[Tonnage]]>2000,1,"")) ->  | L107: =IF(ImportTDE[[#This Row],[Ref Labo]]="","",IF(AND(ImportTDE[[#This Row],[NbHum]]<>"",ImportTDE[[#This Row],[NbHum]]<2),1,"")) -> 
B108: =IF(ROW(ImportTDE[[#This Row],[Ref Labo]])-ROW(ImportTDE[[#Headers],[Ref Labo]])>NbEch,"",ROW(ImportTDE[[#This Row],[Ref Labo]])-ROW(ImportTDE[[#Headers],[Ref Labo]])) -> 104 | C108: =IF(ImportTDE[[#This Row],[Ligne]]="","",TDE&"-"&REPT("0",LEN(NbEch)-LEN(ImportTDE[[#This Row],[Ligne]]))&ImportTDE[[#This Row],[Ligne]]) ->  | H108: =IF(ImportTDE[[#This Row],[Ligne]]="","",IF(ImportTDE[[#This Row],[Ref Client0]]="",Prefixe &ImportTDE[[#This Row],[Ligne]]&Suffixe,ImportTDE[[#This Row],[Ref Client0]])) -> Lot 104 | I108: =IF(ImportTDE[[#This Row],[Ligne]]="","",IF(ImportTDE[[#This Row],[Ligne]]=1,ImportTDE[[#This Row],[Mine0]],IF(ImportTDE[[#This Row],[Mine0]]="",OFFSET(ImportTDE[[#Headers],[Mine]],ImportTDE[[#This Row],[Ligne]]-1,0,1,1),ImportTDE[[#This Row],[Mine0]]))) -> 0 | J108: =IF(ImportTDE[[#This Row],[Ligne]]="","",IF(ImportTDE[[#This Row],[Ligne]]=1,ImportTDE[[#This Row],[Tonnage0]],IF(ImportTDE[[#This Row],[Tonnage0]]="",OFFSET(ImportTDE[[#Headers],[Tonnage]],ImportTDE[[#This Row],[Ligne]]-1,0,1,1),ImportTDE[[#This Row],[Tonnage0]]))) -> 0 | K108: =IF(ImportTDE[[#This Row],[Ref Labo]]="","",IF(ImportTDE[[#This Row],[Tonnage]]>2000,1,"")) ->  | L108: =IF(ImportTDE[[#This Row],[Ref Labo]]="","",IF(AND(ImportTDE[[#This Row],[NbHum]]<>"",ImportTDE[[#This Row],[NbHum]]<2),1,"")) -> 
B109: =IF(ROW(ImportTDE[[#This Row],[Ref Labo]])-ROW(ImportTDE[[#Headers],[Ref Labo]])>NbEch,"",ROW(ImportTDE[[#This Row],[Ref Labo]])-ROW(ImportTDE[[#Headers],[Ref Labo]])) -> 105 | C109: =IF(ImportTDE[[#This Row],[Ligne]]="","",TDE&"-"&REPT("0",LEN(NbEch)-LEN(ImportTDE[[#This Row],[Ligne]]))&ImportTDE[[#This Row],[Ligne]]) ->  | H109: =IF(ImportTDE[[#This Row],[Ligne]]="","",IF(ImportTDE[[#This Row],[Ref Client0]]="",Prefixe &ImportTDE[[#This Row],[Ligne]]&Suffixe,ImportTDE[[#This Row],[Ref Client0]])) -> Lot 105 | I109: =IF(ImportTDE[[#This Row],[Ligne]]="","",IF(ImportTDE[[#This Row],[Ligne]]=1,ImportTDE[[#This Row],[Mine0]],IF(ImportTDE[[#This Row],[Mine0]]="",OFFSET(ImportTDE[[#Headers],[Mine]],ImportTDE[[#This Row],[Ligne]]-1,0,1,1),ImportTDE[[#This Row],[Mine0]]))) -> 0 | J109: =IF(ImportTDE[[#This Row],[Ligne]]="","",IF(ImportTDE[[#This Row],[Ligne]]=1,ImportTDE[[#This Row],[Tonnage0]],IF(ImportTDE[[#This Row],[Tonnage0]]="",OFFSET(ImportTDE[[#Headers],[Tonnage]],ImportTDE[[#This Row],[Ligne]]-1,0,1,1),ImportTDE[[#This Row],[Tonnage0]]))) -> 0 | K109: =IF(ImportTDE[[#This Row],[Ref Labo]]="","",IF(ImportTDE[[#This Row],[Tonnage]]>2000,1,"")) ->  | L109: =IF(ImportTDE[[#This Row],[Ref Labo]]="","",IF(AND(ImportTDE[[#This Row],[NbHum]]<>"",ImportTDE[[#This Row],[NbHum]]<2),1,"")) -> 
B110: =IF(ROW(ImportTDE[[#This Row],[Ref Labo]])-ROW(ImportTDE[[#Headers],[Ref Labo]])>NbEch,"",ROW(ImportTDE[[#This Row],[Ref Labo]])-ROW(ImportTDE[[#Headers],[Ref Labo]])) -> 106 | C110: =IF(ImportTDE[[#This Row],[Ligne]]="","",TDE&"-"&REPT("0",LEN(NbEch)-LEN(ImportTDE[[#This Row],[Ligne]]))&ImportTDE[[#This Row],[Ligne]]) ->  | H110: =IF(ImportTDE[[#This Row],[Ligne]]="","",IF(ImportTDE[[#This Row],[Ref Client0]]="",Prefixe &ImportTDE[[#This Row],[Ligne]]&Suffixe,ImportTDE[[#This Row],[Ref Client0]])) -> Lot 106 | I110: =IF(ImportTDE[[#This Row],[Ligne]]="","",IF(ImportTDE[[#This Row],[Ligne]]=1,ImportTDE[[#This Row],[Mine0]],IF(ImportTDE[[#This Row],[Mine0]]="",OFFSET(ImportTDE[[#Headers],[Mine]],ImportTDE[[#This Row],[Ligne]]-1,0,1,1),ImportTDE[[#This Row],[Mine0]]))) -> 0 | J110: =IF(ImportTDE[[#This Row],[Ligne]]="","",IF(ImportTDE[[#This Row],[Ligne]]=1,ImportTDE[[#This Row],[Tonnage0]],IF(ImportTDE[[#This Row],[Tonnage0]]="",OFFSET(ImportTDE[[#Headers],[Tonnage]],ImportTDE[[#This Row],[Ligne]]-1,0,1,1),ImportTDE[[#This Row],[Tonnage0]]))) -> 0 | K110: =IF(ImportTDE[[#This Row],[Ref Labo]]="","",IF(ImportTDE[[#This Row],[Tonnage]]>2000,1,"")) ->  | L110: =IF(ImportTDE[[#This Row],[Ref Labo]]="","",IF(AND(ImportTDE[[#This Row],[NbHum]]<>"",ImportTDE[[#This Row],[NbHum]]<2),1,"")) -> 
B111: =IF(ROW(ImportTDE[[#This Row],[Ref Labo]])-ROW(ImportTDE[[#Headers],[Ref Labo]])>NbEch,"",ROW(ImportTDE[[#This Row],[Ref Labo]])-ROW(ImportTDE[[#Headers],[Ref Labo]])) -> 107 | C111: =IF(ImportTDE[[#This Row],[Ligne]]="","",TDE&"-"&REPT("0",LEN(NbEch)-LEN(ImportTDE[[#This Row],[Ligne]]))&ImportTDE[[#This Row],[Ligne]]) ->  | H111: =IF(ImportTDE[[#This Row],[Ligne]]="","",IF(ImportTDE[[#This Row],[Ref Client0]]="",Prefixe &ImportTDE[[#This Row],[Ligne]]&Suffixe,ImportTDE[[#This Row],[Ref Client0]])) -> Lot 107 | I111: =IF(ImportTDE[[#This Row],[Ligne]]="","",IF(ImportTDE[[#This Row],[Ligne]]=1,ImportTDE[[#This Row],[Mine0]],IF(ImportTDE[[#This Row],[Mine0]]="",OFFSET(ImportTDE[[#Headers],[Mine]],ImportTDE[[#This Row],[Ligne]]-1,0,1,1),ImportTDE[[#This Row],[Mine0]]))) -> 0 | J111: =IF(ImportTDE[[#This Row],[Ligne]]="","",IF(ImportTDE[[#This Row],[Ligne]]=1,ImportTDE[[#This Row],[Tonnage0]],IF(ImportTDE[[#This Row],[Tonnage0]]="",OFFSET(ImportTDE[[#Headers],[Tonnage]],ImportTDE[[#This Row],[Ligne]]-1,0,1,1),ImportTDE[[#This Row],[Tonnage0]]))) -> 0 | K111: =IF(ImportTDE[[#This Row],[Ref Labo]]="","",IF(ImportTDE[[#This Row],[Tonnage]]>2000,1,"")) ->  | L111: =IF(ImportTDE[[#This Row],[Ref Labo]]="","",IF(AND(ImportTDE[[#This Row],[NbHum]]<>"",ImportTDE[[#This Row],[NbHum]]<2),1,"")) -> 
B112: =IF(ROW(ImportTDE[[#This Row],[Ref Labo]])-ROW(ImportTDE[[#Headers],[Ref Labo]])>NbEch,"",ROW(ImportTDE[[#This Row],[Ref Labo]])-ROW(ImportTDE[[#Headers],[Ref Labo]])) -> 108 | C112: =IF(ImportTDE[[#This Row],[Ligne]]="","",TDE&"-"&REPT("0",LEN(NbEch)-LEN(ImportTDE[[#This Row],[Ligne]]))&ImportTDE[[#This Row],[Ligne]]) ->  | H112: =IF(ImportTDE[[#This Row],[Ligne]]="","",IF(ImportTDE[[#This Row],[Ref Client0]]="",Prefixe &ImportTDE[[#This Row],[Ligne]]&Suffixe,ImportTDE[[#This Row],[Ref Client0]])) -> Lot 108 | I112: =IF(ImportTDE[[#This Row],[Ligne]]="","",IF(ImportTDE[[#This Row],[Ligne]]=1,ImportTDE[[#This Row],[Mine0]],IF(ImportTDE[[#This Row],[Mine0]]="",OFFSET(ImportTDE[[#Headers],[Mine]],ImportTDE[[#This Row],[Ligne]]-1,0,1,1),ImportTDE[[#This Row],[Mine0]]))) -> 0 | J112: =IF(ImportTDE[[#This Row],[Ligne]]="","",IF(ImportTDE[[#This Row],[Ligne]]=1,ImportTDE[[#This Row],[Tonnage0]],IF(ImportTDE[[#This Row],[Tonnage0]]="",OFFSET(ImportTDE[[#Headers],[Tonnage]],ImportTDE[[#This Row],[Ligne]]-1,0,1,1),ImportTDE[[#This Row],[Tonnage0]]))) -> 0 | K112: =IF(ImportTDE[[#This Row],[Ref Labo]]="","",IF(ImportTDE[[#This Row],[Tonnage]]>2000,1,"")) ->  | L112: =IF(ImportTDE[[#This Row],[Ref Labo]]="","",IF(AND(ImportTDE[[#This Row],[NbHum]]<>"",ImportTDE[[#This Row],[NbHum]]<2),1,"")) -> 
B113: =IF(ROW(ImportTDE[[#This Row],[Ref Labo]])-ROW(ImportTDE[[#Headers],[Ref Labo]])>NbEch,"",ROW(ImportTDE[[#This Row],[Ref Labo]])-ROW(ImportTDE[[#Headers],[Ref Labo]])) -> 109 | C113: =IF(ImportTDE[[#This Row],[Ligne]]="","",TDE&"-"&REPT("0",LEN(NbEch)-LEN(ImportTDE[[#This Row],[Ligne]]))&ImportTDE[[#This Row],[Ligne]]) ->  | H113: =IF(ImportTDE[[#This Row],[Ligne]]="","",IF(ImportTDE[[#This Row],[Ref Client0]]="",Prefixe &ImportTDE[[#This Row],[Ligne]]&Suffixe,ImportTDE[[#This Row],[Ref Client0]])) -> Lot 109 | I113: =IF(ImportTDE[[#This Row],[Ligne]]="","",IF(ImportTDE[[#This Row],[Ligne]]=1,ImportTDE[[#This Row],[Mine0]],IF(ImportTDE[[#This Row],[Mine0]]="",OFFSET(ImportTDE[[#Headers],[Mine]],ImportTDE[[#This Row],[Ligne]]-1,0,1,1),ImportTDE[[#This Row],[Mine0]]))) -> 0 | J113: =IF(ImportTDE[[#This Row],[Ligne]]="","",IF(ImportTDE[[#This Row],[Ligne]]=1,ImportTDE[[#This Row],[Tonnage0]],IF(ImportTDE[[#This Row],[Tonnage0]]="",OFFSET(ImportTDE[[#Headers],[Tonnage]],ImportTDE[[#This Row],[Ligne]]-1,0,1,1),ImportTDE[[#This Row],[Tonnage0]]))) -> 0 | K113: =IF(ImportTDE[[#This Row],[Ref Labo]]="","",IF(ImportTDE[[#This Row],[Tonnage]]>2000,1,"")) ->  | L113: =IF(ImportTDE[[#This Row],[Ref Labo]]="","",IF(AND(ImportTDE[[#This Row],[NbHum]]<>"",ImportTDE[[#This Row],[NbHum]]<2),1,"")) -> 
B114: =IF(ROW(ImportTDE[[#This Row],[Ref Labo]])-ROW(ImportTDE[[#Headers],[Ref Labo]])>NbEch,"",ROW(ImportTDE[[#This Row],[Ref Labo]])-ROW(ImportTDE[[#Headers],[Ref Labo]])) -> 110 | C114: =IF(ImportTDE[[#This Row],[Ligne]]="","",TDE&"-"&REPT("0",LEN(NbEch)-LEN(ImportTDE[[#This Row],[Ligne]]))&ImportTDE[[#This Row],[Ligne]]) ->  | H114: =IF(ImportTDE[[#This Row],[Ligne]]="","",IF(ImportTDE[[#This Row],[Ref Client0]]="",Prefixe &ImportTDE[[#This Row],[Ligne]]&Suffixe,ImportTDE[[#This Row],[Ref Client0]])) -> Lot 110 | I114: =IF(ImportTDE[[#This Row],[Ligne]]="","",IF(ImportTDE[[#This Row],[Ligne]]=1,ImportTDE[[#This Row],[Mine0]],IF(ImportTDE[[#This Row],[Mine0]]="",OFFSET(ImportTDE[[#Headers],[Mine]],ImportTDE[[#This Row],[Ligne]]-1,0,1,1),ImportTDE[[#This Row],[Mine0]]))) -> 0 | J114: =IF(ImportTDE[[#This Row],[Ligne]]="","",IF(ImportTDE[[#This Row],[Ligne]]=1,ImportTDE[[#This Row],[Tonnage0]],IF(ImportTDE[[#This Row],[Tonnage0]]="",OFFSET(ImportTDE[[#Headers],[Tonnage]],ImportTDE[[#This Row],[Ligne]]-1,0,1,1),ImportTDE[[#This Row],[Tonnage0]]))) -> 0 | K114: =IF(ImportTDE[[#This Row],[Ref Labo]]="","",IF(ImportTDE[[#This Row],[Tonnage]]>2000,1,"")) ->  | L114: =IF(ImportTDE[[#This Row],[Ref Labo]]="","",IF(AND(ImportTDE[[#This Row],[NbHum]]<>"",ImportTDE[[#This Row],[NbHum]]<2),1,"")) -> 
B115: =IF(ROW(ImportTDE[[#This Row],[Ref Labo]])-ROW(ImportTDE[[#Headers],[Ref Labo]])>NbEch,"",ROW(ImportTDE[[#This Row],[Ref Labo]])-ROW(ImportTDE[[#Headers],[Ref Labo]])) -> 111 | C115: =IF(ImportTDE[[#This Row],[Ligne]]="","",TDE&"-"&REPT("0",LEN(NbEch)-LEN(ImportTDE[[#This Row],[Ligne]]))&ImportTDE[[#This Row],[Ligne]]) ->  | H115: =IF(ImportTDE[[#This Row],[Ligne]]="","",IF(ImportTDE[[#This Row],[Ref Client0]]="",Prefixe &ImportTDE[[#This Row],[Ligne]]&Suffixe,ImportTDE[[#This Row],[Ref Client0]])) -> Lot 111 | I115: =IF(ImportTDE[[#This Row],[Ligne]]="","",IF(ImportTDE[[#This Row],[Ligne]]=1,ImportTDE[[#This Row],[Mine0]],IF(ImportTDE[[#This Row],[Mine0]]="",OFFSET(ImportTDE[[#Headers],[Mine]],ImportTDE[[#This Row],[Ligne]]-1,0,1,1),ImportTDE[[#This Row],[Mine0]]))) -> 0 | J115: =IF(ImportTDE[[#This Row],[Ligne]]="","",IF(ImportTDE[[#This Row],[Ligne]]=1,ImportTDE[[#This Row],[Tonnage0]],IF(ImportTDE[[#This Row],[Tonnage0]]="",OFFSET(ImportTDE[[#Headers],[Tonnage]],ImportTDE[[#This Row],[Ligne]]-1,0,1,1),ImportTDE[[#This Row],[Tonnage0]]))) -> 0 | K115: =IF(ImportTDE[[#This Row],[Ref Labo]]="","",IF(ImportTDE[[#This Row],[Tonnage]]>2000,1,"")) ->  | L115: =IF(ImportTDE[[#This Row],[Ref Labo]]="","",IF(AND(ImportTDE[[#This Row],[NbHum]]<>"",ImportTDE[[#This Row],[NbHum]]<2),1,"")) -> 
B116: =IF(ROW(ImportTDE[[#This Row],[Ref Labo]])-ROW(ImportTDE[[#Headers],[Ref Labo]])>NbEch,"",ROW(ImportTDE[[#This Row],[Ref Labo]])-ROW(ImportTDE[[#Headers],[Ref Labo]])) -> 112 | C116: =IF(ImportTDE[[#This Row],[Ligne]]="","",TDE&"-"&REPT("0",LEN(NbEch)-LEN(ImportTDE[[#This Row],[Ligne]]))&ImportTDE[[#This Row],[Ligne]]) ->  | H116: =IF(ImportTDE[[#This Row],[Ligne]]="","",IF(ImportTDE[[#This Row],[Ref Client0]]="",Prefixe &ImportTDE[[#This Row],[Ligne]]&Suffixe,ImportTDE[[#This Row],[Ref Client0]])) -> Lot 112 | I116: =IF(ImportTDE[[#This Row],[Ligne]]="","",IF(ImportTDE[[#This Row],[Ligne]]=1,ImportTDE[[#This Row],[Mine0]],IF(ImportTDE[[#This Row],[Mine0]]="",OFFSET(ImportTDE[[#Headers],[Mine]],ImportTDE[[#This Row],[Ligne]]-1,0,1,1),ImportTDE[[#This Row],[Mine0]]))) -> 0 | J116: =IF(ImportTDE[[#This Row],[Ligne]]="","",IF(ImportTDE[[#This Row],[Ligne]]=1,ImportTDE[[#This Row],[Tonnage0]],IF(ImportTDE[[#This Row],[Tonnage0]]="",OFFSET(ImportTDE[[#Headers],[Tonnage]],ImportTDE[[#This Row],[Ligne]]-1,0,1,1),ImportTDE[[#This Row],[Tonnage0]]))) -> 0 | K116: =IF(ImportTDE[[#This Row],[Ref Labo]]="","",IF(ImportTDE[[#This Row],[Tonnage]]>2000,1,"")) ->  | L116: =IF(ImportTDE[[#This Row],[Ref Labo]]="","",IF(AND(ImportTDE[[#This Row],[NbHum]]<>"",ImportTDE[[#This Row],[NbHum]]<2),1,"")) -> 
B117: =IF(ROW(ImportTDE[[#This Row],[Ref Labo]])-ROW(ImportTDE[[#Headers],[Ref Labo]])>NbEch,"",ROW(ImportTDE[[#This Row],[Ref Labo]])-ROW(ImportTDE[[#Headers],[Ref Labo]])) -> 113 | C117: =IF(ImportTDE[[#This Row],[Ligne]]="","",TDE&"-"&REPT("0",LEN(NbEch)-LEN(ImportTDE[[#This Row],[Ligne]]))&ImportTDE[[#This Row],[Ligne]]) ->  | H117: =IF(ImportTDE[[#This Row],[Ligne]]="","",IF(ImportTDE[[#This Row],[Ref Client0]]="",Prefixe &ImportTDE[[#This Row],[Ligne]]&Suffixe,ImportTDE[[#This Row],[Ref Client0]])) -> Lot 113 | I117: =IF(ImportTDE[[#This Row],[Ligne]]="","",IF(ImportTDE[[#This Row],[Ligne]]=1,ImportTDE[[#This Row],[Mine0]],IF(ImportTDE[[#This Row],[Mine0]]="",OFFSET(ImportTDE[[#Headers],[Mine]],ImportTDE[[#This Row],[Ligne]]-1,0,1,1),ImportTDE[[#This Row],[Mine0]]))) -> 0 | J117: =IF(ImportTDE[[#This Row],[Ligne]]="","",IF(ImportTDE[[#This Row],[Ligne]]=1,ImportTDE[[#This Row],[Tonnage0]],IF(ImportTDE[[#This Row],[Tonnage0]]="",OFFSET(ImportTDE[[#Headers],[Tonnage]],ImportTDE[[#This Row],[Ligne]]-1,0,1,1),ImportTDE[[#This Row],[Tonnage0]]))) -> 0 | K117: =IF(ImportTDE[[#This Row],[Ref Labo]]="","",IF(ImportTDE[[#This Row],[Tonnage]]>2000,1,"")) ->  | L117: =IF(ImportTDE[[#This Row],[Ref Labo]]="","",IF(AND(ImportTDE[[#This Row],[NbHum]]<>"",ImportTDE[[#This Row],[NbHum]]<2),1,"")) -> 
B118: =IF(ROW(ImportTDE[[#This Row],[Ref Labo]])-ROW(ImportTDE[[#Headers],[Ref Labo]])>NbEch,"",ROW(ImportTDE[[#This Row],[Ref Labo]])-ROW(ImportTDE[[#Headers],[Ref Labo]])) -> 114 | C118: =IF(ImportTDE[[#This Row],[Ligne]]="","",TDE&"-"&REPT("0",LEN(NbEch)-LEN(ImportTDE[[#This Row],[Ligne]]))&ImportTDE[[#This Row],[Ligne]]) ->  | H118: =IF(ImportTDE[[#This Row],[Ligne]]="","",IF(ImportTDE[[#This Row],[Ref Client0]]="",Prefixe &ImportTDE[[#This Row],[Ligne]]&Suffixe,ImportTDE[[#This Row],[Ref Client0]])) -> Lot 114 | I118: =IF(ImportTDE[[#This Row],[Ligne]]="","",IF(ImportTDE[[#This Row],[Ligne]]=1,ImportTDE[[#This Row],[Mine0]],IF(ImportTDE[[#This Row],[Mine0]]="",OFFSET(ImportTDE[[#Headers],[Mine]],ImportTDE[[#This Row],[Ligne]]-1,0,1,1),ImportTDE[[#This Row],[Mine0]]))) -> 0 | J118: =IF(ImportTDE[[#This Row],[Ligne]]="","",IF(ImportTDE[[#This Row],[Ligne]]=1,ImportTDE[[#This Row],[Tonnage0]],IF(ImportTDE[[#This Row],[Tonnage0]]="",OFFSET(ImportTDE[[#Headers],[Tonnage]],ImportTDE[[#This Row],[Ligne]]-1,0,1,1),ImportTDE[[#This Row],[Tonnage0]]))) -> 0 | K118: =IF(ImportTDE[[#This Row],[Ref Labo]]="","",IF(ImportTDE[[#This Row],[Tonnage]]>2000,1,"")) ->  | L118: =IF(ImportTDE[[#This Row],[Ref Labo]]="","",IF(AND(ImportTDE[[#This Row],[NbHum]]<>"",ImportTDE[[#This Row],[NbHum]]<2),1,"")) -> 
B119: =IF(ROW(ImportTDE[[#This Row],[Ref Labo]])-ROW(ImportTDE[[#Headers],[Ref Labo]])>NbEch,"",ROW(ImportTDE[[#This Row],[Ref Labo]])-ROW(ImportTDE[[#Headers],[Ref Labo]])) -> 115 | C119: =IF(ImportTDE[[#This Row],[Ligne]]="","",TDE&"-"&REPT("0",LEN(NbEch)-LEN(ImportTDE[[#This Row],[Ligne]]))&ImportTDE[[#This Row],[Ligne]]) ->  | H119: =IF(ImportTDE[[#This Row],[Ligne]]="","",IF(ImportTDE[[#This Row],[Ref Client0]]="",Prefixe &ImportTDE[[#This Row],[Ligne]]&Suffixe,ImportTDE[[#This Row],[Ref Client0]])) -> Lot 115 | I119: =IF(ImportTDE[[#This Row],[Ligne]]="","",IF(ImportTDE[[#This Row],[Ligne]]=1,ImportTDE[[#This Row],[Mine0]],IF(ImportTDE[[#This Row],[Mine0]]="",OFFSET(ImportTDE[[#Headers],[Mine]],ImportTDE[[#This Row],[Ligne]]-1,0,1,1),ImportTDE[[#This Row],[Mine0]]))) -> 0 | J119: =IF(ImportTDE[[#This Row],[Ligne]]="","",IF(ImportTDE[[#This Row],[Ligne]]=1,ImportTDE[[#This Row],[Tonnage0]],IF(ImportTDE[[#This Row],[Tonnage0]]="",OFFSET(ImportTDE[[#Headers],[Tonnage]],ImportTDE[[#This Row],[Ligne]]-1,0,1,1),ImportTDE[[#This Row],[Tonnage0]]))) -> 0 | K119: =IF(ImportTDE[[#This Row],[Ref Labo]]="","",IF(ImportTDE[[#This Row],[Tonnage]]>2000,1,"")) ->  | L119: =IF(ImportTDE[[#This Row],[Ref Labo]]="","",IF(AND(ImportTDE[[#This Row],[NbHum]]<>"",ImportTDE[[#This Row],[NbHum]]<2),1,"")) -> 
B120: =IF(ROW(ImportTDE[[#This Row],[Ref Labo]])-ROW(ImportTDE[[#Headers],[Ref Labo]])>NbEch,"",ROW(ImportTDE[[#This Row],[Ref Labo]])-ROW(ImportTDE[[#Headers],[Ref Labo]])) -> 116 | C120: =IF(ImportTDE[[#This Row],[Ligne]]="","",TDE&"-"&REPT("0",LEN(NbEch)-LEN(ImportTDE[[#This Row],[Ligne]]))&ImportTDE[[#This Row],[Ligne]]) ->  | H120: =IF(ImportTDE[[#This Row],[Ligne]]="","",IF(ImportTDE[[#This Row],[Ref Client0]]="",Prefixe &ImportTDE[[#This Row],[Ligne]]&Suffixe,ImportTDE[[#This Row],[Ref Client0]])) -> Lot 116 | I120: =IF(ImportTDE[[#This Row],[Ligne]]="","",IF(ImportTDE[[#This Row],[Ligne]]=1,ImportTDE[[#This Row],[Mine0]],IF(ImportTDE[[#This Row],[Mine0]]="",OFFSET(ImportTDE[[#Headers],[Mine]],ImportTDE[[#This Row],[Ligne]]-1,0,1,1),ImportTDE[[#This Row],[Mine0]]))) -> 0 | J120: =IF(ImportTDE[[#This Row],[Ligne]]="","",IF(ImportTDE[[#This Row],[Ligne]]=1,ImportTDE[[#This Row],[Tonnage0]],IF(ImportTDE[[#This Row],[Tonnage0]]="",OFFSET(ImportTDE[[#Headers],[Tonnage]],ImportTDE[[#This Row],[Ligne]]-1,0,1,1),ImportTDE[[#This Row],[Tonnage0]]))) -> 0 | K120: =IF(ImportTDE[[#This Row],[Ref Labo]]="","",IF(ImportTDE[[#This Row],[Tonnage]]>2000,1,"")) ->  | L120: =IF(ImportTDE[[#This Row],[Ref Labo]]="","",IF(AND(ImportTDE[[#This Row],[NbHum]]<>"",ImportTDE[[#This Row],[NbHum]]<2),1,"")) -> 
B121: =IF(ROW(ImportTDE[[#This Row],[Ref Labo]])-ROW(ImportTDE[[#Headers],[Ref Labo]])>NbEch,"",ROW(ImportTDE[[#This Row],[Ref Labo]])-ROW(ImportTDE[[#Headers],[Ref Labo]])) -> 117 | C121: =IF(ImportTDE[[#This Row],[Ligne]]="","",TDE&"-"&REPT("0",LEN(NbEch)-LEN(ImportTDE[[#This Row],[Ligne]]))&ImportTDE[[#This Row],[Ligne]]) ->  | H121: =IF(ImportTDE[[#This Row],[Ligne]]="","",IF(ImportTDE[[#This Row],[Ref Client0]]="",Prefixe &ImportTDE[[#This Row],[Ligne]]&Suffixe,ImportTDE[[#This Row],[Ref Client0]])) -> Lot 117 | I121: =IF(ImportTDE[[#This Row],[Ligne]]="","",IF(ImportTDE[[#This Row],[Ligne]]=1,ImportTDE[[#This Row],[Mine0]],IF(ImportTDE[[#This Row],[Mine0]]="",OFFSET(ImportTDE[[#Headers],[Mine]],ImportTDE[[#This Row],[Ligne]]-1,0,1,1),ImportTDE[[#This Row],[Mine0]]))) -> 0 | J121: =IF(ImportTDE[[#This Row],[Ligne]]="","",IF(ImportTDE[[#This Row],[Ligne]]=1,ImportTDE[[#This Row],[Tonnage0]],IF(ImportTDE[[#This Row],[Tonnage0]]="",OFFSET(ImportTDE[[#Headers],[Tonnage]],ImportTDE[[#This Row],[Ligne]]-1,0,1,1),ImportTDE[[#This Row],[Tonnage0]]))) -> 0 | K121: =IF(ImportTDE[[#This Row],[Ref Labo]]="","",IF(ImportTDE[[#This Row],[Tonnage]]>2000,1,"")) ->  | L121: =IF(ImportTDE[[#This Row],[Ref Labo]]="","",IF(AND(ImportTDE[[#This Row],[NbHum]]<>"",ImportTDE[[#This Row],[NbHum]]<2),1,"")) -> 
B122: =IF(ROW(ImportTDE[[#This Row],[Ref Labo]])-ROW(ImportTDE[[#Headers],[Ref Labo]])>NbEch,"",ROW(ImportTDE[[#This Row],[Ref Labo]])-ROW(ImportTDE[[#Headers],[Ref Labo]])) -> 118 | C122: =IF(ImportTDE[[#This Row],[Ligne]]="","",TDE&"-"&REPT("0",LEN(NbEch)-LEN(ImportTDE[[#This Row],[Ligne]]))&ImportTDE[[#This Row],[Ligne]]) ->  | H122: =IF(ImportTDE[[#This Row],[Ligne]]="","",IF(ImportTDE[[#This Row],[Ref Client0]]="",Prefixe &ImportTDE[[#This Row],[Ligne]]&Suffixe,ImportTDE[[#This Row],[Ref Client0]])) -> Lot 118 | I122: =IF(ImportTDE[[#This Row],[Ligne]]="","",IF(ImportTDE[[#This Row],[Ligne]]=1,ImportTDE[[#This Row],[Mine0]],IF(ImportTDE[[#This Row],[Mine0]]="",OFFSET(ImportTDE[[#Headers],[Mine]],ImportTDE[[#This Row],[Ligne]]-1,0,1,1),ImportTDE[[#This Row],[Mine0]]))) -> 0 | J122: =IF(ImportTDE[[#This Row],[Ligne]]="","",IF(ImportTDE[[#This Row],[Ligne]]=1,ImportTDE[[#This Row],[Tonnage0]],IF(ImportTDE[[#This Row],[Tonnage0]]="",OFFSET(ImportTDE[[#Headers],[Tonnage]],ImportTDE[[#This Row],[Ligne]]-1,0,1,1),ImportTDE[[#This Row],[Tonnage0]]))) -> 0 | K122: =IF(ImportTDE[[#This Row],[Ref Labo]]="","",IF(ImportTDE[[#This Row],[Tonnage]]>2000,1,"")) ->  | L122: =IF(ImportTDE[[#This Row],[Ref Labo]]="","",IF(AND(ImportTDE[[#This Row],[NbHum]]<>"",ImportTDE[[#This Row],[NbHum]]<2),1,"")) -> 
B123: =IF(ROW(ImportTDE[[#This Row],[Ref Labo]])-ROW(ImportTDE[[#Headers],[Ref Labo]])>NbEch,"",ROW(ImportTDE[[#This Row],[Ref Labo]])-ROW(ImportTDE[[#Headers],[Ref Labo]])) -> 119 | C123: =IF(ImportTDE[[#This Row],[Ligne]]="","",TDE&"-"&REPT("0",LEN(NbEch)-LEN(ImportTDE[[#This Row],[Ligne]]))&ImportTDE[[#This Row],[Ligne]]) ->  | H123: =IF(ImportTDE[[#This Row],[Ligne]]="","",IF(ImportTDE[[#This Row],[Ref Client0]]="",Prefixe &ImportTDE[[#This Row],[Ligne]]&Suffixe,ImportTDE[[#This Row],[Ref Client0]])) -> Lot 119 | I123: =IF(ImportTDE[[#This Row],[Ligne]]="","",IF(ImportTDE[[#This Row],[Ligne]]=1,ImportTDE[[#This Row],[Mine0]],IF(ImportTDE[[#This Row],[Mine0]]="",OFFSET(ImportTDE[[#Headers],[Mine]],ImportTDE[[#This Row],[Ligne]]-1,0,1,1),ImportTDE[[#This Row],[Mine0]]))) -> 0 | J123: =IF(ImportTDE[[#This Row],[Ligne]]="","",IF(ImportTDE[[#This Row],[Ligne]]=1,ImportTDE[[#This Row],[Tonnage0]],IF(ImportTDE[[#This Row],[Tonnage0]]="",OFFSET(ImportTDE[[#Headers],[Tonnage]],ImportTDE[[#This Row],[Ligne]]-1,0,1,1),ImportTDE[[#This Row],[Tonnage0]]))) -> 0 | K123: =IF(ImportTDE[[#This Row],[Ref Labo]]="","",IF(ImportTDE[[#This Row],[Tonnage]]>2000,1,"")) ->  | L123: =IF(ImportTDE[[#This Row],[Ref Labo]]="","",IF(AND(ImportTDE[[#This Row],[NbHum]]<>"",ImportTDE[[#This Row],[NbHum]]<2),1,"")) -> 
B124: =IF(ROW(ImportTDE[[#This Row],[Ref Labo]])-ROW(ImportTDE[[#Headers],[Ref Labo]])>NbEch,"",ROW(ImportTDE[[#This Row],[Ref Labo]])-ROW(ImportTDE[[#Headers],[Ref Labo]])) -> 120 | C124: =IF(ImportTDE[[#This Row],[Ligne]]="","",TDE&"-"&REPT("0",LEN(NbEch)-LEN(ImportTDE[[#This Row],[Ligne]]))&ImportTDE[[#This Row],[Ligne]]) ->  | H124: =IF(ImportTDE[[#This Row],[Ligne]]="","",IF(ImportTDE[[#This Row],[Ref Client0]]="",Prefixe &ImportTDE[[#This Row],[Ligne]]&Suffixe,ImportTDE[[#This Row],[Ref Client0]])) -> Lot 120 | I124: =IF(ImportTDE[[#This Row],[Ligne]]="","",IF(ImportTDE[[#This Row],[Ligne]]=1,ImportTDE[[#This Row],[Mine0]],IF(ImportTDE[[#This Row],[Mine0]]="",OFFSET(ImportTDE[[#Headers],[Mine]],ImportTDE[[#This Row],[Ligne]]-1,0,1,1),ImportTDE[[#This Row],[Mine0]]))) -> 0 | J124: =IF(ImportTDE[[#This Row],[Ligne]]="","",IF(ImportTDE[[#This Row],[Ligne]]=1,ImportTDE[[#This Row],[Tonnage0]],IF(ImportTDE[[#This Row],[Tonnage0]]="",OFFSET(ImportTDE[[#Headers],[Tonnage]],ImportTDE[[#This Row],[Ligne]]-1,0,1,1),ImportTDE[[#This Row],[Tonnage0]]))) -> 0 | K124: =IF(ImportTDE[[#This Row],[Ref Labo]]="","",IF(ImportTDE[[#This Row],[Tonnage]]>2000,1,"")) ->  | L124: =IF(ImportTDE[[#This Row],[Ref Labo]]="","",IF(AND(ImportTDE[[#This Row],[NbHum]]<>"",ImportTDE[[#This Row],[NbHum]]<2),1,"")) -> 
B125: =IF(ROW(ImportTDE[[#This Row],[Ref Labo]])-ROW(ImportTDE[[#Headers],[Ref Labo]])>NbEch,"",ROW(ImportTDE[[#This Row],[Ref Labo]])-ROW(ImportTDE[[#Headers],[Ref Labo]])) -> 121 | C125: =IF(ImportTDE[[#This Row],[Ligne]]="","",TDE&"-"&REPT("0",LEN(NbEch)-LEN(ImportTDE[[#This Row],[Ligne]]))&ImportTDE[[#This Row],[Ligne]]) ->  | H125: =IF(ImportTDE[[#This Row],[Ligne]]="","",IF(ImportTDE[[#This Row],[Ref Client0]]="",Prefixe &ImportTDE[[#This Row],[Ligne]]&Suffixe,ImportTDE[[#This Row],[Ref Client0]])) -> Lot 121 | I125: =IF(ImportTDE[[#This Row],[Ligne]]="","",IF(ImportTDE[[#This Row],[Ligne]]=1,ImportTDE[[#This Row],[Mine0]],IF(ImportTDE[[#This Row],[Mine0]]="",OFFSET(ImportTDE[[#Headers],[Mine]],ImportTDE[[#This Row],[Ligne]]-1,0,1,1),ImportTDE[[#This Row],[Mine0]]))) -> 0 | J125: =IF(ImportTDE[[#This Row],[Ligne]]="","",IF(ImportTDE[[#This Row],[Ligne]]=1,ImportTDE[[#This Row],[Tonnage0]],IF(ImportTDE[[#This Row],[Tonnage0]]="",OFFSET(ImportTDE[[#Headers],[Tonnage]],ImportTDE[[#This Row],[Ligne]]-1,0,1,1),ImportTDE[[#This Row],[Tonnage0]]))) -> 0 | K125: =IF(ImportTDE[[#This Row],[Ref Labo]]="","",IF(ImportTDE[[#This Row],[Tonnage]]>2000,1,"")) ->  | L125: =IF(ImportTDE[[#This Row],[Ref Labo]]="","",IF(AND(ImportTDE[[#This Row],[NbHum]]<>"",ImportTDE[[#This Row],[NbHum]]<2),1,"")) -> 
B126: =IF(ROW(ImportTDE[[#This Row],[Ref Labo]])-ROW(ImportTDE[[#Headers],[Ref Labo]])>NbEch,"",ROW(ImportTDE[[#This Row],[Ref Labo]])-ROW(ImportTDE[[#Headers],[Ref Labo]])) -> 122 | C126: =IF(ImportTDE[[#This Row],[Ligne]]="","",TDE&"-"&REPT("0",LEN(NbEch)-LEN(ImportTDE[[#This Row],[Ligne]]))&ImportTDE[[#This Row],[Ligne]]) ->  | H126: =IF(ImportTDE[[#This Row],[Ligne]]="","",IF(ImportTDE[[#This Row],[Ref Client0]]="",Prefixe &ImportTDE[[#This Row],[Ligne]]&Suffixe,ImportTDE[[#This Row],[Ref Client0]])) -> Lot 122 | I126: =IF(ImportTDE[[#This Row],[Ligne]]="","",IF(ImportTDE[[#This Row],[Ligne]]=1,ImportTDE[[#This Row],[Mine0]],IF(ImportTDE[[#This Row],[Mine0]]="",OFFSET(ImportTDE[[#Headers],[Mine]],ImportTDE[[#This Row],[Ligne]]-1,0,1,1),ImportTDE[[#This Row],[Mine0]]))) -> 0 | J126: =IF(ImportTDE[[#This Row],[Ligne]]="","",IF(ImportTDE[[#This Row],[Ligne]]=1,ImportTDE[[#This Row],[Tonnage0]],IF(ImportTDE[[#This Row],[Tonnage0]]="",OFFSET(ImportTDE[[#Headers],[Tonnage]],ImportTDE[[#This Row],[Ligne]]-1,0,1,1),ImportTDE[[#This Row],[Tonnage0]]))) -> 0 | K126: =IF(ImportTDE[[#This Row],[Ref Labo]]="","",IF(ImportTDE[[#This Row],[Tonnage]]>2000,1,"")) ->  | L126: =IF(ImportTDE[[#This Row],[Ref Labo]]="","",IF(AND(ImportTDE[[#This Row],[NbHum]]<>"",ImportTDE[[#This Row],[NbHum]]<2),1,"")) -> 
B127: =IF(ROW(ImportTDE[[#This Row],[Ref Labo]])-ROW(ImportTDE[[#Headers],[Ref Labo]])>NbEch,"",ROW(ImportTDE[[#This Row],[Ref Labo]])-ROW(ImportTDE[[#Headers],[Ref Labo]])) -> 123 | C127: =IF(ImportTDE[[#This Row],[Ligne]]="","",TDE&"-"&REPT("0",LEN(NbEch)-LEN(ImportTDE[[#This Row],[Ligne]]))&ImportTDE[[#This Row],[Ligne]]) ->  | H127: =IF(ImportTDE[[#This Row],[Ligne]]="","",IF(ImportTDE[[#This Row],[Ref Client0]]="",Prefixe &ImportTDE[[#This Row],[Ligne]]&Suffixe,ImportTDE[[#This Row],[Ref Client0]])) -> Lot 123 | I127: =IF(ImportTDE[[#This Row],[Ligne]]="","",IF(ImportTDE[[#This Row],[Ligne]]=1,ImportTDE[[#This Row],[Mine0]],IF(ImportTDE[[#This Row],[Mine0]]="",OFFSET(ImportTDE[[#Headers],[Mine]],ImportTDE[[#This Row],[Ligne]]-1,0,1,1),ImportTDE[[#This Row],[Mine0]]))) -> 0 | J127: =IF(ImportTDE[[#This Row],[Ligne]]="","",IF(ImportTDE[[#This Row],[Ligne]]=1,ImportTDE[[#This Row],[Tonnage0]],IF(ImportTDE[[#This Row],[Tonnage0]]="",OFFSET(ImportTDE[[#Headers],[Tonnage]],ImportTDE[[#This Row],[Ligne]]-1,0,1,1),ImportTDE[[#This Row],[Tonnage0]]))) -> 0 | K127: =IF(ImportTDE[[#This Row],[Ref Labo]]="","",IF(ImportTDE[[#This Row],[Tonnage]]>2000,1,"")) ->  | L127: =IF(ImportTDE[[#This Row],[Ref Labo]]="","",IF(AND(ImportTDE[[#This Row],[NbHum]]<>"",ImportTDE[[#This Row],[NbHum]]<2),1,"")) -> 
B128: =IF(ROW(ImportTDE[[#This Row],[Ref Labo]])-ROW(ImportTDE[[#Headers],[Ref Labo]])>NbEch,"",ROW(ImportTDE[[#This Row],[Ref Labo]])-ROW(ImportTDE[[#Headers],[Ref Labo]])) -> 124 | C128: =IF(ImportTDE[[#This Row],[Ligne]]="","",TDE&"-"&REPT("0",LEN(NbEch)-LEN(ImportTDE[[#This Row],[Ligne]]))&ImportTDE[[#This Row],[Ligne]]) ->  | H128: =IF(ImportTDE[[#This Row],[Ligne]]="","",IF(ImportTDE[[#This Row],[Ref Client0]]="",Prefixe &ImportTDE[[#This Row],[Ligne]]&Suffixe,ImportTDE[[#This Row],[Ref Client0]])) -> Lot 124 | I128: =IF(ImportTDE[[#This Row],[Ligne]]="","",IF(ImportTDE[[#This Row],[Ligne]]=1,ImportTDE[[#This Row],[Mine0]],IF(ImportTDE[[#This Row],[Mine0]]="",OFFSET(ImportTDE[[#Headers],[Mine]],ImportTDE[[#This Row],[Ligne]]-1,0,1,1),ImportTDE[[#This Row],[Mine0]]))) -> 0 | J128: =IF(ImportTDE[[#This Row],[Ligne]]="","",IF(ImportTDE[[#This Row],[Ligne]]=1,ImportTDE[[#This Row],[Tonnage0]],IF(ImportTDE[[#This Row],[Tonnage0]]="",OFFSET(ImportTDE[[#Headers],[Tonnage]],ImportTDE[[#This Row],[Ligne]]-1,0,1,1),ImportTDE[[#This Row],[Tonnage0]]))) -> 0 | K128: =IF(ImportTDE[[#This Row],[Ref Labo]]="","",IF(ImportTDE[[#This Row],[Tonnage]]>2000,1,"")) ->  | L128: =IF(ImportTDE[[#This Row],[Ref Labo]]="","",IF(AND(ImportTDE[[#This Row],[NbHum]]<>"",ImportTDE[[#This Row],[NbHum]]<2),1,"")) -> 
B129: =IF(ROW(ImportTDE[[#This Row],[Ref Labo]])-ROW(ImportTDE[[#Headers],[Ref Labo]])>NbEch,"",ROW(ImportTDE[[#This Row],[Ref Labo]])-ROW(ImportTDE[[#Headers],[Ref Labo]])) -> 125 | C129: =IF(ImportTDE[[#This Row],[Ligne]]="","",TDE&"-"&REPT("0",LEN(NbEch)-LEN(ImportTDE[[#This Row],[Ligne]]))&ImportTDE[[#This Row],[Ligne]]) ->  | H129: =IF(ImportTDE[[#This Row],[Ligne]]="","",IF(ImportTDE[[#This Row],[Ref Client0]]="",Prefixe &ImportTDE[[#This Row],[Ligne]]&Suffixe,ImportTDE[[#This Row],[Ref Client0]])) -> Lot 125 | I129: =IF(ImportTDE[[#This Row],[Ligne]]="","",IF(ImportTDE[[#This Row],[Ligne]]=1,ImportTDE[[#This Row],[Mine0]],IF(ImportTDE[[#This Row],[Mine0]]="",OFFSET(ImportTDE[[#Headers],[Mine]],ImportTDE[[#This Row],[Ligne]]-1,0,1,1),ImportTDE[[#This Row],[Mine0]]))) -> 0 | J129: =IF(ImportTDE[[#This Row],[Ligne]]="","",IF(ImportTDE[[#This Row],[Ligne]]=1,ImportTDE[[#This Row],[Tonnage0]],IF(ImportTDE[[#This Row],[Tonnage0]]="",OFFSET(ImportTDE[[#Headers],[Tonnage]],ImportTDE[[#This Row],[Ligne]]-1,0,1,1),ImportTDE[[#This Row],[Tonnage0]]))) -> 0 | K129: =IF(ImportTDE[[#This Row],[Ref Labo]]="","",IF(ImportTDE[[#This Row],[Tonnage]]>2000,1,"")) ->  | L129: =IF(ImportTDE[[#This Row],[Ref Labo]]="","",IF(AND(ImportTDE[[#This Row],[NbHum]]<>"",ImportTDE[[#This Row],[NbHum]]<2),1,"")) -> 
B130: =IF(ROW(ImportTDE[[#This Row],[Ref Labo]])-ROW(ImportTDE[[#Headers],[Ref Labo]])>NbEch,"",ROW(ImportTDE[[#This Row],[Ref Labo]])-ROW(ImportTDE[[#Headers],[Ref Labo]])) -> 126 | C130: =IF(ImportTDE[[#This Row],[Ligne]]="","",TDE&"-"&REPT("0",LEN(NbEch)-LEN(ImportTDE[[#This Row],[Ligne]]))&ImportTDE[[#This Row],[Ligne]]) ->  | H130: =IF(ImportTDE[[#This Row],[Ligne]]="","",IF(ImportTDE[[#This Row],[Ref Client0]]="",Prefixe &ImportTDE[[#This Row],[Ligne]]&Suffixe,ImportTDE[[#This Row],[Ref Client0]])) -> Lot 126 | I130: =IF(ImportTDE[[#This Row],[Ligne]]="","",IF(ImportTDE[[#This Row],[Ligne]]=1,ImportTDE[[#This Row],[Mine0]],IF(ImportTDE[[#This Row],[Mine0]]="",OFFSET(ImportTDE[[#Headers],[Mine]],ImportTDE[[#This Row],[Ligne]]-1,0,1,1),ImportTDE[[#This Row],[Mine0]]))) -> 0 | J130: =IF(ImportTDE[[#This Row],[Ligne]]="","",IF(ImportTDE[[#This Row],[Ligne]]=1,ImportTDE[[#This Row],[Tonnage0]],IF(ImportTDE[[#This Row],[Tonnage0]]="",OFFSET(ImportTDE[[#Headers],[Tonnage]],ImportTDE[[#This Row],[Ligne]]-1,0,1,1),ImportTDE[[#This Row],[Tonnage0]]))) -> 0 | K130: =IF(ImportTDE[[#This Row],[Ref Labo]]="","",IF(ImportTDE[[#This Row],[Tonnage]]>2000,1,"")) ->  | L130: =IF(ImportTDE[[#This Row],[Ref Labo]]="","",IF(AND(ImportTDE[[#This Row],[NbHum]]<>"",ImportTDE[[#This Row],[NbHum]]<2),1,"")) -> 
B131: =IF(ROW(ImportTDE[[#This Row],[Ref Labo]])-ROW(ImportTDE[[#Headers],[Ref Labo]])>NbEch,"",ROW(ImportTDE[[#This Row],[Ref Labo]])-ROW(ImportTDE[[#Headers],[Ref Labo]])) -> 127 | C131: =IF(ImportTDE[[#This Row],[Ligne]]="","",TDE&"-"&REPT("0",LEN(NbEch)-LEN(ImportTDE[[#This Row],[Ligne]]))&ImportTDE[[#This Row],[Ligne]]) ->  | H131: =IF(ImportTDE[[#This Row],[Ligne]]="","",IF(ImportTDE[[#This Row],[Ref Client0]]="",Prefixe &ImportTDE[[#This Row],[Ligne]]&Suffixe,ImportTDE[[#This Row],[Ref Client0]])) -> Lot 127 | I131: =IF(ImportTDE[[#This Row],[Ligne]]="","",IF(ImportTDE[[#This Row],[Ligne]]=1,ImportTDE[[#This Row],[Mine0]],IF(ImportTDE[[#This Row],[Mine0]]="",OFFSET(ImportTDE[[#Headers],[Mine]],ImportTDE[[#This Row],[Ligne]]-1,0,1,1),ImportTDE[[#This Row],[Mine0]]))) -> 0 | J131: =IF(ImportTDE[[#This Row],[Ligne]]="","",IF(ImportTDE[[#This Row],[Ligne]]=1,ImportTDE[[#This Row],[Tonnage0]],IF(ImportTDE[[#This Row],[Tonnage0]]="",OFFSET(ImportTDE[[#Headers],[Tonnage]],ImportTDE[[#This Row],[Ligne]]-1,0,1,1),ImportTDE[[#This Row],[Tonnage0]]))) -> 0 | K131: =IF(ImportTDE[[#This Row],[Ref Labo]]="","",IF(ImportTDE[[#This Row],[Tonnage]]>2000,1,"")) ->  | L131: =IF(ImportTDE[[#This Row],[Ref Labo]]="","",IF(AND(ImportTDE[[#This Row],[NbHum]]<>"",ImportTDE[[#This Row],[NbHum]]<2),1,"")) -> 
B132: =IF(ROW(ImportTDE[[#This Row],[Ref Labo]])-ROW(ImportTDE[[#Headers],[Ref Labo]])>NbEch,"",ROW(ImportTDE[[#This Row],[Ref Labo]])-ROW(ImportTDE[[#Headers],[Ref Labo]])) -> 128 | C132: =IF(ImportTDE[[#This Row],[Ligne]]="","",TDE&"-"&REPT("0",LEN(NbEch)-LEN(ImportTDE[[#This Row],[Ligne]]))&ImportTDE[[#This Row],[Ligne]]) ->  | H132: =IF(ImportTDE[[#This Row],[Ligne]]="","",IF(ImportTDE[[#This Row],[Ref Client0]]="",Prefixe &ImportTDE[[#This Row],[Ligne]]&Suffixe,ImportTDE[[#This Row],[Ref Client0]])) -> Lot 128 | I132: =IF(ImportTDE[[#This Row],[Ligne]]="","",IF(ImportTDE[[#This Row],[Ligne]]=1,ImportTDE[[#This Row],[Mine0]],IF(ImportTDE[[#This Row],[Mine0]]="",OFFSET(ImportTDE[[#Headers],[Mine]],ImportTDE[[#This Row],[Ligne]]-1,0,1,1),ImportTDE[[#This Row],[Mine0]]))) -> 0 | J132: =IF(ImportTDE[[#This Row],[Ligne]]="","",IF(ImportTDE[[#This Row],[Ligne]]=1,ImportTDE[[#This Row],[Tonnage0]],IF(ImportTDE[[#This Row],[Tonnage0]]="",OFFSET(ImportTDE[[#Headers],[Tonnage]],ImportTDE[[#This Row],[Ligne]]-1,0,1,1),ImportTDE[[#This Row],[Tonnage0]]))) -> 0 | K132: =IF(ImportTDE[[#This Row],[Ref Labo]]="","",IF(ImportTDE[[#This Row],[Tonnage]]>2000,1,"")) ->  | L132: =IF(ImportTDE[[#This Row],[Ref Labo]]="","",IF(AND(ImportTDE[[#This Row],[NbHum]]<>"",ImportTDE[[#This Row],[NbHum]]<2),1,"")) -> 

Sheet Admin (hidden)
C1: Administration du fichier
B3: Format Cellule saisie | J3: Liste Actions
J5: N | K5: Actions
B6: Sécurité | J6: 1 | K6: Page suivante
J7: 2 | K7: Page précédente
B8: Param | C8: Nom | D8: Valeur | G8: N | H8: Action | J8: 3 | K8: Admin
B9: mot de passe | C9: =IFERROR(NomPlage(Securite[[#This Row],[Valeur]]),"") ->  | D9: F626 | G9: =IF(Action[[#This Row],[Action]]="","",OFFSET(ListeActions[[#Headers],[N]],MATCH(Action[[#This Row],[Action]],ListeActions[Actions],0),0,1,1)) -> 1 | H9: Page suivante | J9: 4 | K9: Verrouiller
B10: Action active | C10: =IFERROR(NomPlage(Securite[[#This Row],[Valeur]]),"") ->  | D10: 1 | G10: =IF(Action[[#This Row],[Action]]="","",OFFSET(ListeActions[[#Headers],[N]],MATCH(Action[[#This Row],[Action]],ListeActions[Actions],0),0,1,1)) -> 2 | H10: Page précédente | J10: 5 | K10: Fermer
B11: Verrou | C11: =IFERROR(NomPlage(Securite[[#This Row],[Valeur]]),"") ->  | D11: 1 | G11: =IF(Action[[#This Row],[Action]]="","",OFFSET(ListeActions[[#Headers],[N]],MATCH(Action[[#This Row],[Action]],ListeActions[Actions],0),0,1,1)) -> 3 | H11: Admin | J11: 6 | K11: Sauver
B12: Mode Silent | C12: =IFERROR(NomPlage(Securite[[#This Row],[Valeur]]),"") ->  | D12: 1 | G12: =IF(Action[[#This Row],[Action]]="","",OFFSET(ListeActions[[#Headers],[N]],MATCH(Action[[#This Row],[Action]],ListeActions[Actions],0),0,1,1)) -> 4 | H12: Verrouiller | J12: 7 | K12: Entête Qualité
B13: Mode Identification | C13: =IFERROR(NomPlage(Securite[[#This Row],[Valeur]]),"") ->  | D13: 0 | G13: =IF(Action[[#This Row],[Action]]="","",OFFSET(ListeActions[[#Headers],[N]],MATCH(Action[[#This Row],[Action]],ListeActions[Actions],0),0,1,1)) -> 5 | H13: Fermer | J13: 8 | K13: MAJ TCD
G14: =IF(Action[[#This Row],[Action]]="","",OFFSET(ListeActions[[#Headers],[N]],MATCH(Action[[#This Row],[Action]],ListeActions[Actions],0),0,1,1)) -> 6 | H14: Sauver | J14: 9 | K14: Exporter
B15: Qualité | G15: =IF(Action[[#This Row],[Action]]="","",OFFSET(ListeActions[[#Headers],[N]],MATCH(Action[[#This Row],[Action]],ListeActions[Actions],0),0,1,1)) -> 7 | H15: Entête Qualité | J15: 10 | K15: Valider
G16: =IF(Action[[#This Row],[Action]]="","",OFFSET(ListeActions[[#Headers],[N]],MATCH(Action[[#This Row],[Action]],ListeActions[Actions],0),0,1,1)) -> 8 | H16: MAJ TCD | J16: 11 | K16: Mise en prod
B17: Param | C17: Nom | D17: Valeur | G17: =IF(Action[[#This Row],[Action]]="","",OFFSET(ListeActions[[#Headers],[N]],MATCH(Action[[#This Row],[Action]],ListeActions[Actions],0),0,1,1)) -> 9 | H17: Exporter | J17: 12 | K17: Applique Theme
B18: Titre | C18: =IFERROR(NomPlage(Qualite[[#This Row],[Valeur]]),"") ->  | D18: Calcul global chargements | G18: =IF(Action[[#This Row],[Action]]="","",OFFSET(ListeActions[[#Headers],[N]],MATCH(Action[[#This Row],[Action]],ListeActions[Actions],0),0,1,1)) -> 10 | H18: Valider | J18: 13 | K18: Aide
B19: Ref CliQ | C19: =IFERROR(NomPlage(Qualite[[#This Row],[Valeur]]),"") ->  | D19: F_00626 | G19: =IF(Action[[#This Row],[Action]]="","",OFFSET(ListeActions[[#Headers],[N]],MATCH(Action[[#This Row],[Action]],ListeActions[Actions],0),0,1,1)) -> 11 | H19: Mise en prod | J19: 14 | K19: Autofit
B20: Version | C20: =IFERROR(NomPlage(Qualite[[#This Row],[Valeur]]),"") ->  | D20: 7 | G20: =IF(Action[[#This Row],[Action]]="","",OFFSET(ListeActions[[#Headers],[N]],MATCH(Action[[#This Row],[Action]],ListeActions[Actions],0),0,1,1)) -> 12 | H20: Applique Theme | J20: 15 | K20: Message bienvenue
B21: Date | C21: =IFERROR(NomPlage(Qualite[[#This Row],[Valeur]]),"") ->  | D21: 44154 | G21: =IF(Action[[#This Row],[Action]]="","",OFFSET(ListeActions[[#Headers],[N]],MATCH(Action[[#This Row],[Action]],ListeActions[Actions],0),0,1,1)) -> 13 | H21: Aide | J21: 16 | K21: Reset Segments
B22: Auteur | C22: =IFERROR(NomPlage(Qualite[[#This Row],[Valeur]]),"") ->  | D22: C Richert | G22: =IF(Action[[#This Row],[Action]]="","",OFFSET(ListeActions[[#Headers],[N]],MATCH(Action[[#This Row],[Action]],ListeActions[Actions],0),0,1,1)) -> 14 | H22: Autofit | J22: 17 | K22: Plage Impression
G23: =IF(Action[[#This Row],[Action]]="","",OFFSET(ListeActions[[#Headers],[N]],MATCH(Action[[#This Row],[Action]],ListeActions[Actions],0),0,1,1)) -> 15 | H23: Message bienvenue | J23: 18 | K23: Onglets
G24: =IF(Action[[#This Row],[Action]]="","",OFFSET(ListeActions[[#Headers],[N]],MATCH(Action[[#This Row],[Action]],ListeActions[Actions],0),0,1,1)) -> 16 | H24: Reset Segments | J24: 19 | K24: Change mot de passe | M24: Utilisateur connecté | O24: CR | P24: =IFERROR(IF(UtConnect="","",OFFSET(TabUtilisateurs[[#Headers],[Mot de passe]],MATCH(UtConnect,TabUtilisateurs[Initiales],0),0,1,1)),na) -> Clem
B25: Divers | G25: =IF(Action[[#This Row],[Action]]="","",OFFSET(ListeActions[[#Headers],[N]],MATCH(Action[[#This Row],[Action]],ListeActions[Actions],0),0,1,1)) -> 17 | H25: Plage Impression | J25: 20 | K25: Deprot Feuille
G26: =IF(Action[[#This Row],[Action]]="","",OFFSET(ListeActions[[#Headers],[N]],MATCH(Action[[#This Row],[Action]],ListeActions[Actions],0),0,1,1)) -> 18 | H26: Onglets | J26: 21 | K26: Prot Feuille
B27: Param | C27: Nom | D27: Valeur | G27: =IF(Action[[#This Row],[Action]]="","",OFFSET(ListeActions[[#Headers],[N]],MATCH(Action[[#This Row],[Action]],ListeActions[Actions],0),0,1,1)) -> 19 | H27: Change mot de passe | J27: 22 | K27: Supprime Filtre Action
B28: chemin logo | C28: =IFERROR(NomPlage(Divers[[#This Row],[Valeur]]),"") ->  | D28: I:\LABORATOIRE\SECRETARIAT\MODELES\LogoDIMENC.jpg | G28: =IF(Action[[#This Row],[Action]]="","",OFFSET(ListeActions[[#Headers],[N]],MATCH(Action[[#This Row],[Action]],ListeActions[Actions],0),0,1,1)) -> 20 | H28: Deprot Feuille | J28: 23 | K28: Proteger tout
B29: chemin theme | C29: =IFERROR(NomPlage(Divers[[#This Row],[Valeur]]),"") ->  | D29: I:\LABORATOIRE\CR\Modeles\Theme.thmx | G29: =IF(Action[[#This Row],[Action]]="","",OFFSET(ListeActions[[#Headers],[N]],MATCH(Action[[#This Row],[Action]],ListeActions[Actions],0),0,1,1)) -> 21 | H29: Prot Feuille | J29: 24 | K29: Importer ICP
B30: Avec Logo | C30: =IFERROR(NomPlage(Divers[[#This Row],[Valeur]]),"") ->  | D30: OUI | G30: =IF(Action[[#This Row],[Action]]="","",OFFSET(ListeActions[[#Headers],[N]],MATCH(Action[[#This Row],[Action]],ListeActions[Actions],0),0,1,1)) -> 22 | H30: Supprime Filtre Action | J30: 25 | K30: Importer PF
C31: =IFERROR(NomPlage(Divers[[#This Row],[Valeur]]),"") ->  | G31: =IF(Action[[#This Row],[Action]]="","",OFFSET(ListeActions[[#Headers],[N]],MATCH(Action[[#This Row],[Action]],ListeActions[Actions],0),0,1,1)) -> 23 | H31: Proteger tout | J31: 26 | K31: Importer Hum
C32: =IFERROR(NomPlage(Divers[[#This Row],[Valeur]]),"") ->  | J32: 27 | K32: Mise en forme BA | Q32: Services
J33: 28 | K33: Imprime BA | Q33: LABO
J34: 29 | K34: Créer copie Tableau | Q34: SAF
J35: 30 | K35: Import PF | Q35: GEOL
B36: Utilisateurs | J36: 31 | K36: Import Hum | Q36: QUAL
J37: 32 | K37: Import Pesees | Q37: SMC
B38: Initiales | C38: Service | D38: Mot de passe | Q38: IND
B39: CR | C39: LABO | D39: Clem
B40: SK | C40: LABO | D40: SK | N40: cellule vide | O40: ="" -> 
B41: PA | C41: LABO | D41: PA
B42: CA | C42: LABO | D42: CA
B43: JPV | C43: LABO | D43: JPV
B44: GV | C44: LABO | D44: GV
B45: FT | C45: LABO | D45: FT
B46: JC | C46: LABO | D46: JC
B47: na | D47: na
B49: Export
B51: Type | C51: Tableau | D51: Base | E51: Table | F51: Chemin

Sheet Temp (hidden)
D3: Bool | F3: QC
D4: OUI | F4: SAPA | K4: Etuves | M4: Fours | O4: Balance
D5: NON | F5: LATA | K5: LAB-078 | M5: LAB-093 | O5: LAB-029 | Q5: NomQC
K6: LAB-079 | M6: LAB-113 | O6: LAB-115 | Q6: Valeur QC | AD6: Mode
K7: LAB-081 | Q7: Durée mini | R7: 01:59:59 | AD7: ICP
AD8: ICP P+S
V10: nbData | W10: =COUNTA(TCD_Calculs!C:C)-1 -> 1
K11: Instruments | L11: Type | M11: Modele
B12: N | C12: Action | K12: LAB-076 | L12: Etuve | M12: UM500 | O12: QC | P12: LimInf | Q12: LimSup
B13: =IF(Action04[[#This Row],[Action]]="","",OFFSET(ListeActions[[#Headers],[N]],MATCH(Action04[[#This Row],[Action]],ListeActions[Actions],0),0,1,1)) -> 1 | C13: Page suivante | K13: LAB-077 | L13: Etuve | M13: UE500 | O13: SAPA | P13: 0.119 | Q13: 0.127
B14: =IF(Action04[[#This Row],[Action]]="","",OFFSET(ListeActions[[#Headers],[N]],MATCH(Action04[[#This Row],[Action]],ListeActions[Actions],0),0,1,1)) -> 2 | C14: Page précédente | K14: LAB-093 | L14: Four | M14: P320 | O14: LATA | P14: 0.1304 | Q14: 0.1364 | AS14: Pagination
B15: =IF(Action04[[#This Row],[Action]]="","",OFFSET(ListeActions[[#Headers],[N]],MATCH(Action04[[#This Row],[Action]],ListeActions[Actions],0),0,1,1)) -> 3 | C15: Admin | F15: =INFO(G15) -> C:\Users\gregory.ripoll\Documents\ | G15: repertoire | K15: LAB-113 | L15: Four | M15: P330 | O15: QC | P15: 0.98 | Q15: 1.02 | AS15: Tableau de reglage de la pagination du bulletin | BN15: Code | BO15: Titre | BP15: Qte | BQ15: PU
B16: =IF(Action04[[#This Row],[Action]]="","",OFFSET(ListeActions[[#Headers],[N]],MATCH(Action04[[#This Row],[Action]],ListeActions[Actions],0),0,1,1)) -> 4 | C16: Verrouiller | F16: =INFO(G16) -> 24 | G16: nbfich | BA16: Tab1 | BB16: Tab2 | BC16: Tab3 | BD16: Tab4 | BH16: Client | BI16: Adresse 1 | BJ16: Adresse 2 | BN16: SLEX1 | BO16: Analyse complète minerai Al, Co, Cr, Fe, Mg, Mn, Ni, Si et PF | BP16: 37 | BQ16: 4300
B17: =IF(Action04[[#This Row],[Action]]="","",OFFSET(ListeActions[[#Headers],[N]],MATCH(Action04[[#This Row],[Action]],ListeActions[Actions],0),0,1,1)) -> 5 | C17: Fermer | F17: =INFO(G17) -> pcdos | G17: systexpl | U17: Standards | W17: Critere | X17: Min | Y17: Max | AA17: Element | AB17: Inutile | AC17: Arrond | AE17: Elément | AF17: Unités | AG17: Longueur d'onde | AI17: Element | AJ17: Std | AK17: Conc | AL17: Unit | BA17: =OFFSET(Pagination[[#Headers],[1]],MATCH(NbEch,Pagination[nb],0),0,1,1) ->  | BB17: =OFFSET(Pagination[[#Headers],[2]],MATCH(NbEch,Pagination[nb],0),0,1,1) ->  | BC17: =OFFSET(Pagination[[#Headers],[3]],MATCH(NbEch,Pagination[nb],0),0,1,1) ->  | BD17: =OFFSET(Pagination[[#Headers],[4]],MATCH(NbEch,Pagination[nb],0),0,1,1) ->  | BH17: A2EP GEOTEC | BI17: B.P. 727 | BJ17: 98860 KONE | BN17: SLEX2 | BO17: Humidité | BP17: 74 | BQ17: 1350
B18: =IF(Action04[[#This Row],[Action]]="","",OFFSET(ListeActions[[#Headers],[N]],MATCH(Action04[[#This Row],[Action]],ListeActions[Actions],0),0,1,1)) -> 6 | C18: Sauver | U18: SAPA | W18: Y | X18: 0.9 | Y18: 1.1 | AA18: Al2O3 237.312 | AB18: 1 | AC18: 3 | AE18: Al2O3 | AF18: % | AG18: 396.152 | AI18: Al | AJ18: LAT 114 | AK18: 5.213 | AL18: % | AN18: QC | AP18: % Fe | AS18: nb | AT18: 1 | AU18: 2 | AV18: 3 | AW18: 4 | AX18: somme | AY18: diff | BH18: AD VIDANGE | BI18: B.P. 82 | BJ18: 98830 DUMBEA | BN18: SLEX3 | BO18: Dosage d’un élément supplémentaire | BP18: 1 | BQ18: 400
B19: =IF(Action04[[#This Row],[Action]]="","",OFFSET(ListeActions[[#Headers],[N]],MATCH(Action04[[#This Row],[Action]],ListeActions[Actions],0),0,1,1)) -> 7 | C19: Entête Qualité | U19: LATA | AA19: Al2O3_396.152 | AB19: 0 | AC19: 3 | AE19: CaO | AF19: % | AG19: 317.933 | AI19: Al | AJ19: LAT 103 | AK19: 3.352 | AL19: % | AN19: SAPA | AS19: 1 | AT19: 1 | AU19: 0 | AV19: 0 | AW19: 0 | AX19: =SUM(Pagination[[#This Row],[1]:[4]]) -> 1 | AY19: =Pagination[[#This Row],[somme]]-Pagination[[#This Row],[nb]] -> 0 | BH19: AIR CALEDONIE | BI19: B.P. 212 | BJ19: 98845 NOUMEA CEDEX
B20: =IF(Action04[[#This Row],[Action]]="","",OFFSET(ListeActions[[#Headers],[N]],MATCH(Action04[[#This Row],[Action]],ListeActions[Actions],0),0,1,1)) -> 8 | C20: MAJ TCD | E20: Chemin | F20: =CELL("nomfichier") -> C:\Users\gregory.ripoll\Desktop\[SL_CalculGlobalChargement_01.12.2025.xlsm]TDB | U20: MRC610 | AA20: CaO 315.887 | AB20: 1 | AC20: 2 | AE20: Co | AF20: % | AG20: 231.16 | AI20: Al | AJ20: LAT 112 | AK20: 6.928 | AL20: % | AN20: LATA | AS20: 2 | AT20: 2 | AU20: 0 | AV20: 0 | AW20: 0 | AX20: =SUM(Pagination[[#This Row],[1]:[4]]) -> 2 | AY20: =Pagination[[#This Row],[somme]]-Pagination[[#This Row],[nb]] -> 0 | BH20: AUDEMARD NC | BI20: 87 rue de la Carrière | BJ20: 98809 MONT DORE
B21: =IF(Action04[[#This Row],[Action]]="","",OFFSET(ListeActions[[#Headers],[N]],MATCH(Action04[[#This Row],[Action]],ListeActions[Actions],0),0,1,1)) -> 11 | C21: Mise en prod | E21: Dossier | F21: =LEFT(F20,-1+SEARCH("[",F20,1)) -> C:\Users\gregory.ripoll\Desktop\ | U21: Blanc | AA21: CaO_317.933 | AB21: 0 | AC21: 2 | AE21: Cr2O3 | AF21: % | AG21: 267.716 | AI21: Al | AJ21: LAT 104 | AK21: 4.683 | AL21: % | AS21: 3 | AT21: 3 | AU21: 0 | AV21: 0 | AW21: 0 | AX21: =SUM(Pagination[[#This Row],[1]:[4]]) -> 3 | AY21: =Pagination[[#This Row],[somme]]-Pagination[[#This Row],[nb]] -> 0 | BH21: BATIBOIS / FABICAL SAS | BI21: B.P. 2516 | BJ21: 98846 NOUMEA CEDEX
B22: =IF(Action04[[#This Row],[Action]]="","",OFFSET(ListeActions[[#Headers],[N]],MATCH(Action04[[#This Row],[Action]],ListeActions[Actions],0),0,1,1)) -> 12 | C22: Applique Theme | K22: Balances | U22: LAT103 | AA22: Co 228.615 | AB22: 1 | AC22: 3 | AE22: Cu | AF22: ppm | AG22: 324.754 | AI22: Al | AJ22: LAT 106 | AK22: 5.342 | AL22: % | AS22: 4 | AT22: 4 | AU22: 0 | AV22: 0 | AW22: 0 | AX22: =SUM(Pagination[[#This Row],[1]:[4]]) -> 4 | AY22: =Pagination[[#This Row],[somme]]-Pagination[[#This Row],[nb]] -> 0 | BH22: BUREAU VERITAS | BI22: B.P. 30514 | BJ22: 98895 NOUMEA CEDEX
B23: =IF(Action04[[#This Row],[Action]]="","",OFFSET(ListeActions[[#Headers],[N]],MATCH(Action04[[#This Row],[Action]],ListeActions[Actions],0),0,1,1)) -> 13 | C23: Aide | K23: LAB-029 | U23: LAT104 | AA23: Co 230.786 | AB23: 1 | AC23: 3 | AE23: Fe | AF23: % | AG23: 238.204 | AI23: Al | AJ23: SAP 201 | AK23: 2.619 | AL23: % | AS23: 5 | AT23: 5 | AU23: 0 | AV23: 0 | AW23: 0 | AX23: =SUM(Pagination[[#This Row],[1]:[4]]) -> 5 | AY23: =Pagination[[#This Row],[somme]]-Pagination[[#This Row],[nb]] -> 0 | BH23: CALEDONIENNE DES EAUX | BI23: B.P. 812 | BJ23: 98845 NOUMEA CEDEX
B24: =IF(Action04[[#This Row],[Action]]="","",OFFSET(ListeActions[[#Headers],[N]],MATCH(Action04[[#This Row],[Action]],ListeActions[Actions],0),0,1,1)) -> 14 | C24: Autofit | F24: Duree Min | G24: 48 | H24: h | K24: LAB-115 | U24: LAT106 | AA24: Co 231.160 | AB24: 0 | AC24: 3 | AE24: Fe | AF24: % | AG24: 259.94 | AI24: Al | AJ24: SAP 209 | AK24: 0 | AL24: % | AS24: 6 | AT24: 6 | AU24: 0 | AV24: 0 | AW24: 0 | AX24: =SUM(Pagination[[#This Row],[1]:[4]]) -> 6 | AY24: =Pagination[[#This Row],[somme]]-Pagination[[#This Row],[nb]] -> 0 | BH24: Centre Hospitalier Territorial Gaston Bourret (CHT) | BI24: B.P. J5 | BJ24: 98849 NOUMEA CEDEX
B25: =IF(Action04[[#This Row],[Action]]="","",OFFSET(ListeActions[[#Headers],[N]],MATCH(Action04[[#This Row],[Action]],ListeActions[Actions],0),0,1,1)) -> 19 | C25: Change mot de passe | F25: Temper Min | G25: 100 | U25: LAT110 | AA25: Cr2O3 206.158 | AB25: 1 | AC25: 3 | AE25: MgO | AF25: % | AG25: 279.078 | AI25: Al | AJ25: SAP 212 | AK25: 1.607 | AL25: % | AS25: 7 | AT25: 7 | AU25: 0 | AV25: 0 | AW25: 0 | AX25: =SUM(Pagination[[#This Row],[1]:[4]]) -> 7 | AY25: =Pagination[[#This Row],[somme]]-Pagination[[#This Row],[nb]] -> 0 | BH25: Centre National de Recherches Technologiques / IRD | BI25: 101 prom. R. LAROQUE | BJ25: 98800 NOUMEA CEDEX
B26: =IF(Action04[[#This Row],[Action]]="","",OFFSET(ListeActions[[#Headers],[N]],MATCH(Action04[[#This Row],[Action]],ListeActions[Actions],0),0,1,1)) -> 20 | C26: Deprot Feuille | U26: LAT112 | AA26: Cr2O3_267.716 | AB26: 0 | AC26: 3 | AE26: Mn | AF26: % | AG26: 257.61 | AI26: Al | AJ26: SAP 208 | AK26: 1.104 | AL26: % | AS26: 8 | AT26: 8 | AU26: 0 | AV26: 0 | AW26: 0 | AX26: =SUM(Pagination[[#This Row],[1]:[4]]) -> 8 | AY26: =Pagination[[#This Row],[somme]]-Pagination[[#This Row],[nb]] -> 0 | BH26: COFELY SOCOMETRA | BI26: B.P. 483 | BJ26: 98845 NOUMEA CEDEX
B27: =IF(Action04[[#This Row],[Action]]="","",OFFSET(ListeActions[[#Headers],[N]],MATCH(Action04[[#This Row],[Action]],ListeActions[Actions],0),0,1,1)) -> 21 | C27: Prot Feuille | U27: LAT114 | AA27: Cu 324.754 | AB27: 0 | AC27: 1 | AE27: Ni | AF27: % | AG27: 227.021 | AI27: Al | AJ27: LAT 110 | AK27: 14.159 | AL27: % | AS27: 9 | AT27: 9 | AU27: 0 | AV27: 0 | AW27: 0 | AX27: =SUM(Pagination[[#This Row],[1]:[4]]) -> 9 | AY27: =Pagination[[#This Row],[somme]]-Pagination[[#This Row],[nb]] -> 0 | BH27: DAVAR | BI27: B.P. 256 | BJ27: 98845 NOUMEA CEDEX
U28: MRC 610 | AA28: Cu 327.395 | AB28: 1 | AC28: 1 | AE28: Ni | AF28: % | AG28: 231.604 | AI28: Al | AJ28: SAP 210 | AK28: 0.426 | AL28: % | AS28: 10 | AT28: 10 | AU28: 0 | AV28: 0 | AW28: 0 | AX28: =SUM(Pagination[[#This Row],[1]:[4]]) -> 10 | AY28: =Pagination[[#This Row],[somme]]-Pagination[[#This Row],[nb]] -> 0 | BH28: DD CONSTRUCTION
U29: P+S 1000 ppm | AA29: Fe 238.204 | AB29: 0 | AC29: 2 | AE29: Ni | AF29: % | AG29: 352.453 | AI29: Al | AJ29: P+S 200 | AK29: 0 | AL29: % | AS29: 11 | AT29: 11 | AU29: 0 | AV29: 0 | AW29: 0 | AX29: =SUM(Pagination[[#This Row],[1]:[4]]) -> 11 | AY29: =Pagination[[#This Row],[somme]]-Pagination[[#This Row],[nb]] -> 0 | BH29: DDR - PROVINCE SUD | BI29: B.P. L1 | BJ29: 98849 NOUMEA CEDEX
O30: RefQC | P30: Mvide | Q30: M Plein | R30: M minerai | U30: P+S 200 ppm | AA30: Fe 259.940 | AB30: 0 | AC30: 2 | AE30: P | AF30: ppm | AG30: 178.222 | AI30: Al | AJ30: P+S 500 | AK30: 0 | AL30: % | AS30: 12 | AT30: 12 | AU30: 0 | AV30: 0 | AW30: 0 | AX30: =SUM(Pagination[[#This Row],[1]:[4]]) -> 12 | AY30: =Pagination[[#This Row],[somme]]-Pagination[[#This Row],[nb]] -> 0 | BH30: DIMENC | BI30: B.P. M2 | BJ30: 98849 NOUMEA CEDEX
I31: Operateurs | O31: QC1 | P31: 390.9 | Q31: 1291.6 | R31: =TAbQCHum[[#This Row],[M Plein]]-TAbQCHum[[#This Row],[Mvide]] -> 900.7 | U31: P+S 2000 ppm | AA31: K2O 769.897 | AB31: 1 | AC31: 2 | AE31: P | AF31: ppm | AG31: 213.618 | AI31: Al | AJ31: P+S 1000 | AK31: 0 | AL31: % | AS31: 13 | AT31: 13 | AU31: 0 | AV31: 0 | AW31: 0 | AX31: =SUM(Pagination[[#This Row],[1]:[4]]) -> 13 | AY31: =Pagination[[#This Row],[somme]]-Pagination[[#This Row],[nb]] -> 0 | BH31: DIMENC - Service Géologie | BI31: B.P. M2 | BJ31: 98849 NOUMEA CEDEX
I32: JPV | O32: QC2 | P32: 391.1 | Q32: 1292 | R32: =TAbQCHum[[#This Row],[M Plein]]-TAbQCHum[[#This Row],[Mvide]] -> 900.9 | U32: P+S 500 ppm | AA32: K2O_766.491 | AB32: 1 | AC32: 2 | AE32: S | AF32: ppm | AG32: 180.669 | AI32: Al | AJ32: P+S 2000 | AK32: 0 | AL32: % | AS32: 14 | AT32: 14 | AU32: 0 | AV32: 0 | AW32: 0 | AX32: =SUM(Pagination[[#This Row],[1]:[4]]) -> 14 | AY32: =Pagination[[#This Row],[somme]]-Pagination[[#This Row],[nb]] -> 0 | BH32: DIMENC - Service Industrie | BI32: B.P. M2 | BJ32: 98849 NOUMEA CEDEX
I33: JC | O33: QC3 | P33: 395.5 | Q33: 1354 | R33: =TAbQCHum[[#This Row],[M Plein]]-TAbQCHum[[#This Row],[Mvide]] -> 958.5 | U33: SAP201 | AA33: MgO 279.078 | AB33: 0 | AC33: 2 | AE33: S | AF33: ppm | AG33: 181.972 | AI33: Ca | AJ33: LAT 114 | AK33: 0 | AL33: % | AS33: 15 | AT33: 15 | AU33: 0 | AV33: 0 | AW33: 0 | AX33: =SUM(Pagination[[#This Row],[1]:[4]]) -> 15 | AY33: =Pagination[[#This Row],[somme]]-Pagination[[#This Row],[nb]] -> 0 | BH33: DIMENC - Services Mines et Carrières | BI33: B.P. M2 | BJ33: 98849 NOUMEA CEDEX
I34: PA | U34: SAP207 | AA34: MgO_279.800 | AB34: 1 | AC34: 2 | AE34: SiO2 | AF34: % | AG34: 251.611 | AI34: Ca | AJ34: LAT 103 | AK34: 0 | AL34: % | AS34: 16 | AT34: 16 | AU34: 0 | AV34: 0 | AW34: 0 | AX34: =SUM(Pagination[[#This Row],[1]:[4]]) -> 16 | AY34: =Pagination[[#This Row],[somme]]-Pagination[[#This Row],[nb]] -> 0 | BH34: DIRECTION DE L'ENVIRONNEMENT | BI34: B.P. 3718 | BJ34: 98846 NOUMEA CEDEX
I35: CR | U35: SAP208 | AA35: MgO_285.213 | AB35: 1 | AC35: 2 | AE35: TiO2 | AF35: % | AG35: 334.941 | AI35: Ca | AJ35: LAT 112 | AK35: 0 | AL35: % | AS35: 17 | AT35: 17 | AU35: 0 | AV35: 0 | AW35: 0 | AX35: =SUM(Pagination[[#This Row],[1]:[4]]) -> 17 | AY35: =Pagination[[#This Row],[somme]]-Pagination[[#This Row],[nb]] -> 0 | BH35: EEC | BI35: B.P. F3 | BJ35: 98848 NOUMEA CEDEX
I36: CA | U36: SAP209 | AA36: Mn 257.610 | AB36: 0 | AC36: 3 | AE36: Zn | AF36: ppm | AG36: 202.548 | AI36: Ca | AJ36: LAT 104 | AK36: 0 | AL36: % | AS36: 18 | AT36: 18 | AU36: 0 | AV36: 0 | AW36: 0 | AX36: =SUM(Pagination[[#This Row],[1]:[4]]) -> 18 | AY36: =Pagination[[#This Row],[somme]]-Pagination[[#This Row],[nb]] -> 0 | BH36: ENERCAL | BI36: B.P. C1 | BJ36: 98848 NOUMEA CEDEX
I37: Autre | Q37: =P31+900.7 -> 1291.6 | U37: SAP210 | AA37: Mn 260.568 | AB37: 1 | AC37: 3 | AI37: Ca | AJ37: LAT 106 | AK37: 0 | AL37: % | AS37: 19 | AT37: 19 | AU37: 0 | AV37: 0 | AW37: 0 | AX37: =SUM(Pagination[[#This Row],[1]:[4]]) -> 19 | AY37: =Pagination[[#This Row],[somme]]-Pagination[[#This Row],[nb]] -> 0 | BH37: ENTREPRISE GALLO | BI37: B.P. 30505 | BJ37: 98895 NOUMEA CEDEX
Q38: =P32+900.9 -> 1292 | U38: SAP212 | AA38: Ni 227.021 | AB38: 0 | AC38: 3 | AI38: Ca | AJ38: SAP 201 | AK38: 0 | AL38: % | AS38: 20 | AT38: 20 | AU38: 0 | AV38: 0 | AW38: 0 | AX38: =SUM(Pagination[[#This Row],[1]:[4]]) -> 20 | AY38: =Pagination[[#This Row],[somme]]-Pagination[[#This Row],[nb]] -> 0 | BH38: ENTREPRISE MENAOUER | BI38: B.P. 3054 | BJ38: 98845 NOUMEA CEDEX
AA39: Ni 231.604 | AB39: 0 | AC39: 3 | AI39: Ca | AJ39: SAP 209 | AK39: 0 | AL39: % | AS39: 21 | AT39: 21 | AU39: 0 | AV39: 0 | AW39: 0 | AX39: =SUM(Pagination[[#This Row],[1]:[4]]) -> 21 | AY39: =Pagination[[#This Row],[somme]]-Pagination[[#This Row],[nb]] -> 0 | BH39: ENVIE SARL | BI39: B.P. 7652 | BJ39: 98801 NOUMEA CEDEX
AA40: Ni 352.453 | AB40: 0 | AC40: 3 | AI40: Ca | AJ40: SAP 212 | AK40: 0 | AL40: % | AS40: 22 | AT40: 22 | AU40: 0 | AV40: 0 | AW40: 0 | AX40: =SUM(Pagination[[#This Row],[1]:[4]]) -> 22 | AY40: =Pagination[[#This Row],[somme]]-Pagination[[#This Row],[nb]] -> 0 | BH40: ERIC VELAYOUDON SARL | BI40: 247 rue J. IEKAWE | BJ40: 98800 NOUMEA CEDEX
AA41: P 178.222 | AB41: 0 | AC41: 2 | AI41: Ca | AJ41: SAP 208 | AK41: 0.266 | AL41: % | AS41: 23 | AT41: 23 | AU41: 0 | AV41: 0 | AW41: 0 | AX41: =SUM(Pagination[[#This Row],[1]:[4]]) -> 23 | AY41: =Pagination[[#This Row],[somme]]-Pagination[[#This Row],[nb]] -> 0 | BH41: EXXCAL | BI41: B.P. 1721 | BJ41: 98874 Pont des Français
AA42: P 213.618 | AB42: 0 | AC42: 2 | AI42: Ca | AJ42: LAT 110 | AK42: 0 | AL42: % | AS42: 24 | AT42: 24 | AU42: 0 | AV42: 0 | AW42: 0 | AX42: =SUM(Pagination[[#This Row],[1]:[4]]) -> 24 | AY42: =Pagination[[#This Row],[somme]]-Pagination[[#This Row],[nb]] -> 0 | BH42: GAZPAC | BI42: B.P. 7256 | BJ42: 98801 NOUMEA CEDEX
AA43: S 180.669 | AB43: 0 | AC43: 1 | AI43: Ca | AJ43: SAP 210 | AK43: 0 | AL43: % | AS43: 25 | AT43: 25 | AU43: 0 | AV43: 0 | AW43: 0 | AX43: =SUM(Pagination[[#This Row],[1]:[4]]) -> 25 | AY43: =Pagination[[#This Row],[somme]]-Pagination[[#This Row],[nb]] -> 0 | BH43: GEMINI | BI43: B.P. 994 | BJ43: 98845 NOUMEA CEDEX
AA44: S 181.972 | AB44: 0 | AC44: 1 | AI44: Ca | AJ44: P+S 200 | AK44: 0 | AL44: % | AS44: 26 | AT44: 20 | AU44: 6 | AV44: 0 | AW44: 0 | AX44: =SUM(Pagination[[#This Row],[1]:[4]]) -> 26 | AY44: =Pagination[[#This Row],[somme]]-Pagination[[#This Row],[nb]] -> 0 | BH44: G&O CONSULT | BI44: B.P. 8402 | BJ44: 98807 NOUMEA CEDEX
AA45: SiO2_250.690 | AB45: 1 | AC45: 3 | AI45: Ca | AJ45: P+S 500 | AK45: 0 | AL45: % | AS45: 27 | AT45: 20 | AU45: 7 | AV45: 0 | AW45: 0 | AX45: =SUM(Pagination[[#This Row],[1]:[4]]) -> 27 | AY45: =Pagination[[#This Row],[somme]]-Pagination[[#This Row],[nb]] -> 0 | BH45: KONIAMBO NICKEL SAS | BI45: B.P. 679 | BJ45: 98860 KONE
X46: 2 | AA46: SiO2_251.611 | AB46: 0 | AC46: 3 | AI46: Ca | AJ46: P+S 1000 | AK46: 0 | AL46: % | AS46: 28 | AT46: 20 | AU46: 8 | AV46: 0 | AW46: 0 | AX46: =SUM(Pagination[[#This Row],[1]:[4]]) -> 28 | AY46: =Pagination[[#This Row],[somme]]-Pagination[[#This Row],[nb]] -> 0 | BH46: LAB'EAU | BI46: B.P. 386 | BJ46: 98845 NOUMEA CEDEX
AA47: TiO2 334.188 | AB47: 1 | AC47: 3 | AI47: Ca | AJ47: P+S 2000 | AK47: 0 | AL47: % | AS47: 29 | AT47: 20 | AU47: 9 | AV47: 0 | AW47: 0 | AX47: =SUM(Pagination[[#This Row],[1]:[4]]) -> 29 | AY47: =Pagination[[#This Row],[somme]]-Pagination[[#This Row],[nb]] -> 0 | BH47: LBTP | BI47: B.P. 821 | BJ47: 98845 NOUMEA CEDEX
V48: Element | W48: Arrondi | X48: unité | AA48: TiO2 334.941 | AB48: 0 | AC48: 3 | AI48: Co | AJ48: LAT 114 | AK48: 0.021 | AL48: % | AS48: 30 | AT48: 20 | AU48: 10 | AV48: 0 | AW48: 0 | AX48: =SUM(Pagination[[#This Row],[1]:[4]]) -> 30 | AY48: =Pagination[[#This Row],[somme]]-Pagination[[#This Row],[nb]] -> 0 | BH48: Lycée Commercial et Hotelier A. Escoffier | BI48: B.P. 371 | BJ48: 98845 NOUMEA CEDEX
V49: Al2O3 | W49: 3 | AA49: Y 377.433 | AB49: 0 | AC49: 3 | AI49: Co | AJ49: LAT 103 | AK49: 0.138 | AL49: % | AS49: 31 | AT49: 20 | AU49: 11 | AV49: 0 | AW49: 0 | AX49: =SUM(Pagination[[#This Row],[1]:[4]]) -> 31 | AY49: =Pagination[[#This Row],[somme]]-Pagination[[#This Row],[nb]] -> 0 | BH49: Lycée Professionnel François d'Assises | BI49: B.P. 33 | BJ49: 98870 BOURAIL
V50: CaO | W50: 2 | AA50: Zn 202.548 | AB50: 0 | AC50: 1 | AI50: Co | AJ50: LAT 112 | AK50: 0.139 | AL50: % | AS50: 32 | AT50: 20 | AU50: 12 | AV50: 0 | AW50: 0 | AX50: =SUM(Pagination[[#This Row],[1]:[4]]) -> 32 | AY50: =Pagination[[#This Row],[somme]]-Pagination[[#This Row],[nb]] -> 0 | BH50: MAI KOUAOUA MINES SARL | BI50: B.P. 1514 | BJ50: 98845 NOUMEA CEDEX
V51: Co | W51: 3 | AA51: Zn 206.200 | AB51: 1 | AC51: 1 | AI51: Co | AJ51: LAT 104 | AK51: 0.651 | AL51: % | AS51: 33 | AT51: 20 | AU51: 13 | AV51: 0 | AW51: 0 | AX51: =SUM(Pagination[[#This Row],[1]:[4]]) -> 33 | AY51: =Pagination[[#This Row],[somme]]-Pagination[[#This Row],[nb]] -> 0 | BH51: MICA ENVIRONNEMENT NC | BI51: 204 rte des Deux Communes | BJ51: 98809 MONT DORE
V52: Cr2O3 | W52: 3 | AA52: Ni Mean | AB52: 1 | AC52: 3 | AI52: Co | AJ52: LAT 106 | AK52: 0.321 | AL52: % | AS52: 34 | AT52: 20 | AU52: 14 | AV52: 0 | AW52: 0 | AX52: =SUM(Pagination[[#This Row],[1]:[4]]) -> 34 | AY52: =Pagination[[#This Row],[somme]]-Pagination[[#This Row],[nb]] -> 0 | BH52: NI LAB SARL | BI52: B.P. 201 | BJ52: 98825 POUEMBOUT
V53: Cu | W53: 1 | AA53: Fe Mean | AB53: 1 | AC53: 2 | AI53: Co | AJ53: SAP 201 | AK53: 0.086 | AL53: % | AS53: 35 | AT53: 20 | AU53: 15 | AV53: 0 | AW53: 0 | AX53: =SUM(Pagination[[#This Row],[1]:[4]]) -> 35 | AY53: =Pagination[[#This Row],[somme]]-Pagination[[#This Row],[nb]] -> 0 | BH53: NICKEL MINING COMPANY SAS | BI53: B.P. 66 | BJ53: 98845 NOUMEA CEDEX
V54: Fe | W54: 2 | AA54: P Mean | AB54: 1 | AC54: 2 | AI54: Co | AJ54: SAP 209 | AK54: 0.045 | AL54: % | AS54: 36 | AT54: 20 | AU54: 16 | AV54: 0 | AW54: 0 | AX54: =SUM(Pagination[[#This Row],[1]:[4]]) -> 36 | AY54: =Pagination[[#This Row],[somme]]-Pagination[[#This Row],[nb]] -> 0 | BH54: PARASITECH | BI54: 10 rue Papin | BJ54: 98800 NOUMEA CEDEX
V55: MgO | W55: 2 | AA55: S Mean | AB55: 1 | AC55: 1 | AI55: Co | AJ55: SAP 212 | AK55: 0.069 | AL55: % | AS55: 37 | AT55: 20 | AU55: 17 | AV55: 0 | AW55: 0 | AX55: =SUM(Pagination[[#This Row],[1]:[4]]) -> 37 | AY55: =Pagination[[#This Row],[somme]]-Pagination[[#This Row],[nb]] -> 0 | BH55: PROVETO | BI55: B.P. 3192 | BJ55: 98846 NOUMEA CEDEX
V56: Mn | W56: 3 | AI56: Co | AJ56: SAP 208 | AK56: 0.039 | AL56: % | AS56: 38 | AT56: 20 | AU56: 18 | AV56: 0 | AW56: 0 | AX56: =SUM(Pagination[[#This Row],[1]:[4]]) -> 38 | AY56: =Pagination[[#This Row],[somme]]-Pagination[[#This Row],[nb]] -> 0 | BH56: ROBEX SARL | BI56: B.P. 18934 | BJ56: 98857 NOUMEA CEDEX
V57: Ni | W57: 3 | AI57: Co | AJ57: LAT 110 | AK57: 0.022 | AL57: % | AS57: 39 | AT57: 20 | AU57: 19 | AV57: 0 | AW57: 0 | AX57: =SUM(Pagination[[#This Row],[1]:[4]]) -> 39 | AY57: =Pagination[[#This Row],[somme]]-Pagination[[#This Row],[nb]] -> 0 | BH57: SALINS DE KO | BI57: KO - POINGAM | BJ57: 98826 POUM
V58: P | W58: 2 | AI58: Co | AJ58: SAP 210 | AK58: 0.036 | AL58: % | AS58: 40 | AT58: 20 | AU58: 20 | AV58: 0 | AW58: 0 | AX58: =SUM(Pagination[[#This Row],[1]:[4]]) -> 40 | AY58: =Pagination[[#This Row],[somme]]-Pagination[[#This Row],[nb]] -> 0 | BH58: SCET | BI58: 6bis rte de la Baie des Dames | BJ58: 98800 NOUMEA CEDEX
V59: S | W59: 1 | AI59: Co | AJ59: P+S 200 | AK59: 0 | AL59: % | AS59: 41 | AT59: 21 | AU59: 20 | AV59: 0 | AW59: 0 | AX59: =SUM(Pagination[[#This Row],[1]:[4]]) -> 41 | AY59: =Pagination[[#This Row],[somme]]-Pagination[[#This Row],[nb]] -> 0 | BH59: SOBECA | BI59: B.P. 53 | BJ59: 98845 NOUMEA CEDEX
V60: SiO2 | W60: 3 | AI60: Co | AJ60: P+S 500 | AK60: 0 | AL60: % | AS60: 42 | AT60: 22 | AU60: 20 | AV60: 0 | AW60: 0 | AX60: =SUM(Pagination[[#This Row],[1]:[4]]) -> 42 | AY60: =Pagination[[#This Row],[somme]]-Pagination[[#This Row],[nb]] -> 0 | BH60: Société des Mines de Cap Bocage | BI60: B.P. T2 | BJ60: 98852 NOUMEA CEDEX
V61: TiO2 | W61: 3 | AI61: Co | AJ61: P+S 1000 | AK61: 0 | AL61: % | AS61: 43 | AT61: 23 | AU61: 20 | AV61: 0 | AW61: 0 | AX61: =SUM(Pagination[[#This Row],[1]:[4]]) -> 43 | AY61: =Pagination[[#This Row],[somme]]-Pagination[[#This Row],[nb]] -> 0 | BH61: Société des Mines de Nakéty | BI61: B.P. T2 | BJ61: 98852 NOUMEA CEDEX
V62: Y | W62: 3 | AI62: Co | AJ62: P+S 2000 | AK62: 0 | AL62: % | AS62: 44 | AT62: 24 | AU62: 20 | AV62: 0 | AW62: 0 | AX62: =SUM(Pagination[[#This Row],[1]:[4]]) -> 44 | AY62: =Pagination[[#This Row],[somme]]-Pagination[[#This Row],[nb]] -> 0 | BH62: Société des Mines de Tontouta | BI62: B.P. T2 | BJ62: 98852 NOUMEA CEDEX
V63: Zn | W63: 1 | AI63: Cr | AJ63: LAT 114 | AK63: 5.18 | AL63: % | AS63: 45 | AT63: 25 | AU63: 20 | AV63: 0 | AW63: 0 | AX63: =SUM(Pagination[[#This Row],[1]:[4]]) -> 45 | AY63: =Pagination[[#This Row],[somme]]-Pagination[[#This Row],[nb]] -> 0 | BH63: Société Le Nickel SLN | BI63: B.P. E5 | BJ63: 98848 NOUMEA CEDEX
V64: Ni Mean | W64: 3 | AI64: Cr | AJ64: LAT 103 | AK64: 1.946 | AL64: % | AS64: 46 | AT64: 26 | AU64: 20 | AV64: 0 | AW64: 0 | AX64: =SUM(Pagination[[#This Row],[1]:[4]]) -> 46 | AY64: =Pagination[[#This Row],[somme]]-Pagination[[#This Row],[nb]] -> 0 | BH64: Société Minière Georges Montagnat | BI64: B.P. 166 | BJ64: 98845 NOUMEA CEDEX
V65: Fe Mean | W65: 2 | AI65: Cr | AJ65: LAT 112 | AK65: 3.134 | AL65: % | AS65: 47 | AT65: 27 | AU65: 20 | AV65: 0 | AW65: 0 | AX65: =SUM(Pagination[[#This Row],[1]:[4]]) -> 47 | AY65: =Pagination[[#This Row],[somme]]-Pagination[[#This Row],[nb]] -> 0 | BH65: TAKONE SARL | BI65: B.P. 142 | BJ65: 98828 TADINE
AI66: Cr | AJ66: LAT 104 | AK66: 3.247 | AL66: % | AS66: 48 | AT66: 28 | AU66: 20 | AV66: 0 | AW66: 0 | AX66: =SUM(Pagination[[#This Row],[1]:[4]]) -> 48 | AY66: =Pagination[[#This Row],[somme]]-Pagination[[#This Row],[nb]] -> 0 | BH66: TOKUYAMA NC SA | BI66: B.P. 310 | BJ66: 98845 NOUMEA CEDEX
AI67: Cr | AJ67: LAT 106 | AK67: 3.217 | AL67: % | AS67: 49 | AT67: 29 | AU67: 20 | AV67: 0 | AW67: 0 | AX67: =SUM(Pagination[[#This Row],[1]:[4]]) -> 49 | AY67: =Pagination[[#This Row],[somme]]-Pagination[[#This Row],[nb]] -> 0 | BH67: TRECODEC SAS | BI67: 1bis rue Picardie | BJ67: 98800 NOUMEA CEDEX
AI68: Cr | AJ68: SAP 201 | AK68: 2.05 | AL68: % | AS68: 50 | AT68: 30 | AU68: 20 | AV68: 0 | AW68: 0 | AX68: =SUM(Pagination[[#This Row],[1]:[4]]) -> 50 | AY68: =Pagination[[#This Row],[somme]]-Pagination[[#This Row],[nb]] -> 0 | BH68: UNIVERSITE DE NOUVELLE-CALEDONIE | BI68: B.P. R4 | BJ68: 98851 NOUMEA CEDEX
AI69: Cr | AJ69: SAP 209 | AK69: 0.242 | AL69: % | AS69: 51 | AT69: 30 | AU69: 21 | AV69: 0 | AW69: 0 | AX69: =SUM(Pagination[[#This Row],[1]:[4]]) -> 51 | AY69: =Pagination[[#This Row],[somme]]-Pagination[[#This Row],[nb]] -> 0 | BH69: VALE INCO Nouvelle Calédonie SAS | BI69: B.P. 218 | BJ69: 98845 NOUMEA CEDEX
AI70: Cr | AJ70: SAP 212 | AK70: 0.951 | AL70: % | AS70: 52 | AT70: 30 | AU70: 22 | AV70: 0 | AW70: 0 | AX70: =SUM(Pagination[[#This Row],[1]:[4]]) -> 52 | AY70: =Pagination[[#This Row],[somme]]-Pagination[[#This Row],[nb]] -> 0
AI71: Cr | AJ71: SAP 208 | AK71: 0.87 | AL71: % | AS71: 53 | AT71: 30 | AU71: 23 | AV71: 0 | AW71: 0 | AX71: =SUM(Pagination[[#This Row],[1]:[4]]) -> 53 | AY71: =Pagination[[#This Row],[somme]]-Pagination[[#This Row],[nb]] -> 0
AI72: Cr | AJ72: LAT 110 | AK72: 2.535 | AL72: % | AS72: 54 | AT72: 30 | AU72: 24 | AV72: 0 | AW72: 0 | AX72: =SUM(Pagination[[#This Row],[1]:[4]]) -> 54 | AY72: =Pagination[[#This Row],[somme]]-Pagination[[#This Row],[nb]] -> 0
AI73: Cr | AJ73: SAP 210 | AK73: 0.584 | AL73: % | AS73: 55 | AT73: 30 | AU73: 25 | AV73: 0 | AW73: 0 | AX73: =SUM(Pagination[[#This Row],[1]:[4]]) -> 55 | AY73: =Pagination[[#This Row],[somme]]-Pagination[[#This Row],[nb]] -> 0
AI74: Cr | AJ74: P+S 200 | AK74: 0 | AL74: % | AS74: 56 | AT74: 30 | AU74: 26 | AV74: 0 | AW74: 0 | AX74: =SUM(Pagination[[#This Row],[1]:[4]]) -> 56 | AY74: =Pagination[[#This Row],[somme]]-Pagination[[#This Row],[nb]] -> 0
AI75: Cr | AJ75: P+S 500 | AK75: 0 | AL75: % | AS75: 57 | AT75: 30 | AU75: 27 | AV75: 0 | AW75: 0 | AX75: =SUM(Pagination[[#This Row],[1]:[4]]) -> 57 | AY75: =Pagination[[#This Row],[somme]]-Pagination[[#This Row],[nb]] -> 0
AI76: Cr | AJ76: P+S 1000 | AK76: 0 | AL76: % | AS76: 58 | AT76: 30 | AU76: 28 | AV76: 0 | AW76: 0 | AX76: =SUM(Pagination[[#This Row],[1]:[4]]) -> 58 | AY76: =Pagination[[#This Row],[somme]]-Pagination[[#This Row],[nb]] -> 0
AI77: Cr | AJ77: P+S 2000 | AK77: 0 | AL77: % | AS77: 59 | AT77: 30 | AU77: 29 | AV77: 0 | AW77: 0 | AX77: =SUM(Pagination[[#This Row],[1]:[4]]) -> 59 | AY77: =Pagination[[#This Row],[somme]]-Pagination[[#This Row],[nb]] -> 0
AI78: Fe | AJ78: LAT 114 | AK78: 51.655 | AL78: % | AS78: 60 | AT78: 30 | AU78: 30 | AV78: 0 | AW78: 0 | AX78: =SUM(Pagination[[#This Row],[1]:[4]]) -> 60 | AY78: =Pagination[[#This Row],[somme]]-Pagination[[#This Row],[nb]] -> 0
AI79: Fe | AJ79: LAT 103 | AK79: 31.718 | AL79: % | AS79: 61 | AT79: 30 | AU79: 25 | AV79: 6 | AW79: 0 | AX79: =SUM(Pagination[[#This Row],[1]:[4]]) -> 61 | AY79: =Pagination[[#This Row],[somme]]-Pagination[[#This Row],[nb]] -> 0
AI80: Fe | AJ80: LAT 112 | AK80: 41.655 | AL80: % | AS80: 62 | AT80: 30 | AU80: 25 | AV80: 7 | AW80: 0 | AX80: =SUM(Pagination[[#This Row],[1]:[4]]) -> 62 | AY80: =Pagination[[#This Row],[somme]]-Pagination[[#This Row],[nb]] -> 0
AI81: Fe | AJ81: LAT 104 | AK81: 47.055 | AL81: % | AS81: 63 | AT81: 30 | AU81: 25 | AV81: 8 | AW81: 0 | AX81: =SUM(Pagination[[#This Row],[1]:[4]]) -> 63 | AY81: =Pagination[[#This Row],[somme]]-Pagination[[#This Row],[nb]] -> 0
AI82: Fe | AJ82: LAT 106 | AK82: 47.485 | AL82: % | AS82: 64 | AT82: 30 | AU82: 25 | AV82: 9 | AW82: 0 | AX82: =SUM(Pagination[[#This Row],[1]:[4]]) -> 64 | AY82: =Pagination[[#This Row],[somme]]-Pagination[[#This Row],[nb]] -> 0
AI83: Fe | AJ83: SAP 201 | AK83: 26.363 | AL83: % | AS83: 65 | AT83: 30 | AU83: 25 | AV83: 10 | AW83: 0 | AX83: =SUM(Pagination[[#This Row],[1]:[4]]) -> 65 | AY83: =Pagination[[#This Row],[somme]]-Pagination[[#This Row],[nb]] -> 0
AI84: Fe | AJ84: SAP 209 | AK84: 4.959 | AL84: % | AS84: 66 | AT84: 30 | AU84: 25 | AV84: 11 | AW84: 0 | AX84: =SUM(Pagination[[#This Row],[1]:[4]]) -> 66 | AY84: =Pagination[[#This Row],[somme]]-Pagination[[#This Row],[nb]] -> 0
AI85: Fe | AJ85: SAP 212 | AK85: 13.279 | AL85: % | AS85: 67 | AT85: 30 | AU85: 25 | AV85: 12 | AW85: 0 | AX85: =SUM(Pagination[[#This Row],[1]:[4]]) -> 67 | AY85: =Pagination[[#This Row],[somme]]-Pagination[[#This Row],[nb]] -> 0
AI86: Fe | AJ86: SAP 208 | AK86: 10.064 | AL86: % | AS86: 68 | AT86: 30 | AU86: 25 | AV86: 13 | AW86: 0 | AX86: =SUM(Pagination[[#This Row],[1]:[4]]) -> 68 | AY86: =Pagination[[#This Row],[somme]]-Pagination[[#This Row],[nb]] -> 0
AI87: Fe | AJ87: LAT 110 | AK87: 40.007 | AL87: % | AS87: 69 | AT87: 30 | AU87: 25 | AV87: 14 | AW87: 0 | AX87: =SUM(Pagination[[#This Row],[1]:[4]]) -> 69 | AY87: =Pagination[[#This Row],[somme]]-Pagination[[#This Row],[nb]] -> 0
AI88: Fe | AJ88: SAP 210 | AK88: 8.225 | AL88: % | AS88: 70 | AT88: 30 | AU88: 25 | AV88: 15 | AW88: 0 | AX88: =SUM(Pagination[[#This Row],[1]:[4]]) -> 70 | AY88: =Pagination[[#This Row],[somme]]-Pagination[[#This Row],[nb]] -> 0
AI89: Fe | AJ89: P+S 200 | AK89: 0 | AL89: % | AS89: 71 | AT89: 30 | AU89: 25 | AV89: 16 | AW89: 0 | AX89: =SUM(Pagination[[#This Row],[1]:[4]]) -> 71 | AY89: =Pagination[[#This Row],[somme]]-Pagination[[#This Row],[nb]] -> 0
AI90: Fe | AJ90: P+S 500 | AK90: 0 | AL90: % | AS90: 72 | AT90: 30 | AU90: 25 | AV90: 17 | AW90: 0 | AX90: =SUM(Pagination[[#This Row],[1]:[4]]) -> 72 | AY90: =Pagination[[#This Row],[somme]]-Pagination[[#This Row],[nb]] -> 0
AI91: Fe | AJ91: P+S 1000 | AK91: 0 | AL91: % | AS91: 73 | AT91: 30 | AU91: 25 | AV91: 18 | AW91: 0 | AX91: =SUM(Pagination[[#This Row],[1]:[4]]) -> 73 | AY91: =Pagination[[#This Row],[somme]]-Pagination[[#This Row],[nb]] -> 0
AI92: Fe | AJ92: P+S 2000 | AK92: 0 | AL92: % | AS92: 74 | AT92: 30 | AU92: 25 | AV92: 19 | AW92: 0 | AX92: =SUM(Pagination[[#This Row],[1]:[4]]) -> 74 | AY92: =Pagination[[#This Row],[somme]]-Pagination[[#This Row],[nb]] -> 0
AI93: Mg | AJ93: LAT 114 | AK93: 0.701 | AL93: % | AS93: 75 | AT93: 30 | AU93: 25 | AV93: 20 | AW93: 0 | AX93: =SUM(Pagination[[#This Row],[1]:[4]]) -> 75 | AY93: =Pagination[[#This Row],[somme]]-Pagination[[#This Row],[nb]] -> 0
AI94: Mg | AJ94: LAT 103 | AK94: 2.979 | AL94: % | AS94: 76 | AT94: 30 | AU94: 25 | AV94: 21 | AW94: 0 | AX94: =SUM(Pagination[[#This Row],[1]:[4]]) -> 76 | AY94: =Pagination[[#This Row],[somme]]-Pagination[[#This Row],[nb]] -> 0
AI95: Mg | AJ95: LAT 112 | AK95: 4.488 | AL95: % | AS95: 77 | AT95: 30 | AU95: 25 | AV95: 22 | AW95: 0 | AX95: =SUM(Pagination[[#This Row],[1]:[4]]) -> 77 | AY95: =Pagination[[#This Row],[somme]]-Pagination[[#This Row],[nb]] -> 0
AI96: Mg | AJ96: LAT 104 | AK96: 0.811 | AL96: % | AS96: 78 | AT96: 30 | AU96: 25 | AV96: 23 | AW96: 0 | AX96: =SUM(Pagination[[#This Row],[1]:[4]]) -> 78 | AY96: =Pagination[[#This Row],[somme]]-Pagination[[#This Row],[nb]] -> 0
AI97: Mg | AJ97: LAT 106 | AK97: 0.774 | AL97: % | AS97: 79 | AT97: 30 | AU97: 25 | AV97: 24 | AW97: 0 | AX97: =SUM(Pagination[[#This Row],[1]:[4]]) -> 79 | AY97: =Pagination[[#This Row],[somme]]-Pagination[[#This Row],[nb]] -> 0
AI98: Mg | AJ98: SAP 201 | AK98: 12.284 | AL98: % | AS98: 80 | AT98: 30 | AU98: 25 | AV98: 25 | AW98: 0 | AX98: =SUM(Pagination[[#This Row],[1]:[4]]) -> 80 | AY98: =Pagination[[#This Row],[somme]]-Pagination[[#This Row],[nb]] -> 0
AI99: Mg | AJ99: SAP 209 | AK99: 30.139 | AL99: % | AS99: 81 | AT99: 30 | AU99: 26 | AV99: 25 | AW99: 0 | AX99: =SUM(Pagination[[#This Row],[1]:[4]]) -> 81 | AY99: =Pagination[[#This Row],[somme]]-Pagination[[#This Row],[nb]] -> 0
AI100: Mg | AJ100: SAP 212 | AK100: 24.385 | AL100: % | AS100: 82 | AT100: 30 | AU100: 27 | AV100: 25 | AW100: 0 | AX100: =SUM(Pagination[[#This Row],[1]:[4]]) -> 82 | AY100: =Pagination[[#This Row],[somme]]-Pagination[[#This Row],[nb]] -> 0
AI101: Mg | AJ101: SAP 208 | AK101: 28.012 | AL101: % | AS101: 83 | AT101: 30 | AU101: 28 | AV101: 25 | AW101: 0 | AX101: =SUM(Pagination[[#This Row],[1]:[4]]) -> 83 | AY101: =Pagination[[#This Row],[somme]]-Pagination[[#This Row],[nb]] -> 0
AI102: Mg | AJ102: LAT 110 | AK102: 0.861 | AL102: % | AS102: 84 | AT102: 30 | AU102: 29 | AV102: 25 | AW102: 0 | AX102: =SUM(Pagination[[#This Row],[1]:[4]]) -> 84 | AY102: =Pagination[[#This Row],[somme]]-Pagination[[#This Row],[nb]] -> 0
AI103: Mg | AJ103: SAP 210 | AK103: 12.389 | AL103: % | AS103: 85 | AT103: 30 | AU103: 30 | AV103: 25 | AW103: 0 | AX103: =SUM(Pagination[[#This Row],[1]:[4]]) -> 85 | AY103: =Pagination[[#This Row],[somme]]-Pagination[[#This Row],[nb]] -> 0
AI104: Mg | AJ104: P+S 200 | AK104: 0 | AL104: % | AS104: 86 | AT104: 30 | AU104: 31 | AV104: 25 | AW104: 0 | AX104: =SUM(Pagination[[#This Row],[1]:[4]]) -> 86 | AY104: =Pagination[[#This Row],[somme]]-Pagination[[#This Row],[nb]] -> 0
AI105: Mg | AJ105: P+S 500 | AK105: 0 | AL105: % | AS105: 87 | AT105: 30 | AU105: 32 | AV105: 25 | AW105: 0 | AX105: =SUM(Pagination[[#This Row],[1]:[4]]) -> 87 | AY105: =Pagination[[#This Row],[somme]]-Pagination[[#This Row],[nb]] -> 0
AI106: Mg | AJ106: P+S 1000 | AK106: 0 | AL106: % | AS106: 88 | AT106: 30 | AU106: 33 | AV106: 25 | AW106: 0 | AX106: =SUM(Pagination[[#This Row],[1]:[4]]) -> 88 | AY106: =Pagination[[#This Row],[somme]]-Pagination[[#This Row],[nb]] -> 0
AI107: Mg | AJ107: P+S 2000 | AK107: 0 | AL107: % | AS107: 89 | AT107: 30 | AU107: 34 | AV107: 25 | AW107: 0 | AX107: =SUM(Pagination[[#This Row],[1]:[4]]) -> 89 | AY107: =Pagination[[#This Row],[somme]]-Pagination[[#This Row],[nb]] -> 0
AI108: Mn | AJ108: LAT 114 | AK108: 0.303 | AL108: % | AS108: 90 | AT108: 30 | AU108: 34 | AV108: 26 | AW108: 0 | AX108: =SUM(Pagination[[#This Row],[1]:[4]]) -> 90 | AY108: =Pagination[[#This Row],[somme]]-Pagination[[#This Row],[nb]] -> 0
AI109: Mn | AJ109: LAT 103 | AK109: 0.509 | AL109: % | AS109: 91 | AT109: 30 | AU109: 34 | AV109: 27 | AW109: 0 | AX109: =SUM(Pagination[[#This Row],[1]:[4]]) -> 91 | AY109: =Pagination[[#This Row],[somme]]-Pagination[[#This Row],[nb]] -> 0
AI110: Mn | AJ110: LAT 112 | AK110: 0.851 | AL110: % | AS110: 92 | AT110: 30 | AU110: 34 | AV110: 28 | AW110: 0 | AX110: =SUM(Pagination[[#This Row],[1]:[4]]) -> 92 | AY110: =Pagination[[#This Row],[somme]]-Pagination[[#This Row],[nb]] -> 0
AI111: Mn | AJ111: LAT 104 | AK111: 4.102 | AL111: % | AS111: 93 | AT111: 30 | AU111: 34 | AV111: 29 | AW111: 0 | AX111: =SUM(Pagination[[#This Row],[1]:[4]]) -> 93 | AY111: =Pagination[[#This Row],[somme]]-Pagination[[#This Row],[nb]] -> 0
AI112: Mn | AJ112: LAT 106 | AK112: 2.583 | AL112: % | AS112: 94 | AT112: 30 | AU112: 34 | AV112: 30 | AW112: 0 | AX112: =SUM(Pagination[[#This Row],[1]:[4]]) -> 94 | AY112: =Pagination[[#This Row],[somme]]-Pagination[[#This Row],[nb]] -> 0
AI113: Mn | AJ113: SAP 201 | AK113: 0.475 | AL113: % | AS113: 95 | AT113: 30 | AU113: 34 | AV113: 25 | AW113: 6 | AX113: =SUM(Pagination[[#This Row],[1]:[4]]) -> 95 | AY113: =Pagination[[#This Row],[somme]]-Pagination[[#This Row],[nb]] -> 0
AI114: Mn | AJ114: SAP 209 | AK114: 0.07 | AL114: % | AS114: 96 | AT114: 30 | AU114: 34 | AV114: 25 | AW114: 7 | AX114: =SUM(Pagination[[#This Row],[1]:[4]]) -> 96 | AY114: =Pagination[[#This Row],[somme]]-Pagination[[#This Row],[nb]] -> 0
AI115: Mn | AJ115: SAP 212 | AK115: 0.301 | AL115: % | AS115: 97 | AT115: 30 | AU115: 34 | AV115: 25 | AW115: 8 | AX115: =SUM(Pagination[[#This Row],[1]:[4]]) -> 97 | AY115: =Pagination[[#This Row],[somme]]-Pagination[[#This Row],[nb]] -> 0
AI116: Mn | AJ116: SAP 208 | AK116: 0.181 | AL116: % | AS116: 98 | AT116: 30 | AU116: 34 | AV116: 25 | AW116: 9 | AX116: =SUM(Pagination[[#This Row],[1]:[4]]) -> 98 | AY116: =Pagination[[#This Row],[somme]]-Pagination[[#This Row],[nb]] -> 0
AI117: Mn | AJ117: LAT 110 | AK117: 0.115 | AL117: % | AS117: 99 | AT117: 30 | AU117: 34 | AV117: 25 | AW117: 10 | AX117: =SUM(Pagination[[#This Row],[1]:[4]]) -> 99 | AY117: =Pagination[[#This Row],[somme]]-Pagination[[#This Row],[nb]] -> 0
AI118: Mn | AJ118: SAP 210 | AK118: 0.146 | AL118: % | AS118: 100 | AT118: 30 | AU118: 34 | AV118: 25 | AW118: 11 | AX118: =SUM(Pagination[[#This Row],[1]:[4]]) -> 100 | AY118: =Pagination[[#This Row],[somme]]-Pagination[[#This Row],[nb]] -> 0
AI119: Mn | AJ119: P+S 200 | AK119: 0 | AL119: % | AS119: 101 | AT119: 30 | AU119: 34 | AV119: 25 | AW119: 12 | AX119: =SUM(Pagination[[#This Row],[1]:[4]]) -> 101 | AY119: =Pagination[[#This Row],[somme]]-Pagination[[#This Row],[nb]] -> 0
AI120: Mn | AJ120: P+S 500 | AK120: 0 | AL120: % | AS120: 102 | AT120: 30 | AU120: 34 | AV120: 25 | AW120: 13 | AX120: =SUM(Pagination[[#This Row],[1]:[4]]) -> 102 | AY120: =Pagination[[#This Row],[somme]]-Pagination[[#This Row],[nb]] -> 0
AI121: Mn | AJ121: P+S 1000 | AK121: 0 | AL121: % | AS121: 103 | AT121: 30 | AU121: 34 | AV121: 25 | AW121: 14 | AX121: =SUM(Pagination[[#This Row],[1]:[4]]) -> 103 | AY121: =Pagination[[#This Row],[somme]]-Pagination[[#This Row],[nb]] -> 0
AI122: Mn | AJ122: P+S 2000 | AK122: 0 | AL122: % | AS122: 104 | AT122: 30 | AU122: 34 | AV122: 25 | AW122: 15 | AX122: =SUM(Pagination[[#This Row],[1]:[4]]) -> 104 | AY122: =Pagination[[#This Row],[somme]]-Pagination[[#This Row],[nb]] -> 0
AI123: Ni | AJ123: LAT 114 | AK123: 0.356 | AL123: % | AS123: 105 | AT123: 30 | AU123: 34 | AV123: 25 | AW123: 16 | AX123: =SUM(Pagination[[#This Row],[1]:[4]]) -> 105 | AY123: =Pagination[[#This Row],[somme]]-Pagination[[#This Row],[nb]] -> 0
AI124: Ni | AJ124: LAT 103 | AK124: 0.801 | AL124: % | AS124: 106 | AT124: 30 | AU124: 34 | AV124: 25 | AW124: 17 | AX124: =SUM(Pagination[[#This Row],[1]:[4]]) -> 106 | AY124: =Pagination[[#This Row],[somme]]-Pagination[[#This Row],[nb]] -> 0
AI125: Ni | AJ125: LAT 112 | AK125: 1.258 | AL125: % | AS125: 107 | AT125: 30 | AU125: 34 | AV125: 25 | AW125: 18 | AX125: =SUM(Pagination[[#This Row],[1]:[4]]) -> 107 | AY125: =Pagination[[#This Row],[somme]]-Pagination[[#This Row],[nb]] -> 0
AI126: Ni | AJ126: LAT 104 | AK126: 1.61 | AL126: % | AS126: 108 | AT126: 30 | AU126: 34 | AV126: 25 | AW126: 19 | AX126: =SUM(Pagination[[#This Row],[1]:[4]]) -> 108 | AY126: =Pagination[[#This Row],[somme]]-Pagination[[#This Row],[nb]] -> 0
AI127: Ni | AJ127: LAT 106 | AK127: 1.876 | AL127: % | AS127: 109 | AT127: 30 | AU127: 34 | AV127: 25 | AW127: 20 | AX127: =SUM(Pagination[[#This Row],[1]:[4]]) -> 109 | AY127: =Pagination[[#This Row],[somme]]-Pagination[[#This Row],[nb]] -> 0
AI128: Ni | AJ128: SAP 201 | AK128: 2.152 | AL128: % | AS128: 110 | AT128: 30 | AU128: 34 | AV128: 25 | AW128: 21 | AX128: =SUM(Pagination[[#This Row],[1]:[4]]) -> 110 | AY128: =Pagination[[#This Row],[somme]]-Pagination[[#This Row],[nb]] -> 0
AI129: Ni | AJ129: SAP 209 | AK129: 2.34 | AL129: % | AS129: 111 | AT129: 30 | AU129: 34 | AV129: 25 | AW129: 22 | AX129: =SUM(Pagination[[#This Row],[1]:[4]]) -> 111 | AY129: =Pagination[[#This Row],[somme]]-Pagination[[#This Row],[nb]] -> 0
AI130: Ni | AJ130: SAP 212 | AK130: 2.553 | AL130: % | AS130: 112 | AT130: 30 | AU130: 34 | AV130: 25 | AW130: 23 | AX130: =SUM(Pagination[[#This Row],[1]:[4]]) -> 112 | AY130: =Pagination[[#This Row],[somme]]-Pagination[[#This Row],[nb]] -> 0
AI131: Ni | AJ131: SAP 208 | AK131: 3.289 | AL131: % | AS131: 113 | AT131: 30 | AU131: 34 | AV131: 25 | AW131: 24 | AX131: =SUM(Pagination[[#This Row],[1]:[4]]) -> 113 | AY131: =Pagination[[#This Row],[somme]]-Pagination[[#This Row],[nb]] -> 0
AI132: Ni | AJ132: LAT 110 | AK132: 0.92 | AL132: % | AS132: 114 | AT132: 30 | AU132: 34 | AV132: 25 | AW132: 25 | AX132: =SUM(Pagination[[#This Row],[1]:[4]]) -> 114 | AY132: =Pagination[[#This Row],[somme]]-Pagination[[#This Row],[nb]] -> 0
AI133: Ni | AJ133: SAP 210 | AK133: 0 | AL133: % | AS133: 115 | AT133: 30 | AU133: 34 | AV133: 26 | AW133: 25 | AX133: =SUM(Pagination[[#This Row],[1]:[4]]) -> 115 | AY133: =Pagination[[#This Row],[somme]]-Pagination[[#This Row],[nb]] -> 0
AI134: Ni | AJ134: P+S 200 | AK134: 0 | AL134: % | AS134: 116 | AT134: 30 | AU134: 34 | AV134: 27 | AW134: 25 | AX134: =SUM(Pagination[[#This Row],[1]:[4]]) -> 116 | AY134: =Pagination[[#This Row],[somme]]-Pagination[[#This Row],[nb]] -> 0
AI135: Ni | AJ135: P+S 500 | AK135: 0 | AL135: % | AS135: 117 | AT135: 30 | AU135: 34 | AV135: 28 | AW135: 25 | AX135: =SUM(Pagination[[#This Row],[1]:[4]]) -> 117 | AY135: =Pagination[[#This Row],[somme]]-Pagination[[#This Row],[nb]] -> 0
AI136: Ni | AJ136: P+S 1000 | AK136: 0 | AL136: % | AS136: 118 | AT136: 30 | AU136: 34 | AV136: 29 | AW136: 25 | AX136: =SUM(Pagination[[#This Row],[1]:[4]]) -> 118 | AY136: =Pagination[[#This Row],[somme]]-Pagination[[#This Row],[nb]] -> 0
AI137: Ni | AJ137: P+S 2000 | AK137: 0 | AL137: % | AS137: 119 | AT137: 30 | AU137: 34 | AV137: 30 | AW137: 25 | AX137: =SUM(Pagination[[#This Row],[1]:[4]]) -> 119 | AY137: =Pagination[[#This Row],[somme]]-Pagination[[#This Row],[nb]] -> 0
AI138: Si | AJ138: LAT 114 | AK138: 1.102 | AL138: % | AS138: 120 | AT138: 30 | AU138: 34 | AV138: 31 | AW138: 25 | AX138: =SUM(Pagination[[#This Row],[1]:[4]]) -> 120 | AY138: =Pagination[[#This Row],[somme]]-Pagination[[#This Row],[nb]] -> 0
AI139: Si | AJ139: LAT 103 | AK139: 35.108 | AL139: % | AS139: 121 | AT139: 30 | AU139: 34 | AV139: 32 | AW139: 25 | AX139: =SUM(Pagination[[#This Row],[1]:[4]]) -> 121 | AY139: =Pagination[[#This Row],[somme]]-Pagination[[#This Row],[nb]] -> 0
AI140: Si | AJ140: LAT 112 | AK140: 10.826 | AL140: % | AS140: 122 | AT140: 30 | AU140: 34 | AV140: 33 | AW140: 25 | AX140: =SUM(Pagination[[#This Row],[1]:[4]]) -> 122 | AY140: =Pagination[[#This Row],[somme]]-Pagination[[#This Row],[nb]] -> 0
AI141: Si | AJ141: LAT 104 | AK141: 2.534 | AL141: % | AS141: 123 | AT141: 30 | AU141: 34 | AV141: 34 | AW141: 25 | AX141: =SUM(Pagination[[#This Row],[1]:[4]]) -> 123 | AY141: =Pagination[[#This Row],[somme]]-Pagination[[#This Row],[nb]] -> 0
AI142: Si | AJ142: LAT 106 | AK142: 2.977 | AL142: % | AS142: 124 | AT142: 30 | AU142: 34 | AV142: 34 | AW142: 26 | AX142: =SUM(Pagination[[#This Row],[1]:[4]]) -> 124 | AY142: =Pagination[[#This Row],[somme]]-Pagination[[#This Row],[nb]] -> 0
AI143: Si | AJ143: SAP 201 | AK143: 31.678 | AL143: % | AS143: 125 | AT143: 30 | AU143: 34 | AV143: 34 | AW143: 27 | AX143: =SUM(Pagination[[#This Row],[1]:[4]]) -> 125 | AY143: =Pagination[[#This Row],[somme]]-Pagination[[#This Row],[nb]] -> 0
AI144: Si | AJ144: SAP 209 | AK144: 47.751 | AL144: % | AS144: 126 | AT144: 30 | AU144: 34 | AV144: 34 | AW144: 28 | AX144: =SUM(Pagination[[#This Row],[1]:[4]]) -> 126 | AY144: =Pagination[[#This Row],[somme]]-Pagination[[#This Row],[nb]] -> 0
AI145: Si | AJ145: SAP 212 | AK145: 39.104 | AL145: % | AS145: 127 | AT145: 30 | AU145: 34 | AV145: 34 | AW145: 29 | AX145: =SUM(Pagination[[#This Row],[1]:[4]]) -> 127 | AY145: =Pagination[[#This Row],[somme]]-Pagination[[#This Row],[nb]] -> 0
AI146: Si | AJ146: SAP 208 | AK146: 40.53 | AL146: % | AS146: 128 | AT146: 30 | AU146: 34 | AV146: 34 | AW146: 30 | AX146: =SUM(Pagination[[#This Row],[1]:[4]]) -> 128 | AY146: =Pagination[[#This Row],[somme]]-Pagination[[#This Row],[nb]] -> 0
AI147: Si | AJ147: LAT 110 | AK147: 12.414 | AL147: %
AI148: Si | AJ148: SAP 210 | AK148: 67.478 | AL148: %
AI149: Si | AJ149: P+S 200 | AK149: 0 | AL149: %
AI150: Si | AJ150: P+S 500 | AK150: 0 | AL150: %
AI151: Si | AJ151: P+S 1000 | AK151: 0 | AL151: %
AI152: Si | AJ152: P+S 2000 | AK152: 0 | AL152: %
AI153: Ti | AJ153: LAT 114 | AK153: 0.091 | AL153: %
AI154: Ti | AJ154: LAT 103 | AK154: 0.019 | AL154: %
AI155: Ti | AJ155: LAT 112 | AK155: 0.071 | AL155: %
AI156: Ti | AJ156: LAT 104 | AK156: 0 | AL156: %
AI157: Ti | AJ157: LAT 106 | AK157: 0 | AL157: %
AI158: Ti | AJ158: SAP 201 | AK158: 0.028 | AL158: %
AI159: Ti | AJ159: SAP 209 | AK159: 0 | AL159: %
AI160: Ti | AJ160: SAP 212 | AK160: 0.019 | AL160: %
AI161: Ti | AJ161: SAP 208 | AK161: 0 | AL161: %
AI162: Ti | AJ162: LAT 110 | AK162: 0.224 | AL162: %
AI163: Ti | AJ163: SAP 210 | AK163: 0 | AL163: %
AI164: Ti | AJ164: P+S 200 | AK164: 0 | AL164: %
AI165: Ti | AJ165: P+S 500 | AK165: 0 | AL165: %
AI166: Ti | AJ166: P+S 1000 | AK166: 0 | AL166: %
AI167: Ti | AJ167: P+S 2000 | AK167: 0 | AL167: %
AI168: Cu | AJ168: LAT 114 | AK168: 0 | AL168: ppm
AI169: Cu | AJ169: LAT 103 | AK169: 0 | AL169: ppm
AI170: Cu | AJ170: LAT 112 | AK170: 52 | AL170: ppm
AI171: Cu | AJ171: LAT 104 | AK171: 28 | AL171: ppm
AI172: Cu | AJ172: LAT 106 | AK172: 45 | AL172: ppm
AI173: Cu | AJ173: SAP 201 | AK173: 32 | AL173: ppm
AI174: Cu | AJ174: SAP 209 | AK174: 0 | AL174: ppm
AI175: Cu | AJ175: SAP 212 | AK175: 0 | AL175: ppm
AI176: Cu | AJ176: SAP 208 | AK176: 0 | AL176: ppm
AI177: Cu | AJ177: LAT 110 | AK177: 70 | AL177: ppm
AI178: Cu | AJ178: SAP 210 | AK178: 0 | AL178: ppm
AI179: Cu | AJ179: P+S 200 | AK179: 0 | AL179: ppm
AI180: Cu | AJ180: P+S 500 | AK180: 0 | AL180: ppm
AI181: Cu | AJ181: P+S 1000 | AK181: 0 | AL181: ppm
AI182: Cu | AJ182: P+S 2000 | AK182: 0 | AL182: ppm
AI183: P | AJ183: LAT 114 | AK183: 0 | AL183: ppm
AI184: P | AJ184: LAT 103 | AK184: 0 | AL184: ppm
AI185: P | AJ185: LAT 112 | AK185: 0 | AL185: ppm
AI186: P | AJ186: LAT 104 | AK186: 0 | AL186: ppm
AI187: P | AJ187: LAT 106 | AK187: 0 | AL187: ppm
AI188: P | AJ188: SAP 201 | AK188: 0 | AL188: ppm
AI189: P | AJ189: SAP 209 | AK189: 0 | AL189: ppm
AI190: P | AJ190: SAP 212 | AK190: 0 | AL190: ppm
AI191: P | AJ191: SAP 208 | AK191: 0 | AL191: ppm
AI192: P | AJ192: LAT 110 | AK192: 0 | AL192: ppm
AI193: P | AJ193: SAP 210 | AK193: 0 | AL193: ppm
AI194: P | AJ194: P+S 200 | AK194: 200 | AL194: ppm
AI195: P | AJ195: P+S 500 | AK195: 500 | AL195: ppm
AI196: P | AJ196: P+S 1000 | AK196: 1000 | AL196: ppm
AI197: P | AJ197: P+S 2000 | AK197: 2000 | AL197: ppm
AI198: S | AJ198: LAT 114 | AK198: 0 | AL198: ppm
AI199: S | AJ199: LAT 103 | AK199: 0 | AL199: ppm
AI200: S | AJ200: LAT 112 | AK200: 0 | AL200: ppm
AI201: S | AJ201: LAT 104 | AK201: 0 | AL201: ppm
AI202: S | AJ202: LAT 106 | AK202: 0 | AL202: ppm
AI203: S | AJ203: SAP 201 | AK203: 0 | AL203: ppm
... 24 more rows

Sheet Onglets (hidden)
B6: Onglet | C6: Ordre | D6: rajouter | G6: Onglet | H6: Description | I6: Protege | J6: Masque | K6: Ordre
B7: Init | C7: =IF(ListeOnglets[[#This Row],[Onglet]]="","",ROW(ListeOnglets[[#This Row],[Onglet]])-ROW(ListeOnglets[[#Headers],[Onglet]])) -> 1 | D7: =IF(ListeOnglets[[#This Row],[Onglet]]="","",IF(ISERROR(MATCH(ListeOnglets[[#This Row],[Onglet]],Tab_Onglets[Onglet],0)),"Rajouter","")) ->  | G7: Init | K7: =IF(Tab_Onglets[[#This Row],[Onglet]]="","",OFFSET(ListeOnglets[[#Headers],[Ordre]],MATCH(Tab_Onglets[[#This Row],[Onglet]],ListeOnglets[Onglet],0),0,1,1)) -> 1
B8: Accueil | C8: =IF(ListeOnglets[[#This Row],[Onglet]]="","",ROW(ListeOnglets[[#This Row],[Onglet]])-ROW(ListeOnglets[[#Headers],[Onglet]])) -> 2 | D8: =IF(ListeOnglets[[#This Row],[Onglet]]="","",IF(ISERROR(MATCH(ListeOnglets[[#This Row],[Onglet]],Tab_Onglets[Onglet],0)),"Rajouter","")) ->  | G8: Accueil | K8: =IF(Tab_Onglets[[#This Row],[Onglet]]="","",OFFSET(ListeOnglets[[#Headers],[Ordre]],MATCH(Tab_Onglets[[#This Row],[Onglet]],ListeOnglets[Onglet],0),0,1,1)) -> 2
B9: Aide | C9: =IF(ListeOnglets[[#This Row],[Onglet]]="","",ROW(ListeOnglets[[#This Row],[Onglet]])-ROW(ListeOnglets[[#Headers],[Onglet]])) -> 3 | D9: =IF(ListeOnglets[[#This Row],[Onglet]]="","",IF(ISERROR(MATCH(ListeOnglets[[#This Row],[Onglet]],Tab_Onglets[Onglet],0)),"Rajouter","")) ->  | G9: Aide | K9: =IF(Tab_Onglets[[#This Row],[Onglet]]="","",OFFSET(ListeOnglets[[#Headers],[Ordre]],MATCH(Tab_Onglets[[#This Row],[Onglet]],ListeOnglets[Onglet],0),0,1,1)) -> 3
B10: Admin | C10: =IF(ListeOnglets[[#This Row],[Onglet]]="","",ROW(ListeOnglets[[#This Row],[Onglet]])-ROW(ListeOnglets[[#Headers],[Onglet]])) -> 4 | D10: =IF(ListeOnglets[[#This Row],[Onglet]]="","",IF(ISERROR(MATCH(ListeOnglets[[#This Row],[Onglet]],Tab_Onglets[Onglet],0)),"Rajouter","")) ->  | G10: Admin | K10: =IF(Tab_Onglets[[#This Row],[Onglet]]="","",OFFSET(ListeOnglets[[#Headers],[Ordre]],MATCH(Tab_Onglets[[#This Row],[Onglet]],ListeOnglets[Onglet],0),0,1,1)) -> 4
B11: Temp | C11: =IF(ListeOnglets[[#This Row],[Onglet]]="","",ROW(ListeOnglets[[#This Row],[Onglet]])-ROW(ListeOnglets[[#Headers],[Onglet]])) -> 5 | D11: =IF(ListeOnglets[[#This Row],[Onglet]]="","",IF(ISERROR(MATCH(ListeOnglets[[#This Row],[Onglet]],Tab_Onglets[Onglet],0)),"Rajouter","")) ->  | G11: Temp | K11: =IF(Tab_Onglets[[#This Row],[Onglet]]="","",OFFSET(ListeOnglets[[#Headers],[Ordre]],MATCH(Tab_Onglets[[#This Row],[Onglet]],ListeOnglets[Onglet],0),0,1,1)) -> 5 | M11: N | N11: Action
B12: Onglets | C12: =IF(ListeOnglets[[#This Row],[Onglet]]="","",ROW(ListeOnglets[[#This Row],[Onglet]])-ROW(ListeOnglets[[#Headers],[Onglet]])) -> 6 | D12: =IF(ListeOnglets[[#This Row],[Onglet]]="","",IF(ISERROR(MATCH(ListeOnglets[[#This Row],[Onglet]],Tab_Onglets[Onglet],0)),"Rajouter","")) ->  | G12: Onglets | K12: =IF(Tab_Onglets[[#This Row],[Onglet]]="","",OFFSET(ListeOnglets[[#Headers],[Ordre]],MATCH(Tab_Onglets[[#This Row],[Onglet]],ListeOnglets[Onglet],0),0,1,1)) -> 6 | M12: =IF(Action05[[#This Row],[Action]]="","",OFFSET(ListeActions[[#Headers],[N]],MATCH(Action05[[#This Row],[Action]],ListeActions[Actions],0),0,1,1)) -> 1 | N12: Page suivante
B13: Hum | C13: =IF(ListeOnglets[[#This Row],[Onglet]]="","",ROW(ListeOnglets[[#This Row],[Onglet]])-ROW(ListeOnglets[[#Headers],[Onglet]])) -> 7 | D13: =IF(ListeOnglets[[#This Row],[Onglet]]="","",IF(ISERROR(MATCH(ListeOnglets[[#This Row],[Onglet]],Tab_Onglets[Onglet],0)),"Rajouter","")) ->  | G13: Hum | K13: =IF(Tab_Onglets[[#This Row],[Onglet]]="","",OFFSET(ListeOnglets[[#Headers],[Ordre]],MATCH(Tab_Onglets[[#This Row],[Onglet]],ListeOnglets[Onglet],0),0,1,1)) -> 7 | M13: =IF(Action05[[#This Row],[Action]]="","",OFFSET(ListeActions[[#Headers],[N]],MATCH(Action05[[#This Row],[Action]],ListeActions[Actions],0),0,1,1)) -> 2 | N13: Page précédente
C14: =IF(ListeOnglets[[#This Row],[Onglet]]="","",ROW(ListeOnglets[[#This Row],[Onglet]])-ROW(ListeOnglets[[#Headers],[Onglet]])) ->  | D14: =IF(ListeOnglets[[#This Row],[Onglet]]="","",IF(ISERROR(MATCH(ListeOnglets[[#This Row],[Onglet]],Tab_Onglets[Onglet],0)),"Rajouter","")) ->  | M14: =IF(Action05[[#This Row],[Action]]="","",OFFSET(ListeActions[[#Headers],[N]],MATCH(Action05[[#This Row],[Action]],ListeActions[Actions],0),0,1,1)) -> 3 | N14: Admin
C15: =IF(ListeOnglets[[#This Row],[Onglet]]="","",ROW(ListeOnglets[[#This Row],[Onglet]])-ROW(ListeOnglets[[#Headers],[Onglet]])) ->  | D15: =IF(ListeOnglets[[#This Row],[Onglet]]="","",IF(ISERROR(MATCH(ListeOnglets[[#This Row],[Onglet]],Tab_Onglets[Onglet],0)),"Rajouter","")) ->  | M15: =IF(Action05[[#This Row],[Action]]="","",OFFSET(ListeActions[[#Headers],[N]],MATCH(Action05[[#This Row],[Action]],ListeActions[Actions],0),0,1,1)) -> 4 | N15: Verrouiller
C16: =IF(ListeOnglets[[#This Row],[Onglet]]="","",ROW(ListeOnglets[[#This Row],[Onglet]])-ROW(ListeOnglets[[#Headers],[Onglet]])) ->  | D16: =IF(ListeOnglets[[#This Row],[Onglet]]="","",IF(ISERROR(MATCH(ListeOnglets[[#This Row],[Onglet]],Tab_Onglets[Onglet],0)),"Rajouter","")) ->  | M16: =IF(Action05[[#This Row],[Action]]="","",OFFSET(ListeActions[[#Headers],[N]],MATCH(Action05[[#This Row],[Action]],ListeActions[Actions],0),0,1,1)) -> 18 | N16: Onglets
C17: =IF(ListeOnglets[[#This Row],[Onglet]]="","",ROW(ListeOnglets[[#This Row],[Onglet]])-ROW(ListeOnglets[[#Headers],[Onglet]])) ->  | D17: =IF(ListeOnglets[[#This Row],[Onglet]]="","",IF(ISERROR(MATCH(ListeOnglets[[#This Row],[Onglet]],Tab_Onglets[Onglet],0)),"Rajouter","")) ->  | M17: =IF(Action05[[#This Row],[Action]]="","",OFFSET(ListeActions[[#Headers],[N]],MATCH(Action05[[#This Row],[Action]],ListeActions[Actions],0),0,1,1)) -> 
C18: =IF(ListeOnglets[[#This Row],[Onglet]]="","",ROW(ListeOnglets[[#This Row],[Onglet]])-ROW(ListeOnglets[[#Headers],[Onglet]])) ->  | D18: =IF(ListeOnglets[[#This Row],[Onglet]]="","",IF(ISERROR(MATCH(ListeOnglets[[#This Row],[Onglet]],Tab_Onglets[Onglet],0)),"Rajouter","")) ->  | M18: =IF(Action05[[#This Row],[Action]]="","",OFFSET(ListeActions[[#Headers],[N]],MATCH(Action05[[#This Row],[Action]],ListeActions[Actions],0),0,1,1)) -> 
C19: =IF(ListeOnglets[[#This Row],[Onglet]]="","",ROW(ListeOnglets[[#This Row],[Onglet]])-ROW(ListeOnglets[[#Headers],[Onglet]])) ->  | D19: =IF(ListeOnglets[[#This Row],[Onglet]]="","",IF(ISERROR(MATCH(ListeOnglets[[#This Row],[Onglet]],Tab_Onglets[Onglet],0)),"Rajouter","")) ->  | M19: =IF(Action05[[#This Row],[Action]]="","",OFFSET(ListeActions[[#Headers],[N]],MATCH(Action05[[#This Row],[Action]],ListeActions[Actions],0),0,1,1)) -> 
C20: =IF(ListeOnglets[[#This Row],[Onglet]]="","",ROW(ListeOnglets[[#This Row],[Onglet]])-ROW(ListeOnglets[[#Headers],[Onglet]])) ->  | D20: =IF(ListeOnglets[[#This Row],[Onglet]]="","",IF(ISERROR(MATCH(ListeOnglets[[#This Row],[Onglet]],Tab_Onglets[Onglet],0)),"Rajouter","")) ->  | M20: =IF(Action05[[#This Row],[Action]]="","",OFFSET(ListeActions[[#Headers],[N]],MATCH(Action05[[#This Row],[Action]],ListeActions[Actions],0),0,1,1)) -> 
C21: =IF(ListeOnglets[[#This Row],[Onglet]]="","",ROW(ListeOnglets[[#This Row],[Onglet]])-ROW(ListeOnglets[[#Headers],[Onglet]])) ->  | D21: =IF(ListeOnglets[[#This Row],[Onglet]]="","",IF(ISERROR(MATCH(ListeOnglets[[#This Row],[Onglet]],Tab_Onglets[Onglet],0)),"Rajouter","")) ->  | M21: =IF(Action05[[#This Row],[Action]]="","",OFFSET(ListeActions[[#Headers],[N]],MATCH(Action05[[#This Row],[Action]],ListeActions[Actions],0),0,1,1)) -> 
C22: =IF(ListeOnglets[[#This Row],[Onglet]]="","",ROW(ListeOnglets[[#This Row],[Onglet]])-ROW(ListeOnglets[[#Headers],[Onglet]])) ->  | D22: =IF(ListeOnglets[[#This Row],[Onglet]]="","",IF(ISERROR(MATCH(ListeOnglets[[#This Row],[Onglet]],Tab_Onglets[Onglet],0)),"Rajouter","")) ->  | M22: =IF(Action05[[#This Row],[Action]]="","",OFFSET(ListeActions[[#Headers],[N]],MATCH(Action05[[#This Row],[Action]],ListeActions[Actions],0),0,1,1)) -> 
C23: =IF(ListeOnglets[[#This Row],[Onglet]]="","",ROW(ListeOnglets[[#This Row],[Onglet]])-ROW(ListeOnglets[[#Headers],[Onglet]])) ->  | D23: =IF(ListeOnglets[[#This Row],[Onglet]]="","",IF(ISERROR(MATCH(ListeOnglets[[#This Row],[Onglet]],Tab_Onglets[Onglet],0)),"Rajouter","")) ->  | M23: =IF(Action05[[#This Row],[Action]]="","",OFFSET(ListeActions[[#Headers],[N]],MATCH(Action05[[#This Row],[Action]],ListeActions[Actions],0),0,1,1)) -> 
C24: =IF(ListeOnglets[[#This Row],[Onglet]]="","",ROW(ListeOnglets[[#This Row],[Onglet]])-ROW(ListeOnglets[[#Headers],[Onglet]])) ->  | D24: =IF(ListeOnglets[[#This Row],[Onglet]]="","",IF(ISERROR(MATCH(ListeOnglets[[#This Row],[Onglet]],Tab_Onglets[Onglet],0)),"Rajouter","")) ->  | M24: =IF(Action05[[#This Row],[Action]]="","",OFFSET(ListeActions[[#Headers],[N]],MATCH(Action05[[#This Row],[Action]],ListeActions[Actions],0),0,1,1)) -> 
C25: =IF(ListeOnglets[[#This Row],[Onglet]]="","",ROW(ListeOnglets[[#This Row],[Onglet]])-ROW(ListeOnglets[[#Headers],[Onglet]])) ->  | D25: =IF(ListeOnglets[[#This Row],[Onglet]]="","",IF(ISERROR(MATCH(ListeOnglets[[#This Row],[Onglet]],Tab_Onglets[Onglet],0)),"Rajouter","")) ->  | M25: =IF(Action05[[#This Row],[Action]]="","",OFFSET(ListeActions[[#Headers],[N]],MATCH(Action05[[#This Row],[Action]],ListeActions[Actions],0),0,1,1)) -> 
C26: =IF(ListeOnglets[[#This Row],[Onglet]]="","",ROW(ListeOnglets[[#This Row],[Onglet]])-ROW(ListeOnglets[[#Headers],[Onglet]])) ->  | D26: =IF(ListeOnglets[[#This Row],[Onglet]]="","",IF(ISERROR(MATCH(ListeOnglets[[#This Row],[Onglet]],Tab_Onglets[Onglet],0)),"Rajouter","")) -> 
C27: =IF(ListeOnglets[[#This Row],[Onglet]]="","",ROW(ListeOnglets[[#This Row],[Onglet]])-ROW(ListeOnglets[[#Headers],[Onglet]])) ->  | D27: =IF(ListeOnglets[[#This Row],[Onglet]]="","",IF(ISERROR(MATCH(ListeOnglets[[#This Row],[Onglet]],Tab_Onglets[Onglet],0)),"Rajouter","")) -> 
C28: =IF(ListeOnglets[[#This Row],[Onglet]]="","",ROW(ListeOnglets[[#This Row],[Onglet]])-ROW(ListeOnglets[[#Headers],[Onglet]])) ->  | D28: =IF(ListeOnglets[[#This Row],[Onglet]]="","",IF(ISERROR(MATCH(ListeOnglets[[#This Row],[Onglet]],Tab_Onglets[Onglet],0)),"Rajouter","")) -> 
C29: =IF(ListeOnglets[[#This Row],[Onglet]]="","",ROW(ListeOnglets[[#This Row],[Onglet]])-ROW(ListeOnglets[[#Headers],[Onglet]])) ->  | D29: =IF(ListeOnglets[[#This Row],[Onglet]]="","",IF(ISERROR(MATCH(ListeOnglets[[#This Row],[Onglet]],Tab_Onglets[Onglet],0)),"Rajouter","")) -> 
C30: =IF(ListeOnglets[[#This Row],[Onglet]]="","",ROW(ListeOnglets[[#This Row],[Onglet]])-ROW(ListeOnglets[[#Headers],[Onglet]])) ->  | D30: =IF(ListeOnglets[[#This Row],[Onglet]]="","",IF(ISERROR(MATCH(ListeOnglets[[#This Row],[Onglet]],Tab_Onglets[Onglet],0)),"Rajouter","")) -> 
C31: =IF(ListeOnglets[[#This Row],[Onglet]]="","",ROW(ListeOnglets[[#This Row],[Onglet]])-ROW(ListeOnglets[[#Headers],[Onglet]])) ->  | D31: =IF(ListeOnglets[[#This Row],[Onglet]]="","",IF(ISERROR(MATCH(ListeOnglets[[#This Row],[Onglet]],Tab_Onglets[Onglet],0)),"Rajouter","")) -> 
C32: =IF(ListeOnglets[[#This Row],[Onglet]]="","",ROW(ListeOnglets[[#This Row],[Onglet]])-ROW(ListeOnglets[[#Headers],[Onglet]])) ->  | D32: =IF(ListeOnglets[[#This Row],[Onglet]]="","",IF(ISERROR(MATCH(ListeOnglets[[#This Row],[Onglet]],Tab_Onglets[Onglet],0)),"Rajouter","")) -> 
C33: =IF(ListeOnglets[[#This Row],[Onglet]]="","",ROW(ListeOnglets[[#This Row],[Onglet]])-ROW(ListeOnglets[[#Headers],[Onglet]])) ->  | D33: =IF(ListeOnglets[[#This Row],[Onglet]]="","",IF(ISERROR(MATCH(ListeOnglets[[#This Row],[Onglet]],Tab_Onglets[Onglet],0)),"Rajouter","")) -> 
C34: =IF(ListeOnglets[[#This Row],[Onglet]]="","",ROW(ListeOnglets[[#This Row],[Onglet]])-ROW(ListeOnglets[[#Headers],[Onglet]])) ->  | D34: =IF(ListeOnglets[[#This Row],[Onglet]]="","",IF(ISERROR(MATCH(ListeOnglets[[#This Row],[Onglet]],Tab_Onglets[Onglet],0)),"Rajouter","")) -> 
C35: =IF(ListeOnglets[[#This Row],[Onglet]]="","",ROW(ListeOnglets[[#This Row],[Onglet]])-ROW(ListeOnglets[[#Headers],[Onglet]])) ->  | D35: =IF(ListeOnglets[[#This Row],[Onglet]]="","",IF(ISERROR(MATCH(ListeOnglets[[#This Row],[Onglet]],Tab_Onglets[Onglet],0)),"Rajouter","")) -> 
C36: =IF(ListeOnglets[[#This Row],[Onglet]]="","",ROW(ListeOnglets[[#This Row],[Onglet]])-ROW(ListeOnglets[[#Headers],[Onglet]])) ->  | D36: =IF(ListeOnglets[[#This Row],[Onglet]]="","",IF(ISERROR(MATCH(ListeOnglets[[#This Row],[Onglet]],Tab_Onglets[Onglet],0)),"Rajouter","")) -> 
C37: =IF(ListeOnglets[[#This Row],[Onglet]]="","",ROW(ListeOnglets[[#This Row],[Onglet]])-ROW(ListeOnglets[[#Headers],[Onglet]])) ->  | D37: =IF(ListeOnglets[[#This Row],[Onglet]]="","",IF(ISERROR(MATCH(ListeOnglets[[#This Row],[Onglet]],Tab_Onglets[Onglet],0)),"Rajouter","")) -> 
C38: =IF(ListeOnglets[[#This Row],[Onglet]]="","",ROW(ListeOnglets[[#This Row],[Onglet]])-ROW(ListeOnglets[[#Headers],[Onglet]])) ->  | D38: =IF(ListeOnglets[[#This Row],[Onglet]]="","",IF(ISERROR(MATCH(ListeOnglets[[#This Row],[Onglet]],Tab_Onglets[Onglet],0)),"Rajouter","")) -> 
C39: =IF(ListeOnglets[[#This Row],[Onglet]]="","",ROW(ListeOnglets[[#This Row],[Onglet]])-ROW(ListeOnglets[[#Headers],[Onglet]])) ->  | D39: =IF(ListeOnglets[[#This Row],[Onglet]]="","",IF(ISERROR(MATCH(ListeOnglets[[#This Row],[Onglet]],Tab_Onglets[Onglet],0)),"Rajouter","")) -> 
C40: =IF(ListeOnglets[[#This Row],[Onglet]]="","",ROW(ListeOnglets[[#This Row],[Onglet]])-ROW(ListeOnglets[[#Headers],[Onglet]])) ->  | D40: =IF(ListeOnglets[[#This Row],[Onglet]]="","",IF(ISERROR(MATCH(ListeOnglets[[#This Row],[Onglet]],Tab_Onglets[Onglet],0)),"Rajouter","")) -> 
C41: =IF(ListeOnglets[[#This Row],[Onglet]]="","",ROW(ListeOnglets[[#This Row],[Onglet]])-ROW(ListeOnglets[[#Headers],[Onglet]])) ->  | D41: =IF(ListeOnglets[[#This Row],[Onglet]]="","",IF(ISERROR(MATCH(ListeOnglets[[#This Row],[Onglet]],Tab_Onglets[Onglet],0)),"Rajouter","")) -> 
C42: =IF(ListeOnglets[[#This Row],[Onglet]]="","",ROW(ListeOnglets[[#This Row],[Onglet]])-ROW(ListeOnglets[[#Headers],[Onglet]])) ->  | D42: =IF(ListeOnglets[[#This Row],[Onglet]]="","",IF(ISERROR(MATCH(ListeOnglets[[#This Row],[Onglet]],Tab_Onglets[Onglet],0)),"Rajouter","")) -> 
C43: =IF(ListeOnglets[[#This Row],[Onglet]]="","",ROW(ListeOnglets[[#This Row],[Onglet]])-ROW(ListeOnglets[[#Headers],[Onglet]])) ->  | D43: =IF(ListeOnglets[[#This Row],[Onglet]]="","",IF(ISERROR(MATCH(ListeOnglets[[#This Row],[Onglet]],Tab_Onglets[Onglet],0)),"Rajouter","")) -> 
C44: =IF(ListeOnglets[[#This Row],[Onglet]]="","",ROW(ListeOnglets[[#This Row],[Onglet]])-ROW(ListeOnglets[[#Headers],[Onglet]])) ->  | D44: =IF(ListeOnglets[[#This Row],[Onglet]]="","",IF(ISERROR(MATCH(ListeOnglets[[#This Row],[Onglet]],Tab_Onglets[Onglet],0)),"Rajouter","")) -> 
C45: =IF(ListeOnglets[[#This Row],[Onglet]]="","",ROW(ListeOnglets[[#This Row],[Onglet]])-ROW(ListeOnglets[[#Headers],[Onglet]])) ->  | D45: =IF(ListeOnglets[[#This Row],[Onglet]]="","",IF(ISERROR(MATCH(ListeOnglets[[#This Row],[Onglet]],Tab_Onglets[Onglet],0)),"Rajouter","")) -> 
C46: =IF(ListeOnglets[[#This Row],[Onglet]]="","",ROW(ListeOnglets[[#This Row],[Onglet]])-ROW(ListeOnglets[[#Headers],[Onglet]])) ->  | D46: =IF(ListeOnglets[[#This Row],[Onglet]]="","",IF(ISERROR(MATCH(ListeOnglets[[#This Row],[Onglet]],Tab_Onglets[Onglet],0)),"Rajouter","")) -> 
C47: =IF(ListeOnglets[[#This Row],[Onglet]]="","",ROW(ListeOnglets[[#This Row],[Onglet]])-ROW(ListeOnglets[[#Headers],[Onglet]])) ->  | D47: =IF(ListeOnglets[[#This Row],[Onglet]]="","",IF(ISERROR(MATCH(ListeOnglets[[#This Row],[Onglet]],Tab_Onglets[Onglet],0)),"Rajouter","")) -> 
C48: =IF(ListeOnglets[[#This Row],[Onglet]]="","",ROW(ListeOnglets[[#This Row],[Onglet]])-ROW(ListeOnglets[[#Headers],[Onglet]])) ->  | D48: =IF(ListeOnglets[[#This Row],[Onglet]]="","",IF(ISERROR(MATCH(ListeOnglets[[#This Row],[Onglet]],Tab_Onglets[Onglet],0)),"Rajouter","")) -> 
C49: =IF(ListeOnglets[[#This Row],[Onglet]]="","",ROW(ListeOnglets[[#This Row],[Onglet]])-ROW(ListeOnglets[[#Headers],[Onglet]])) ->  | D49: =IF(ListeOnglets[[#This Row],[Onglet]]="","",IF(ISERROR(MATCH(ListeOnglets[[#This Row],[Onglet]],Tab_Onglets[Onglet],0)),"Rajouter","")) -> 
C50: =IF(ListeOnglets[[#This Row],[Onglet]]="","",ROW(ListeOnglets[[#This Row],[Onglet]])-ROW(ListeOnglets[[#Headers],[Onglet]])) ->  | D50: =IF(ListeOnglets[[#This Row],[Onglet]]="","",IF(ISERROR(MATCH(ListeOnglets[[#This Row],[Onglet]],Tab_Onglets[Onglet],0)),"Rajouter","")) -> 
C51: =IF(ListeOnglets[[#This Row],[Onglet]]="","",ROW(ListeOnglets[[#This Row],[Onglet]])-ROW(ListeOnglets[[#Headers],[Onglet]])) ->  | D51: =IF(ListeOnglets[[#This Row],[Onglet]]="","",IF(ISERROR(MATCH(ListeOnglets[[#This Row],[Onglet]],Tab_Onglets[Onglet],0)),"Rajouter","")) -> 
C52: =IF(ListeOnglets[[#This Row],[Onglet]]="","",ROW(ListeOnglets[[#This Row],[Onglet]])-ROW(ListeOnglets[[#Headers],[Onglet]])) ->  | D52: =IF(ListeOnglets[[#This Row],[Onglet]]="","",IF(ISERROR(MATCH(ListeOnglets[[#This Row],[Onglet]],Tab_Onglets[Onglet],0)),"Rajouter","")) -> 
C53: =IF(ListeOnglets[[#This Row],[Onglet]]="","",ROW(ListeOnglets[[#This Row],[Onglet]])-ROW(ListeOnglets[[#Headers],[Onglet]])) ->  | D53: =IF(ListeOnglets[[#This Row],[Onglet]]="","",IF(ISERROR(MATCH(ListeOnglets[[#This Row],[Onglet]],Tab_Onglets[Onglet],0)),"Rajouter","")) -> 
C54: =IF(ListeOnglets[[#This Row],[Onglet]]="","",ROW(ListeOnglets[[#This Row],[Onglet]])-ROW(ListeOnglets[[#Headers],[Onglet]])) ->  | D54: =IF(ListeOnglets[[#This Row],[Onglet]]="","",IF(ISERROR(MATCH(ListeOnglets[[#This Row],[Onglet]],Tab_Onglets[Onglet],0)),"Rajouter","")) -> 
C55: =IF(ListeOnglets[[#This Row],[Onglet]]="","",ROW(ListeOnglets[[#This Row],[Onglet]])-ROW(ListeOnglets[[#Headers],[Onglet]])) ->  | D55: =IF(ListeOnglets[[#This Row],[Onglet]]="","",IF(ISERROR(MATCH(ListeOnglets[[#This Row],[Onglet]],Tab_Onglets[Onglet],0)),"Rajouter","")) -> 
C56: =IF(ListeOnglets[[#This Row],[Onglet]]="","",ROW(ListeOnglets[[#This Row],[Onglet]])-ROW(ListeOnglets[[#Headers],[Onglet]])) ->  | D56: =IF(ListeOnglets[[#This Row],[Onglet]]="","",IF(ISERROR(MATCH(ListeOnglets[[#This Row],[Onglet]],Tab_Onglets[Onglet],0)),"Rajouter","")) -> 
C57: =IF(ListeOnglets[[#This Row],[Onglet]]="","",ROW(ListeOnglets[[#This Row],[Onglet]])-ROW(ListeOnglets[[#Headers],[Onglet]])) ->  | D57: =IF(ListeOnglets[[#This Row],[Onglet]]="","",IF(ISERROR(MATCH(ListeOnglets[[#This Row],[Onglet]],Tab_Onglets[Onglet],0)),"Rajouter","")) -> 
C58: =IF(ListeOnglets[[#This Row],[Onglet]]="","",ROW(ListeOnglets[[#This Row],[Onglet]])-ROW(ListeOnglets[[#Headers],[Onglet]])) ->  | D58: =IF(ListeOnglets[[#This Row],[Onglet]]="","",IF(ISERROR(MATCH(ListeOnglets[[#This Row],[Onglet]],Tab_Onglets[Onglet],0)),"Rajouter","")) -> 
C59: =IF(ListeOnglets[[#This Row],[Onglet]]="","",ROW(ListeOnglets[[#This Row],[Onglet]])-ROW(ListeOnglets[[#Headers],[Onglet]])) ->  | D59: =IF(ListeOnglets[[#This Row],[Onglet]]="","",IF(ISERROR(MATCH(ListeOnglets[[#This Row],[Onglet]],Tab_Onglets[Onglet],0)),"Rajouter","")) -> 
C60: =IF(ListeOnglets[[#This Row],[Onglet]]="","",ROW(ListeOnglets[[#This Row],[Onglet]])-ROW(ListeOnglets[[#Headers],[Onglet]])) ->  | D60: =IF(ListeOnglets[[#This Row],[Onglet]]="","",IF(ISERROR(MATCH(ListeOnglets[[#This Row],[Onglet]],Tab_Onglets[Onglet],0)),"Rajouter","")) -> 
C61: =IF(ListeOnglets[[#This Row],[Onglet]]="","",ROW(ListeOnglets[[#This Row],[Onglet]])-ROW(ListeOnglets[[#Headers],[Onglet]])) ->  | D61: =IF(ListeOnglets[[#This Row],[Onglet]]="","",IF(ISERROR(MATCH(ListeOnglets[[#This Row],[Onglet]],Tab_Onglets[Onglet],0)),"Rajouter","")) -> 
C62: =IF(ListeOnglets[[#This Row],[Onglet]]="","",ROW(ListeOnglets[[#This Row],[Onglet]])-ROW(ListeOnglets[[#Headers],[Onglet]])) ->  | D62: =IF(ListeOnglets[[#This Row],[Onglet]]="","",IF(ISERROR(MATCH(ListeOnglets[[#This Row],[Onglet]],Tab_Onglets[Onglet],0)),"Rajouter","")) -> 
C63: =IF(ListeOnglets[[#This Row],[Onglet]]="","",ROW(ListeOnglets[[#This Row],[Onglet]])-ROW(ListeOnglets[[#Headers],[Onglet]])) ->  | D63: =IF(ListeOnglets[[#This Row],[Onglet]]="","",IF(ISERROR(MATCH(ListeOnglets[[#This Row],[Onglet]],Tab_Onglets[Onglet],0)),"Rajouter","")) -> 
C64: =IF(ListeOnglets[[#This Row],[Onglet]]="","",ROW(ListeOnglets[[#This Row],[Onglet]])-ROW(ListeOnglets[[#Headers],[Onglet]])) ->  | D64: =IF(ListeOnglets[[#This Row],[Onglet]]="","",IF(ISERROR(MATCH(ListeOnglets[[#This Row],[Onglet]],Tab_Onglets[Onglet],0)),"Rajouter","")) -> 
C65: =IF(ListeOnglets[[#This Row],[Onglet]]="","",ROW(ListeOnglets[[#This Row],[Onglet]])-ROW(ListeOnglets[[#Headers],[Onglet]])) ->  | D65: =IF(ListeOnglets[[#This Row],[Onglet]]="","",IF(ISERROR(MATCH(ListeOnglets[[#This Row],[Onglet]],Tab_Onglets[Onglet],0)),"Rajouter","")) -> 
C66: =IF(ListeOnglets[[#This Row],[Onglet]]="","",ROW(ListeOnglets[[#This Row],[Onglet]])-ROW(ListeOnglets[[#Headers],[Onglet]])) ->  | D66: =IF(ListeOnglets[[#This Row],[Onglet]]="","",IF(ISERROR(MATCH(ListeOnglets[[#This Row],[Onglet]],Tab_Onglets[Onglet],0)),"Rajouter","")) -> 
C67: =IF(ListeOnglets[[#This Row],[Onglet]]="","",ROW(ListeOnglets[[#This Row],[Onglet]])-ROW(ListeOnglets[[#Headers],[Onglet]])) ->  | D67: =IF(ListeOnglets[[#This Row],[Onglet]]="","",IF(ISERROR(MATCH(ListeOnglets[[#This Row],[Onglet]],Tab_Onglets[Onglet],0)),"Rajouter","")) -> 
C68: =IF(ListeOnglets[[#This Row],[Onglet]]="","",ROW(ListeOnglets[[#This Row],[Onglet]])-ROW(ListeOnglets[[#Headers],[Onglet]])) ->  | D68: =IF(ListeOnglets[[#This Row],[Onglet]]="","",IF(ISERROR(MATCH(ListeOnglets[[#This Row],[Onglet]],Tab_Onglets[Onglet],0)),"Rajouter","")) -> 
C69: =IF(ListeOnglets[[#This Row],[Onglet]]="","",ROW(ListeOnglets[[#This Row],[Onglet]])-ROW(ListeOnglets[[#Headers],[Onglet]])) ->  | D69: =IF(ListeOnglets[[#This Row],[Onglet]]="","",IF(ISERROR(MATCH(ListeOnglets[[#This Row],[Onglet]],Tab_Onglets[Onglet],0)),"Rajouter","")) -> 
C70: =IF(ListeOnglets[[#This Row],[Onglet]]="","",ROW(ListeOnglets[[#This Row],[Onglet]])-ROW(ListeOnglets[[#Headers],[Onglet]])) ->  | D70: =IF(ListeOnglets[[#This Row],[Onglet]]="","",IF(ISERROR(MATCH(ListeOnglets[[#This Row],[Onglet]],Tab_Onglets[Onglet],0)),"Rajouter","")) -> 
C71: =IF(ListeOnglets[[#This Row],[Onglet]]="","",ROW(ListeOnglets[[#This Row],[Onglet]])-ROW(ListeOnglets[[#Headers],[Onglet]])) ->  | D71: =IF(ListeOnglets[[#This Row],[Onglet]]="","",IF(ISERROR(MATCH(ListeOnglets[[#This Row],[Onglet]],Tab_Onglets[Onglet],0)),"Rajouter","")) -> 
C72: =IF(ListeOnglets[[#This Row],[Onglet]]="","",ROW(ListeOnglets[[#This Row],[Onglet]])-ROW(ListeOnglets[[#Headers],[Onglet]])) ->  | D72: =IF(ListeOnglets[[#This Row],[Onglet]]="","",IF(ISERROR(MATCH(ListeOnglets[[#This Row],[Onglet]],Tab_Onglets[Onglet],0)),"Rajouter","")) -> 
C73: =IF(ListeOnglets[[#This Row],[Onglet]]="","",ROW(ListeOnglets[[#This Row],[Onglet]])-ROW(ListeOnglets[[#Headers],[Onglet]])) ->  | D73: =IF(ListeOnglets[[#This Row],[Onglet]]="","",IF(ISERROR(MATCH(ListeOnglets[[#This Row],[Onglet]],Tab_Onglets[Onglet],0)),"Rajouter","")) -> 
C74: =IF(ListeOnglets[[#This Row],[Onglet]]="","",ROW(ListeOnglets[[#This Row],[Onglet]])-ROW(ListeOnglets[[#Headers],[Onglet]])) ->  | D74: =IF(ListeOnglets[[#This Row],[Onglet]]="","",IF(ISERROR(MATCH(ListeOnglets[[#This Row],[Onglet]],Tab_Onglets[Onglet],0)),"Rajouter","")) -> 
C75: =IF(ListeOnglets[[#This Row],[Onglet]]="","",ROW(ListeOnglets[[#This Row],[Onglet]])-ROW(ListeOnglets[[#Headers],[Onglet]])) ->  | D75: =IF(ListeOnglets[[#This Row],[Onglet]]="","",IF(ISERROR(MATCH(ListeOnglets[[#This Row],[Onglet]],Tab_Onglets[Onglet],0)),"Rajouter","")) -> 
C76: =IF(ListeOnglets[[#This Row],[Onglet]]="","",ROW(ListeOnglets[[#This Row],[Onglet]])-ROW(ListeOnglets[[#Headers],[Onglet]])) ->  | D76: =IF(ListeOnglets[[#This Row],[Onglet]]="","",IF(ISERROR(MATCH(ListeOnglets[[#This Row],[Onglet]],Tab_Onglets[Onglet],0)),"Rajouter","")) -> 
C77: =IF(ListeOnglets[[#This Row],[Onglet]]="","",ROW(ListeOnglets[[#This Row],[Onglet]])-ROW(ListeOnglets[[#Headers],[Onglet]])) ->  | D77: =IF(ListeOnglets[[#This Row],[Onglet]]="","",IF(ISERROR(MATCH(ListeOnglets[[#This Row],[Onglet]],Tab_Onglets[Onglet],0)),"Rajouter","")) -> 
C78: =IF(ListeOnglets[[#This Row],[Onglet]]="","",ROW(ListeOnglets[[#This Row],[Onglet]])-ROW(ListeOnglets[[#Headers],[Onglet]])) ->  | D78: =IF(ListeOnglets[[#This Row],[Onglet]]="","",IF(ISERROR(MATCH(ListeOnglets[[#This Row],[Onglet]],Tab_Onglets[Onglet],0)),"Rajouter","")) -> 
C79: =IF(ListeOnglets[[#This Row],[Onglet]]="","",ROW(ListeOnglets[[#This Row],[Onglet]])-ROW(ListeOnglets[[#Headers],[Onglet]])) ->  | D79: =IF(ListeOnglets[[#This Row],[Onglet]]="","",IF(ISERROR(MATCH(ListeOnglets[[#This Row],[Onglet]],Tab_Onglets[Onglet],0)),"Rajouter","")) -> 

Sheet Pesees
D6: Echantillon | E6: masse (g) | I6: Validation | J6: Etat
I7: Dossier
I8: Etalage
I9: Temps sechage | M9: Num | N9: Action
I10: Attaque | M10: =IF(Action016166[[#This Row],[Action]]="","",OFFSET(ListeActions[[#Headers],[N]],MATCH(Action016166[[#This Row],[Action]],ListeActions[Actions],0),0,1,1)) -> 32 | N10: Import Pesees
I11: ICP | M11: =IF(Action016166[[#This Row],[Action]]="","",OFFSET(ListeActions[[#Headers],[N]],MATCH(Action016166[[#This Row],[Action]],ListeActions[Actions],0),0,1,1)) -> 8 | N11: MAJ TCD
I12: Nb Pesées | M12: =IF(Action016166[[#This Row],[Action]]="","",OFFSET(ListeActions[[#Headers],[N]],MATCH(Action016166[[#This Row],[Action]],ListeActions[Actions],0),0,1,1)) -> 14 | N12: Autofit
I13: Masses saisies
I14: Comm Agent
I15: Sécurisé
I20: Date ICP
I26: Commentaire

Sheet PF
C2: Données Perte au Feu
B4: Ligne | C4: Type | D4: Echantillon | E4: Creuset | F4: Masse Vide (g) | G4: Masse humide (g) | H4: Masse Seché 105°C (g) | I4: Masse Calciné (g) | J4: Verif Masse humide | K4: PF (%)
B5: =IF(ImportPF[[#This Row],[Echantillon]]="","",ROW(ImportPF[[#This Row],[Echantillon]])-ROW(ImportPF[[#Headers],[Echantillon]])) ->  | N5: Param | O5: Valeur
B6: =IF(ImportPF[[#This Row],[Echantillon]]="","",ROW(ImportPF[[#This Row],[Echantillon]])-ROW(ImportPF[[#Headers],[Echantillon]])) ->  | N6: Dossier
B7: =IF(ImportPF[[#This Row],[Echantillon]]="","",ROW(ImportPF[[#This Row],[Echantillon]])-ROW(ImportPF[[#Headers],[Echantillon]])) ->  | N7: Opérations | S7: Num | T7: Action
B8: =IF(ImportPF[[#This Row],[Echantillon]]="","",ROW(ImportPF[[#This Row],[Echantillon]])-ROW(ImportPF[[#Headers],[Echantillon]])) ->  | N8: Mesures | S8: =IF(Action0161[[#This Row],[Action]]="","",OFFSET(ListeActions[[#Headers],[N]],MATCH(Action0161[[#This Row],[Action]],ListeActions[Actions],0),0,1,1)) -> 30 | T8: Import PF
B9: =IF(ImportPF[[#This Row],[Echantillon]]="","",ROW(ImportPF[[#This Row],[Echantillon]])-ROW(ImportPF[[#Headers],[Echantillon]])) ->  | N9: QC | S9: =IF(Action0161[[#This Row],[Action]]="","",OFFSET(ListeActions[[#Headers],[N]],MATCH(Action0161[[#This Row],[Action]],ListeActions[Actions],0),0,1,1)) -> 8 | T9: MAJ TCD
B10: =IF(ImportPF[[#This Row],[Echantillon]]="","",ROW(ImportPF[[#This Row],[Echantillon]])-ROW(ImportPF[[#Headers],[Echantillon]])) ->  | N10: Sécurisé | S10: =IF(Action0161[[#This Row],[Action]]="","",OFFSET(ListeActions[[#Headers],[N]],MATCH(Action0161[[#This Row],[Action]],ListeActions[Actions],0),0,1,1)) -> 14 | T10: Autofit
B11: =IF(ImportPF[[#This Row],[Echantillon]]="","",ROW(ImportPF[[#This Row],[Echantillon]])-ROW(ImportPF[[#Headers],[Echantillon]])) ->  | N11: Nb Decrypt
B12: =IF(ImportPF[[#This Row],[Echantillon]]="","",ROW(ImportPF[[#This Row],[Echantillon]])-ROW(ImportPF[[#Headers],[Echantillon]])) -> 
B13: =IF(ImportPF[[#This Row],[Echantillon]]="","",ROW(ImportPF[[#This Row],[Echantillon]])-ROW(ImportPF[[#Headers],[Echantillon]])) -> 
B14: =IF(ImportPF[[#This Row],[Echantillon]]="","",ROW(ImportPF[[#This Row],[Echantillon]])-ROW(ImportPF[[#Headers],[Echantillon]])) -> 
B15: =IF(ImportPF[[#This Row],[Echantillon]]="","",ROW(ImportPF[[#This Row],[Echantillon]])-ROW(ImportPF[[#Headers],[Echantillon]])) -> 
B16: =IF(ImportPF[[#This Row],[Echantillon]]="","",ROW(ImportPF[[#This Row],[Echantillon]])-ROW(ImportPF[[#Headers],[Echantillon]])) -> 
B17: =IF(ImportPF[[#This Row],[Echantillon]]="","",ROW(ImportPF[[#This Row],[Echantillon]])-ROW(ImportPF[[#Headers],[Echantillon]])) ->  | N17: Commentaire
B18: =IF(ImportPF[[#This Row],[Echantillon]]="","",ROW(ImportPF[[#This Row],[Echantillon]])-ROW(ImportPF[[#Headers],[Echantillon]])) -> 
B19: =IF(ImportPF[[#This Row],[Echantillon]]="","",ROW(ImportPF[[#This Row],[Echantillon]])-ROW(ImportPF[[#Headers],[Echantillon]])) -> 
B20: =IF(ImportPF[[#This Row],[Echantillon]]="","",ROW(ImportPF[[#This Row],[Echantillon]])-ROW(ImportPF[[#Headers],[Echantillon]])) -> 
B21: =IF(ImportPF[[#This Row],[Echantillon]]="","",ROW(ImportPF[[#This Row],[Echantillon]])-ROW(ImportPF[[#Headers],[Echantillon]])) -> 
B22: =IF(ImportPF[[#This Row],[Echantillon]]="","",ROW(ImportPF[[#This Row],[Echantillon]])-ROW(ImportPF[[#Headers],[Echantillon]])) -> 
B23: =IF(ImportPF[[#This Row],[Echantillon]]="","",ROW(ImportPF[[#This Row],[Echantillon]])-ROW(ImportPF[[#Headers],[Echantillon]])) -> 
B24: =IF(ImportPF[[#This Row],[Echantillon]]="","",ROW(ImportPF[[#This Row],[Echantillon]])-ROW(ImportPF[[#Headers],[Echantillon]])) -> 
B25: =IF(ImportPF[[#This Row],[Echantillon]]="","",ROW(ImportPF[[#This Row],[Echantillon]])-ROW(ImportPF[[#Headers],[Echantillon]])) -> 
B26: =IF(ImportPF[[#This Row],[Echantillon]]="","",ROW(ImportPF[[#This Row],[Echantillon]])-ROW(ImportPF[[#Headers],[Echantillon]])) -> 
B27: =IF(ImportPF[[#This Row],[Echantillon]]="","",ROW(ImportPF[[#This Row],[Echantillon]])-ROW(ImportPF[[#Headers],[Echantillon]])) -> 
B28: =IF(ImportPF[[#This Row],[Echantillon]]="","",ROW(ImportPF[[#This Row],[Echantillon]])-ROW(ImportPF[[#Headers],[Echantillon]])) -> 
B29: =IF(ImportPF[[#This Row],[Echantillon]]="","",ROW(ImportPF[[#This Row],[Echantillon]])-ROW(ImportPF[[#Headers],[Echantillon]])) -> 
B30: =IF(ImportPF[[#This Row],[Echantillon]]="","",ROW(ImportPF[[#This Row],[Echantillon]])-ROW(ImportPF[[#Headers],[Echantillon]])) -> 
B31: =IF(ImportPF[[#This Row],[Echantillon]]="","",ROW(ImportPF[[#This Row],[Echantillon]])-ROW(ImportPF[[#Headers],[Echantillon]])) -> 
B32: =IF(ImportPF[[#This Row],[Echantillon]]="","",ROW(ImportPF[[#This Row],[Echantillon]])-ROW(ImportPF[[#Headers],[Echantillon]])) -> 
B33: =IF(ImportPF[[#This Row],[Echantillon]]="","",ROW(ImportPF[[#This Row],[Echantillon]])-ROW(ImportPF[[#Headers],[Echantillon]])) -> 
B34: =IF(ImportPF[[#This Row],[Echantillon]]="","",ROW(ImportPF[[#This Row],[Echantillon]])-ROW(ImportPF[[#Headers],[Echantillon]])) -> 
B35: =IF(ImportPF[[#This Row],[Echantillon]]="","",ROW(ImportPF[[#This Row],[Echantillon]])-ROW(ImportPF[[#Headers],[Echantillon]])) -> 
B36: =IF(ImportPF[[#This Row],[Echantillon]]="","",ROW(ImportPF[[#This Row],[Echantillon]])-ROW(ImportPF[[#Headers],[Echantillon]])) -> 
B37: =IF(ImportPF[[#This Row],[Echantillon]]="","",ROW(ImportPF[[#This Row],[Echantillon]])-ROW(ImportPF[[#Headers],[Echantillon]])) -> 
B38: =IF(ImportPF[[#This Row],[Echantillon]]="","",ROW(ImportPF[[#This Row],[Echantillon]])-ROW(ImportPF[[#Headers],[Echantillon]])) -> 
B39: =IF(ImportPF[[#This Row],[Echantillon]]="","",ROW(ImportPF[[#This Row],[Echantillon]])-ROW(ImportPF[[#Headers],[Echantillon]])) -> 
B40: =IF(ImportPF[[#This Row],[Echantillon]]="","",ROW(ImportPF[[#This Row],[Echantillon]])-ROW(ImportPF[[#Headers],[Echantillon]])) -> 
B41: =IF(ImportPF[[#This Row],[Echantillon]]="","",ROW(ImportPF[[#This Row],[Echantillon]])-ROW(ImportPF[[#Headers],[Echantillon]])) -> 
B42: =IF(ImportPF[[#This Row],[Echantillon]]="","",ROW(ImportPF[[#This Row],[Echantillon]])-ROW(ImportPF[[#Headers],[Echantillon]])) -> 
B43: =IF(ImportPF[[#This Row],[Echantillon]]="","",ROW(ImportPF[[#This Row],[Echantillon]])-ROW(ImportPF[[#Headers],[Echantillon]])) -> 
B44: =IF(ImportPF[[#This Row],[Echantillon]]="","",ROW(ImportPF[[#This Row],[Echantillon]])-ROW(ImportPF[[#Headers],[Echantillon]])) -> 
B45: =IF(ImportPF[[#This Row],[Echantillon]]="","",ROW(ImportPF[[#This Row],[Echantillon]])-ROW(ImportPF[[#Headers],[Echantillon]])) -> 
B46: =IF(ImportPF[[#This Row],[Echantillon]]="","",ROW(ImportPF[[#This Row],[Echantillon]])-ROW(ImportPF[[#Headers],[Echantillon]])) -> 
B47: =IF(ImportPF[[#This Row],[Echantillon]]="","",ROW(ImportPF[[#This Row],[Echantillon]])-ROW(ImportPF[[#Headers],[Echantillon]])) -> 
B48: =IF(ImportPF[[#This Row],[Echantillon]]="","",ROW(ImportPF[[#This Row],[Echantillon]])-ROW(ImportPF[[#Headers],[Echantillon]])) -> 
B49: =IF(ImportPF[[#This Row],[Echantillon]]="","",ROW(ImportPF[[#This Row],[Echantillon]])-ROW(ImportPF[[#Headers],[Echantillon]])) -> 
B50: =IF(ImportPF[[#This Row],[Echantillon]]="","",ROW(ImportPF[[#This Row],[Echantillon]])-ROW(ImportPF[[#Headers],[Echantillon]])) -> 
B51: =IF(ImportPF[[#This Row],[Echantillon]]="","",ROW(ImportPF[[#This Row],[Echantillon]])-ROW(ImportPF[[#Headers],[Echantillon]])) -> 
B52: =IF(ImportPF[[#This Row],[Echantillon]]="","",ROW(ImportPF[[#This Row],[Echantillon]])-ROW(ImportPF[[#Headers],[Echantillon]])) -> 
B53: =IF(ImportPF[[#This Row],[Echantillon]]="","",ROW(ImportPF[[#This Row],[Echantillon]])-ROW(ImportPF[[#Headers],[Echantillon]])) -> 
B54: =IF(ImportPF[[#This Row],[Echantillon]]="","",ROW(ImportPF[[#This Row],[Echantillon]])-ROW(ImportPF[[#Headers],[Echantillon]])) -> 
B55: =IF(ImportPF[[#This Row],[Echantillon]]="","",ROW(ImportPF[[#This Row],[Echantillon]])-ROW(ImportPF[[#Headers],[Echantillon]])) -> 
B56: =IF(ImportPF[[#This Row],[Echantillon]]="","",ROW(ImportPF[[#This Row],[Echantillon]])-ROW(ImportPF[[#Headers],[Echantillon]])) -> 
B57: =IF(ImportPF[[#This Row],[Echantillon]]="","",ROW(ImportPF[[#This Row],[Echantillon]])-ROW(ImportPF[[#Headers],[Echantillon]])) -> 
B58: =IF(ImportPF[[#This Row],[Echantillon]]="","",ROW(ImportPF[[#This Row],[Echantillon]])-ROW(ImportPF[[#Headers],[Echantillon]])) -> 
B59: =IF(ImportPF[[#This Row],[Echantillon]]="","",ROW(ImportPF[[#This Row],[Echantillon]])-ROW(ImportPF[[#Headers],[Echantillon]])) -> 
B60: =IF(ImportPF[[#This Row],[Echantillon]]="","",ROW(ImportPF[[#This Row],[Echantillon]])-ROW(ImportPF[[#Headers],[Echantillon]])) -> 
B61: =IF(ImportPF[[#This Row],[Echantillon]]="","",ROW(ImportPF[[#This Row],[Echantillon]])-ROW(ImportPF[[#Headers],[Echantillon]])) -> 
B62: =IF(ImportPF[[#This Row],[Echantillon]]="","",ROW(ImportPF[[#This Row],[Echantillon]])-ROW(ImportPF[[#Headers],[Echantillon]])) -> 
B63: =IF(ImportPF[[#This Row],[Echantillon]]="","",ROW(ImportPF[[#This Row],[Echantillon]])-ROW(ImportPF[[#Headers],[Echantillon]])) -> 
B64: =IF(ImportPF[[#This Row],[Echantillon]]="","",ROW(ImportPF[[#This Row],[Echantillon]])-ROW(ImportPF[[#Headers],[Echantillon]])) -> 
B65: =IF(ImportPF[[#This Row],[Echantillon]]="","",ROW(ImportPF[[#This Row],[Echantillon]])-ROW(ImportPF[[#Headers],[Echantillon]])) -> 
B66: =IF(ImportPF[[#This Row],[Echantillon]]="","",ROW(ImportPF[[#This Row],[Echantillon]])-ROW(ImportPF[[#Headers],[Echantillon]])) -> 
B67: =IF(ImportPF[[#This Row],[Echantillon]]="","",ROW(ImportPF[[#This Row],[Echantillon]])-ROW(ImportPF[[#Headers],[Echantillon]])) -> 
B68: =IF(ImportPF[[#This Row],[Echantillon]]="","",ROW(ImportPF[[#This Row],[Echantillon]])-ROW(ImportPF[[#Headers],[Echantillon]])) -> 
B69: =IF(ImportPF[[#This Row],[Echantillon]]="","",ROW(ImportPF[[#This Row],[Echantillon]])-ROW(ImportPF[[#Headers],[Echantillon]])) -> 
B70: =IF(ImportPF[[#This Row],[Echantillon]]="","",ROW(ImportPF[[#This Row],[Echantillon]])-ROW(ImportPF[[#Headers],[Echantillon]])) -> 
B71: =IF(ImportPF[[#This Row],[Echantillon]]="","",ROW(ImportPF[[#This Row],[Echantillon]])-ROW(ImportPF[[#Headers],[Echantillon]])) -> 
B72: =IF(ImportPF[[#This Row],[Echantillon]]="","",ROW(ImportPF[[#This Row],[Echantillon]])-ROW(ImportPF[[#Headers],[Echantillon]])) -> 
B73: =IF(ImportPF[[#This Row],[Echantillon]]="","",ROW(ImportPF[[#This Row],[Echantillon]])-ROW(ImportPF[[#Headers],[Echantillon]])) -> 
B74: =IF(ImportPF[[#This Row],[Echantillon]]="","",ROW(ImportPF[[#This Row],[Echantillon]])-ROW(ImportPF[[#Headers],[Echantillon]])) -> 
B75: =IF(ImportPF[[#This Row],[Echantillon]]="","",ROW(ImportPF[[#This Row],[Echantillon]])-ROW(ImportPF[[#Headers],[Echantillon]])) -> 
B76: =IF(ImportPF[[#This Row],[Echantillon]]="","",ROW(ImportPF[[#This Row],[Echantillon]])-ROW(ImportPF[[#Headers],[Echantillon]])) -> 
B77: =IF(ImportPF[[#This Row],[Echantillon]]="","",ROW(ImportPF[[#This Row],[Echantillon]])-ROW(ImportPF[[#Headers],[Echantillon]])) -> 
B78: =IF(ImportPF[[#This Row],[Echantillon]]="","",ROW(ImportPF[[#This Row],[Echantillon]])-ROW(ImportPF[[#Headers],[Echantillon]])) -> 
B79: =IF(ImportPF[[#This Row],[Echantillon]]="","",ROW(ImportPF[[#This Row],[Echantillon]])-ROW(ImportPF[[#Headers],[Echantillon]])) -> 
B80: =IF(ImportPF[[#This Row],[Echantillon]]="","",ROW(ImportPF[[#This Row],[Echantillon]])-ROW(ImportPF[[#Headers],[Echantillon]])) -> 
B81: =IF(ImportPF[[#This Row],[Echantillon]]="","",ROW(ImportPF[[#This Row],[Echantillon]])-ROW(ImportPF[[#Headers],[Echantillon]])) -> 
B82: =IF(ImportPF[[#This Row],[Echantillon]]="","",ROW(ImportPF[[#This Row],[Echantillon]])-ROW(ImportPF[[#Headers],[Echantillon]])) -> 
B83: =IF(ImportPF[[#This Row],[Echantillon]]="","",ROW(ImportPF[[#This Row],[Echantillon]])-ROW(ImportPF[[#Headers],[Echantillon]])) -> 
B84: =IF(ImportPF[[#This Row],[Echantillon]]="","",ROW(ImportPF[[#This Row],[Echantillon]])-ROW(ImportPF[[#Headers],[Echantillon]])) -> 
B85: =IF(ImportPF[[#This Row],[Echantillon]]="","",ROW(ImportPF[[#This Row],[Echantillon]])-ROW(ImportPF[[#Headers],[Echantillon]])) -> 

Sheet Hum
B2: Données Humidités
B4: Ligne | C4: Echantillon | D4: Cristallisoir A | E4: M Crist A | F4: Masse Hum A | G4: Masse sec A | H4: Cristallisoir B | I4: M Crist B | J4: Masse Hum B | K4: Masse sec B | L4: Absence B | M4: Hum % A | N4: Hum % B | O4: Hum % | P4: CV Hum % | Q4: Err saisie | R4: Err Cris | S4: Err | T4: Validation | U4: Commentaire | V4: Casse | AE4: Image attendue :
X5: Num | Y5: Action | AA5: Validation | AB5: Saisie | AC5: Contrôle
X6: =IF(Action016162[[#This Row],[Action]]="","",OFFSET(ListeActions[[#Headers],[N]],MATCH(Action016162[[#This Row],[Action]],ListeActions[Actions],0),0,1,1)) -> 31 | Y6: Import Hum | AA6: Dossier
X7: =IF(Action016162[[#This Row],[Action]]="","",OFFSET(ListeActions[[#Headers],[N]],MATCH(Action016162[[#This Row],[Action]],ListeActions[Actions],0),0,1,1)) -> 8 | Y7: MAJ TCD | AA7: Cristallisoir
X8: =IF(Action016162[[#This Row],[Action]]="","",OFFSET(ListeActions[[#Headers],[N]],MATCH(Action016162[[#This Row],[Action]],ListeActions[Actions],0),0,1,1)) -> 14 | Y8: Autofit | AA8: Sechage
AA9: QC
AA10: Mesures
AA11: Sécurisé
AA12: Casse
AA13: Nb Erreurs
AA14: Commentaires
AA23: Commentaire

Sheet ICP_PS
B2: Données ICP P+S
B4: TUBE | C4: Ref | D4: Al2O3 | E4: CaO | F4: Co | G4: Cr2O3 | H4: Cu | I4: Fe | J4: MgO | K4: Mn | L4: Ni | M4: P | N4: S | O4: SiO2 | P4: TiO2 | Q4: Y | R4: Zn | S4: Ligne | T4: Compteur | U4: Clef
B5: =IF(ICP_PS[[#This Row],[Ref]]="","",ROW(ICP_PS[[#This Row],[Ref]])-ROW(ICP_PS[[#Headers],[Ref]])) ->  | C5: =IF(Pesees!D7="","",Pesees!D7) ->  | S5: =IF(ICP_PS[[#This Row],[TUBE]]="","",ROW(ICP_PS[[#This Row],[TUBE]])-ROW(ICP_PS[[#Headers],[TUBE]])) ->  | T5: =IF(ICP_PS[[#This Row],[TUBE]]="","",COUNTIF(OFFSET(ICP_PS[[#Headers],[Ref]],1,0,ICP_PS[[#This Row],[Ligne]],1),ICP_PS[[#This Row],[Ref]])) ->  | U5: =IF(ICP_PS[[#This Row],[TUBE]]="","",ICP_PS[[#This Row],[Ref]]&"_"&ICP_PS[[#This Row],[Compteur]]) ->  | W5: Commentaire
B6: =IF(ICP_PS[[#This Row],[Ref]]="","",ROW(ICP_PS[[#This Row],[Ref]])-ROW(ICP_PS[[#Headers],[Ref]])) ->  | C6: =IF(Pesees!D8="","",Pesees!D8) ->  | S6: =IF(ICP_PS[[#This Row],[TUBE]]="","",ROW(ICP_PS[[#This Row],[TUBE]])-ROW(ICP_PS[[#Headers],[TUBE]])) ->  | T6: =IF(ICP_PS[[#This Row],[TUBE]]="","",COUNTIF(OFFSET(ICP_PS[[#Headers],[Ref]],1,0,ICP_PS[[#This Row],[Ligne]],1),ICP_PS[[#This Row],[Ref]])) ->  | U6: =IF(ICP_PS[[#This Row],[TUBE]]="","",ICP_PS[[#This Row],[Ref]]&"_"&ICP_PS[[#This Row],[Compteur]]) -> 
B7: =IF(ICP_PS[[#This Row],[Ref]]="","",ROW(ICP_PS[[#This Row],[Ref]])-ROW(ICP_PS[[#Headers],[Ref]])) ->  | C7: =IF(Pesees!D9="","",Pesees!D9) ->  | S7: =IF(ICP_PS[[#This Row],[TUBE]]="","",ROW(ICP_PS[[#This Row],[TUBE]])-ROW(ICP_PS[[#Headers],[TUBE]])) ->  | T7: =IF(ICP_PS[[#This Row],[TUBE]]="","",COUNTIF(OFFSET(ICP_PS[[#Headers],[Ref]],1,0,ICP_PS[[#This Row],[Ligne]],1),ICP_PS[[#This Row],[Ref]])) ->  | U7: =IF(ICP_PS[[#This Row],[TUBE]]="","",ICP_PS[[#This Row],[Ref]]&"_"&ICP_PS[[#This Row],[Compteur]]) -> 
B8: =IF(ICP_PS[[#This Row],[Ref]]="","",ROW(ICP_PS[[#This Row],[Ref]])-ROW(ICP_PS[[#Headers],[Ref]])) ->  | C8: =IF(Pesees!D10="","",Pesees!D10) ->  | S8: =IF(ICP_PS[[#This Row],[TUBE]]="","",ROW(ICP_PS[[#This Row],[TUBE]])-ROW(ICP_PS[[#Headers],[TUBE]])) ->  | T8: =IF(ICP_PS[[#This Row],[TUBE]]="","",COUNTIF(OFFSET(ICP_PS[[#Headers],[Ref]],1,0,ICP_PS[[#This Row],[Ligne]],1),ICP_PS[[#This Row],[Ref]])) ->  | U8: =IF(ICP_PS[[#This Row],[TUBE]]="","",ICP_PS[[#This Row],[Ref]]&"_"&ICP_PS[[#This Row],[Compteur]]) -> 
B9: =IF(ICP_PS[[#This Row],[Ref]]="","",ROW(ICP_PS[[#This Row],[Ref]])-ROW(ICP_PS[[#Headers],[Ref]])) ->  | C9: =IF(Pesees!D11="","",Pesees!D11) ->  | S9: =IF(ICP_PS[[#This Row],[TUBE]]="","",ROW(ICP_PS[[#This Row],[TUBE]])-ROW(ICP_PS[[#Headers],[TUBE]])) ->  | T9: =IF(ICP_PS[[#This Row],[TUBE]]="","",COUNTIF(OFFSET(ICP_PS[[#Headers],[Ref]],1,0,ICP_PS[[#This Row],[Ligne]],1),ICP_PS[[#This Row],[Ref]])) ->  | U9: =IF(ICP_PS[[#This Row],[TUBE]]="","",ICP_PS[[#This Row],[Ref]]&"_"&ICP_PS[[#This Row],[Compteur]]) -> 
B10: =IF(ICP_PS[[#This Row],[Ref]]="","",ROW(ICP_PS[[#This Row],[Ref]])-ROW(ICP_PS[[#Headers],[Ref]])) ->  | C10: =IF(Pesees!D12="","",Pesees!D12) ->  | S10: =IF(ICP_PS[[#This Row],[TUBE]]="","",ROW(ICP_PS[[#This Row],[TUBE]])-ROW(ICP_PS[[#Headers],[TUBE]])) ->  | T10: =IF(ICP_PS[[#This Row],[TUBE]]="","",COUNTIF(OFFSET(ICP_PS[[#Headers],[Ref]],1,0,ICP_PS[[#This Row],[Ligne]],1),ICP_PS[[#This Row],[Ref]])) ->  | U10: =IF(ICP_PS[[#This Row],[TUBE]]="","",ICP_PS[[#This Row],[Ref]]&"_"&ICP_PS[[#This Row],[Compteur]]) -> 
B11: =IF(ICP_PS[[#This Row],[Ref]]="","",ROW(ICP_PS[[#This Row],[Ref]])-ROW(ICP_PS[[#Headers],[Ref]])) ->  | C11: =IF(Pesees!D13="","",Pesees!D13) ->  | S11: =IF(ICP_PS[[#This Row],[TUBE]]="","",ROW(ICP_PS[[#This Row],[TUBE]])-ROW(ICP_PS[[#Headers],[TUBE]])) ->  | T11: =IF(ICP_PS[[#This Row],[TUBE]]="","",COUNTIF(OFFSET(ICP_PS[[#Headers],[Ref]],1,0,ICP_PS[[#This Row],[Ligne]],1),ICP_PS[[#This Row],[Ref]])) ->  | U11: =IF(ICP_PS[[#This Row],[TUBE]]="","",ICP_PS[[#This Row],[Ref]]&"_"&ICP_PS[[#This Row],[Compteur]]) -> 
B12: =IF(ICP_PS[[#This Row],[Ref]]="","",ROW(ICP_PS[[#This Row],[Ref]])-ROW(ICP_PS[[#Headers],[Ref]])) ->  | C12: =IF(Pesees!D14="","",Pesees!D14) ->  | S12: =IF(ICP_PS[[#This Row],[TUBE]]="","",ROW(ICP_PS[[#This Row],[TUBE]])-ROW(ICP_PS[[#Headers],[TUBE]])) ->  | T12: =IF(ICP_PS[[#This Row],[TUBE]]="","",COUNTIF(OFFSET(ICP_PS[[#Headers],[Ref]],1,0,ICP_PS[[#This Row],[Ligne]],1),ICP_PS[[#This Row],[Ref]])) ->  | U12: =IF(ICP_PS[[#This Row],[TUBE]]="","",ICP_PS[[#This Row],[Ref]]&"_"&ICP_PS[[#This Row],[Compteur]]) -> 
B13: =IF(ICP_PS[[#This Row],[Ref]]="","",ROW(ICP_PS[[#This Row],[Ref]])-ROW(ICP_PS[[#Headers],[Ref]])) ->  | C13: =IF(Pesees!D15="","",Pesees!D15) ->  | S13: =IF(ICP_PS[[#This Row],[TUBE]]="","",ROW(ICP_PS[[#This Row],[TUBE]])-ROW(ICP_PS[[#Headers],[TUBE]])) ->  | T13: =IF(ICP_PS[[#This Row],[TUBE]]="","",COUNTIF(OFFSET(ICP_PS[[#Headers],[Ref]],1,0,ICP_PS[[#This Row],[Ligne]],1),ICP_PS[[#This Row],[Ref]])) ->  | U13: =IF(ICP_PS[[#This Row],[TUBE]]="","",ICP_PS[[#This Row],[Ref]]&"_"&ICP_PS[[#This Row],[Compteur]]) -> 
B14: =IF(ICP_PS[[#This Row],[Ref]]="","",ROW(ICP_PS[[#This Row],[Ref]])-ROW(ICP_PS[[#Headers],[Ref]])) ->  | C14: =IF(Pesees!D16="","",Pesees!D16) ->  | S14: =IF(ICP_PS[[#This Row],[TUBE]]="","",ROW(ICP_PS[[#This Row],[TUBE]])-ROW(ICP_PS[[#Headers],[TUBE]])) ->  | T14: =IF(ICP_PS[[#This Row],[TUBE]]="","",COUNTIF(OFFSET(ICP_PS[[#Headers],[Ref]],1,0,ICP_PS[[#This Row],[Ligne]],1),ICP_PS[[#This Row],[Ref]])) ->  | U14: =IF(ICP_PS[[#This Row],[TUBE]]="","",ICP_PS[[#This Row],[Ref]]&"_"&ICP_PS[[#This Row],[Compteur]]) -> 
B15: =IF(ICP_PS[[#This Row],[Ref]]="","",ROW(ICP_PS[[#This Row],[Ref]])-ROW(ICP_PS[[#Headers],[Ref]])) ->  | C15: =IF(Pesees!D17="","",Pesees!D17) ->  | S15: =IF(ICP_PS[[#This Row],[TUBE]]="","",ROW(ICP_PS[[#This Row],[TUBE]])-ROW(ICP_PS[[#Headers],[TUBE]])) ->  | T15: =IF(ICP_PS[[#This Row],[TUBE]]="","",COUNTIF(OFFSET(ICP_PS[[#Headers],[Ref]],1,0,ICP_PS[[#This Row],[Ligne]],1),ICP_PS[[#This Row],[Ref]])) ->  | U15: =IF(ICP_PS[[#This Row],[TUBE]]="","",ICP_PS[[#This Row],[Ref]]&"_"&ICP_PS[[#This Row],[Compteur]]) -> 
B16: =IF(ICP_PS[[#This Row],[Ref]]="","",ROW(ICP_PS[[#This Row],[Ref]])-ROW(ICP_PS[[#Headers],[Ref]])) ->  | C16: =IF(Pesees!D18="","",Pesees!D18) ->  | S16: =IF(ICP_PS[[#This Row],[TUBE]]="","",ROW(ICP_PS[[#This Row],[TUBE]])-ROW(ICP_PS[[#Headers],[TUBE]])) ->  | T16: =IF(ICP_PS[[#This Row],[TUBE]]="","",COUNTIF(OFFSET(ICP_PS[[#Headers],[Ref]],1,0,ICP_PS[[#This Row],[Ligne]],1),ICP_PS[[#This Row],[Ref]])) ->  | U16: =IF(ICP_PS[[#This Row],[TUBE]]="","",ICP_PS[[#This Row],[Ref]]&"_"&ICP_PS[[#This Row],[Compteur]]) -> 
B17: =IF(ICP_PS[[#This Row],[Ref]]="","",ROW(ICP_PS[[#This Row],[Ref]])-ROW(ICP_PS[[#Headers],[Ref]])) ->  | C17: =IF(Pesees!D19="","",Pesees!D19) ->  | S17: =IF(ICP_PS[[#This Row],[TUBE]]="","",ROW(ICP_PS[[#This Row],[TUBE]])-ROW(ICP_PS[[#Headers],[TUBE]])) ->  | T17: =IF(ICP_PS[[#This Row],[TUBE]]="","",COUNTIF(OFFSET(ICP_PS[[#Headers],[Ref]],1,0,ICP_PS[[#This Row],[Ligne]],1),ICP_PS[[#This Row],[Ref]])) ->  | U17: =IF(ICP_PS[[#This Row],[TUBE]]="","",ICP_PS[[#This Row],[Ref]]&"_"&ICP_PS[[#This Row],[Compteur]]) -> 
B18: =IF(ICP_PS[[#This Row],[Ref]]="","",ROW(ICP_PS[[#This Row],[Ref]])-ROW(ICP_PS[[#Headers],[Ref]])) ->  | C18: =IF(Pesees!D20="","",Pesees!D20) ->  | S18: =IF(ICP_PS[[#This Row],[TUBE]]="","",ROW(ICP_PS[[#This Row],[TUBE]])-ROW(ICP_PS[[#Headers],[TUBE]])) ->  | T18: =IF(ICP_PS[[#This Row],[TUBE]]="","",COUNTIF(OFFSET(ICP_PS[[#Headers],[Ref]],1,0,ICP_PS[[#This Row],[Ligne]],1),ICP_PS[[#This Row],[Ref]])) ->  | U18: =IF(ICP_PS[[#This Row],[TUBE]]="","",ICP_PS[[#This Row],[Ref]]&"_"&ICP_PS[[#This Row],[Compteur]]) -> 
B19: =IF(ICP_PS[[#This Row],[Ref]]="","",ROW(ICP_PS[[#This Row],[Ref]])-ROW(ICP_PS[[#Headers],[Ref]])) ->  | C19: =IF(Pesees!D21="","",Pesees!D21) ->  | S19: =IF(ICP_PS[[#This Row],[TUBE]]="","",ROW(ICP_PS[[#This Row],[TUBE]])-ROW(ICP_PS[[#Headers],[TUBE]])) ->  | T19: =IF(ICP_PS[[#This Row],[TUBE]]="","",COUNTIF(OFFSET(ICP_PS[[#Headers],[Ref]],1,0,ICP_PS[[#This Row],[Ligne]],1),ICP_PS[[#This Row],[Ref]])) ->  | U19: =IF(ICP_PS[[#This Row],[TUBE]]="","",ICP_PS[[#This Row],[Ref]]&"_"&ICP_PS[[#This Row],[Compteur]]) -> 
B20: =IF(ICP_PS[[#This Row],[Ref]]="","",ROW(ICP_PS[[#This Row],[Ref]])-ROW(ICP_PS[[#Headers],[Ref]])) ->  | C20: =IF(Pesees!D22="","",Pesees!D22) ->  | S20: =IF(ICP_PS[[#This Row],[TUBE]]="","",ROW(ICP_PS[[#This Row],[TUBE]])-ROW(ICP_PS[[#Headers],[TUBE]])) ->  | T20: =IF(ICP_PS[[#This Row],[TUBE]]="","",COUNTIF(OFFSET(ICP_PS[[#Headers],[Ref]],1,0,ICP_PS[[#This Row],[Ligne]],1),ICP_PS[[#This Row],[Ref]])) ->  | U20: =IF(ICP_PS[[#This Row],[TUBE]]="","",ICP_PS[[#This Row],[Ref]]&"_"&ICP_PS[[#This Row],[Compteur]]) -> 
B21: =IF(ICP_PS[[#This Row],[Ref]]="","",ROW(ICP_PS[[#This Row],[Ref]])-ROW(ICP_PS[[#Headers],[Ref]])) ->  | C21: =IF(Pesees!D23="","",Pesees!D23) ->  | S21: =IF(ICP_PS[[#This Row],[TUBE]]="","",ROW(ICP_PS[[#This Row],[TUBE]])-ROW(ICP_PS[[#Headers],[TUBE]])) ->  | T21: =IF(ICP_PS[[#This Row],[TUBE]]="","",COUNTIF(OFFSET(ICP_PS[[#Headers],[Ref]],1,0,ICP_PS[[#This Row],[Ligne]],1),ICP_PS[[#This Row],[Ref]])) ->  | U21: =IF(ICP_PS[[#This Row],[TUBE]]="","",ICP_PS[[#This Row],[Ref]]&"_"&ICP_PS[[#This Row],[Compteur]]) -> 
B22: =IF(ICP_PS[[#This Row],[Ref]]="","",ROW(ICP_PS[[#This Row],[Ref]])-ROW(ICP_PS[[#Headers],[Ref]])) ->  | C22: =IF(Pesees!D24="","",Pesees!D24) ->  | S22: =IF(ICP_PS[[#This Row],[TUBE]]="","",ROW(ICP_PS[[#This Row],[TUBE]])-ROW(ICP_PS[[#Headers],[TUBE]])) ->  | T22: =IF(ICP_PS[[#This Row],[TUBE]]="","",COUNTIF(OFFSET(ICP_PS[[#Headers],[Ref]],1,0,ICP_PS[[#This Row],[Ligne]],1),ICP_PS[[#This Row],[Ref]])) ->  | U22: =IF(ICP_PS[[#This Row],[TUBE]]="","",ICP_PS[[#This Row],[Ref]]&"_"&ICP_PS[[#This Row],[Compteur]]) -> 
B23: =IF(ICP_PS[[#This Row],[Ref]]="","",ROW(ICP_PS[[#This Row],[Ref]])-ROW(ICP_PS[[#Headers],[Ref]])) ->  | C23: =IF(Pesees!D25="","",Pesees!D25) ->  | S23: =IF(ICP_PS[[#This Row],[TUBE]]="","",ROW(ICP_PS[[#This Row],[TUBE]])-ROW(ICP_PS[[#Headers],[TUBE]])) ->  | T23: =IF(ICP_PS[[#This Row],[TUBE]]="","",COUNTIF(OFFSET(ICP_PS[[#Headers],[Ref]],1,0,ICP_PS[[#This Row],[Ligne]],1),ICP_PS[[#This Row],[Ref]])) ->  | U23: =IF(ICP_PS[[#This Row],[TUBE]]="","",ICP_PS[[#This Row],[Ref]]&"_"&ICP_PS[[#This Row],[Compteur]]) -> 
B24: =IF(ICP_PS[[#This Row],[Ref]]="","",ROW(ICP_PS[[#This Row],[Ref]])-ROW(ICP_PS[[#Headers],[Ref]])) ->  | C24: =IF(Pesees!D26="","",Pesees!D26) ->  | S24: =IF(ICP_PS[[#This Row],[TUBE]]="","",ROW(ICP_PS[[#This Row],[TUBE]])-ROW(ICP_PS[[#Headers],[TUBE]])) ->  | T24: =IF(ICP_PS[[#This Row],[TUBE]]="","",COUNTIF(OFFSET(ICP_PS[[#Headers],[Ref]],1,0,ICP_PS[[#This Row],[Ligne]],1),ICP_PS[[#This Row],[Ref]])) ->  | U24: =IF(ICP_PS[[#This Row],[TUBE]]="","",ICP_PS[[#This Row],[Ref]]&"_"&ICP_PS[[#This Row],[Compteur]]) -> 
B25: =IF(ICP_PS[[#This Row],[Ref]]="","",ROW(ICP_PS[[#This Row],[Ref]])-ROW(ICP_PS[[#Headers],[Ref]])) ->  | C25: =IF(Pesees!D27="","",Pesees!D27) ->  | S25: =IF(ICP_PS[[#This Row],[TUBE]]="","",ROW(ICP_PS[[#This Row],[TUBE]])-ROW(ICP_PS[[#Headers],[TUBE]])) ->  | T25: =IF(ICP_PS[[#This Row],[TUBE]]="","",COUNTIF(OFFSET(ICP_PS[[#Headers],[Ref]],1,0,ICP_PS[[#This Row],[Ligne]],1),ICP_PS[[#This Row],[Ref]])) ->  | U25: =IF(ICP_PS[[#This Row],[TUBE]]="","",ICP_PS[[#This Row],[Ref]]&"_"&ICP_PS[[#This Row],[Compteur]]) -> 
B26: =IF(ICP_PS[[#This Row],[Ref]]="","",ROW(ICP_PS[[#This Row],[Ref]])-ROW(ICP_PS[[#Headers],[Ref]])) ->  | C26: =IF(Pesees!D28="","",Pesees!D28) ->  | S26: =IF(ICP_PS[[#This Row],[TUBE]]="","",ROW(ICP_PS[[#This Row],[TUBE]])-ROW(ICP_PS[[#Headers],[TUBE]])) ->  | T26: =IF(ICP_PS[[#This Row],[TUBE]]="","",COUNTIF(OFFSET(ICP_PS[[#Headers],[Ref]],1,0,ICP_PS[[#This Row],[Ligne]],1),ICP_PS[[#This Row],[Ref]])) ->  | U26: =IF(ICP_PS[[#This Row],[TUBE]]="","",ICP_PS[[#This Row],[Ref]]&"_"&ICP_PS[[#This Row],[Compteur]]) -> 
B27: =IF(ICP_PS[[#This Row],[Ref]]="","",ROW(ICP_PS[[#This Row],[Ref]])-ROW(ICP_PS[[#Headers],[Ref]])) ->  | C27: =IF(Pesees!D29="","",Pesees!D29) ->  | S27: =IF(ICP_PS[[#This Row],[TUBE]]="","",ROW(ICP_PS[[#This Row],[TUBE]])-ROW(ICP_PS[[#Headers],[TUBE]])) ->  | T27: =IF(ICP_PS[[#This Row],[TUBE]]="","",COUNTIF(OFFSET(ICP_PS[[#Headers],[Ref]],1,0,ICP_PS[[#This Row],[Ligne]],1),ICP_PS[[#This Row],[Ref]])) ->  | U27: =IF(ICP_PS[[#This Row],[TUBE]]="","",ICP_PS[[#This Row],[Ref]]&"_"&ICP_PS[[#This Row],[Compteur]]) -> 
B28: =IF(ICP_PS[[#This Row],[Ref]]="","",ROW(ICP_PS[[#This Row],[Ref]])-ROW(ICP_PS[[#Headers],[Ref]])) ->  | C28: =IF(Pesees!D30="","",Pesees!D30) ->  | S28: =IF(ICP_PS[[#This Row],[TUBE]]="","",ROW(ICP_PS[[#This Row],[TUBE]])-ROW(ICP_PS[[#Headers],[TUBE]])) ->  | T28: =IF(ICP_PS[[#This Row],[TUBE]]="","",COUNTIF(OFFSET(ICP_PS[[#Headers],[Ref]],1,0,ICP_PS[[#This Row],[Ligne]],1),ICP_PS[[#This Row],[Ref]])) ->  | U28: =IF(ICP_PS[[#This Row],[TUBE]]="","",ICP_PS[[#This Row],[Ref]]&"_"&ICP_PS[[#This Row],[Compteur]]) -> 
B29: =IF(ICP_PS[[#This Row],[Ref]]="","",ROW(ICP_PS[[#This Row],[Ref]])-ROW(ICP_PS[[#Headers],[Ref]])) ->  | C29: =IF(Pesees!D31="","",Pesees!D31) ->  | S29: =IF(ICP_PS[[#This Row],[TUBE]]="","",ROW(ICP_PS[[#This Row],[TUBE]])-ROW(ICP_PS[[#Headers],[TUBE]])) ->  | T29: =IF(ICP_PS[[#This Row],[TUBE]]="","",COUNTIF(OFFSET(ICP_PS[[#Headers],[Ref]],1,0,ICP_PS[[#This Row],[Ligne]],1),ICP_PS[[#This Row],[Ref]])) ->  | U29: =IF(ICP_PS[[#This Row],[TUBE]]="","",ICP_PS[[#This Row],[Ref]]&"_"&ICP_PS[[#This Row],[Compteur]]) -> 
B30: =IF(ICP_PS[[#This Row],[Ref]]="","",ROW(ICP_PS[[#This Row],[Ref]])-ROW(ICP_PS[[#Headers],[Ref]])) ->  | C30: =IF(Pesees!D32="","",Pesees!D32) ->  | S30: =IF(ICP_PS[[#This Row],[TUBE]]="","",ROW(ICP_PS[[#This Row],[TUBE]])-ROW(ICP_PS[[#Headers],[TUBE]])) ->  | T30: =IF(ICP_PS[[#This Row],[TUBE]]="","",COUNTIF(OFFSET(ICP_PS[[#Headers],[Ref]],1,0,ICP_PS[[#This Row],[Ligne]],1),ICP_PS[[#This Row],[Ref]])) ->  | U30: =IF(ICP_PS[[#This Row],[TUBE]]="","",ICP_PS[[#This Row],[Ref]]&"_"&ICP_PS[[#This Row],[Compteur]]) -> 
B31: =IF(ICP_PS[[#This Row],[Ref]]="","",ROW(ICP_PS[[#This Row],[Ref]])-ROW(ICP_PS[[#Headers],[Ref]])) ->  | C31: =IF(Pesees!D33="","",Pesees!D33) ->  | S31: =IF(ICP_PS[[#This Row],[TUBE]]="","",ROW(ICP_PS[[#This Row],[TUBE]])-ROW(ICP_PS[[#Headers],[TUBE]])) ->  | T31: =IF(ICP_PS[[#This Row],[TUBE]]="","",COUNTIF(OFFSET(ICP_PS[[#Headers],[Ref]],1,0,ICP_PS[[#This Row],[Ligne]],1),ICP_PS[[#This Row],[Ref]])) ->  | U31: =IF(ICP_PS[[#This Row],[TUBE]]="","",ICP_PS[[#This Row],[Ref]]&"_"&ICP_PS[[#This Row],[Compteur]]) -> 
B32: =IF(ICP_PS[[#This Row],[Ref]]="","",ROW(ICP_PS[[#This Row],[Ref]])-ROW(ICP_PS[[#Headers],[Ref]])) ->  | C32: =IF(Pesees!D34="","",Pesees!D34) ->  | S32: =IF(ICP_PS[[#This Row],[TUBE]]="","",ROW(ICP_PS[[#This Row],[TUBE]])-ROW(ICP_PS[[#Headers],[TUBE]])) ->  | T32: =IF(ICP_PS[[#This Row],[TUBE]]="","",COUNTIF(OFFSET(ICP_PS[[#Headers],[Ref]],1,0,ICP_PS[[#This Row],[Ligne]],1),ICP_PS[[#This Row],[Ref]])) ->  | U32: =IF(ICP_PS[[#This Row],[TUBE]]="","",ICP_PS[[#This Row],[Ref]]&"_"&ICP_PS[[#This Row],[Compteur]]) -> 
B33: =IF(ICP_PS[[#This Row],[Ref]]="","",ROW(ICP_PS[[#This Row],[Ref]])-ROW(ICP_PS[[#Headers],[Ref]])) ->  | C33: =IF(Pesees!D35="","",Pesees!D35) ->  | S33: =IF(ICP_PS[[#This Row],[TUBE]]="","",ROW(ICP_PS[[#This Row],[TUBE]])-ROW(ICP_PS[[#Headers],[TUBE]])) ->  | T33: =IF(ICP_PS[[#This Row],[TUBE]]="","",COUNTIF(OFFSET(ICP_PS[[#Headers],[Ref]],1,0,ICP_PS[[#This Row],[Ligne]],1),ICP_PS[[#This Row],[Ref]])) ->  | U33: =IF(ICP_PS[[#This Row],[TUBE]]="","",ICP_PS[[#This Row],[Ref]]&"_"&ICP_PS[[#This Row],[Compteur]]) -> 
B34: =IF(ICP_PS[[#This Row],[Ref]]="","",ROW(ICP_PS[[#This Row],[Ref]])-ROW(ICP_PS[[#Headers],[Ref]])) ->  | C34: =IF(Pesees!D36="","",Pesees!D36) ->  | S34: =IF(ICP_PS[[#This Row],[TUBE]]="","",ROW(ICP_PS[[#This Row],[TUBE]])-ROW(ICP_PS[[#Headers],[TUBE]])) ->  | T34: =IF(ICP_PS[[#This Row],[TUBE]]="","",COUNTIF(OFFSET(ICP_PS[[#Headers],[Ref]],1,0,ICP_PS[[#This Row],[Ligne]],1),ICP_PS[[#This Row],[Ref]])) ->  | U34: =IF(ICP_PS[[#This Row],[TUBE]]="","",ICP_PS[[#This Row],[Ref]]&"_"&ICP_PS[[#This Row],[Compteur]]) -> 
B35: =IF(ICP_PS[[#This Row],[Ref]]="","",ROW(ICP_PS[[#This Row],[Ref]])-ROW(ICP_PS[[#Headers],[Ref]])) ->  | C35: =IF(Pesees!D37="","",Pesees!D37) ->  | S35: =IF(ICP_PS[[#This Row],[TUBE]]="","",ROW(ICP_PS[[#This Row],[TUBE]])-ROW(ICP_PS[[#Headers],[TUBE]])) ->  | T35: =IF(ICP_PS[[#This Row],[TUBE]]="","",COUNTIF(OFFSET(ICP_PS[[#Headers],[Ref]],1,0,ICP_PS[[#This Row],[Ligne]],1),ICP_PS[[#This Row],[Ref]])) ->  | U35: =IF(ICP_PS[[#This Row],[TUBE]]="","",ICP_PS[[#This Row],[Ref]]&"_"&ICP_PS[[#This Row],[Compteur]]) -> 
B36: =IF(ICP_PS[[#This Row],[Ref]]="","",ROW(ICP_PS[[#This Row],[Ref]])-ROW(ICP_PS[[#Headers],[Ref]])) ->  | C36: =IF(Pesees!D38="","",Pesees!D38) ->  | S36: =IF(ICP_PS[[#This Row],[TUBE]]="","",ROW(ICP_PS[[#This Row],[TUBE]])-ROW(ICP_PS[[#Headers],[TUBE]])) ->  | T36: =IF(ICP_PS[[#This Row],[TUBE]]="","",COUNTIF(OFFSET(ICP_PS[[#Headers],[Ref]],1,0,ICP_PS[[#This Row],[Ligne]],1),ICP_PS[[#This Row],[Ref]])) ->  | U36: =IF(ICP_PS[[#This Row],[TUBE]]="","",ICP_PS[[#This Row],[Ref]]&"_"&ICP_PS[[#This Row],[Compteur]]) -> 
B37: =IF(ICP_PS[[#This Row],[Ref]]="","",ROW(ICP_PS[[#This Row],[Ref]])-ROW(ICP_PS[[#Headers],[Ref]])) ->  | C37: =IF(Pesees!D39="","",Pesees!D39) ->  | S37: =IF(ICP_PS[[#This Row],[TUBE]]="","",ROW(ICP_PS[[#This Row],[TUBE]])-ROW(ICP_PS[[#Headers],[TUBE]])) ->  | T37: =IF(ICP_PS[[#This Row],[TUBE]]="","",COUNTIF(OFFSET(ICP_PS[[#Headers],[Ref]],1,0,ICP_PS[[#This Row],[Ligne]],1),ICP_PS[[#This Row],[Ref]])) ->  | U37: =IF(ICP_PS[[#This Row],[TUBE]]="","",ICP_PS[[#This Row],[Ref]]&"_"&ICP_PS[[#This Row],[Compteur]]) -> 
B38: =IF(ICP_PS[[#This Row],[Ref]]="","",ROW(ICP_PS[[#This Row],[Ref]])-ROW(ICP_PS[[#Headers],[Ref]])) ->  | C38: =IF(Pesees!D40="","",Pesees!D40) ->  | S38: =IF(ICP_PS[[#This Row],[TUBE]]="","",ROW(ICP_PS[[#This Row],[TUBE]])-ROW(ICP_PS[[#Headers],[TUBE]])) ->  | T38: =IF(ICP_PS[[#This Row],[TUBE]]="","",COUNTIF(OFFSET(ICP_PS[[#Headers],[Ref]],1,0,ICP_PS[[#This Row],[Ligne]],1),ICP_PS[[#This Row],[Ref]])) ->  | U38: =IF(ICP_PS[[#This Row],[TUBE]]="","",ICP_PS[[#This Row],[Ref]]&"_"&ICP_PS[[#This Row],[Compteur]]) -> 
B39: =IF(ICP_PS[[#This Row],[Ref]]="","",ROW(ICP_PS[[#This Row],[Ref]])-ROW(ICP_PS[[#Headers],[Ref]])) ->  | C39: =IF(Pesees!D41="","",Pesees!D41) ->  | S39: =IF(ICP_PS[[#This Row],[TUBE]]="","",ROW(ICP_PS[[#This Row],[TUBE]])-ROW(ICP_PS[[#Headers],[TUBE]])) ->  | T39: =IF(ICP_PS[[#This Row],[TUBE]]="","",COUNTIF(OFFSET(ICP_PS[[#Headers],[Ref]],1,0,ICP_PS[[#This Row],[Ligne]],1),ICP_PS[[#This Row],[Ref]])) ->  | U39: =IF(ICP_PS[[#This Row],[TUBE]]="","",ICP_PS[[#This Row],[Ref]]&"_"&ICP_PS[[#This Row],[Compteur]]) -> 
B40: =IF(ICP_PS[[#This Row],[Ref]]="","",ROW(ICP_PS[[#This Row],[Ref]])-ROW(ICP_PS[[#Headers],[Ref]])) ->  | C40: =IF(Pesees!D42="","",Pesees!D42) ->  | S40: =IF(ICP_PS[[#This Row],[TUBE]]="","",ROW(ICP_PS[[#This Row],[TUBE]])-ROW(ICP_PS[[#Headers],[TUBE]])) ->  | T40: =IF(ICP_PS[[#This Row],[TUBE]]="","",COUNTIF(OFFSET(ICP_PS[[#Headers],[Ref]],1,0,ICP_PS[[#This Row],[Ligne]],1),ICP_PS[[#This Row],[Ref]])) ->  | U40: =IF(ICP_PS[[#This Row],[TUBE]]="","",ICP_PS[[#This Row],[Ref]]&"_"&ICP_PS[[#This Row],[Compteur]]) -> 
B41: =IF(ICP_PS[[#This Row],[Ref]]="","",ROW(ICP_PS[[#This Row],[Ref]])-ROW(ICP_PS[[#Headers],[Ref]])) ->  | C41: =IF(Pesees!D43="","",Pesees!D43) ->  | S41: =IF(ICP_PS[[#This Row],[TUBE]]="","",ROW(ICP_PS[[#This Row],[TUBE]])-ROW(ICP_PS[[#Headers],[TUBE]])) ->  | T41: =IF(ICP_PS[[#This Row],[TUBE]]="","",COUNTIF(OFFSET(ICP_PS[[#Headers],[Ref]],1,0,ICP_PS[[#This Row],[Ligne]],1),ICP_PS[[#This Row],[Ref]])) ->  | U41: =IF(ICP_PS[[#This Row],[TUBE]]="","",ICP_PS[[#This Row],[Ref]]&"_"&ICP_PS[[#This Row],[Compteur]]) -> 
B42: =IF(ICP_PS[[#This Row],[Ref]]="","",ROW(ICP_PS[[#This Row],[Ref]])-ROW(ICP_PS[[#Headers],[Ref]])) ->  | C42: =IF(Pesees!D44="","",Pesees!D44) ->  | S42: =IF(ICP_PS[[#This Row],[TUBE]]="","",ROW(ICP_PS[[#This Row],[TUBE]])-ROW(ICP_PS[[#Headers],[TUBE]])) ->  | T42: =IF(ICP_PS[[#This Row],[TUBE]]="","",COUNTIF(OFFSET(ICP_PS[[#Headers],[Ref]],1,0,ICP_PS[[#This Row],[Ligne]],1),ICP_PS[[#This Row],[Ref]])) ->  | U42: =IF(ICP_PS[[#This Row],[TUBE]]="","",ICP_PS[[#This Row],[Ref]]&"_"&ICP_PS[[#This Row],[Compteur]]) -> 
B43: =IF(ICP_PS[[#This Row],[Ref]]="","",ROW(ICP_PS[[#This Row],[Ref]])-ROW(ICP_PS[[#Headers],[Ref]])) ->  | C43: =IF(Pesees!D45="","",Pesees!D45) ->  | S43: =IF(ICP_PS[[#This Row],[TUBE]]="","",ROW(ICP_PS[[#This Row],[TUBE]])-ROW(ICP_PS[[#Headers],[TUBE]])) ->  | T43: =IF(ICP_PS[[#This Row],[TUBE]]="","",COUNTIF(OFFSET(ICP_PS[[#Headers],[Ref]],1,0,ICP_PS[[#This Row],[Ligne]],1),ICP_PS[[#This Row],[Ref]])) ->  | U43: =IF(ICP_PS[[#This Row],[TUBE]]="","",ICP_PS[[#This Row],[Ref]]&"_"&ICP_PS[[#This Row],[Compteur]]) -> 
B44: =IF(ICP_PS[[#This Row],[Ref]]="","",ROW(ICP_PS[[#This Row],[Ref]])-ROW(ICP_PS[[#Headers],[Ref]])) ->  | C44: =IF(Pesees!D46="","",Pesees!D46) ->  | S44: =IF(ICP_PS[[#This Row],[TUBE]]="","",ROW(ICP_PS[[#This Row],[TUBE]])-ROW(ICP_PS[[#Headers],[TUBE]])) ->  | T44: =IF(ICP_PS[[#This Row],[TUBE]]="","",COUNTIF(OFFSET(ICP_PS[[#Headers],[Ref]],1,0,ICP_PS[[#This Row],[Ligne]],1),ICP_PS[[#This Row],[Ref]])) ->  | U44: =IF(ICP_PS[[#This Row],[TUBE]]="","",ICP_PS[[#This Row],[Ref]]&"_"&ICP_PS[[#This Row],[Compteur]]) -> 
B45: =IF(ICP_PS[[#This Row],[Ref]]="","",ROW(ICP_PS[[#This Row],[Ref]])-ROW(ICP_PS[[#Headers],[Ref]])) ->  | C45: =IF(Pesees!D47="","",Pesees!D47) ->  | S45: =IF(ICP_PS[[#This Row],[TUBE]]="","",ROW(ICP_PS[[#This Row],[TUBE]])-ROW(ICP_PS[[#Headers],[TUBE]])) ->  | T45: =IF(ICP_PS[[#This Row],[TUBE]]="","",COUNTIF(OFFSET(ICP_PS[[#Headers],[Ref]],1,0,ICP_PS[[#This Row],[Ligne]],1),ICP_PS[[#This Row],[Ref]])) ->  | U45: =IF(ICP_PS[[#This Row],[TUBE]]="","",ICP_PS[[#This Row],[Ref]]&"_"&ICP_PS[[#This Row],[Compteur]]) -> 
B46: =IF(ICP_PS[[#This Row],[Ref]]="","",ROW(ICP_PS[[#This Row],[Ref]])-ROW(ICP_PS[[#Headers],[Ref]])) ->  | C46: =IF(Pesees!D48="","",Pesees!D48) ->  | S46: =IF(ICP_PS[[#This Row],[TUBE]]="","",ROW(ICP_PS[[#This Row],[TUBE]])-ROW(ICP_PS[[#Headers],[TUBE]])) ->  | T46: =IF(ICP_PS[[#This Row],[TUBE]]="","",COUNTIF(OFFSET(ICP_PS[[#Headers],[Ref]],1,0,ICP_PS[[#This Row],[Ligne]],1),ICP_PS[[#This Row],[Ref]])) ->  | U46: =IF(ICP_PS[[#This Row],[TUBE]]="","",ICP_PS[[#This Row],[Ref]]&"_"&ICP_PS[[#This Row],[Compteur]]) -> 
B47: =IF(ICP_PS[[#This Row],[Ref]]="","",ROW(ICP_PS[[#This Row],[Ref]])-ROW(ICP_PS[[#Headers],[Ref]])) ->  | C47: =IF(Pesees!D49="","",Pesees!D49) ->  | S47: =IF(ICP_PS[[#This Row],[TUBE]]="","",ROW(ICP_PS[[#This Row],[TUBE]])-ROW(ICP_PS[[#Headers],[TUBE]])) ->  | T47: =IF(ICP_PS[[#This Row],[TUBE]]="","",COUNTIF(OFFSET(ICP_PS[[#Headers],[Ref]],1,0,ICP_PS[[#This Row],[Ligne]],1),ICP_PS[[#This Row],[Ref]])) ->  | U47: =IF(ICP_PS[[#This Row],[TUBE]]="","",ICP_PS[[#This Row],[Ref]]&"_"&ICP_PS[[#This Row],[Compteur]]) -> 
B48: =IF(ICP_PS[[#This Row],[Ref]]="","",ROW(ICP_PS[[#This Row],[Ref]])-ROW(ICP_PS[[#Headers],[Ref]])) ->  | C48: =IF(Pesees!D50="","",Pesees!D50) ->  | S48: =IF(ICP_PS[[#This Row],[TUBE]]="","",ROW(ICP_PS[[#This Row],[TUBE]])-ROW(ICP_PS[[#Headers],[TUBE]])) ->  | T48: =IF(ICP_PS[[#This Row],[TUBE]]="","",COUNTIF(OFFSET(ICP_PS[[#Headers],[Ref]],1,0,ICP_PS[[#This Row],[Ligne]],1),ICP_PS[[#This Row],[Ref]])) ->  | U48: =IF(ICP_PS[[#This Row],[TUBE]]="","",ICP_PS[[#This Row],[Ref]]&"_"&ICP_PS[[#This Row],[Compteur]]) -> 
B49: =IF(ICP_PS[[#This Row],[Ref]]="","",ROW(ICP_PS[[#This Row],[Ref]])-ROW(ICP_PS[[#Headers],[Ref]])) ->  | C49: =IF(Pesees!D51="","",Pesees!D51) ->  | S49: =IF(ICP_PS[[#This Row],[TUBE]]="","",ROW(ICP_PS[[#This Row],[TUBE]])-ROW(ICP_PS[[#Headers],[TUBE]])) ->  | T49: =IF(ICP_PS[[#This Row],[TUBE]]="","",COUNTIF(OFFSET(ICP_PS[[#Headers],[Ref]],1,0,ICP_PS[[#This Row],[Ligne]],1),ICP_PS[[#This Row],[Ref]])) ->  | U49: =IF(ICP_PS[[#This Row],[TUBE]]="","",ICP_PS[[#This Row],[Ref]]&"_"&ICP_PS[[#This Row],[Compteur]]) -> 
B50: =IF(ICP_PS[[#This Row],[Ref]]="","",ROW(ICP_PS[[#This Row],[Ref]])-ROW(ICP_PS[[#Headers],[Ref]])) ->  | C50: =IF(Pesees!D52="","",Pesees!D52) ->  | S50: =IF(ICP_PS[[#This Row],[TUBE]]="","",ROW(ICP_PS[[#This Row],[TUBE]])-ROW(ICP_PS[[#Headers],[TUBE]])) ->  | T50: =IF(ICP_PS[[#This Row],[TUBE]]="","",COUNTIF(OFFSET(ICP_PS[[#Headers],[Ref]],1,0,ICP_PS[[#This Row],[Ligne]],1),ICP_PS[[#This Row],[Ref]])) ->  | U50: =IF(ICP_PS[[#This Row],[TUBE]]="","",ICP_PS[[#This Row],[Ref]]&"_"&ICP_PS[[#This Row],[Compteur]]) -> 
B51: =IF(ICP_PS[[#This Row],[Ref]]="","",ROW(ICP_PS[[#This Row],[Ref]])-ROW(ICP_PS[[#Headers],[Ref]])) ->  | C51: =IF(Pesees!D53="","",Pesees!D53) ->  | S51: =IF(ICP_PS[[#This Row],[TUBE]]="","",ROW(ICP_PS[[#This Row],[TUBE]])-ROW(ICP_PS[[#Headers],[TUBE]])) ->  | T51: =IF(ICP_PS[[#This Row],[TUBE]]="","",COUNTIF(OFFSET(ICP_PS[[#Headers],[Ref]],1,0,ICP_PS[[#This Row],[Ligne]],1),ICP_PS[[#This Row],[Ref]])) ->  | U51: =IF(ICP_PS[[#This Row],[TUBE]]="","",ICP_PS[[#This Row],[Ref]]&"_"&ICP_PS[[#This Row],[Compteur]]) -> 
B52: =IF(ICP_PS[[#This Row],[Ref]]="","",ROW(ICP_PS[[#This Row],[Ref]])-ROW(ICP_PS[[#Headers],[Ref]])) ->  | C52: =IF(Pesees!D54="","",Pesees!D54) ->  | S52: =IF(ICP_PS[[#This Row],[TUBE]]="","",ROW(ICP_PS[[#This Row],[TUBE]])-ROW(ICP_PS[[#Headers],[TUBE]])) ->  | T52: =IF(ICP_PS[[#This Row],[TUBE]]="","",COUNTIF(OFFSET(ICP_PS[[#Headers],[Ref]],1,0,ICP_PS[[#This Row],[Ligne]],1),ICP_PS[[#This Row],[Ref]])) ->  | U52: =IF(ICP_PS[[#This Row],[TUBE]]="","",ICP_PS[[#This Row],[Ref]]&"_"&ICP_PS[[#This Row],[Compteur]]) -> 
B53: =IF(ICP_PS[[#This Row],[Ref]]="","",ROW(ICP_PS[[#This Row],[Ref]])-ROW(ICP_PS[[#Headers],[Ref]])) ->  | C53: =IF(Pesees!D55="","",Pesees!D55) ->  | S53: =IF(ICP_PS[[#This Row],[TUBE]]="","",ROW(ICP_PS[[#This Row],[TUBE]])-ROW(ICP_PS[[#Headers],[TUBE]])) ->  | T53: =IF(ICP_PS[[#This Row],[TUBE]]="","",COUNTIF(OFFSET(ICP_PS[[#Headers],[Ref]],1,0,ICP_PS[[#This Row],[Ligne]],1),ICP_PS[[#This Row],[Ref]])) ->  | U53: =IF(ICP_PS[[#This Row],[TUBE]]="","",ICP_PS[[#This Row],[Ref]]&"_"&ICP_PS[[#This Row],[Compteur]]) -> 
B54: =IF(ICP_PS[[#This Row],[Ref]]="","",ROW(ICP_PS[[#This Row],[Ref]])-ROW(ICP_PS[[#Headers],[Ref]])) ->  | C54: =IF(Pesees!D56="","",Pesees!D56) ->  | S54: =IF(ICP_PS[[#This Row],[TUBE]]="","",ROW(ICP_PS[[#This Row],[TUBE]])-ROW(ICP_PS[[#Headers],[TUBE]])) ->  | T54: =IF(ICP_PS[[#This Row],[TUBE]]="","",COUNTIF(OFFSET(ICP_PS[[#Headers],[Ref]],1,0,ICP_PS[[#This Row],[Ligne]],1),ICP_PS[[#This Row],[Ref]])) ->  | U54: =IF(ICP_PS[[#This Row],[TUBE]]="","",ICP_PS[[#This Row],[Ref]]&"_"&ICP_PS[[#This Row],[Compteur]]) -> 
B55: =IF(ICP_PS[[#This Row],[Ref]]="","",ROW(ICP_PS[[#This Row],[Ref]])-ROW(ICP_PS[[#Headers],[Ref]])) ->  | C55: =IF(Pesees!D57="","",Pesees!D57) ->  | S55: =IF(ICP_PS[[#This Row],[TUBE]]="","",ROW(ICP_PS[[#This Row],[TUBE]])-ROW(ICP_PS[[#Headers],[TUBE]])) ->  | T55: =IF(ICP_PS[[#This Row],[TUBE]]="","",COUNTIF(OFFSET(ICP_PS[[#Headers],[Ref]],1,0,ICP_PS[[#This Row],[Ligne]],1),ICP_PS[[#This Row],[Ref]])) ->  | U55: =IF(ICP_PS[[#This Row],[TUBE]]="","",ICP_PS[[#This Row],[Ref]]&"_"&ICP_PS[[#This Row],[Compteur]]) -> 
B56: =IF(ICP_PS[[#This Row],[Ref]]="","",ROW(ICP_PS[[#This Row],[Ref]])-ROW(ICP_PS[[#Headers],[Ref]])) ->  | C56: =IF(Pesees!D58="","",Pesees!D58) ->  | S56: =IF(ICP_PS[[#This Row],[TUBE]]="","",ROW(ICP_PS[[#This Row],[TUBE]])-ROW(ICP_PS[[#Headers],[TUBE]])) ->  | T56: =IF(ICP_PS[[#This Row],[TUBE]]="","",COUNTIF(OFFSET(ICP_PS[[#Headers],[Ref]],1,0,ICP_PS[[#This Row],[Ligne]],1),ICP_PS[[#This Row],[Ref]])) ->  | U56: =IF(ICP_PS[[#This Row],[TUBE]]="","",ICP_PS[[#This Row],[Ref]]&"_"&ICP_PS[[#This Row],[Compteur]]) -> 
B57: =IF(ICP_PS[[#This Row],[Ref]]="","",ROW(ICP_PS[[#This Row],[Ref]])-ROW(ICP_PS[[#Headers],[Ref]])) ->  | C57: =IF(Pesees!D59="","",Pesees!D59) ->  | S57: =IF(ICP_PS[[#This Row],[TUBE]]="","",ROW(ICP_PS[[#This Row],[TUBE]])-ROW(ICP_PS[[#Headers],[TUBE]])) ->  | T57: =IF(ICP_PS[[#This Row],[TUBE]]="","",COUNTIF(OFFSET(ICP_PS[[#Headers],[Ref]],1,0,ICP_PS[[#This Row],[Ligne]],1),ICP_PS[[#This Row],[Ref]])) ->  | U57: =IF(ICP_PS[[#This Row],[TUBE]]="","",ICP_PS[[#This Row],[Ref]]&"_"&ICP_PS[[#This Row],[Compteur]]) -> 
B58: =IF(ICP_PS[[#This Row],[Ref]]="","",ROW(ICP_PS[[#This Row],[Ref]])-ROW(ICP_PS[[#Headers],[Ref]])) ->  | C58: =IF(Pesees!D60="","",Pesees!D60) ->  | S58: =IF(ICP_PS[[#This Row],[TUBE]]="","",ROW(ICP_PS[[#This Row],[TUBE]])-ROW(ICP_PS[[#Headers],[TUBE]])) ->  | T58: =IF(ICP_PS[[#This Row],[TUBE]]="","",COUNTIF(OFFSET(ICP_PS[[#Headers],[Ref]],1,0,ICP_PS[[#This Row],[Ligne]],1),ICP_PS[[#This Row],[Ref]])) ->  | U58: =IF(ICP_PS[[#This Row],[TUBE]]="","",ICP_PS[[#This Row],[Ref]]&"_"&ICP_PS[[#This Row],[Compteur]]) -> 
B59: =IF(ICP_PS[[#This Row],[Ref]]="","",ROW(ICP_PS[[#This Row],[Ref]])-ROW(ICP_PS[[#Headers],[Ref]])) ->  | C59: =IF(Pesees!D61="","",Pesees!D61) ->  | S59: =IF(ICP_PS[[#This Row],[TUBE]]="","",ROW(ICP_PS[[#This Row],[TUBE]])-ROW(ICP_PS[[#Headers],[TUBE]])) ->  | T59: =IF(ICP_PS[[#This Row],[TUBE]]="","",COUNTIF(OFFSET(ICP_PS[[#Headers],[Ref]],1,0,ICP_PS[[#This Row],[Ligne]],1),ICP_PS[[#This Row],[Ref]])) ->  | U59: =IF(ICP_PS[[#This Row],[TUBE]]="","",ICP_PS[[#This Row],[Ref]]&"_"&ICP_PS[[#This Row],[Compteur]]) -> 
B60: =IF(ICP_PS[[#This Row],[Ref]]="","",ROW(ICP_PS[[#This Row],[Ref]])-ROW(ICP_PS[[#Headers],[Ref]])) ->  | C60: =IF(Pesees!D62="","",Pesees!D62) ->  | S60: =IF(ICP_PS[[#This Row],[TUBE]]="","",ROW(ICP_PS[[#This Row],[TUBE]])-ROW(ICP_PS[[#Headers],[TUBE]])) ->  | T60: =IF(ICP_PS[[#This Row],[TUBE]]="","",COUNTIF(OFFSET(ICP_PS[[#Headers],[Ref]],1,0,ICP_PS[[#This Row],[Ligne]],1),ICP_PS[[#This Row],[Ref]])) ->  | U60: =IF(ICP_PS[[#This Row],[TUBE]]="","",ICP_PS[[#This Row],[Ref]]&"_"&ICP_PS[[#This Row],[Compteur]]) -> 
B61: =IF(ICP_PS[[#This Row],[Ref]]="","",ROW(ICP_PS[[#This Row],[Ref]])-ROW(ICP_PS[[#Headers],[Ref]])) ->  | C61: =IF(Pesees!D63="","",Pesees!D63) ->  | S61: =IF(ICP_PS[[#This Row],[TUBE]]="","",ROW(ICP_PS[[#This Row],[TUBE]])-ROW(ICP_PS[[#Headers],[TUBE]])) ->  | T61: =IF(ICP_PS[[#This Row],[TUBE]]="","",COUNTIF(OFFSET(ICP_PS[[#Headers],[Ref]],1,0,ICP_PS[[#This Row],[Ligne]],1),ICP_PS[[#This Row],[Ref]])) ->  | U61: =IF(ICP_PS[[#This Row],[TUBE]]="","",ICP_PS[[#This Row],[Ref]]&"_"&ICP_PS[[#This Row],[Compteur]]) -> 
B62: =IF(ICP_PS[[#This Row],[Ref]]="","",ROW(ICP_PS[[#This Row],[Ref]])-ROW(ICP_PS[[#Headers],[Ref]])) ->  | C62: =IF(Pesees!D64="","",Pesees!D64) ->  | S62: =IF(ICP_PS[[#This Row],[TUBE]]="","",ROW(ICP_PS[[#This Row],[TUBE]])-ROW(ICP_PS[[#Headers],[TUBE]])) ->  | T62: =IF(ICP_PS[[#This Row],[TUBE]]="","",COUNTIF(OFFSET(ICP_PS[[#Headers],[Ref]],1,0,ICP_PS[[#This Row],[Ligne]],1),ICP_PS[[#This Row],[Ref]])) ->  | U62: =IF(ICP_PS[[#This Row],[TUBE]]="","",ICP_PS[[#This Row],[Ref]]&"_"&ICP_PS[[#This Row],[Compteur]]) -> 
B63: =IF(ICP_PS[[#This Row],[Ref]]="","",ROW(ICP_PS[[#This Row],[Ref]])-ROW(ICP_PS[[#Headers],[Ref]])) ->  | C63: =IF(Pesees!D65="","",Pesees!D65) ->  | S63: =IF(ICP_PS[[#This Row],[TUBE]]="","",ROW(ICP_PS[[#This Row],[TUBE]])-ROW(ICP_PS[[#Headers],[TUBE]])) ->  | T63: =IF(ICP_PS[[#This Row],[TUBE]]="","",COUNTIF(OFFSET(ICP_PS[[#Headers],[Ref]],1,0,ICP_PS[[#This Row],[Ligne]],1),ICP_PS[[#This Row],[Ref]])) ->  | U63: =IF(ICP_PS[[#This Row],[TUBE]]="","",ICP_PS[[#This Row],[Ref]]&"_"&ICP_PS[[#This Row],[Compteur]]) -> 
B64: =IF(ICP_PS[[#This Row],[Ref]]="","",ROW(ICP_PS[[#This Row],[Ref]])-ROW(ICP_PS[[#Headers],[Ref]])) ->  | C64: =IF(Pesees!D66="","",Pesees!D66) ->  | S64: =IF(ICP_PS[[#This Row],[TUBE]]="","",ROW(ICP_PS[[#This Row],[TUBE]])-ROW(ICP_PS[[#Headers],[TUBE]])) ->  | T64: =IF(ICP_PS[[#This Row],[TUBE]]="","",COUNTIF(OFFSET(ICP_PS[[#Headers],[Ref]],1,0,ICP_PS[[#This Row],[Ligne]],1),ICP_PS[[#This Row],[Ref]])) ->  | U64: =IF(ICP_PS[[#This Row],[TUBE]]="","",ICP_PS[[#This Row],[Ref]]&"_"&ICP_PS[[#This Row],[Compteur]]) -> 
B65: =IF(ICP_PS[[#This Row],[Ref]]="","",ROW(ICP_PS[[#This Row],[Ref]])-ROW(ICP_PS[[#Headers],[Ref]])) ->  | C65: =IF(Pesees!D67="","",Pesees!D67) ->  | S65: =IF(ICP_PS[[#This Row],[TUBE]]="","",ROW(ICP_PS[[#This Row],[TUBE]])-ROW(ICP_PS[[#Headers],[TUBE]])) ->  | T65: =IF(ICP_PS[[#This Row],[TUBE]]="","",COUNTIF(OFFSET(ICP_PS[[#Headers],[Ref]],1,0,ICP_PS[[#This Row],[Ligne]],1),ICP_PS[[#This Row],[Ref]])) ->  | U65: =IF(ICP_PS[[#This Row],[TUBE]]="","",ICP_PS[[#This Row],[Ref]]&"_"&ICP_PS[[#This Row],[Compteur]]) -> 
B66: =IF(ICP_PS[[#This Row],[Ref]]="","",ROW(ICP_PS[[#This Row],[Ref]])-ROW(ICP_PS[[#Headers],[Ref]])) ->  | C66: =IF(Pesees!D68="","",Pesees!D68) ->  | S66: =IF(ICP_PS[[#This Row],[TUBE]]="","",ROW(ICP_PS[[#This Row],[TUBE]])-ROW(ICP_PS[[#Headers],[TUBE]])) ->  | T66: =IF(ICP_PS[[#This Row],[TUBE]]="","",COUNTIF(OFFSET(ICP_PS[[#Headers],[Ref]],1,0,ICP_PS[[#This Row],[Ligne]],1),ICP_PS[[#This Row],[Ref]])) ->  | U66: =IF(ICP_PS[[#This Row],[TUBE]]="","",ICP_PS[[#This Row],[Ref]]&"_"&ICP_PS[[#This Row],[Compteur]]) -> 
B67: =IF(ICP_PS[[#This Row],[Ref]]="","",ROW(ICP_PS[[#This Row],[Ref]])-ROW(ICP_PS[[#Headers],[Ref]])) ->  | C67: =IF(Pesees!D69="","",Pesees!D69) ->  | S67: =IF(ICP_PS[[#This Row],[TUBE]]="","",ROW(ICP_PS[[#This Row],[TUBE]])-ROW(ICP_PS[[#Headers],[TUBE]])) ->  | T67: =IF(ICP_PS[[#This Row],[TUBE]]="","",COUNTIF(OFFSET(ICP_PS[[#Headers],[Ref]],1,0,ICP_PS[[#This Row],[Ligne]],1),ICP_PS[[#This Row],[Ref]])) ->  | U67: =IF(ICP_PS[[#This Row],[TUBE]]="","",ICP_PS[[#This Row],[Ref]]&"_"&ICP_PS[[#This Row],[Compteur]]) -> 
B68: =IF(ICP_PS[[#This Row],[Ref]]="","",ROW(ICP_PS[[#This Row],[Ref]])-ROW(ICP_PS[[#Headers],[Ref]])) ->  | C68: =IF(Pesees!D70="","",Pesees!D70) ->  | S68: =IF(ICP_PS[[#This Row],[TUBE]]="","",ROW(ICP_PS[[#This Row],[TUBE]])-ROW(ICP_PS[[#Headers],[TUBE]])) ->  | T68: =IF(ICP_PS[[#This Row],[TUBE]]="","",COUNTIF(OFFSET(ICP_PS[[#Headers],[Ref]],1,0,ICP_PS[[#This Row],[Ligne]],1),ICP_PS[[#This Row],[Ref]])) ->  | U68: =IF(ICP_PS[[#This Row],[TUBE]]="","",ICP_PS[[#This Row],[Ref]]&"_"&ICP_PS[[#This Row],[Compteur]]) -> 
B69: =IF(ICP_PS[[#This Row],[Ref]]="","",ROW(ICP_PS[[#This Row],[Ref]])-ROW(ICP_PS[[#Headers],[Ref]])) ->  | C69: =IF(Pesees!D71="","",Pesees!D71) ->  | S69: =IF(ICP_PS[[#This Row],[TUBE]]="","",ROW(ICP_PS[[#This Row],[TUBE]])-ROW(ICP_PS[[#Headers],[TUBE]])) ->  | T69: =IF(ICP_PS[[#This Row],[TUBE]]="","",COUNTIF(OFFSET(ICP_PS[[#Headers],[Ref]],1,0,ICP_PS[[#This Row],[Ligne]],1),ICP_PS[[#This Row],[Ref]])) ->  | U69: =IF(ICP_PS[[#This Row],[TUBE]]="","",ICP_PS[[#This Row],[Ref]]&"_"&ICP_PS[[#This Row],[Compteur]]) -> 
B70: =IF(ICP_PS[[#This Row],[Ref]]="","",ROW(ICP_PS[[#This Row],[Ref]])-ROW(ICP_PS[[#Headers],[Ref]])) ->  | C70: =IF(Pesees!D72="","",Pesees!D72) ->  | S70: =IF(ICP_PS[[#This Row],[TUBE]]="","",ROW(ICP_PS[[#This Row],[TUBE]])-ROW(ICP_PS[[#Headers],[TUBE]])) ->  | T70: =IF(ICP_PS[[#This Row],[TUBE]]="","",COUNTIF(OFFSET(ICP_PS[[#Headers],[Ref]],1,0,ICP_PS[[#This Row],[Ligne]],1),ICP_PS[[#This Row],[Ref]])) ->  | U70: =IF(ICP_PS[[#This Row],[TUBE]]="","",ICP_PS[[#This Row],[Ref]]&"_"&ICP_PS[[#This Row],[Compteur]]) -> 
B71: =IF(ICP_PS[[#This Row],[Ref]]="","",ROW(ICP_PS[[#This Row],[Ref]])-ROW(ICP_PS[[#Headers],[Ref]])) ->  | C71: =IF(Pesees!D73="","",Pesees!D73) ->  | S71: =IF(ICP_PS[[#This Row],[TUBE]]="","",ROW(ICP_PS[[#This Row],[TUBE]])-ROW(ICP_PS[[#Headers],[TUBE]])) ->  | T71: =IF(ICP_PS[[#This Row],[TUBE]]="","",COUNTIF(OFFSET(ICP_PS[[#Headers],[Ref]],1,0,ICP_PS[[#This Row],[Ligne]],1),ICP_PS[[#This Row],[Ref]])) ->  | U71: =IF(ICP_PS[[#This Row],[TUBE]]="","",ICP_PS[[#This Row],[Ref]]&"_"&ICP_PS[[#This Row],[Compteur]]) -> 
